Workbook

Sheet Info
A1: =RIGHT(CELL("filename", A1), LEN(CELL("filename", A1)) - FIND("]", CELL("filename", A1))) -> Info
E2: Hier kan eventueel informatie van het project toegevoegd worden door de gebruiker.
D7: Instructie gebruik instrumenten
E8: Aedes stelt gelijktijdig vier samenhangende instrumenten voor de businesscase van zonnepanelen beschikbaar:
F9: Beslisboom Zonnepanelen
F10: Rekentool businesscase zonnepanelen
F11: Gebruiksaanwijzing voor de rekentool businesscase zonnepanelen
F12: Fiscale aspecten voor corporaties bij plaatsing van zonnepanelen
E13: In de Beslisboom en Rekentool zijn er voor de bruikbaarheid vereenvoudigde aannamen gemaakt van de fiscale aspecten. De fiscale aspecten kunnen echter relatief belangrijk zijn (het al dan niet verrekenen van BTW, kan 21% uitmaken en de meeste corporaties betalen Vpb belasting.) Het advies om eerst de Beslisboom te gebruiken en vervolgens een eerste scenario in de rekentool in te voeren. De Rekentool kan voor meerdere complexen worden gebruikt, maar ook voor een scenario per complex worden opgeslagen. Bestudeer de fiscale aspecten van de keuzes, voor een compleet financieel beeld. Overweeg eventueel na een hernieuwde keuze via de Beslisboom ook een ander scenario in de Rekentool in te voeren en de fiscale aspecten uit te werken.
C15: Gebruik van de beslisboom
E16: De gedachte achter de beslisboom is om de gebruiker te helpen te bepalen welke subsidieregeling het meest geschikt is, in verschillende situaties.
E17: De opbouw van de beslisboom en keuzes die hierin te maken zijn, zijn gebaseerd op de resultaten en inzichten van het onderzoek naar de businesscases voor zonnepanelen in de corporatiesector (Fakton Energy, 2020).
E18: Het is mogelijk voor gebruikers van het rekenmodel om keuzes te maken die afwijken van de beslisboom.
E19: Zo is het mogelijk om in het model MGW-woningen individueel aan te sluiten, waar dit in de beslisboom niet als mogelijkheid is opgenomen.
C21: Handleiding Businesscase Rekentool
E22: Dit tabblad bevat een korte handleiding voor het gebruik van dit model.
E23: Gebruikers maken gebruik van de volgende tabbladen:
F24: InAlgemeen
F25: InComplex
F26: Dashboard
F27: (DB)-Planning
E28: Hieronder is nader toegelicht hoe deze tabbladen te gebruiken.
E29: De overige tabbladen bevatten input die niet is aan te passen (Config) en het rekenblok van het model (CalcProject, OutProject en CalcAggr).
C31: InAlgemeen
E32: Tabblad InAlgemeen bevat:
D34: Algemene projectgegevens
E35: In dit onderdeel is het mogelijk aan te geven welk project het model betreft, wie de invuller en overige standaard input.
D37: Instellingen voor het rekenmodel
E38: Onder instellingen voor het rekenmodel zijn allerlei variabelen aan te passen die van toepassing zijn voor de doorrekening die de gebruiker wil maken.
E39: De instellingen die in dit tabblad worden ingevoerd, worden gebruikt voor de berekening van alle projecten die in het model worden gebruikt.
E40: Het is raadzaam om jaarlijks de instellingen te wijzigen, om tariefwijzigingen een plek te geven.
D42: Algemene toelichting
E43: Tariefstellingen zijn gebaseerd op de diverse (subsidie)regelingen. Indexering van de tarieven is ingesteld op 1,5%.
E44: Ondershoudslasten zijn bepaald op basis van een % van de investeringslasten in geval van MGW en op een vast bedrag bij EGW. De gehanteerde percentages en bedragen zijn gebaseerd op eerder onderzoek door Fakton Energy.
E45: Indexering van onderhoudslasten is ingesteld op 2%. De indexering voor investeringen is ingesteld op -3,5% door jaarlijkse prijsdaling van zonnepanelen.
E46: Herinvesteringen zijn gebaseerd op de technische levensduur van omvormers, te weten 15 jaar. De gehanteerde investering in omvormers is 11%, gebaseerd op eerder onderzoek door TNO.
D48: Toelichting op de diverse (subsidie)regelingen
E49: Salderen
E50: Stimulering Duurzame Energieproductie en Klimaattransitie (SDE++)
E51: Subsidieregeling Coöperatieve Energieopwekking (SCE)
E52: Garantie van oorsprong (GVO)
C55: InComplex
E56: Tabblad InComplex bevat alle invulvelden voor informatie relaterend aan het specifieke project dat de gebruiker wil berekenen.
E57: Alle gegevens zijn in te vullen op (deel)complexniveau. Er is een maximum van 50 complexen in te vullen.
E58: Het is aan de gebruiker om de definitie van een 'complex' te bepalen. Dit kan zowel een enkele woning zijn, maar ook een verzameling van honderd woningen.
E59: Het belangrijkste is dat de gevraagde karakteristieken van het complex (zoals oriëntatie) eenduidig zijn en dat alle velden worden ingevuld.
D61: Naamgeving complexen
E62: In kolom D staat nu een opsomming van (deel)complexen van 1 t/m 50. In deze kolom is het mogelijk om de naamgeving aan te passen - bijvoorbeeld naar adres van het complex.
D64: Gele cellen
E65: Gele cellen zijn vrij in te vullen. Het betreft in dit geval altijd een cijfer.
D67: Oranje cellen
E68: Alle oranje cellen zijn in te vullen met een drop-down menu.
D70: Blauwe cellen
E71: De blauwe cellen zijn NIET om in te vullen. Deze geven het resultaat van een berekening om de gebruiker te helpen met het juist invullen van het model.
D73: Invultips bij tabblad InComplex
E74: Algemeen: Het is mogelijk om verschillende scenario's voor hetzelfde (deel)complex te vergelijken. Dit kan door twee identieke (deel)complexen in te regelen en één (of meerdere) aspecten te wijzigen. De resultaten zijn te vergelijken in het Dashboard.
E75: Kolom G: Het is bij MGW complexen mogelijk om te kiezen voor individuele aansluitingen of collectieve aansluitingen.
F76: Het verschil hiertussen ontstaat voornamelijk in de verschillen tussen tariefstaffels voor individuele kleingebruiker en collectieve grootverbruikers. Kleinverbruikers (met over het algemeen een verbruik tot 10.000 kWh per jaar) maken enkel gebruik van de eerste staffel, terwijl grootverbruikers boven deze grens afnemende tarieven voor Energiebelasting (EB) en Opslag Duurzame Energie (ODE) kennen. Dit verklaart een groot deel van het verschil tussen verder identieke individuele of collectieve situaties.
E79: Kolom G: In sommige complexen is sprake van zowel individuele aansluitingen als collectieve voorzieningen. Splits in dit geval het complex in twee deelcomplexen en vul de combinatie separaat in.
E80: Kolom H: Bij individuele aansluitingen - geef gemiddeld verbruik per aansluiting op. Bij collectieve aansluiting - geef verbruik van de centrale voorzieningen op.
E81: Kolom J: De zoninval per gekozen oriëntatie verschilt. Er is gekozen voor een optimale hellingshoek per oriëntatie. In het tabblad Config kan de zoninval per oriëntatie desgewenst aangepast worden.
E82: Kolom K: Vul hier het netto dakoppervlak in dat gebruikt gaat worden voor het installeren van zonnepanelen. Het model gaat uit van een kleine correctiefactor om rekening te houden met onbenut oppervlak. Houd zelf rekening met andere ruimtebeperkingen.
E83: Kolom P: Geef hier aan over hoeveel jaar de investeringen in dit complex worden verspreid, geteld vanaf het eerste jaar van investering.
E84: Kolom R: SCE = Subsidieregeling Cooperatieve Energieopwekking.
E85: Kolom S: Geef hier aan welk % van de gerealiseerde kostenbesparing ten goede komt van de verhuurder.
C88: Dashboard
E89: Tabblad Dashboard presenteert de resultaten van de businesscase berekening voor de gekozen selectie.
E90: Het geeft zowel een samenvatting van de getoonde selectie, als de resultaten van de businesscase in tabelvorm en grafiekvorm.
E91: Resultaten zijn o.a.: investeringen, projectrentabiliteit, terugverdientijd, besparing voor bewoners, geïnstalleerd vermogen, uitrol aantal woningen per jaar en eigen stroomproductie per jaar.
E92: Het is van belang om de juiste selectie te maken, om zo het gewenste inzicht te krijgen in de resultaten.
D94: Selectie dashboard
E95: Onder 'selectie dashboard' is het mogelijk om aan te geven welke resultaten de gebruiker wenst te zien.
E96: Het is mogelijk om op drie manieren de resultaten te presenteren. Dit is te selecteren in het gele vak bij 'beschouwingswijze':
D98: Alle complexen
E99: Bij het selecteren van 'alle complexen' worden de businesscaseresultaten getoond van alle complexen bij elkaar opgeteld.
E100: Deze configuratie kan interessant zijn om voor een geheel programma (met meerdere complexen over meerdere jaren) de businesscase te berekenen.
D102: Naam complex
E103: Bij het selecteren van 'Naam complex' worden de businesscaseresultaten getoond per individueel ingevuld complex.
E104: Deze configuratie kan interessant zijn om de businesscases van verschillende complexen met elkaar te vergelijken.
D106: Jaar van investering
E107: Bij het selecteren van 'Jaar van investering' worden de businesscaseresultaten getoond voor ieder jaar van investeren.
E108: Deze configuratie kan interessant zijn om de investeringsbehoefte per jaar van een programma te berekenen.
D110: Break-even punt
E111: Het break-even punt, oftewel het punt waarop kasstromen op €0,- uit komen, kan gevonden worden door in het Dashboard een wijziging toe te passen op de besparingsverdeling. Door deze aan te passen in cel F39, kan de waarde in cel F41 naar €0 gebracht worden. De besparingsverdeling is uiteraard gemaximaliseerd op 100% en geminimaliseerd op 0% voor de verhuurder.
E112: Ter illustratie, stel men heeft 3 complexen met drie besparingsverdelingen. Hierop wordt een aanpassing van +10% toegepast. De aanpassingen gaan dan als volgt:
H113: Oud | J113: Nieuw
F114: Complex A | H114: 0.7 | I114: wordt | J114: 0.8
F115: Complex B | H115: 0.6 | I115: wordt | J115: 0.7
F116: Complex C | H116: 0.95 | I116: wordt | J116: 1
E117: Afhankelijk van de keuze in cel F40, is het de netto contante waarde of de som van de cumulatieve kasstromen die men handmatig kan doelzoeken op een waarde (nabij) nul.
E118: Het is belangrijk om na het wijzigingen van de waarde op het rekenmachinetje te klikken om het model goed door te rekenen en de nieuwe output weer te geven.
E119: Wanneer men gebruik maakt van deze functionaliteit, passen we de correctie toe op alle complexen en wijzigen alle resultaten. Het is dus belangrijk deze functionaliteit enkel te gebruiken voor de sensitiviteitstoets en de waarde nadien altijd terug te zetten op een correctie van 0%. Indien men de waarde laat staan, verschijnen op verschillende tabbladen waarschuwingen om de gebruiker te wijzen op het gewijzigde uitgangspunt met betrekking tot de besparingsverdeling.
C123: (DB)-Planning
E124: Tabblad (DB)-Planning geeft inzicht in de planning van de verschillende complexen en hiermee een overzicht van alle projecten.
E125: Per (deel)complex toont dit tabblad hoeveel woningen in welk jaar worden voorzien van zonnepanelen.
C127: Config
E128: Naast de input die standaard in het model staat, kan men sommige uitgangspunten handmatig overrulen. Dit doet men door in het tabblad Config, in de blauwe cellen de desbetreffende waarde te overschrijven. De gehanteerde waarde, weergegeven rechts van deze blauwe cellen, zal daardoor wijzigen en het model rekent hierna met deze aangepaste uitgangpunten.
E129: Wanneer men een uitgangspunt wijzigt, verschijnen op verschillende tabbladen waarschuwingen om de gebruiker te wijzen op de gewijzigde uitgangspunten.

Sheet InAlgemeen
A1: =RIGHT(CELL("filename", A1), LEN(CELL("filename", A1)) - FIND("]", CELL("filename", A1))) -> InAlgemeen
E8: Projectnaam | F8: Uitrol zon 2022-2024
E9: Invuller | F9: Piet
E11: Straatnaam + huisnr. | F11: Straatweg 111
E12: Postcode | F12: 1234AB
E13: Stad | F13: Onder de Heuvel
A17: =RIGHT(CELL("filename", $A$1), LEN(CELL("filename", $A$1)) - SEARCH("]", CELL("filename", $A$1))) -> InAlgemeen
C18: Instellingen rekenmodel | K18: Bron:
E19: =Config!$E$12 -> 
E20: =Dashboard!$E$14 -> 
D21: Instelling onderhoudslasten | I21: Index
E22: Onderhoudslasten EGW | F22: 15 | G22: € per woning per jaar | I22: 0.02 | K22: Fakton rapport
E23: Onderhoudslasten MGW | F23: 0.02 | G23: van investering per complex per jaar | I23: 0.02 | K23: Fakton rapport
D25: Tarieven | I25: Index
E26: Leveringstarief | F26: 0.05 | G26: € per kWh | I26: 0.015 | K26: TNO-rapport
E27: Kosten en marge leverancier | F27: 0 | G27: € per kWh | I27: 0 | K27: TNO-rapport
E28: Transportkosten | F28: 0.001 | G28: € per kWh | I28: 0 | K28: TNO-rapport
E29: Terugleveringsvergoeding | F29: 0.8 | G29: van leveringstarief | I29: 0 | K29: TNO-rapport
D31: Stimulering Duurzame Energieproductie en Klimaattransitie (SDE++)
E32: Basisbedrag | F32: 0.085 | G32: € per kWh | I32: 0 | K32: PBL
E33: Correctiebedrag netlevering | F33: =F26 -> 0.05 | G33: € per kWh | I33: 0.015 | K33: PBL
E34: Correctiebedrag niet-netlevering | F34: 0.078 | G34: € per kWh | I34: 0 | K34: PBL
E35: Looptijd subsidie | F35: 15 | G35: jaar | K35: PBL
D37: Subsidieregeling Coöperatieve Energieopwekking (SCE)
E38: Basisbedrag (PV op kva) | F38: 0.146 | G38: € per kWh | K38: RVO
E39: Correctiebedrag | F39: 0.034 | G39: € per kWh | K39: RVO
E40: Subsidie per geproduceerde kWh | F40: =$F$38 - $F$39 -> 0.112 | G40: € per kWh | K40: RVO
E41: Minimaal geïnstalleerd vermogen | F41: 15 | G41: kWp | K41: RVO
E42: Maximaal geïnstalleerd vermogen | F42: 300 | G42: kWp | K42: RVO
E43: Maximum kWp per lid | F43: 5 | G43: kWp | K43: RVO
D45: Garantie van oorsprong (GVO)
E46: GVO | F46: 0.006 | G46: € per kWh | I46: 0 | K46: Fakton rapport
D48: Rendementseis
E49: Rendementseis | F49: 0.04 | K49: Fakton rapport
D51: Financiering
E52: Looptijd lening | F52: 15 | G52: jaar | K52: Fakton rapport
E53: Rente lening | F53: 0.015 | K53: Fakton rapport

Sheet InComplex
A1: =RIGHT(CELL("filename", A1), LEN(CELL("filename", A1)) - FIND("]", CELL("filename", A1))) -> InComplex
D2: Vrij invulbare cellen | F2: =Config!$E$12 -> 
D3: Cellen met een dropdownmenu | F3: =Dashboard!$E$14 -> 
D4: Houd de muis over de cellen met een rood driehoekje voor eventuele opmerkingen.
D6: Naam complex (kan aangepast worden) | E6: Aantal woningen | F6: EGW/MGW | G6: Aansluiting | H6: Gem. verbruik | I6: Welk verbruik opgeven? | J6: Paneel-oriëntatie | K6: Totaal netto dakoppervlak* | L6: Paneelgrootte | M6: Paneelklasse | N6: Opwekking per jaar | O6: =Config!$E$82 -> Jaar van investering | P6: Investerings-periode | Q6: Beschouwings-termijn | R6: Subsidie-regeling | S6: Besparings-verdeling | T6: Organisatie-vorm | U6: Vreemd vermogen (VV)
E7: in complex | G7: Indiv./Collect. | H7: kWh per jaar | K7: m² oppervlakte | L7: m²/paneel | N7: kWh | P7: jaren | S7: % verhuurder | T7: Intern/Esco | U7: % van VV
D8: (Deel)complex 1 | I8: =IF(G8 = Config!$E$29, Config!$F$29, IF(G8 = Config!$E$30, Config!$F$30, "")) ->  | N8: =IF(SUM(J8:M8) <> 0, (K8 * Config!$J$102) * INDEX(Config!$K$111:$L$112, MATCH(L8, Config!$E$111:$E$112, 0), MATCH(M8, Config!$F$110:$G$110, 0)) * INDEX(Config!$J$86:$J$89, MATCH(J8, Config!$E$86:$E$89, 0)) / 1000 * Config!$J$98, 0) -> 0
D9: (Deel)complex 2 | I9: =IF(G9 = Config!$E$29, Config!$F$29, IF(G9 = Config!$E$30, Config!$F$30, "")) ->  | N9: =IF(SUM(J9:M9) <> 0, (K9 * Config!$J$102) * INDEX(Config!$K$111:$L$112, MATCH(L9, Config!$E$111:$E$112, 0), MATCH(M9, Config!$F$110:$G$110, 0)) * INDEX(Config!$J$86:$J$89, MATCH(J9, Config!$E$86:$E$89, 0)) / 1000 * Config!$J$98, 0) -> 0
D10: (Deel)complex 3 | I10: =IF(G10 = Config!$E$29, Config!$F$29, IF(G10 = Config!$E$30, Config!$F$30, "")) ->  | N10: =IF(SUM(J10:M10) <> 0, (K10 * Config!$J$102) * INDEX(Config!$K$111:$L$112, MATCH(L10, Config!$E$111:$E$112, 0), MATCH(M10, Config!$F$110:$G$110, 0)) * INDEX(Config!$J$86:$J$89, MATCH(J10, Config!$E$86:$E$89, 0)) / 1000 * Config!$J$98, 0) -> 0
D11: (Deel)complex 4 | I11: =IF(G11 = Config!$E$29, Config!$F$29, IF(G11 = Config!$E$30, Config!$F$30, "")) ->  | N11: =IF(SUM(J11:M11) <> 0, (K11 * Config!$J$102) * INDEX(Config!$K$111:$L$112, MATCH(L11, Config!$E$111:$E$112, 0), MATCH(M11, Config!$F$110:$G$110, 0)) * INDEX(Config!$J$86:$J$89, MATCH(J11, Config!$E$86:$E$89, 0)) / 1000 * Config!$J$98, 0) -> 0
D12: (Deel)complex 5 | I12: =IF(G12 = Config!$E$29, Config!$F$29, IF(G12 = Config!$E$30, Config!$F$30, "")) ->  | N12: =IF(SUM(J12:M12) <> 0, (K12 * Config!$J$102) * INDEX(Config!$K$111:$L$112, MATCH(L12, Config!$E$111:$E$112, 0), MATCH(M12, Config!$F$110:$G$110, 0)) * INDEX(Config!$J$86:$J$89, MATCH(J12, Config!$E$86:$E$89, 0)) / 1000 * Config!$J$98, 0) -> 0
D13: (Deel)complex 6 | I13: =IF(G13 = Config!$E$29, Config!$F$29, IF(G13 = Config!$E$30, Config!$F$30, "")) ->  | N13: =IF(SUM(J13:M13) <> 0, (K13 * Config!$J$102) * INDEX(Config!$K$111:$L$112, MATCH(L13, Config!$E$111:$E$112, 0), MATCH(M13, Config!$F$110:$G$110, 0)) * INDEX(Config!$J$86:$J$89, MATCH(J13, Config!$E$86:$E$89, 0)) / 1000 * Config!$J$98, 0) -> 0
D14: (Deel)complex 7 | I14: =IF(G14 = Config!$E$29, Config!$F$29, IF(G14 = Config!$E$30, Config!$F$30, "")) ->  | N14: =IF(SUM(J14:M14) <> 0, (K14 * Config!$J$102) * INDEX(Config!$K$111:$L$112, MATCH(L14, Config!$E$111:$E$112, 0), MATCH(M14, Config!$F$110:$G$110, 0)) * INDEX(Config!$J$86:$J$89, MATCH(J14, Config!$E$86:$E$89, 0)) / 1000 * Config!$J$98, 0) -> 0
D15: (Deel)complex 8 | I15: =IF(G15 = Config!$E$29, Config!$F$29, IF(G15 = Config!$E$30, Config!$F$30, "")) ->  | N15: =IF(SUM(J15:M15) <> 0, (K15 * Config!$J$102) * INDEX(Config!$K$111:$L$112, MATCH(L15, Config!$E$111:$E$112, 0), MATCH(M15, Config!$F$110:$G$110, 0)) * INDEX(Config!$J$86:$J$89, MATCH(J15, Config!$E$86:$E$89, 0)) / 1000 * Config!$J$98, 0) -> 0
D16: (Deel)complex 9 | I16: =IF(G16 = Config!$E$29, Config!$F$29, IF(G16 = Config!$E$30, Config!$F$30, "")) ->  | N16: =IF(SUM(J16:M16) <> 0, (K16 * Config!$J$102) * INDEX(Config!$K$111:$L$112, MATCH(L16, Config!$E$111:$E$112, 0), MATCH(M16, Config!$F$110:$G$110, 0)) * INDEX(Config!$J$86:$J$89, MATCH(J16, Config!$E$86:$E$89, 0)) / 1000 * Config!$J$98, 0) -> 0
D17: (Deel)complex 10 | I17: =IF(G17 = Config!$E$29, Config!$F$29, IF(G17 = Config!$E$30, Config!$F$30, "")) ->  | N17: =IF(SUM(J17:M17) <> 0, (K17 * Config!$J$102) * INDEX(Config!$K$111:$L$112, MATCH(L17, Config!$E$111:$E$112, 0), MATCH(M17, Config!$F$110:$G$110, 0)) * INDEX(Config!$J$86:$J$89, MATCH(J17, Config!$E$86:$E$89, 0)) / 1000 * Config!$J$98, 0) -> 0
D18: (Deel)complex 11 | I18: =IF(G18 = Config!$E$29, Config!$F$29, IF(G18 = Config!$E$30, Config!$F$30, "")) ->  | N18: =IF(SUM(J18:M18) <> 0, (K18 * Config!$J$102) * INDEX(Config!$K$111:$L$112, MATCH(L18, Config!$E$111:$E$112, 0), MATCH(M18, Config!$F$110:$G$110, 0)) * INDEX(Config!$J$86:$J$89, MATCH(J18, Config!$E$86:$E$89, 0)) / 1000 * Config!$J$98, 0) -> 0
D19: (Deel)complex 12 | I19: =IF(G19 = Config!$E$29, Config!$F$29, IF(G19 = Config!$E$30, Config!$F$30, "")) ->  | N19: =IF(SUM(J19:M19) <> 0, (K19 * Config!$J$102) * INDEX(Config!$K$111:$L$112, MATCH(L19, Config!$E$111:$E$112, 0), MATCH(M19, Config!$F$110:$G$110, 0)) * INDEX(Config!$J$86:$J$89, MATCH(J19, Config!$E$86:$E$89, 0)) / 1000 * Config!$J$98, 0) -> 0
D20: (Deel)complex 13 | I20: =IF(G20 = Config!$E$29, Config!$F$29, IF(G20 = Config!$E$30, Config!$F$30, "")) ->  | N20: =IF(SUM(J20:M20) <> 0, (K20 * Config!$J$102) * INDEX(Config!$K$111:$L$112, MATCH(L20, Config!$E$111:$E$112, 0), MATCH(M20, Config!$F$110:$G$110, 0)) * INDEX(Config!$J$86:$J$89, MATCH(J20, Config!$E$86:$E$89, 0)) / 1000 * Config!$J$98, 0) -> 0
D21: (Deel)complex 14 | I21: =IF(G21 = Config!$E$29, Config!$F$29, IF(G21 = Config!$E$30, Config!$F$30, "")) ->  | N21: =IF(SUM(J21:M21) <> 0, (K21 * Config!$J$102) * INDEX(Config!$K$111:$L$112, MATCH(L21, Config!$E$111:$E$112, 0), MATCH(M21, Config!$F$110:$G$110, 0)) * INDEX(Config!$J$86:$J$89, MATCH(J21, Config!$E$86:$E$89, 0)) / 1000 * Config!$J$98, 0) -> 0
D22: (Deel)complex 15 | I22: =IF(G22 = Config!$E$29, Config!$F$29, IF(G22 = Config!$E$30, Config!$F$30, "")) ->  | N22: =IF(SUM(J22:M22) <> 0, (K22 * Config!$J$102) * INDEX(Config!$K$111:$L$112, MATCH(L22, Config!$E$111:$E$112, 0), MATCH(M22, Config!$F$110:$G$110, 0)) * INDEX(Config!$J$86:$J$89, MATCH(J22, Config!$E$86:$E$89, 0)) / 1000 * Config!$J$98, 0) -> 0
D23: (Deel)complex 16 | I23: =IF(G23 = Config!$E$29, Config!$F$29, IF(G23 = Config!$E$30, Config!$F$30, "")) ->  | N23: =IF(SUM(J23:M23) <> 0, (K23 * Config!$J$102) * INDEX(Config!$K$111:$L$112, MATCH(L23, Config!$E$111:$E$112, 0), MATCH(M23, Config!$F$110:$G$110, 0)) * INDEX(Config!$J$86:$J$89, MATCH(J23, Config!$E$86:$E$89, 0)) / 1000 * Config!$J$98, 0) -> 0
D24: (Deel)complex 17 | I24: =IF(G24 = Config!$E$29, Config!$F$29, IF(G24 = Config!$E$30, Config!$F$30, "")) ->  | N24: =IF(SUM(J24:M24) <> 0, (K24 * Config!$J$102) * INDEX(Config!$K$111:$L$112, MATCH(L24, Config!$E$111:$E$112, 0), MATCH(M24, Config!$F$110:$G$110, 0)) * INDEX(Config!$J$86:$J$89, MATCH(J24, Config!$E$86:$E$89, 0)) / 1000 * Config!$J$98, 0) -> 0
D25: (Deel)complex 18 | I25: =IF(G25 = Config!$E$29, Config!$F$29, IF(G25 = Config!$E$30, Config!$F$30, "")) ->  | N25: =IF(SUM(J25:M25) <> 0, (K25 * Config!$J$102) * INDEX(Config!$K$111:$L$112, MATCH(L25, Config!$E$111:$E$112, 0), MATCH(M25, Config!$F$110:$G$110, 0)) * INDEX(Config!$J$86:$J$89, MATCH(J25, Config!$E$86:$E$89, 0)) / 1000 * Config!$J$98, 0) -> 0
D26: (Deel)complex 19 | I26: =IF(G26 = Config!$E$29, Config!$F$29, IF(G26 = Config!$E$30, Config!$F$30, "")) ->  | N26: =IF(SUM(J26:M26) <> 0, (K26 * Config!$J$102) * INDEX(Config!$K$111:$L$112, MATCH(L26, Config!$E$111:$E$112, 0), MATCH(M26, Config!$F$110:$G$110, 0)) * INDEX(Config!$J$86:$J$89, MATCH(J26, Config!$E$86:$E$89, 0)) / 1000 * Config!$J$98, 0) -> 0
D27: (Deel)complex 20 | I27: =IF(G27 = Config!$E$29, Config!$F$29, IF(G27 = Config!$E$30, Config!$F$30, "")) ->  | N27: =IF(SUM(J27:M27) <> 0, (K27 * Config!$J$102) * INDEX(Config!$K$111:$L$112, MATCH(L27, Config!$E$111:$E$112, 0), MATCH(M27, Config!$F$110:$G$110, 0)) * INDEX(Config!$J$86:$J$89, MATCH(J27, Config!$E$86:$E$89, 0)) / 1000 * Config!$J$98, 0) -> 0
D28: (Deel)complex 21 | I28: =IF(G28 = Config!$E$29, Config!$F$29, IF(G28 = Config!$E$30, Config!$F$30, "")) ->  | N28: =IF(SUM(J28:M28) <> 0, (K28 * Config!$J$102) * INDEX(Config!$K$111:$L$112, MATCH(L28, Config!$E$111:$E$112, 0), MATCH(M28, Config!$F$110:$G$110, 0)) * INDEX(Config!$J$86:$J$89, MATCH(J28, Config!$E$86:$E$89, 0)) / 1000 * Config!$J$98, 0) -> 0
D29: (Deel)complex 22 | I29: =IF(G29 = Config!$E$29, Config!$F$29, IF(G29 = Config!$E$30, Config!$F$30, "")) ->  | N29: =IF(SUM(J29:M29) <> 0, (K29 * Config!$J$102) * INDEX(Config!$K$111:$L$112, MATCH(L29, Config!$E$111:$E$112, 0), MATCH(M29, Config!$F$110:$G$110, 0)) * INDEX(Config!$J$86:$J$89, MATCH(J29, Config!$E$86:$E$89, 0)) / 1000 * Config!$J$98, 0) -> 0
D30: (Deel)complex 23 | I30: =IF(G30 = Config!$E$29, Config!$F$29, IF(G30 = Config!$E$30, Config!$F$30, "")) ->  | N30: =IF(SUM(J30:M30) <> 0, (K30 * Config!$J$102) * INDEX(Config!$K$111:$L$112, MATCH(L30, Config!$E$111:$E$112, 0), MATCH(M30, Config!$F$110:$G$110, 0)) * INDEX(Config!$J$86:$J$89, MATCH(J30, Config!$E$86:$E$89, 0)) / 1000 * Config!$J$98, 0) -> 0
D31: (Deel)complex 24 | I31: =IF(G31 = Config!$E$29, Config!$F$29, IF(G31 = Config!$E$30, Config!$F$30, "")) ->  | N31: =IF(SUM(J31:M31) <> 0, (K31 * Config!$J$102) * INDEX(Config!$K$111:$L$112, MATCH(L31, Config!$E$111:$E$112, 0), MATCH(M31, Config!$F$110:$G$110, 0)) * INDEX(Config!$J$86:$J$89, MATCH(J31, Config!$E$86:$E$89, 0)) / 1000 * Config!$J$98, 0) -> 0
D32: (Deel)complex 25 | I32: =IF(G32 = Config!$E$29, Config!$F$29, IF(G32 = Config!$E$30, Config!$F$30, "")) ->  | N32: =IF(SUM(J32:M32) <> 0, (K32 * Config!$J$102) * INDEX(Config!$K$111:$L$112, MATCH(L32, Config!$E$111:$E$112, 0), MATCH(M32, Config!$F$110:$G$110, 0)) * INDEX(Config!$J$86:$J$89, MATCH(J32, Config!$E$86:$E$89, 0)) / 1000 * Config!$J$98, 0) -> 0
D33: (Deel)complex 26 | I33: =IF(G33 = Config!$E$29, Config!$F$29, IF(G33 = Config!$E$30, Config!$F$30, "")) ->  | N33: =IF(SUM(J33:M33) <> 0, (K33 * Config!$J$102) * INDEX(Config!$K$111:$L$112, MATCH(L33, Config!$E$111:$E$112, 0), MATCH(M33, Config!$F$110:$G$110, 0)) * INDEX(Config!$J$86:$J$89, MATCH(J33, Config!$E$86:$E$89, 0)) / 1000 * Config!$J$98, 0) -> 0
D34: (Deel)complex 27 | I34: =IF(G34 = Config!$E$29, Config!$F$29, IF(G34 = Config!$E$30, Config!$F$30, "")) ->  | N34: =IF(SUM(J34:M34) <> 0, (K34 * Config!$J$102) * INDEX(Config!$K$111:$L$112, MATCH(L34, Config!$E$111:$E$112, 0), MATCH(M34, Config!$F$110:$G$110, 0)) * INDEX(Config!$J$86:$J$89, MATCH(J34, Config!$E$86:$E$89, 0)) / 1000 * Config!$J$98, 0) -> 0
D35: (Deel)complex 28 | I35: =IF(G35 = Config!$E$29, Config!$F$29, IF(G35 = Config!$E$30, Config!$F$30, "")) ->  | N35: =IF(SUM(J35:M35) <> 0, (K35 * Config!$J$102) * INDEX(Config!$K$111:$L$112, MATCH(L35, Config!$E$111:$E$112, 0), MATCH(M35, Config!$F$110:$G$110, 0)) * INDEX(Config!$J$86:$J$89, MATCH(J35, Config!$E$86:$E$89, 0)) / 1000 * Config!$J$98, 0) -> 0
D36: (Deel)complex 29 | I36: =IF(G36 = Config!$E$29, Config!$F$29, IF(G36 = Config!$E$30, Config!$F$30, "")) ->  | N36: =IF(SUM(J36:M36) <> 0, (K36 * Config!$J$102) * INDEX(Config!$K$111:$L$112, MATCH(L36, Config!$E$111:$E$112, 0), MATCH(M36, Config!$F$110:$G$110, 0)) * INDEX(Config!$J$86:$J$89, MATCH(J36, Config!$E$86:$E$89, 0)) / 1000 * Config!$J$98, 0) -> 0
D37: (Deel)complex 30 | I37: =IF(G37 = Config!$E$29, Config!$F$29, IF(G37 = Config!$E$30, Config!$F$30, "")) ->  | N37: =IF(SUM(J37:M37) <> 0, (K37 * Config!$J$102) * INDEX(Config!$K$111:$L$112, MATCH(L37, Config!$E$111:$E$112, 0), MATCH(M37, Config!$F$110:$G$110, 0)) * INDEX(Config!$J$86:$J$89, MATCH(J37, Config!$E$86:$E$89, 0)) / 1000 * Config!$J$98, 0) -> 0
D38: (Deel)complex 31 | I38: =IF(G38 = Config!$E$29, Config!$F$29, IF(G38 = Config!$E$30, Config!$F$30, "")) ->  | N38: =IF(SUM(J38:M38) <> 0, (K38 * Config!$J$102) * INDEX(Config!$K$111:$L$112, MATCH(L38, Config!$E$111:$E$112, 0), MATCH(M38, Config!$F$110:$G$110, 0)) * INDEX(Config!$J$86:$J$89, MATCH(J38, Config!$E$86:$E$89, 0)) / 1000 * Config!$J$98, 0) -> 0
D39: (Deel)complex 32 | I39: =IF(G39 = Config!$E$29, Config!$F$29, IF(G39 = Config!$E$30, Config!$F$30, "")) ->  | N39: =IF(SUM(J39:M39) <> 0, (K39 * Config!$J$102) * INDEX(Config!$K$111:$L$112, MATCH(L39, Config!$E$111:$E$112, 0), MATCH(M39, Config!$F$110:$G$110, 0)) * INDEX(Config!$J$86:$J$89, MATCH(J39, Config!$E$86:$E$89, 0)) / 1000 * Config!$J$98, 0) -> 0
D40: (Deel)complex 33 | I40: =IF(G40 = Config!$E$29, Config!$F$29, IF(G40 = Config!$E$30, Config!$F$30, "")) ->  | N40: =IF(SUM(J40:M40) <> 0, (K40 * Config!$J$102) * INDEX(Config!$K$111:$L$112, MATCH(L40, Config!$E$111:$E$112, 0), MATCH(M40, Config!$F$110:$G$110, 0)) * INDEX(Config!$J$86:$J$89, MATCH(J40, Config!$E$86:$E$89, 0)) / 1000 * Config!$J$98, 0) -> 0
D41: (Deel)complex 34 | I41: =IF(G41 = Config!$E$29, Config!$F$29, IF(G41 = Config!$E$30, Config!$F$30, "")) ->  | N41: =IF(SUM(J41:M41) <> 0, (K41 * Config!$J$102) * INDEX(Config!$K$111:$L$112, MATCH(L41, Config!$E$111:$E$112, 0), MATCH(M41, Config!$F$110:$G$110, 0)) * INDEX(Config!$J$86:$J$89, MATCH(J41, Config!$E$86:$E$89, 0)) / 1000 * Config!$J$98, 0) -> 0
D42: (Deel)complex 35 | I42: =IF(G42 = Config!$E$29, Config!$F$29, IF(G42 = Config!$E$30, Config!$F$30, "")) ->  | N42: =IF(SUM(J42:M42) <> 0, (K42 * Config!$J$102) * INDEX(Config!$K$111:$L$112, MATCH(L42, Config!$E$111:$E$112, 0), MATCH(M42, Config!$F$110:$G$110, 0)) * INDEX(Config!$J$86:$J$89, MATCH(J42, Config!$E$86:$E$89, 0)) / 1000 * Config!$J$98, 0) -> 0
D43: (Deel)complex 36 | I43: =IF(G43 = Config!$E$29, Config!$F$29, IF(G43 = Config!$E$30, Config!$F$30, "")) ->  | N43: =IF(SUM(J43:M43) <> 0, (K43 * Config!$J$102) * INDEX(Config!$K$111:$L$112, MATCH(L43, Config!$E$111:$E$112, 0), MATCH(M43, Config!$F$110:$G$110, 0)) * INDEX(Config!$J$86:$J$89, MATCH(J43, Config!$E$86:$E$89, 0)) / 1000 * Config!$J$98, 0) -> 0
D44: (Deel)complex 37 | I44: =IF(G44 = Config!$E$29, Config!$F$29, IF(G44 = Config!$E$30, Config!$F$30, "")) ->  | N44: =IF(SUM(J44:M44) <> 0, (K44 * Config!$J$102) * INDEX(Config!$K$111:$L$112, MATCH(L44, Config!$E$111:$E$112, 0), MATCH(M44, Config!$F$110:$G$110, 0)) * INDEX(Config!$J$86:$J$89, MATCH(J44, Config!$E$86:$E$89, 0)) / 1000 * Config!$J$98, 0) -> 0
D45: (Deel)complex 38 | I45: =IF(G45 = Config!$E$29, Config!$F$29, IF(G45 = Config!$E$30, Config!$F$30, "")) ->  | N45: =IF(SUM(J45:M45) <> 0, (K45 * Config!$J$102) * INDEX(Config!$K$111:$L$112, MATCH(L45, Config!$E$111:$E$112, 0), MATCH(M45, Config!$F$110:$G$110, 0)) * INDEX(Config!$J$86:$J$89, MATCH(J45, Config!$E$86:$E$89, 0)) / 1000 * Config!$J$98, 0) -> 0
D46: (Deel)complex 39 | I46: =IF(G46 = Config!$E$29, Config!$F$29, IF(G46 = Config!$E$30, Config!$F$30, "")) ->  | N46: =IF(SUM(J46:M46) <> 0, (K46 * Config!$J$102) * INDEX(Config!$K$111:$L$112, MATCH(L46, Config!$E$111:$E$112, 0), MATCH(M46, Config!$F$110:$G$110, 0)) * INDEX(Config!$J$86:$J$89, MATCH(J46, Config!$E$86:$E$89, 0)) / 1000 * Config!$J$98, 0) -> 0
D47: (Deel)complex 40 | I47: =IF(G47 = Config!$E$29, Config!$F$29, IF(G47 = Config!$E$30, Config!$F$30, "")) ->  | N47: =IF(SUM(J47:M47) <> 0, (K47 * Config!$J$102) * INDEX(Config!$K$111:$L$112, MATCH(L47, Config!$E$111:$E$112, 0), MATCH(M47, Config!$F$110:$G$110, 0)) * INDEX(Config!$J$86:$J$89, MATCH(J47, Config!$E$86:$E$89, 0)) / 1000 * Config!$J$98, 0) -> 0
D48: (Deel)complex 41 | I48: =IF(G48 = Config!$E$29, Config!$F$29, IF(G48 = Config!$E$30, Config!$F$30, "")) ->  | N48: =IF(SUM(J48:M48) <> 0, (K48 * Config!$J$102) * INDEX(Config!$K$111:$L$112, MATCH(L48, Config!$E$111:$E$112, 0), MATCH(M48, Config!$F$110:$G$110, 0)) * INDEX(Config!$J$86:$J$89, MATCH(J48, Config!$E$86:$E$89, 0)) / 1000 * Config!$J$98, 0) -> 0
D49: (Deel)complex 42 | I49: =IF(G49 = Config!$E$29, Config!$F$29, IF(G49 = Config!$E$30, Config!$F$30, "")) ->  | N49: =IF(SUM(J49:M49) <> 0, (K49 * Config!$J$102) * INDEX(Config!$K$111:$L$112, MATCH(L49, Config!$E$111:$E$112, 0), MATCH(M49, Config!$F$110:$G$110, 0)) * INDEX(Config!$J$86:$J$89, MATCH(J49, Config!$E$86:$E$89, 0)) / 1000 * Config!$J$98, 0) -> 0
D50: (Deel)complex 43 | I50: =IF(G50 = Config!$E$29, Config!$F$29, IF(G50 = Config!$E$30, Config!$F$30, "")) ->  | N50: =IF(SUM(J50:M50) <> 0, (K50 * Config!$J$102) * INDEX(Config!$K$111:$L$112, MATCH(L50, Config!$E$111:$E$112, 0), MATCH(M50, Config!$F$110:$G$110, 0)) * INDEX(Config!$J$86:$J$89, MATCH(J50, Config!$E$86:$E$89, 0)) / 1000 * Config!$J$98, 0) -> 0
D51: (Deel)complex 44 | I51: =IF(G51 = Config!$E$29, Config!$F$29, IF(G51 = Config!$E$30, Config!$F$30, "")) ->  | N51: =IF(SUM(J51:M51) <> 0, (K51 * Config!$J$102) * INDEX(Config!$K$111:$L$112, MATCH(L51, Config!$E$111:$E$112, 0), MATCH(M51, Config!$F$110:$G$110, 0)) * INDEX(Config!$J$86:$J$89, MATCH(J51, Config!$E$86:$E$89, 0)) / 1000 * Config!$J$98, 0) -> 0
D52: (Deel)complex 45 | I52: =IF(G52 = Config!$E$29, Config!$F$29, IF(G52 = Config!$E$30, Config!$F$30, "")) ->  | N52: =IF(SUM(J52:M52) <> 0, (K52 * Config!$J$102) * INDEX(Config!$K$111:$L$112, MATCH(L52, Config!$E$111:$E$112, 0), MATCH(M52, Config!$F$110:$G$110, 0)) * INDEX(Config!$J$86:$J$89, MATCH(J52, Config!$E$86:$E$89, 0)) / 1000 * Config!$J$98, 0) -> 0
D53: (Deel)complex 46 | I53: =IF(G53 = Config!$E$29, Config!$F$29, IF(G53 = Config!$E$30, Config!$F$30, "")) ->  | N53: =IF(SUM(J53:M53) <> 0, (K53 * Config!$J$102) * INDEX(Config!$K$111:$L$112, MATCH(L53, Config!$E$111:$E$112, 0), MATCH(M53, Config!$F$110:$G$110, 0)) * INDEX(Config!$J$86:$J$89, MATCH(J53, Config!$E$86:$E$89, 0)) / 1000 * Config!$J$98, 0) -> 0
D54: (Deel)complex 47 | I54: =IF(G54 = Config!$E$29, Config!$F$29, IF(G54 = Config!$E$30, Config!$F$30, "")) ->  | N54: =IF(SUM(J54:M54) <> 0, (K54 * Config!$J$102) * INDEX(Config!$K$111:$L$112, MATCH(L54, Config!$E$111:$E$112, 0), MATCH(M54, Config!$F$110:$G$110, 0)) * INDEX(Config!$J$86:$J$89, MATCH(J54, Config!$E$86:$E$89, 0)) / 1000 * Config!$J$98, 0) -> 0
D55: (Deel)complex 48 | I55: =IF(G55 = Config!$E$29, Config!$F$29, IF(G55 = Config!$E$30, Config!$F$30, "")) ->  | N55: =IF(SUM(J55:M55) <> 0, (K55 * Config!$J$102) * INDEX(Config!$K$111:$L$112, MATCH(L55, Config!$E$111:$E$112, 0), MATCH(M55, Config!$F$110:$G$110, 0)) * INDEX(Config!$J$86:$J$89, MATCH(J55, Config!$E$86:$E$89, 0)) / 1000 * Config!$J$98, 0) -> 0
D56: (Deel)complex 49 | I56: =IF(G56 = Config!$E$29, Config!$F$29, IF(G56 = Config!$E$30, Config!$F$30, "")) ->  | N56: =IF(SUM(J56:M56) <> 0, (K56 * Config!$J$102) * INDEX(Config!$K$111:$L$112, MATCH(L56, Config!$E$111:$E$112, 0), MATCH(M56, Config!$F$110:$G$110, 0)) * INDEX(Config!$J$86:$J$89, MATCH(J56, Config!$E$86:$E$89, 0)) / 1000 * Config!$J$98, 0) -> 0
D57: (Deel)complex 50 | I57: =IF(G57 = Config!$E$29, Config!$F$29, IF(G57 = Config!$E$30, Config!$F$30, "")) ->  | N57: =IF(SUM(J57:M57) <> 0, (K57 * Config!$J$102) * INDEX(Config!$K$111:$L$112, MATCH(L57, Config!$E$111:$E$112, 0), MATCH(M57, Config!$F$110:$G$110, 0)) * INDEX(Config!$J$86:$J$89, MATCH(J57, Config!$E$86:$E$89, 0)) / 1000 * Config!$J$98, 0) -> 0
E60: * Het netto dakoppervlak is gelijk aan het totale oppervlak van het dak minus benodigde ruimte voor o.a. installaties, veiligsheidsvoorzieningen en andere niet te gebruiken delen van het dak.

Sheet CalcProject
A1: =RIGHT(CELL("filename", A1), LEN(CELL("filename", A1)) - FIND("]", CELL("filename", A1))) -> CalcProject
E2: Jaar | J2: 2021 | K2: =J2 + 1 -> 2022 | L2: =K2 + 1 -> 2023 | M2: 2024 | N2: 2025 | O2: 2026 | P2: 2027 | Q2: 2028 | R2: 2029 | S2: 2030 | T2: 2031 | U2: 2032 | V2: 2033 | W2: 2034 | X2: =W2 + 1 -> 2035 | Y2: =X2 + 1 -> 2036 | Z2: =Y2 + 1 -> 2037 | AA2: =Z2 + 1 -> 2038 | AB2: =AA2 + 1 -> 2039 | AC2: =AB2 + 1 -> 2040 | AD2: =AC2 + 1 -> 2041 | AE2: =AD2 + 1 -> 2042 | AF2: =AE2 + 1 -> 2043 | AG2: =AF2 + 1 -> 2044 | AH2: =AG2 + 1 -> 2045 | AI2: =AH2 + 1 -> 2046 | AJ2: =AI2 + 1 -> 2047 | AK2: =AJ2 + 1 -> 2048 | AL2: =AK2 + 1 -> 2049 | AM2: =AL2 + 1 -> 2050 | AN2: =AM2 + 1 -> 2051 | AO2: =AN2 + 1 -> 2052 | AP2: =AO2 + 1 -> 2053 | AQ2: =AP2 + 1 -> 2054 | AR2: =AQ2 + 1 -> 2055
E3: Tijdvak | J3: =J2-2021 -> 0 | K3: =K2-2021 -> 1 | L3: 2 | M3: 3 | N3: 4 | O3: 5 | P3: 6 | Q3: 7 | R3: 8 | S3: 9 | T3: 10 | U3: 11 | V3: 12 | W3: 13 | X3: 14 | Y3: 15 | Z3: 16 | AA3: 17 | AB3: 18 | AC3: 19 | AD3: 20 | AE3: 21 | AF3: 22 | AG3: 23 | AH3: 24 | AI3: 25 | AJ3: 26 | AK3: 27 | AL3: 28 | AM3: 29 | AN3: 30 | AO3: 31 | AP3: 32 | AQ3: 33 | AR3: 34
E5: Key | F5: =OutProject!F2 -> 1
E7: =Config!$E$81 -> Naam complex | F7: =INDEX(InComplex!D8:D57, CalcProject!F5) -> (Deel)complex 1
D10: Data Complex
E11: =InComplex!$E$6 -> Aantal woningen | F11: =INDEX(InComplex!$E$8:$U$57, $F$5, MATCH($E11, InComplex!$E$6:$U$6, 0)) -> 0
E12: =InComplex!$F$6 -> EGW/MGW | F12: =INDEX(InComplex!$E$8:$U$57, $F$5, MATCH($E12, InComplex!$E$6:$U$6, 0)) -> 0
E13: =InComplex!$G$6 -> Aansluiting | F13: =INDEX(InComplex!$E$8:$U$57, $F$5, MATCH($E13, InComplex!$E$6:$U$6, 0)) -> 0
E14: =InComplex!$H$6 -> Gem. verbruik | F14: =INDEX(InComplex!$E$8:$U$57, $F$5, MATCH($E14, InComplex!$E$6:$U$6, 0)) -> 0 | G14: kWh per jaar
E15: =InComplex!$I$6 -> Welk verbruik opgeven? | F15: =INDEX(InComplex!$E$8:$U$57, $F$5, MATCH($E15, InComplex!$E$6:$U$6, 0)) -> 
E16: =InComplex!$J$6 -> Paneel-oriëntatie | F16: =INDEX(InComplex!$E$8:$U$57, $F$5, MATCH($E16, InComplex!$E$6:$U$6, 0)) -> 0
E17: =InComplex!$K$6 -> Totaal netto dakoppervlak* | F17: =INDEX(InComplex!$E$8:$U$57, $F$5, MATCH($E17, InComplex!$E$6:$U$6, 0)) -> 0 | G17: m2
E18: =InComplex!$L$6 -> Paneelgrootte | F18: =INDEX(InComplex!$E$8:$U$57, $F$5, MATCH($E18, InComplex!$E$6:$U$6, 0)) -> 0 | G18: m2
E19: =InComplex!$M$6 -> Paneelklasse | F19: =INDEX(InComplex!$E$8:$U$57, $F$5, MATCH($E19, InComplex!$E$6:$U$6, 0)) -> 0
E20: =InComplex!$N$6 -> Opwekking per jaar | F20: =INDEX(InComplex!$E$8:$U$57, $F$5, MATCH($E20, InComplex!$E$6:$U$6, 0)) -> 0
E21: =InComplex!$O$6 -> Jaar van investering | F21: =INDEX(InComplex!$E$8:$U$57, $F$5, MATCH($E21, InComplex!$E$6:$U$6, 0)) -> 0
E22: =InComplex!$P$6 -> Investerings-periode | F22: =INDEX(InComplex!$E$8:$U$57, $F$5, MATCH($E22, InComplex!$E$6:$U$6, 0)) -> 0
E23: =InComplex!$Q$6 -> Beschouwings-termijn | F23: =INDEX(InComplex!$E$8:$U$57, $F$5, MATCH($E23, InComplex!$E$6:$U$6, 0)) -> 0 | G23: jaren
E24: =InComplex!$R$6 -> Subsidie-regeling | F24: =INDEX(InComplex!$E$8:$U$57, $F$5, MATCH($E24, InComplex!$E$6:$U$6, 0)) -> 0
E25: =InComplex!$S$6 -> Besparings-verdeling | F25: =INDEX(InComplex!$E$8:$U$57, $F$5, MATCH($E25, InComplex!$E$6:$U$6, 0)) -> 0
E26: =InComplex!$T$6 -> Organisatie-vorm | F26: =INDEX(InComplex!$E$8:$U$57, $F$5, MATCH($E26, InComplex!$E$6:$U$6, 0)) -> 0
E27: =InComplex!$U$6 -> Vreemd vermogen (VV) | F27: =INDEX(InComplex!$E$8:$U$57, $F$5, MATCH($E27, InComplex!$E$6:$U$6, 0)) -> 0 | G27: Als % van totale investering
C30: Rekenmotor
E32: =$E$21 -> Jaar van investering | F32: =$F$21 -> 0
E33: =$E$22 -> Investerings-periode | F33: =$F$22 -> 0 | H33: =SUM(I33:AR33) -> 0 | J33: =IF(AND(J2 >= $F$32, J2 < ($F$32 + $F$33)), 1 / $F$33, 0) -> 0 | K33: 0 | L33: 0 | M33: 0 | N33: 0 | O33: 0 | P33: 0 | Q33: 0 | R33: 0 | S33: 0 | T33: 0 | U33: 0 | V33: 0 | W33: 0 | X33: 0 | Y33: 0 | Z33: 0 | AA33: 0 | AB33: 0 | AC33: 0 | AD33: 0 | AE33: 0 | AF33: 0 | AG33: 0 | AH33: 0 | AI33: 0 | AJ33: 0 | AK33: 0 | AL33: 0 | AM33: 0 | AN33: 0 | AO33: 0 | AP33: 0 | AQ33: 0 | AR33: 0
E34: Investeringsperiode cumulatief | F34: =F33 -> 0 | J34: =IF(J33 > 0, J33 + I34, 0) -> 0 | K34: =IF(K33 > 0, K33 + J34, 0) -> 0 | L34: 0 | M34: 0 | N34: 0 | O34: 0 | P34: 0 | Q34: 0 | R34: 0 | S34: 0 | T34: =IF(T33 > 0, T33 + S34, 0) -> 0 | U34: =IF(U33 > 0, U33 + T34, 0) -> 0 | V34: =IF(V33 > 0, V33 + U34, 0) -> 0 | W34: =IF(W33 > 0, W33 + V34, 0) -> 0 | X34: =IF(X33 > 0, X33 + W34, 0) -> 0 | Y34: =IF(Y33 > 0, Y33 + X34, 0) -> 0 | Z34: =IF(Z33 > 0, Z33 + Y34, 0) -> 0 | AA34: =IF(AA33 > 0, AA33 + Z34, 0) -> 0 | AB34: 0 | AC34: =IF(AC33 > 0, AC33 + AB34, 0) -> 0 | AD34: =IF(AD33 > 0, AD33 + AC34, 0) -> 0 | AE34: =IF(AE33 > 0, AE33 + AD34, 0) -> 0 | AF34: =IF(AF33 > 0, AF33 + AE34, 0) -> 0 | AG34: =IF(AG33 > 0, AG33 + AF34, 0) -> 0 | AH34: =IF(AH33 > 0, AH33 + AG34, 0) -> 0 | AI34: =IF(AI33 > 0, AI33 + AH34, 0) -> 0 | AJ34: =IF(AJ33 > 0, AJ33 + AI34, 0) -> 0 | AK34: 0 | AL34: =IF(AL33 > 0, AL33 + AK34, 0) -> 0 | AM34: =IF(AM33 > 0, AM33 + AL34, 0) -> 0 | AN34: =IF(AN33 > 0, AN33 + AM34, 0) -> 0 | AO34: =IF(AO33 > 0, AO33 + AN34, 0) -> 0 | AP34: =IF(AP33 > 0, AP33 + AO34, 0) -> 0 | AQ34: =IF(AQ33 > 0, AQ33 + AP34, 0) -> 0 | AR34: =IF(AR33 > 0, AR33 + AQ34, 0) -> 0
E35: =$E$23 -> Beschouwings-termijn | F35: =IF(F23 <> 0, $F$23, Config!$E$61) -> 20 | H35: =SUM(I35:AR35) -> 0 | J35: =IF(AND(J2 >= $F$32, J2 <= ($F$32 + $F$35 - 1 + ($F$33 - 1)), (J2 + $F$33 - 1) >= $F$32, J2 <= ($F$32 + $F$35 - 1 + $F$33 -1)), J33 + I35 - OFFSET(J33, 0, -MIN($F35, COLUMN(J35) - COLUMN($I35))), 0) -> 0 | K35: 0 | L35: 0 | M35: 0 | N35: 0 | O35: 0 | P35: 0 | Q35: 0 | R35: 0 | S35: 0 | T35: 0 | U35: 0 | V35: 0 | W35: 0 | X35: 0 | Y35: 0 | Z35: 0 | AA35: 0 | AB35: 0 | AC35: 0 | AD35: 0 | AE35: 0 | AF35: 0 | AG35: 0 | AH35: 0 | AI35: 0 | AJ35: 0 | AK35: 0 | AL35: 0 | AM35: 0 | AN35: 0 | AO35: 0 | AP35: 0 | AQ35: 0 | AR35: 0
C37: Tijd
E38: =Config!$E$105 -> Technische levensduur panelen | F38: =Config!$J$105 -> 25 | G38: =Config!$G$105 -> jaar
E39: =Config!$E$107 -> Technische levensduur omvormer | F39: =Config!$J$107 -> 15 | G39: =Config!$G$107 -> jaar
D41: Panelen
E42: Flag investering | J42: =J33 -> 0 | K42: 0 | L42: 0 | M42: 0 | N42: 0 | O42: 0 | P42: 0 | Q42: 0 | R42: 0 | S42: 0 | T42: 0 | U42: 0 | V42: 0 | W42: 0 | X42: 0 | Y42: 0 | Z42: 0 | AA42: 0 | AB42: 0 | AC42: 0 | AD42: 0 | AE42: 0 | AF42: 0 | AG42: 0 | AH42: 0 | AI42: 0 | AJ42: 0 | AK42: 0 | AL42: 0 | AM42: 0 | AN42: 0 | AO42: 0 | AP42: 0 | AQ42: 0 | AR42: 0
E43: Flag eind technische levensduur 1 | J43: =IF(AND(J2 >= ($F$32 + $F$35 - 1), J2 < ($F$32 + $F$35 - 1 + $F$33)), 1 / $F$33, 0) -> 0 | K43: =IF(AND(K2 >= ($F$32 + $F$35 - 1), K2 < ($F$32 + $F$35 - 1 + $F$33)), 1 / $F$33, 0) -> 0 | L43: 0 | M43: 0 | N43: 0 | O43: 0 | P43: 0 | Q43: 0 | R43: 0 | S43: 0 | T43: 0 | U43: 0 | V43: 0 | W43: 0 | X43: 0 | Y43: 0 | Z43: 0 | AA43: 0 | AB43: 0 | AC43: 0 | AD43: 0 | AE43: 0 | AF43: 0 | AG43: 0 | AH43: 0 | AI43: 0 | AJ43: 0 | AK43: 0 | AL43: 0 | AM43: 0 | AN43: 0 | AO43: 0 | AP43: 0 | AQ43: 0 | AR43: 0
E44: Flag jaren besparing | H44: =SUM(I44:AR44) -> 0 | J44: =I44 + J42 - I43 -> 0 | K44: 0 | L44: 0 | M44: 0 | N44: 0 | O44: 0 | P44: 0 | Q44: 0 | R44: 0 | S44: 0 | T44: 0 | U44: 0 | V44: 0 | W44: 0 | X44: 0 | Y44: 0 | Z44: 0 | AA44: 0 | AB44: 0 | AC44: 0 | AD44: 0 | AE44: 0 | AF44: 0 | AG44: 0 | AH44: 0 | AI44: 0 | AJ44: 0 | AK44: 0 | AL44: 0 | AM44: 0 | AN44: 0 | AO44: 0 | AP44: 0 | AQ44: 0 | AR44: 0
D46: Omvormer
E47: Flag investering | J47: =J33 -> 0 | K47: 0 | L47: 0 | M47: 0 | N47: 0 | O47: 0 | P47: 0 | Q47: 0 | R47: 0 | S47: 0 | T47: 0 | U47: 0 | V47: 0 | W47: 0 | X47: 0 | Y47: 0 | Z47: 0 | AA47: 0 | AB47: 0 | AC47: 0 | AD47: 0 | AE47: 0 | AF47: 0 | AG47: 0 | AH47: 0 | AI47: 0 | AJ47: 0 | AK47: 0 | AL47: 0 | AM47: 0 | AN47: 0 | AO47: 0 | AP47: 0 | AQ47: 0 | AR47: 0
E48: Flag eind technische levensduur 1 | J48: =IF(AND(J2 >= ($F$32 + $F$39), J2 < ($F$32 + $F$39 + $F$33)), 1 / $F$33, 0) -> 0 | K48: 0 | L48: 0 | M48: 0 | N48: 0 | O48: 0 | P48: 0 | Q48: 0 | R48: 0 | S48: 0 | T48: 0 | U48: 0 | V48: 0 | W48: 0 | X48: 0 | Y48: 0 | Z48: 0 | AA48: 0 | AB48: 0 | AC48: 0 | AD48: 0 | AE48: 0 | AF48: 0 | AG48: 0 | AH48: 0 | AI48: 0 | AJ48: 0 | AK48: 0 | AL48: 0 | AM48: 0 | AN48: 0 | AO48: 0 | AP48: 0 | AQ48: 0 | AR48: 0
E49: Flag herinvestering 1 | F49: =IF(F35 > F39, 1, 0) -> 1 | J49: =IF(AND(J$2 >= $F32 + $F39, J$2 <= $F$32 + $F$39 + ($F$33 - $F$49)), 1 / $F$33, 0) * $F$49 -> 0 | K49: 0 | L49: 0 | M49: 0 | N49: 0 | O49: 0 | P49: 0 | Q49: 0 | R49: 0 | S49: 0 | T49: 0 | U49: 0 | V49: 0 | W49: 0 | X49: 0 | Y49: 0 | Z49: 0 | AA49: 0 | AB49: 0 | AC49: 0 | AD49: 0 | AE49: 0 | AF49: 0 | AG49: 0 | AH49: 0 | AI49: 0 | AJ49: 0 | AK49: 0 | AL49: 0 | AM49: 0 | AN49: 0 | AO49: 0 | AP49: 0 | AQ49: 0 | AR49: 0
E50: Flag eind technische levensduur 2 | J50: =IF(AND(J2 >= ($F$32 + ($F$39 * 2)), J2 < ($F$32 + ($F$39 * 2) + $F$33)), 1 / $F$33, 0) -> 0 | K50: 0 | L50: 0 | M50: 0 | N50: 0 | O50: 0 | P50: 0 | Q50: 0 | R50: 0 | S50: 0 | T50: 0 | U50: 0 | V50: 0 | W50: 0 | X50: 0 | Y50: 0 | Z50: 0 | AA50: 0 | AB50: 0 | AC50: 0 | AD50: 0 | AE50: 0 | AF50: 0 | AG50: 0 | AH50: 0 | AI50: 0 | AJ50: 0 | AK50: 0 | AL50: 0 | AM50: 0 | AN50: 0 | AO50: 0 | AP50: 0 | AQ50: 0 | AR50: 0
E51: Flag jaren besparing | J51: =IF((I51 + J47 - J48 + J49 - J50) >0, (I51 + J47 - I48 + J49 - I50), 0) -> 0 | K51: =IF((J51 + K47 - K48 + K49 - K50) >0, (J51 + K47 - J48 + K49 - J50), 0) -> 0 | L51: 0 | M51: 0 | N51: 0 | O51: 0 | P51: 0 | Q51: 0 | R51: 0 | S51: 0 | T51: 0 | U51: 0 | V51: 0 | W51: 0 | X51: 0 | Y51: 0 | Z51: 0 | AA51: 0 | AB51: 0 | AC51: 0 | AD51: 0 | AE51: 0 | AF51: 0 | AG51: 0 | AH51: 0 | AI51: 0 | AJ51: 0 | AK51: 0 | AL51: 0 | AM51: 0 | AN51: 0 | AO51: 0 | AP51: 0 | AQ51: 0 | AR51: 0
C53: Opgesteld vermogen
E54: =E16 -> Paneel-oriëntatie | F54: =F16 -> 0
E55: Vermogen per m2 per jaar | F55: =INDEX(Config!$J$86:$J$89, MATCH(CalcProject!$F$54, Config!$E$86:$E$89, 0)) ->  | G55: kWh per m2 per jaar
E56: =Config!$E$100 -> Jaarlijkse toename zonuren | F56: =Config!$J$100 -> 0.005 | J56: =$F$55 * (1 + $F$56) ^J$3 -> 
E57: =Config!$E$98 -> Performance ratio | F57: =Config!$J$98 -> 0.8
E58: =$E$18 -> Paneelgrootte | F58: =$F$18 -> 0
E59: =$E$19 -> Paneelklasse | F59: =$F$19 -> 0
E60: =$E$17 -> Totaal netto dakoppervlak* | F60: =$F$17 -> 0 | G60: =$G$17 -> m2
E61: =Config!$E$102 -> Factor correctie oppervlakte gerbuik panelen | F61: =Config!$J$102 -> 0.9
E63: Beschikbaar dakoppervlak | F63: =$F$60 * $F$61 -> 0 | G63: m2
E64: Vermogen per paneel | F64: =IF(AND(F58 = 0, F59 = 0), 0, INDEX(Config!$K$111:$L$112, MATCH(CalcProject!$F$58, Config!$E$111:$E$112, 0), MATCH(CalcProject!$F$59, Config!$F$110:$G$110, 0))) -> 0 | G64: Wp per m2
E65: =Config!$E$99 -> Jaarlijkse degradatie | F65: =Config!$J$99 -> 0.007 | J65: =IF(J2 < $F$32, 0, IF(J2 = $F$32, $F$64, I65 * (1 - $F$65))) -> 0 | K65: 0 | L65: 0 | M65: 0 | N65: 0 | O65: 0 | P65: 0 | Q65: 0 | R65: 0 | S65: 0 | T65: 0 | U65: 0 | V65: 0 | W65: 0 | X65: 0 | Y65: 0 | Z65: 0 | AA65: 0 | AB65: 0 | AC65: 0 | AD65: 0 | AE65: 0 | AF65: 0 | AG65: 0 | AH65: 0 | AI65: 0 | AJ65: 0 | AK65: 0 | AL65: 0 | AM65: 0 | AN65: 0 | AO65: 0 | AP65: 0 | AQ65: 0 | AR65: 0
E66: Geïnstalleerd vermogen | F66: =$F$63 * $F$64 / 1000 -> 0 | G66: KWp | J66: =$F$63 * J$65 / 1000 -> 0 | K66: =$F$63 * K$65 / 1000 -> 0 | L66: =$F$63 * L$65 / 1000 -> 0 | M66: 0 | N66: 0 | O66: 0 | P66: 0 | Q66: 0 | R66: 0 | S66: 0 | T66: 0 | U66: 0 | V66: 0 | W66: 0 | X66: 0 | Y66: 0 | Z66: 0 | AA66: 0 | AB66: 0 | AC66: 0 | AD66: 0 | AE66: 0 | AF66: 0 | AG66: 0 | AH66: 0 | AI66: 0 | AJ66: 0 | AK66: 0 | AL66: 0 | AM66: 0 | AN66: 0 | AO66: 0 | AP66: 0 | AQ66: 0 | AR66: 0
E68: Opwekking elektriciteit | F68: =F66 * F55 * F57 ->  | G68: kWh per jaar
E69: Productie zon PV | G69: kWh | J69: =IF( J$44 > 0, J$56 * J$66 * $F$57 * J44, 0) -> 0 | K69: =IF( K$44 > 0, K$56 * K$66 * $F$57 * K44, 0) -> 0 | L69: =IF( L$44 > 0, L$56 * L$66 * $F$57 * L44, 0) -> 0 | M69: 0 | N69: 0 | O69: 0 | P69: 0 | Q69: 0 | R69: 0 | S69: 0 | T69: 0 | U69: 0 | V69: 0 | W69: 0 | X69: 0 | Y69: 0 | Z69: 0 | AA69: 0 | AB69: 0 | AC69: 0 | AD69: 0 | AE69: 0 | AF69: 0 | AG69: 0 | AH69: 0 | AI69: 0 | AJ69: 0 | AK69: 0 | AL69: 0 | AM69: 0 | AN69: 0 | AO69: 0 | AP69: 0 | AQ69: 0 | AR69: 0
C71: Investering
E72: =$E$19 -> Paneelklasse | F72: =$F$19 -> 0
E73: =$E$64 -> Vermogen per paneel | F73: =$F$64 -> 0 | G73: =$G$64 -> Wp per m2
E74: =$E$66 -> Geïnstalleerd vermogen | F74: =$F$66 -> 0 | G74: =$G$66 -> KWp
E76: =Config!$E$116 -> 5 | F76: =IF(AND($F$74 >= 0, $F$74 <= Config!$E$116), 1, 0) -> 1
E77: =Config!$E$117 -> 10 | F77: =IF(AND($F$74 >= Config!$E$116, $F$74 <= Config!$E$117), 1, 0) -> 0
E78: =Config!$E$118 -> 15 | F78: =IF(AND($F$74 >= Config!$E$117, $F$74 <= Config!$E$118), 1, 0) -> 0
E79: =Config!$E$119 -> 40 | F79: =IF(AND($F$74 >= Config!$E$118, $F$74 <= Config!$E$119), 1, 0) -> 0
E80: =Config!$E$120 -> 80 | F80: =IF(AND($F$74 >= Config!$E$119, $F$74 <= Config!$E$120), 1, 0) -> 0
E81: =Config!$E$121 -> 200 | F81: =IF(AND($F$74 >= Config!$E$120, $F$74 <= Config!$E$121), 1, 0) -> 0
E82: =Config!$E$122 -> 1000 | F82: =IF($F$74 >= Config!$E$121, 1, 0) -> 0
E84: Investeringsklasse | F84: =INDEX($E$76:$E$82, MATCH(1, F76:F82, 0)) -> 5 | G84: KWp
E85: =Config!$E$115 -> KWp investeringsklasse | F85: =INDEX(Config!$K$116:$L$122, MATCH(CalcProject!$F$84, Config!$E$116:$E$122, 0), MATCH(CalcProject!$F$72, Config!$F$115:$G$115, 0)) ->  | G85: euro per KWp
E87: Investering zonnepanelen ex. BTW | F87: =F85*F74 ->  | G87: €
E88: BTW op investering | F88: =IF($F$26 = Config!$E$33, Config!$E$15, Config!$E$16) -> Nee
E89: =Config!$E$141 -> Belasting toegevoegde waarde (BTW) | F89: =Config!$F$141 -> 0.21
E91: =Config!$E$146 -> Indexering investeringen | F91: =Config!$J$146 -> -0.035 | G91: per jaar
D93: Initiële investering
E94: =$E$87 -> Investering zonnepanelen ex. BTW | F94: =$F$87 ->  | G94: =$G$87 -> €
E95: =$E$22 -> Investerings-periode | F95: =$F$22 -> 0 | J95: =J$33 -> 0 | K95: =K$33 -> 0 | L95: 0 | M95: 0 | N95: 0 | O95: 0 | P95: 0 | Q95: 0 | R95: 0 | S95: 0 | T95: 0 | U95: 0 | V95: 0 | W95: 0 | X95: 0 | Y95: 0 | Z95: 0 | AA95: 0 | AB95: 0 | AC95: 0 | AD95: 0 | AE95: 0 | AF95: 0 | AG95: 0 | AH95: 0 | AI95: 0 | AJ95: 0 | AK95: 0 | AL95: 0 | AM95: 0 | AN95: 0 | AO95: 0 | AP95: 0 | AQ95: 0 | AR95: 0
E96: Initiële investering | G96: € | H96: =SUM(J$96:AR$96) -> 0 | J96: =IF(J$95 > 0, ($F$94 / $F$95) * (1 + $F$91) ^ J$3 * IF($F$88 = Config!$E$15, 1 + $F$89, 1), 0) -> 0 | K96: =IF(K$95 > 0, ($F$94 / $F$95) * (1 + $F$91) ^ K$3 * IF($F$88 = Config!$E$15, 1 + $F$89, 1), 0) -> 0 | L96: =IF(L$95 > 0, ($F$94 / $F$95) * (1 + $F$91) ^ L$3 * IF($F$88 = Config!$E$15, 1 + $F$89, 1), 0) -> 0 | M96: =IF(M$95 > 0, ($F$94 / $F$95) * (1 + $F$91) ^ M$3 * IF($F$88 = Config!$E$15, 1 + $F$89, 1), 0) -> 0 | N96: =IF(N$95 > 0, ($F$94 / $F$95) * (1 + $F$91) ^ N$3 * IF($F$88 = Config!$E$15, 1 + $F$89, 1), 0) -> 0 | O96: =IF(O$95 > 0, ($F$94 / $F$95) * (1 + $F$91) ^ O$3 * IF($F$88 = Config!$E$15, 1 + $F$89, 1), 0) -> 0 | P96: =IF(P$95 > 0, ($F$94 / $F$95) * (1 + $F$91) ^ P$3 * IF($F$88 = Config!$E$15, 1 + $F$89, 1), 0) -> 0 | Q96: =IF(Q$95 > 0, ($F$94 / $F$95) * (1 + $F$91) ^ Q$3 * IF($F$88 = Config!$E$15, 1 + $F$89, 1), 0) -> 0 | R96: =IF(R$95 > 0, ($F$94 / $F$95) * (1 + $F$91) ^ R$3 * IF($F$88 = Config!$E$15, 1 + $F$89, 1), 0) -> 0 | S96: =IF(S$95 > 0, ($F$94 / $F$95) * (1 + $F$91) ^ S$3 * IF($F$88 = Config!$E$15, 1 + $F$89, 1), 0) -> 0 | T96: =IF(T$95 > 0, ($F$94 / $F$95) * (1 + $F$91) ^ T$3 * IF($F$88 = Config!$E$15, 1 + $F$89, 1), 0) -> 0 | U96: =IF(U$95 > 0, ($F$94 / $F$95) * (1 + $F$91) ^ U$3 * IF($F$88 = Config!$E$15, 1 + $F$89, 1), 0) -> 0 | V96: =IF(V$95 > 0, ($F$94 / $F$95) * (1 + $F$91) ^ V$3 * IF($F$88 = Config!$E$15, 1 + $F$89, 1), 0) -> 0 | W96: =IF(W$95 > 0, ($F$94 / $F$95) * (1 + $F$91) ^ W$3 * IF($F$88 = Config!$E$15, 1 + $F$89, 1), 0) -> 0 | X96: =IF(X$95 > 0, ($F$94 / $F$95) * (1 + $F$91) ^ X$3 * IF($F$88 = Config!$E$15, 1 + $F$89, 1), 0) -> 0 | Y96: =IF(Y$95 > 0, ($F$94 / $F$95) * (1 + $F$91) ^ Y$3 * IF($F$88 = Config!$E$15, 1 + $F$89, 1), 0) -> 0 | Z96: =IF(Z$95 > 0, ($F$94 / $F$95) * (1 + $F$91) ^ Z$3 * IF($F$88 = Config!$E$15, 1 + $F$89, 1), 0) -> 0 | AA96: =IF(AA$95 > 0, ($F$94 / $F$95) * (1 + $F$91) ^ AA$3 * IF($F$88 = Config!$E$15, 1 + $F$89, 1), 0) -> 0 | AB96: =IF(AB$95 > 0, ($F$94 / $F$95) * (1 + $F$91) ^ AB$3 * IF($F$88 = Config!$E$15, 1 + $F$89, 1), 0) -> 0 | AC96: =IF(AC$95 > 0, ($F$94 / $F$95) * (1 + $F$91) ^ AC$3 * IF($F$88 = Config!$E$15, 1 + $F$89, 1), 0) -> 0 | AD96: =IF(AD$95 > 0, ($F$94 / $F$95) * (1 + $F$91) ^ AD$3 * IF($F$88 = Config!$E$15, 1 + $F$89, 1), 0) -> 0 | AE96: =IF(AE$95 > 0, ($F$94 / $F$95) * (1 + $F$91) ^ AE$3 * IF($F$88 = Config!$E$15, 1 + $F$89, 1), 0) -> 0 | AF96: =IF(AF$95 > 0, ($F$94 / $F$95) * (1 + $F$91) ^ AF$3 * IF($F$88 = Config!$E$15, 1 + $F$89, 1), 0) -> 0 | AG96: =IF(AG$95 > 0, ($F$94 / $F$95) * (1 + $F$91) ^ AG$3 * IF($F$88 = Config!$E$15, 1 + $F$89, 1), 0) -> 0 | AH96: =IF(AH$95 > 0, ($F$94 / $F$95) * (1 + $F$91) ^ AH$3 * IF($F$88 = Config!$E$15, 1 + $F$89, 1), 0) -> 0 | AI96: =IF(AI$95 > 0, ($F$94 / $F$95) * (1 + $F$91) ^ AI$3 * IF($F$88 = Config!$E$15, 1 + $F$89, 1), 0) -> 0 | AJ96: =IF(AJ$95 > 0, ($F$94 / $F$95) * (1 + $F$91) ^ AJ$3 * IF($F$88 = Config!$E$15, 1 + $F$89, 1), 0) -> 0 | AK96: =IF(AK$95 > 0, ($F$94 / $F$95) * (1 + $F$91) ^ AK$3 * IF($F$88 = Config!$E$15, 1 + $F$89, 1), 0) -> 0 | AL96: =IF(AL$95 > 0, ($F$94 / $F$95) * (1 + $F$91) ^ AL$3 * IF($F$88 = Config!$E$15, 1 + $F$89, 1), 0) -> 0 | AM96: =IF(AM$95 > 0, ($F$94 / $F$95) * (1 + $F$91) ^ AM$3 * IF($F$88 = Config!$E$15, 1 + $F$89, 1), 0) -> 0 | AN96: =IF(AN$95 > 0, ($F$94 / $F$95) * (1 + $F$91) ^ AN$3 * IF($F$88 = Config!$E$15, 1 + $F$89, 1), 0) -> 0 | AO96: =IF(AO$95 > 0, ($F$94 / $F$95) * (1 + $F$91) ^ AO$3 * IF($F$88 = Config!$E$15, 1 + $F$89, 1), 0) -> 0 | AP96: =IF(AP$95 > 0, ($F$94 / $F$95) * (1 + $F$91) ^ AP$3 * IF($F$88 = Config!$E$15, 1 + $F$89, 1), 0) -> 0 | AQ96: =IF(AQ$95 > 0, ($F$94 / $F$95) * (1 + $F$91) ^ AQ$3 * IF($F$88 = Config!$E$15, 1 + $F$89, 1), 0) -> 0 | AR96: =IF(AR$95 > 0, ($F$94 / $F$95) * (1 + $F$91) ^ AR$3 * IF($F$88 = Config!$E$15, 1 + $F$89, 1), 0) -> 0
D98: Herinvestering omvormers
E99: =Config!$E$106 -> Investering omvormer | F99: =Config!$J$106 -> 0.11 | G99: =Config!$G$106 -> van initiële investering
E100: Omvormer initieel | F100: =F94*F99 ->  | G100: €
E101: =$E$49 -> Flag herinvestering 1 | F101: =SUM(J101:AR101) -> 0 | J101: =J$49 -> 0 | K101: =K$49 -> 0 | L101: 0 | M101: 0 | N101: 0 | O101: 0 | P101: 0 | Q101: 0 | R101: 0 | S101: 0 | T101: 0 | U101: 0 | V101: 0 | W101: 0 | X101: 0 | Y101: 0 | Z101: 0 | AA101: 0 | AB101: 0 | AC101: 0 | AD101: 0 | AE101: 0 | AF101: 0 | AG101: 0 | AH101: 0 | AI101: 0 | AJ101: 0 | AK101: 0 | AL101: 0 | AM101: 0 | AN101: 0 | AO101: 0 | AP101: 0 | AQ101: 0 | AR101: 0
E102: Herinvestering omvormers | G102: € | H102: =SUM(J$102:AR$102) -> 0 | J102: =IF(J$101 > 0, ($F$100 / $F$95) * (1 + $F$91) ^ J$3 * IF($F$88 = Config!$E$15, 1 + $F$89, 1), 0) -> 0 | K102: =IF(K$101 > 0, ($F$100 / $F$95) * (1 + $F$91) ^ K$3 * IF($F$88 = Config!$E$15, 1 + $F$89, 1), 0) -> 0 | L102: =IF(L$101 > 0, ($F$100 / $F$95) * (1 + $F$91) ^ L$3 * IF($F$88 = Config!$E$15, 1 + $F$89, 1), 0) -> 0 | M102: =IF(M$101 > 0, ($F$100 / $F$95) * (1 + $F$91) ^ M$3 * IF($F$88 = Config!$E$15, 1 + $F$89, 1), 0) -> 0 | N102: =IF(N$101 > 0, ($F$100 / $F$95) * (1 + $F$91) ^ N$3 * IF($F$88 = Config!$E$15, 1 + $F$89, 1), 0) -> 0 | O102: =IF(O$101 > 0, ($F$100 / $F$95) * (1 + $F$91) ^ O$3 * IF($F$88 = Config!$E$15, 1 + $F$89, 1), 0) -> 0 | P102: =IF(P$101 > 0, ($F$100 / $F$95) * (1 + $F$91) ^ P$3 * IF($F$88 = Config!$E$15, 1 + $F$89, 1), 0) -> 0 | Q102: =IF(Q$101 > 0, ($F$100 / $F$95) * (1 + $F$91) ^ Q$3 * IF($F$88 = Config!$E$15, 1 + $F$89, 1), 0) -> 0 | R102: =IF(R$101 > 0, ($F$100 / $F$95) * (1 + $F$91) ^ R$3 * IF($F$88 = Config!$E$15, 1 + $F$89, 1), 0) -> 0 | S102: =IF(S$101 > 0, ($F$100 / $F$95) * (1 + $F$91) ^ S$3 * IF($F$88 = Config!$E$15, 1 + $F$89, 1), 0) -> 0 | T102: =IF(T$101 > 0, ($F$100 / $F$95) * (1 + $F$91) ^ T$3 * IF($F$88 = Config!$E$15, 1 + $F$89, 1), 0) -> 0 | U102: =IF(U$101 > 0, ($F$100 / $F$95) * (1 + $F$91) ^ U$3 * IF($F$88 = Config!$E$15, 1 + $F$89, 1), 0) -> 0 | V102: =IF(V$101 > 0, ($F$100 / $F$95) * (1 + $F$91) ^ V$3 * IF($F$88 = Config!$E$15, 1 + $F$89, 1), 0) -> 0 | W102: =IF(W$101 > 0, ($F$100 / $F$95) * (1 + $F$91) ^ W$3 * IF($F$88 = Config!$E$15, 1 + $F$89, 1), 0) -> 0 | X102: =IF(X$101 > 0, ($F$100 / $F$95) * (1 + $F$91) ^ X$3 * IF($F$88 = Config!$E$15, 1 + $F$89, 1), 0) -> 0 | Y102: =IF(Y$101 > 0, ($F$100 / $F$95) * (1 + $F$91) ^ Y$3 * IF($F$88 = Config!$E$15, 1 + $F$89, 1), 0) -> 0 | Z102: =IF(Z$101 > 0, ($F$100 / $F$95) * (1 + $F$91) ^ Z$3 * IF($F$88 = Config!$E$15, 1 + $F$89, 1), 0) -> 0 | AA102: =IF(AA$101 > 0, ($F$100 / $F$95) * (1 + $F$91) ^ AA$3 * IF($F$88 = Config!$E$15, 1 + $F$89, 1), 0) -> 0 | AB102: =IF(AB$101 > 0, ($F$100 / $F$95) * (1 + $F$91) ^ AB$3 * IF($F$88 = Config!$E$15, 1 + $F$89, 1), 0) -> 0 | AC102: =IF(AC$101 > 0, ($F$100 / $F$95) * (1 + $F$91) ^ AC$3 * IF($F$88 = Config!$E$15, 1 + $F$89, 1), 0) -> 0 | AD102: =IF(AD$101 > 0, ($F$100 / $F$95) * (1 + $F$91) ^ AD$3 * IF($F$88 = Config!$E$15, 1 + $F$89, 1), 0) -> 0 | AE102: =IF(AE$101 > 0, ($F$100 / $F$95) * (1 + $F$91) ^ AE$3 * IF($F$88 = Config!$E$15, 1 + $F$89, 1), 0) -> 0 | AF102: =IF(AF$101 > 0, ($F$100 / $F$95) * (1 + $F$91) ^ AF$3 * IF($F$88 = Config!$E$15, 1 + $F$89, 1), 0) -> 0 | AG102: =IF(AG$101 > 0, ($F$100 / $F$95) * (1 + $F$91) ^ AG$3 * IF($F$88 = Config!$E$15, 1 + $F$89, 1), 0) -> 0 | AH102: =IF(AH$101 > 0, ($F$100 / $F$95) * (1 + $F$91) ^ AH$3 * IF($F$88 = Config!$E$15, 1 + $F$89, 1), 0) -> 0 | AI102: =IF(AI$101 > 0, ($F$100 / $F$95) * (1 + $F$91) ^ AI$3 * IF($F$88 = Config!$E$15, 1 + $F$89, 1), 0) -> 0 | AJ102: =IF(AJ$101 > 0, ($F$100 / $F$95) * (1 + $F$91) ^ AJ$3 * IF($F$88 = Config!$E$15, 1 + $F$89, 1), 0) -> 0 | AK102: =IF(AK$101 > 0, ($F$100 / $F$95) * (1 + $F$91) ^ AK$3 * IF($F$88 = Config!$E$15, 1 + $F$89, 1), 0) -> 0 | AL102: =IF(AL$101 > 0, ($F$100 / $F$95) * (1 + $F$91) ^ AL$3 * IF($F$88 = Config!$E$15, 1 + $F$89, 1), 0) -> 0 | AM102: =IF(AM$101 > 0, ($F$100 / $F$95) * (1 + $F$91) ^ AM$3 * IF($F$88 = Config!$E$15, 1 + $F$89, 1), 0) -> 0 | AN102: =IF(AN$101 > 0, ($F$100 / $F$95) * (1 + $F$91) ^ AN$3 * IF($F$88 = Config!$E$15, 1 + $F$89, 1), 0) -> 0 | AO102: =IF(AO$101 > 0, ($F$100 / $F$95) * (1 + $F$91) ^ AO$3 * IF($F$88 = Config!$E$15, 1 + $F$89, 1), 0) -> 0 | AP102: =IF(AP$101 > 0, ($F$100 / $F$95) * (1 + $F$91) ^ AP$3 * IF($F$88 = Config!$E$15, 1 + $F$89, 1), 0) -> 0 | AQ102: =IF(AQ$101 > 0, ($F$100 / $F$95) * (1 + $F$91) ^ AQ$3 * IF($F$88 = Config!$E$15, 1 + $F$89, 1), 0) -> 0 | AR102: =IF(AR$101 > 0, ($F$100 / $F$95) * (1 + $F$91) ^ AR$3 * IF($F$88 = Config!$E$15, 1 + $F$89, 1), 0) -> 0
D104: Totale investering
E105: Initiële investering + herinvestering | G105: € | H105: =SUM(J$105:AR$105) -> 0 | J105: =SUM(J$96,J$102) -> 0 | K105: 0 | L105: 0 | M105: 0 | N105: 0 | O105: 0 | P105: 0 | Q105: 0 | R105: 0 | S105: 0 | T105: 0 | U105: 0 | V105: 0 | W105: 0 | X105: 0 | Y105: 0 | Z105: 0 | AA105: 0 | AB105: 0 | AC105: 0 | AD105: 0 | AE105: 0 | AF105: 0 | AG105: 0 | AH105: 0 | AI105: 0 | AJ105: 0 | AK105: 0 | AL105: 0 | AM105: 0 | AN105: 0 | AO105: 0 | AP105: 0 | AQ105: 0 | AR105: 0
C108: Productie
E109: =$E$11 -> Aantal woningen | F109: =$F$11 -> 0 | G109: woningen
E110: =E23 -> Beschouwings-termijn | F110: =IF(F23 <> 0, F23, Config!$E$61) -> 20 | G110: jaar
E111: Woningen per jaar | J111: =IF(J95 > 0, $F$109 / $F$95, 0) -> 0 | K111: =IF(K95 > 0, $F$109 / $F$95, 0) -> 0 | L111: =IF(L95 > 0, $F$109 / $F$95, 0) -> 0 | M111: 0 | N111: 0 | O111: 0 | P111: 0 | Q111: 0 | R111: 0 | S111: 0 | T111: 0 | U111: 0 | V111: 0 | W111: 0 | X111: 0 | Y111: 0 | Z111: 0 | AA111: 0 | AB111: 0 | AC111: 0 | AD111: 0 | AE111: 0 | AF111: 0 | AG111: 0 | AH111: 0 | AI111: 0 | AJ111: 0 | AK111: 0 | AL111: 0 | AM111: 0 | AN111: 0 | AO111: 0 | AP111: 0 | AQ111: 0 | AR111: 0
E112: Einde woningen per jaar | J112: =OFFSET(J111, 0, -MIN(COLUMN(J112) - COLUMN($I112), $F$110)) -> 0 | K112: 0 | L112: 0 | M112: 0 | N112: 0 | O112: 0 | P112: 0 | Q112: 0 | R112: 0 | S112: 0 | T112: 0 | U112: 0 | V112: 0 | W112: 0 | X112: 0 | Y112: 0 | Z112: 0 | AA112: 0 | AB112: 0 | AC112: 0 | AD112: 0 | AE112: 0 | AF112: 0 | AG112: 0 | AH112: 0 | AI112: 0 | AJ112: 0 | AK112: 0 | AL112: 0 | AM112: 0 | AN112: 0 | AO112: 0 | AP112: 0 | AQ112: 0 | AR112: 0
E113: =$E$12 -> EGW/MGW | F113: =$F$12 -> 0
E114: =$E$13 -> Aansluiting | F114: =$F$13 -> 0
E115: =$E$14 -> Gem. verbruik | F115: =$F$14 -> 0 | G115: =$G$14 -> kWh per jaar
E116: Individueel of collectief salderen | F116: =IF($F$114 = Config!$E$29, TRUE, IF($F$114 = Config!$E$30, FALSE, 0)) -> 0 | G116: TRUE = woning, FALSE = complex
E118: Productie zon PV | G118: kWh | J118: =J$69 -> 0 | K118: =K$69 -> 0 | L118: =L$69 -> 0 | M118: 0 | N118: 0 | O118: 0 | P118: 0 | Q118: 0 | R118: 0 | S118: 0 | T118: 0 | U118: 0 | V118: 0 | W118: 0 | X118: 0 | Y118: 0 | Z118: 0 | AA118: 0 | AB118: 0 | AC118: 0 | AD118: 0 | AE118: 0 | AF118: 0 | AG118: 0 | AH118: 0 | AI118: 0 | AJ118: 0 | AK118: 0 | AL118: 0 | AM118: 0 | AN118: 0 | AO118: 0 | AP118: 0 | AQ118: 0 | AR118: 0
E119: Productie zon PV per woning of per complex | H119: A | J119: =IF($F$116 = FALSE(), J118, IF($F$116 = TRUE, J118 / $F$109, 0)) -> 0 | K119: 0 | L119: =IF($F$116 = FALSE(), L118, IF($F$116 = TRUE, L118 / $F$109, 0)) -> 0 | M119: 0 | N119: 0 | O119: 0 | P119: 0 | Q119: 0 | R119: 0 | S119: 0 | T119: 0 | U119: 0 | V119: 0 | W119: 0 | X119: 0 | Y119: 0 | Z119: 0 | AA119: 0 | AB119: 0 | AC119: 0 | AD119: 0 | AE119: 0 | AF119: 0 | AG119: 0 | AH119: 0 | AI119: 0 | AJ119: 0 | AK119: 0 | AL119: 0 | AM119: 0 | AN119: 0 | AO119: 0 | AP119: 0 | AQ119: 0 | AR119: 0
E121: Totaalverbruik | F121: =IF($F$116 = FALSE(), $F$109 * $F$115, IF($F$116 = TRUE, $F$115, 0)) -> 0
E122: =Config!E101 -> Jaarlijkse afname elektriciteitsverbruik | F122: =Config!J101 -> 0
E123: Totaalverbruik per jaar | G123: kWh | H123: B | J123: =$F$121 * (1 - $F$122) ^J$3 -> 0 | K123: 0 | L123: 0 | M123: 0 | N123: 0 | O123: 0 | P123: 0 | Q123: 0 | R123: 0 | S123: 0 | T123: 0 | U123: 0 | V123: 0 | W123: 0 | X123: 0 | Y123: 0 | Z123: 0 | AA123: 0 | AB123: 0 | AC123: 0 | AD123: 0 | AE123: 0 | AF123: 0 | AG123: 0 | AH123: 0 | AI123: 0 | AJ123: 0 | AK123: 0 | AL123: 0 | AM123: 0 | AN123: 0 | AO123: 0 | AP123: 0 | AQ123: 0 | AR123: 0
E125: =$E$24 -> Subsidie-regeling | F125: =$F$24 -> 0
E126: Aandeel eigen gebruik | F126: =IF(OR(F54 = 0, F125 = Config!$E$39), 0, INDEX(Config!$J$92:$J$95, MATCH($F$54, Config!E92:E95,0))) -> 0 | G126: =IF(F54 = 0, 0, INDEX(Config!$J$92:$J$95, MATCH($F$54, Config!E92:E95,0))) -> 0
E127: Eigen gebruik van opwekking | G127: kWh | H127: C | J127: =MIN($F$126 * J$119, $F$126 * J$123) -> 0 | K127: =MIN($F$126 * K$119, $F$126 * K$123) -> 0 | L127: 0 | M127: 0 | N127: 0 | O127: =MIN($F$126 * O$119, $F$126 * O$123) -> 0 | P127: 0 | Q127: 0 | R127: 0 | S127: 0 | T127: =MIN($F$126 * T$119, $F$126 * T$123) -> 0 | U127: 0 | V127: 0 | W127: 0 | X127: 0 | Y127: 0 | Z127: 0 | AA127: 0 | AB127: 0 | AC127: 0 | AD127: 0 | AE127: 0 | AF127: 0 | AG127: 0 | AH127: 0 | AI127: 0 | AJ127: 0 | AK127: 0 | AL127: 0 | AM127: 0 | AN127: 0 | AO127: 0 | AP127: 0 | AQ127: 0 | AR127: 0
E129: =$E$24 -> Subsidie-regeling | F129: =$F$24 -> 0
E130: =Config!$E$125 -> Afbouw Saldering | F130: =Config!$F$125 -> 0.09 | G130: =Config!$G$125 -> verlaging saldering | J130: =IF($F$129 = Config!$E$37, Config!J$127, 0) -> 0 | K130: =IF($F$129 = Config!$E$37, Config!K$127, 0) -> 0 | L130: =IF($F$129 = Config!$E$37, Config!L$127, 0) -> 0 | M130: =IF($F$129 = Config!$E$37, Config!M$127, 0) -> 0 | N130: =IF($F$129 = Config!$E$37, Config!N$127, 0) -> 0 | O130: =IF($F$129 = Config!$E$37, Config!O$127, 0) -> 0 | P130: =IF($F$129 = Config!$E$37, Config!P$127, 0) -> 0 | Q130: =IF($F$129 = Config!$E$37, Config!Q$127, 0) -> 0 | R130: =IF($F$129 = Config!$E$37, Config!R$127, 0) -> 0 | S130: =IF($F$129 = Config!$E$37, Config!S$127, 0) -> 0 | T130: =IF($F$129 = Config!$E$37, Config!T$127, 0) -> 0 | U130: =IF($F$129 = Config!$E$37, Config!U$125, 0) -> 0 | V130: =IF($F$129 = Config!$E$37, Config!V$125, 0) -> 0 | W130: =IF($F$129 = Config!$E$37, Config!W$125, 0) -> 0 | X130: =IF($F$129 = Config!$E$37, Config!X$125, 0) -> 0 | Y130: =IF($F$129 = Config!$E$37, Config!Y$125, 0) -> 0 | Z130: =IF($F$129 = Config!$E$37, Config!Z$125, 0) -> 0 | AA130: =IF($F$129 = Config!$E$37, Config!AA$125, 0) -> 0 | AB130: =IF($F$129 = Config!$E$37, Config!AB$125, 0) -> 0 | AC130: =IF($F$129 = Config!$E$37, Config!AC$125, 0) -> 0 | AD130: =IF($F$129 = Config!$E$37, Config!AD$125, 0) -> 0 | AE130: =IF($F$129 = Config!$E$37, Config!AE$125, 0) -> 0 | AF130: =IF($F$129 = Config!$E$37, Config!AF$125, 0) -> 0 | AG130: =IF($F$129 = Config!$E$37, Config!AG$125, 0) -> 0 | AH130: =IF($F$129 = Config!$E$37, Config!AH$125, 0) -> 0 | AI130: =IF($F$129 = Config!$E$37, Config!AI$125, 0) -> 0 | AJ130: =IF($F$129 = Config!$E$37, Config!AJ$125, 0) -> 0 | AK130: =IF($F$129 = Config!$E$37, Config!AK$125, 0) -> 0 | AL130: =IF($F$129 = Config!$E$37, Config!AL$125, 0) -> 0 | AM130: =IF($F$129 = Config!$E$37, Config!AM$125, 0) -> 0 | AN130: =IF($F$129 = Config!$E$37, Config!AN$125, 0) -> 0 | AO130: =IF($F$129 = Config!$E$37, Config!AO$125, 0) -> 0 | AP130: =IF($F$129 = Config!$E$37, Config!AP$125, 0) -> 0 | AQ130: =IF($F$129 = Config!$E$37, Config!AQ$125, 0) -> 0 | AR130: =IF($F$129 = Config!$E$37, Config!AR$125, 0) -> 0
E131: Te salderen kWh | G131: kWh | H131: D | J131: =MAX(IF(J119 < J123, J119 - J127, J123 - J127), 0) * J130 -> 0 | K131: =MAX(IF(K119 < K123, K119 - K127, K123 - K127), 0) * K130 -> 0 | L131: 0 | M131: 0 | N131: 0 | O131: 0 | P131: 0 | Q131: 0 | R131: 0 | S131: 0 | T131: 0 | U131: 0 | V131: 0 | W131: 0 | X131: 0 | Y131: 0 | Z131: 0 | AA131: 0 | AB131: 0 | AC131: 0 | AD131: 0 | AE131: 0 | AF131: 0 | AG131: 0 | AH131: 0 | AI131: 0 | AJ131: 0 | AK131: 0 | AL131: 0 | AM131: 0 | AN131: 0 | AO131: 0 | AP131: 0 | AQ131: 0 | AR131: 0
E133: Teruglevering | G133: kWh | H133: E | J133: =MAX(J119 - J127 - J131, 0) -> 0 | K133: =MAX(K119 - K127 - K131, 0) -> 0 | L133: =MAX(L119 - L127 - L131, 0) -> 0 | M133: 0 | N133: 0 | O133: 0 | P133: 0 | Q133: 0 | R133: 0 | S133: 0 | T133: 0 | U133: 0 | V133: 0 | W133: 0 | X133: 0 | Y133: 0 | Z133: 0 | AA133: 0 | AB133: 0 | AC133: 0 | AD133: 0 | AE133: 0 | AF133: 0 | AG133: 0 | AH133: 0 | AI133: 0 | AJ133: 0 | AK133: 0 | AL133: 0 | AM133: 0 | AN133: 0 | AO133: 0 | AP133: 0 | AQ133: 0 | AR133: 0
E134: Aanvullend te leveren door derden | G134: kWh | H134: F | J134: =J123 - J127 - J131 -> 0 | K134: =K123 - K127 - K131 -> 0 | L134: 0 | M134: 0 | N134: 0 | O134: 0 | P134: 0 | Q134: 0 | R134: 0 | S134: 0 | T134: 0 | U134: 0 | V134: 0 | W134: 0 | X134: 0 | Y134: 0 | Z134: 0 | AA134: 0 | AB134: 0 | AC134: 0 | AD134: 0 | AE134: 0 | AF134: 0 | AG134: 0 | AH134: 0 | AI134: 0 | AJ134: 0 | AK134: 0 | AL134: 0 | AM134: 0 | AN134: 0 | AO134: 0 | AP134: 0 | AQ134: 0 | AR134: 0
E136: Check (B) = som van (C), (D) en (F) | J136: =J123 = J127 + J131 + J134 -> TRUE | K136: =K123 = K127 + K131 + K134 -> TRUE | L136: TRUE | M136: TRUE | N136: TRUE | O136: TRUE | P136: TRUE | Q136: TRUE | R136: TRUE | S136: TRUE | T136: TRUE | U136: TRUE | V136: TRUE | W136: TRUE | X136: TRUE | Y136: TRUE | Z136: TRUE | AA136: TRUE | AB136: TRUE | AC136: TRUE | AD136: TRUE | AE136: TRUE | AF136: TRUE | AG136: TRUE | AH136: TRUE | AI136: TRUE | AJ136: TRUE | AK136: TRUE | AL136: TRUE | AM136: TRUE | AN136: TRUE | AO136: TRUE | AP136: TRUE | AQ136: TRUE | AR136: TRUE
E137: Check (A) = som van (C), (D) en (E) | J137: =J119 = J127 + J131 + J133 -> TRUE | K137: =K119 = K127 + K131 + K133 -> TRUE | L137: TRUE | M137: TRUE | N137: TRUE | O137: TRUE | P137: TRUE | Q137: TRUE | R137: TRUE | S137: TRUE | T137: TRUE | U137: TRUE | V137: TRUE | W137: TRUE | X137: TRUE | Y137: TRUE | Z137: TRUE | AA137: TRUE | AB137: TRUE | AC137: TRUE | AD137: TRUE | AE137: TRUE | AF137: TRUE | AG137: TRUE | AH137: TRUE | AI137: TRUE | AJ137: TRUE | AK137: TRUE | AL137: TRUE | AM137: TRUE | AN137: TRUE | AO137: TRUE | AP137: TRUE | AQ137: TRUE | AR137: TRUE
C139: Omzet
D140: Omzet uit vermeden inkoop
E141: Eigen gebruik + te salderen | G141: kWh | J141: =J131 + J127 -> 0 | K141: =K131 + K127 -> 0 | L141: =L131 + L127 -> 0 | M141: 0 | N141: 0 | O141: 0 | P141: 0 | Q141: 0 | R141: 0 | S141: 0 | T141: 0 | U141: 0 | V141: 0 | W141: =W131 + W127 -> 0 | X141: 0 | Y141: 0 | Z141: 0 | AA141: 0 | AB141: 0 | AC141: 0 | AD141: 0 | AE141: 0 | AF141: 0 | AG141: 0 | AH141: 0 | AI141: 0 | AJ141: =AJ131 + AJ127 -> 0 | AK141: 0 | AL141: 0 | AM141: 0 | AN141: 0 | AO141: 0 | AP141: 0 | AQ141: 0 | AR141: 0
E142: =InAlgemeen!$E$26 -> Leveringstarief | F142: =InAlgemeen!$F$26 -> 0.05 | G142: =InAlgemeen!$G$26 -> € per kWh
E143: =InAlgemeen!$I$25 -> Index | F143: =InAlgemeen!$I$26 -> 0.015
E144: =InAlgemeen!$E$27 -> Kosten en marge leverancier | F144: =InAlgemeen!$F$27 -> 0 | G144: =InAlgemeen!$G$27 -> € per kWh
E145: =InAlgemeen!$I$25 -> Index | F145: =InAlgemeen!$I$27 -> 0
E147: =Config!$E$141 -> Belasting toegevoegde waarde (BTW) | F147: =Config!$F$141 -> 0.21
E148: BTW op omzet | F148: =IF($F$26 = Config!$E$33, Config!$E$15, Config!$E$16) -> Nee
E150: Omzet uit vermeden inkoop | G150: € | J150: =J141 * (($F142 * (1 + $F143) ^ J$3) + ($F144 * (1 + $F145) ^ J$3)) * (1 + IF($F$148 = Config!$E$15, $F$147, 0)) -> 0 | K150: =K141 * (($F142 * (1 + $F143) ^ K$3) + ($F144 * (1 + $F145) ^ K$3)) * (1 + IF($F$148 = Config!$E$15, $F$147, 0)) -> 0 | L150: =L141 * (($F142 * (1 + $F143) ^ L$3) + ($F144 * (1 + $F145) ^ L$3)) * (1 + IF($F$148 = Config!$E$15, $F$147, 0)) -> 0 | M150: =M141 * (($F142 * (1 + $F143) ^ M$3) + ($F144 * (1 + $F145) ^ M$3)) * (1 + IF($F$148 = Config!$E$15, $F$147, 0)) -> 0 | N150: =N141 * (($F142 * (1 + $F143) ^ N$3) + ($F144 * (1 + $F145) ^ N$3)) * (1 + IF($F$148 = Config!$E$15, $F$147, 0)) -> 0 | O150: =O141 * (($F142 * (1 + $F143) ^ O$3) + ($F144 * (1 + $F145) ^ O$3)) * (1 + IF($F$148 = Config!$E$15, $F$147, 0)) -> 0 | P150: =P141 * (($F142 * (1 + $F143) ^ P$3) + ($F144 * (1 + $F145) ^ P$3)) * (1 + IF($F$148 = Config!$E$15, $F$147, 0)) -> 0 | Q150: =Q141 * (($F142 * (1 + $F143) ^ Q$3) + ($F144 * (1 + $F145) ^ Q$3)) * (1 + IF($F$148 = Config!$E$15, $F$147, 0)) -> 0 | R150: =R141 * (($F142 * (1 + $F143) ^ R$3) + ($F144 * (1 + $F145) ^ R$3)) * (1 + IF($F$148 = Config!$E$15, $F$147, 0)) -> 0 | S150: =S141 * (($F142 * (1 + $F143) ^ S$3) + ($F144 * (1 + $F145) ^ S$3)) * (1 + IF($F$148 = Config!$E$15, $F$147, 0)) -> 0 | T150: =T141 * (($F142 * (1 + $F143) ^ T$3) + ($F144 * (1 + $F145) ^ T$3)) * (1 + IF($F$148 = Config!$E$15, $F$147, 0)) -> 0 | U150: =U141 * (($F142 * (1 + $F143) ^ U$3) + ($F144 * (1 + $F145) ^ U$3)) * (1 + IF($F$148 = Config!$E$15, $F$147, 0)) -> 0 | V150: =V141 * (($F142 * (1 + $F143) ^ V$3) + ($F144 * (1 + $F145) ^ V$3)) * (1 + IF($F$148 = Config!$E$15, $F$147, 0)) -> 0 | W150: =W141 * (($F142 * (1 + $F143) ^ W$3) + ($F144 * (1 + $F145) ^ W$3)) * (1 + IF($F$148 = Config!$E$15, $F$147, 0)) -> 0 | X150: =X141 * (($F142 * (1 + $F143) ^ X$3) + ($F144 * (1 + $F145) ^ X$3)) * (1 + IF($F$148 = Config!$E$15, $F$147, 0)) -> 0 | Y150: =Y141 * (($F142 * (1 + $F143) ^ Y$3) + ($F144 * (1 + $F145) ^ Y$3)) * (1 + IF($F$148 = Config!$E$15, $F$147, 0)) -> 0 | Z150: =Z141 * (($F142 * (1 + $F143) ^ Z$3) + ($F144 * (1 + $F145) ^ Z$3)) * (1 + IF($F$148 = Config!$E$15, $F$147, 0)) -> 0 | AA150: =AA141 * (($F142 * (1 + $F143) ^ AA$3) + ($F144 * (1 + $F145) ^ AA$3)) * (1 + IF($F$148 = Config!$E$15, $F$147, 0)) -> 0 | AB150: =AB141 * (($F142 * (1 + $F143) ^ AB$3) + ($F144 * (1 + $F145) ^ AB$3)) * (1 + IF($F$148 = Config!$E$15, $F$147, 0)) -> 0 | AC150: =AC141 * (($F142 * (1 + $F143) ^ AC$3) + ($F144 * (1 + $F145) ^ AC$3)) * (1 + IF($F$148 = Config!$E$15, $F$147, 0)) -> 0 | AD150: =AD141 * (($F142 * (1 + $F143) ^ AD$3) + ($F144 * (1 + $F145) ^ AD$3)) * (1 + IF($F$148 = Config!$E$15, $F$147, 0)) -> 0 | AE150: =AE141 * (($F142 * (1 + $F143) ^ AE$3) + ($F144 * (1 + $F145) ^ AE$3)) * (1 + IF($F$148 = Config!$E$15, $F$147, 0)) -> 0 | AF150: =AF141 * (($F142 * (1 + $F143) ^ AF$3) + ($F144 * (1 + $F145) ^ AF$3)) * (1 + IF($F$148 = Config!$E$15, $F$147, 0)) -> 0 | AG150: =AG141 * (($F142 * (1 + $F143) ^ AG$3) + ($F144 * (1 + $F145) ^ AG$3)) * (1 + IF($F$148 = Config!$E$15, $F$147, 0)) -> 0 | AH150: =AH141 * (($F142 * (1 + $F143) ^ AH$3) + ($F144 * (1 + $F145) ^ AH$3)) * (1 + IF($F$148 = Config!$E$15, $F$147, 0)) -> 0 | AI150: =AI141 * (($F142 * (1 + $F143) ^ AI$3) + ($F144 * (1 + $F145) ^ AI$3)) * (1 + IF($F$148 = Config!$E$15, $F$147, 0)) -> 0 | AJ150: =AJ141 * (($F142 * (1 + $F143) ^ AJ$3) + ($F144 * (1 + $F145) ^ AJ$3)) * (1 + IF($F$148 = Config!$E$15, $F$147, 0)) -> 0 | AK150: =AK141 * (($F142 * (1 + $F143) ^ AK$3) + ($F144 * (1 + $F145) ^ AK$3)) * (1 + IF($F$148 = Config!$E$15, $F$147, 0)) -> 0 | AL150: =AL141 * (($F142 * (1 + $F143) ^ AL$3) + ($F144 * (1 + $F145) ^ AL$3)) * (1 + IF($F$148 = Config!$E$15, $F$147, 0)) -> 0 | AM150: =AM141 * (($F142 * (1 + $F143) ^ AM$3) + ($F144 * (1 + $F145) ^ AM$3)) * (1 + IF($F$148 = Config!$E$15, $F$147, 0)) -> 0 | AN150: =AN141 * (($F142 * (1 + $F143) ^ AN$3) + ($F144 * (1 + $F145) ^ AN$3)) * (1 + IF($F$148 = Config!$E$15, $F$147, 0)) -> 0 | AO150: =AO141 * (($F142 * (1 + $F143) ^ AO$3) + ($F144 * (1 + $F145) ^ AO$3)) * (1 + IF($F$148 = Config!$E$15, $F$147, 0)) -> 0 | AP150: =AP141 * (($F142 * (1 + $F143) ^ AP$3) + ($F144 * (1 + $F145) ^ AP$3)) * (1 + IF($F$148 = Config!$E$15, $F$147, 0)) -> 0 | AQ150: =AQ141 * (($F142 * (1 + $F143) ^ AQ$3) + ($F144 * (1 + $F145) ^ AQ$3)) * (1 + IF($F$148 = Config!$E$15, $F$147, 0)) -> 0 | AR150: =AR141 * (($F142 * (1 + $F143) ^ AR$3) + ($F144 * (1 + $F145) ^ AR$3)) * (1 + IF($F$148 = Config!$E$15, $F$147, 0)) -> 0
E151: =$E$116 -> Individueel of collectief salderen | F151: =$F$116 -> 0 | G151: =$G$116 -> TRUE = woning, FALSE = complex
E152: Totaal omzet uit vermeden inkoop | G152: € | J152: =IF($F$151 = FALSE, J150, IF($F$151 = TRUE, J150 * $F$109, 0)) -> 0 | K152: 0 | L152: 0 | M152: 0 | N152: 0 | O152: 0 | P152: 0 | Q152: 0 | R152: 0 | S152: 0 | T152: 0 | U152: 0 | V152: 0 | W152: 0 | X152: 0 | Y152: 0 | Z152: 0 | AA152: 0 | AB152: 0 | AC152: 0 | AD152: 0 | AE152: 0 | AF152: 0 | AG152: 0 | AH152: 0 | AI152: 0 | AJ152: 0 | AK152: 0 | AL152: 0 | AM152: 0 | AN152: 0 | AO152: 0 | AP152: 0 | AQ152: 0 | AR152: 0
D154: Omzet uit vermeden EB + ODE
E155: =Config!$E$139 -> Indexeren van EB en ODE tot en met | F155: =Config!$F$139 -> 2035
E157: Staffels
E158: Staffel 1 | F158: 0 | G158: 10000
E159: Staffel 2 | F159: =G158 + 1 -> 10001 | G159: 50000
E160: Staffel 3 | F160: =G159 + 1 -> 50001 | G160: 10000000
E161: Staffel 4 | F161: 10000001 | G161: 99999999
E163: Energiebelasting (EB) | F163: € / kWh | G163: index
E164: =$E$158 -> Staffel 1 | F164: =Config!$F$134 -> 0.0977 | G164: =Config!$I$134 -> -0.0275
E165: =$E$159 -> Staffel 2 | F165: =Config!$F$135 -> 0.05083 | G165: =Config!$I$135 -> 0
E166: =$E$160 -> Staffel 3 | F166: =Config!$F$136 -> 0.01353 | G166: =Config!$I$136 -> 0
E167: =$E$161 -> Staffel 4 | F167: =Config!$F$137 -> 0.00055 | G167: =Config!$I$137 -> 0
E169: Energiebelasting (EB)
E170: =$E$158 -> Staffel 1 | G170: € | J170: =IF(J$2 <= $F$155, $F164 * (1 + $G164) ^ J$3, I170) -> 0.0977 | K170: 0.09501325 | L170: 0.09240038562 | M170: 0.08985937502 | N170: 0.08738824221 | O170: 0.08498506555 | P170: 0.08264797624 | Q170: 0.0803751569 | R170: 0.07816484008 | S170: 0.07601530698 | T170: 0.07392488604 | U170: 0.07189195167 | V170: 0.069914923 | W170: 0.06799226262 | X170: 0.0661224754 | Y170: 0.0661224754 | Z170: 0.0661224754 | AA170: 0.0661224754 | AB170: 0.0661224754 | AC170: 0.0661224754 | AD170: 0.0661224754 | AE170: 0.0661224754 | AF170: 0.0661224754 | AG170: 0.0661224754 | AH170: 0.0661224754 | AI170: 0.0661224754 | AJ170: 0.0661224754 | AK170: 0.0661224754 | AL170: 0.0661224754 | AM170: 0.0661224754 | AN170: 0.0661224754 | AO170: 0.0661224754 | AP170: 0.0661224754 | AQ170: 0.0661224754 | AR170: 0.0661224754
E171: =$E$159 -> Staffel 2 | G171: € | J171: =IF(J$2 <= $F$155, $F165 * (1 + $G165) ^ J$3, I171) -> 0.05083 | K171: 0.05083 | L171: 0.05083 | M171: 0.05083 | N171: 0.05083 | O171: 0.05083 | P171: 0.05083 | Q171: 0.05083 | R171: 0.05083 | S171: 0.05083 | T171: 0.05083 | U171: 0.05083 | V171: 0.05083 | W171: 0.05083 | X171: 0.05083 | Y171: 0.05083 | Z171: 0.05083 | AA171: 0.05083 | AB171: 0.05083 | AC171: 0.05083 | AD171: 0.05083 | AE171: 0.05083 | AF171: 0.05083 | AG171: 0.05083 | AH171: 0.05083 | AI171: 0.05083 | AJ171: 0.05083 | AK171: 0.05083 | AL171: 0.05083 | AM171: 0.05083 | AN171: 0.05083 | AO171: 0.05083 | AP171: 0.05083 | AQ171: 0.05083 | AR171: 0.05083
E172: =$E$160 -> Staffel 3 | G172: € | J172: =IF(J$2 <= $F$155, $F166 * (1 + $G166) ^ J$3, I172) -> 0.01353 | K172: 0.01353 | L172: 0.01353 | M172: 0.01353 | N172: 0.01353 | O172: 0.01353 | P172: 0.01353 | Q172: 0.01353 | R172: 0.01353 | S172: 0.01353 | T172: 0.01353 | U172: 0.01353 | V172: 0.01353 | W172: 0.01353 | X172: 0.01353 | Y172: 0.01353 | Z172: 0.01353 | AA172: 0.01353 | AB172: 0.01353 | AC172: 0.01353 | AD172: 0.01353 | AE172: 0.01353 | AF172: 0.01353 | AG172: 0.01353 | AH172: 0.01353 | AI172: 0.01353 | AJ172: 0.01353 | AK172: 0.01353 | AL172: 0.01353 | AM172: 0.01353 | AN172: 0.01353 | AO172: 0.01353 | AP172: 0.01353 | AQ172: 0.01353 | AR172: 0.01353
E173: =$E$161 -> Staffel 4 | G173: € | J173: =IF(J$2 <= $F$155, $F167 * (1 + $G167) ^ J$3, I173) -> 0.00055 | K173: 0.00055 | L173: 0.00055 | M173: 0.00055 | N173: 0.00055 | O173: 0.00055 | P173: 0.00055 | Q173: 0.00055 | R173: 0.00055 | S173: 0.00055 | T173: 0.00055 | U173: 0.00055 | V173: 0.00055 | W173: 0.00055 | X173: 0.00055 | Y173: 0.00055 | Z173: 0.00055 | AA173: 0.00055 | AB173: 0.00055 | AC173: 0.00055 | AD173: 0.00055 | AE173: 0.00055 | AF173: 0.00055 | AG173: 0.00055 | AH173: 0.00055 | AI173: 0.00055 | AJ173: 0.00055 | AK173: 0.00055 | AL173: 0.00055 | AM173: 0.00055 | AN173: 0.00055 | AO173: 0.00055 | AP173: 0.00055 | AQ173: 0.00055 | AR173: 0.00055
E175: Opslag Duurzame Energie (ODE) | F175: € / kWh | G175: index
E176: =$E$158 -> Staffel 1 | F176: =Config!$G$134 -> 0.0273 | G176: =Config!$K$134 -> 0.01
E177: =$E$159 -> Staffel 2 | F177: =Config!$G$135 -> 0.0375 | G177: =Config!$K$135 -> 0.015
E178: =$E$160 -> Staffel 3 | F178: =Config!$G$136 -> 0.0205 | G178: =Config!$K$136 -> 0.02
E179: =$E$161 -> Staffel 4 | F179: =Config!$G$137 -> 0.0004 | G179: =Config!$K$137 -> 0
E181: Opslag Duurzame Energie (ODE)
E182: =$E$158 -> Staffel 1 | G182: € | J182: =IF(J$2 <= $F$155, $F176 * (1 + $G176) ^ J$3, I176) -> 0.0273 | K182: =IF(K$2 <= $F$155, $F176 * (1 + $G176) ^ K$3, J182) -> 0.027573 | L182: 0.02784873 | M182: 0.0281272173 | N182: 0.02840848947 | O182: 0.02869257437 | P182: 0.02897950011 | Q182: 0.02926929511 | R182: 0.02956198806 | S182: 0.02985760794 | T182: 0.03015618402 | U182: 0.03045774586 | V182: 0.03076232332 | W182: 0.03106994656 | X182: 0.03138064602 | Y182: 0.03138064602 | Z182: 0.03138064602 | AA182: 0.03138064602 | AB182: 0.03138064602 | AC182: 0.03138064602 | AD182: 0.03138064602 | AE182: 0.03138064602 | AF182: 0.03138064602 | AG182: 0.03138064602 | AH182: 0.03138064602 | AI182: 0.03138064602 | AJ182: 0.03138064602 | AK182: 0.03138064602 | AL182: 0.03138064602 | AM182: 0.03138064602 | AN182: 0.03138064602 | AO182: 0.03138064602 | AP182: 0.03138064602 | AQ182: 0.03138064602 | AR182: 0.03138064602
E183: =$E$159 -> Staffel 2 | G183: € | J183: =IF(J$2 <= $F$155, $F177 * (1 + $G177) ^ J$3, I177) -> 0.0375 | K183: =IF(K$2 <= $F$155, $F177 * (1 + $G177) ^ K$3, J183) -> 0.0380625 | L183: 0.0386334375 | M183: 0.03921293906 | N183: 0.03980113315 | O183: 0.04039815015 | P183: 0.0410041224 | Q183: 0.04161918423 | R183: 0.042243472 | S183: 0.04287712408 | T183: 0.04352028094 | U183: 0.04417308515 | V183: 0.04483568143 | W183: 0.04550821665 | X183: 0.0461908399 | Y183: 0.0461908399 | Z183: 0.0461908399 | AA183: 0.0461908399 | AB183: 0.0461908399 | AC183: 0.0461908399 | AD183: 0.0461908399 | AE183: 0.0461908399 | AF183: 0.0461908399 | AG183: 0.0461908399 | AH183: 0.0461908399 | AI183: 0.0461908399 | AJ183: 0.0461908399 | AK183: 0.0461908399 | AL183: 0.0461908399 | AM183: 0.0461908399 | AN183: 0.0461908399 | AO183: 0.0461908399 | AP183: 0.0461908399 | AQ183: 0.0461908399 | AR183: 0.0461908399
E184: =$E$160 -> Staffel 3 | G184: € | J184: =IF(J$2 <= $F$155, $F178 * (1 + $G178) ^ J$3, I178) -> 0.0205 | K184: =IF(K$2 <= $F$155, $F178 * (1 + $G178) ^ K$3, J184) -> 0.02091 | L184: 0.0213282 | M184: 0.021754764 | N184: 0.02218985928 | O184: 0.02263365647 | P184: 0.02308632959 | Q184: 0.02354805619 | R184: 0.02401901731 | S184: 0.02449939766 | T184: 0.02498938561 | U184: 0.02548917332 | V184: 0.02599895679 | W184: 0.02651893592 | X184: 0.02704931464 | Y184: 0.02704931464 | Z184: 0.02704931464 | AA184: 0.02704931464 | AB184: 0.02704931464 | AC184: 0.02704931464 | AD184: 0.02704931464 | AE184: 0.02704931464 | AF184: 0.02704931464 | AG184: 0.02704931464 | AH184: 0.02704931464 | AI184: 0.02704931464 | AJ184: 0.02704931464 | AK184: 0.02704931464 | AL184: 0.02704931464 | AM184: 0.02704931464 | AN184: 0.02704931464 | AO184: 0.02704931464 | AP184: 0.02704931464 | AQ184: 0.02704931464 | AR184: 0.02704931464
E185: =$E$161 -> Staffel 4 | G185: € | J185: =IF(J$2 <= $F$155, $F179 * (1 + $G179) ^ J$3, I179) -> 0.0004 | K185: =IF(K$2 <= $F$155, $F179 * (1 + $G179) ^ K$3, J185) -> 0.0004 | L185: 0.0004 | M185: 0.0004 | N185: 0.0004 | O185: 0.0004 | P185: 0.0004 | Q185: 0.0004 | R185: 0.0004 | S185: 0.0004 | T185: 0.0004 | U185: 0.0004 | V185: 0.0004 | W185: 0.0004 | X185: 0.0004 | Y185: 0.0004 | Z185: 0.0004 | AA185: 0.0004 | AB185: 0.0004 | AC185: 0.0004 | AD185: 0.0004 | AE185: 0.0004 | AF185: 0.0004 | AG185: 0.0004 | AH185: 0.0004 | AI185: 0.0004 | AJ185: 0.0004 | AK185: 0.0004 | AL185: 0.0004 | AM185: 0.0004 | AN185: 0.0004 | AO185: 0.0004 | AP185: 0.0004 | AQ185: 0.0004 | AR185: 0.0004
E187: =E123 -> Totaalverbruik per jaar | G187: =G123 -> kWh | J187: =J123 -> 0 | K187: 0 | L187: 0 | M187: 0 | N187: 0 | O187: 0 | P187: 0 | Q187: 0 | R187: 0 | S187: 0 | T187: 0 | U187: 0 | V187: 0 | W187: 0 | X187: 0 | Y187: 0 | Z187: 0 | AA187: 0 | AB187: 0 | AC187: 0 | AD187: 0 | AE187: 0 | AF187: 0 | AG187: 0 | AH187: 0 | AI187: 0 | AJ187: 0 | AK187: 0 | AL187: 0 | AM187: 0 | AN187: 0 | AO187: 0 | AP187: 0 | AQ187: 0 | AR187: 0
E188: Staffels (oud)
E189: =$E$158 -> Staffel 1 | F189: =$F$158 -> 0 | G189: =$G$158 -> 10000 | J189: =IF(AND(J$187 <= $G158, J$187 > $G157), J$187 - SUM(J$188:J188), IF($G158 <= J$187, $G158 - SUM(J$188:J188), 0)) -> 0 | K189: =IF(AND(K$187 <= $G158, K$187 > $G157), K$187 - SUM(K$188:K188), IF($G158 <= K$187, $G158 - SUM(K$188:K188), 0)) -> 0 | L189: =IF(AND(L$187 <= $G158, L$187 > $G157), L$187 - SUM(L$188:L188), IF($G158 <= L$187, $G158 - SUM(L$188:L188), 0)) -> 0 | M189: =IF(AND(M$187 <= $G158, M$187 > $G157), M$187 - SUM(M$188:M188), IF($G158 <= M$187, $G158 - SUM(M$188:M188), 0)) -> 0 | N189: =IF(AND(N$187 <= $G158, N$187 > $G157), N$187 - SUM(N$188:N188), IF($G158 <= N$187, $G158 - SUM(N$188:N188), 0)) -> 0 | O189: =IF(AND(O$187 <= $G158, O$187 > $G157), O$187 - SUM(O$188:O188), IF($G158 <= O$187, $G158 - SUM(O$188:O188), 0)) -> 0 | P189: =IF(AND(P$187 <= $G158, P$187 > $G157), P$187 - SUM(P$188:P188), IF($G158 <= P$187, $G158 - SUM(P$188:P188), 0)) -> 0 | Q189: =IF(AND(Q$187 <= $G158, Q$187 > $G157), Q$187 - SUM(Q$188:Q188), IF($G158 <= Q$187, $G158 - SUM(Q$188:Q188), 0)) -> 0 | R189: =IF(AND(R$187 <= $G158, R$187 > $G157), R$187 - SUM(R$188:R188), IF($G158 <= R$187, $G158 - SUM(R$188:R188), 0)) -> 0 | S189: =IF(AND(S$187 <= $G158, S$187 > $G157), S$187 - SUM(S$188:S188), IF($G158 <= S$187, $G158 - SUM(S$188:S188), 0)) -> 0 | T189: =IF(AND(T$187 <= $G158, T$187 > $G157), T$187 - SUM(T$188:T188), IF($G158 <= T$187, $G158 - SUM(T$188:T188), 0)) -> 0 | U189: =IF(AND(U$187 <= $G158, U$187 > $G157), U$187 - SUM(U$188:U188), IF($G158 <= U$187, $G158 - SUM(U$188:U188), 0)) -> 0 | V189: =IF(AND(V$187 <= $G158, V$187 > $G157), V$187 - SUM(V$188:V188), IF($G158 <= V$187, $G158 - SUM(V$188:V188), 0)) -> 0 | W189: =IF(AND(W$187 <= $G158, W$187 > $G157), W$187 - SUM(W$188:W188), IF($G158 <= W$187, $G158 - SUM(W$188:W188), 0)) -> 0 | X189: =IF(AND(X$187 <= $G158, X$187 > $G157), X$187 - SUM(X$188:X188), IF($G158 <= X$187, $G158 - SUM(X$188:X188), 0)) -> 0 | Y189: =IF(AND(Y$187 <= $G158, Y$187 > $G157), Y$187 - SUM(Y$188:Y188), IF($G158 <= Y$187, $G158 - SUM(Y$188:Y188), 0)) -> 0 | Z189: =IF(AND(Z$187 <= $G158, Z$187 > $G157), Z$187 - SUM(Z$188:Z188), IF($G158 <= Z$187, $G158 - SUM(Z$188:Z188), 0)) -> 0 | AA189: =IF(AND(AA$187 <= $G158, AA$187 > $G157), AA$187 - SUM(AA$188:AA188), IF($G158 <= AA$187, $G158 - SUM(AA$188:AA188), 0)) -> 0 | AB189: =IF(AND(AB$187 <= $G158, AB$187 > $G157), AB$187 - SUM(AB$188:AB188), IF($G158 <= AB$187, $G158 - SUM(AB$188:AB188), 0)) -> 0 | AC189: =IF(AND(AC$187 <= $G158, AC$187 > $G157), AC$187 - SUM(AC$188:AC188), IF($G158 <= AC$187, $G158 - SUM(AC$188:AC188), 0)) -> 0 | AD189: =IF(AND(AD$187 <= $G158, AD$187 > $G157), AD$187 - SUM(AD$188:AD188), IF($G158 <= AD$187, $G158 - SUM(AD$188:AD188), 0)) -> 0 | AE189: =IF(AND(AE$187 <= $G158, AE$187 > $G157), AE$187 - SUM(AE$188:AE188), IF($G158 <= AE$187, $G158 - SUM(AE$188:AE188), 0)) -> 0 | AF189: =IF(AND(AF$187 <= $G158, AF$187 > $G157), AF$187 - SUM(AF$188:AF188), IF($G158 <= AF$187, $G158 - SUM(AF$188:AF188), 0)) -> 0 | AG189: =IF(AND(AG$187 <= $G158, AG$187 > $G157), AG$187 - SUM(AG$188:AG188), IF($G158 <= AG$187, $G158 - SUM(AG$188:AG188), 0)) -> 0 | AH189: =IF(AND(AH$187 <= $G158, AH$187 > $G157), AH$187 - SUM(AH$188:AH188), IF($G158 <= AH$187, $G158 - SUM(AH$188:AH188), 0)) -> 0 | AI189: =IF(AND(AI$187 <= $G158, AI$187 > $G157), AI$187 - SUM(AI$188:AI188), IF($G158 <= AI$187, $G158 - SUM(AI$188:AI188), 0)) -> 0 | AJ189: =IF(AND(AJ$187 <= $G158, AJ$187 > $G157), AJ$187 - SUM(AJ$188:AJ188), IF($G158 <= AJ$187, $G158 - SUM(AJ$188:AJ188), 0)) -> 0 | AK189: =IF(AND(AK$187 <= $G158, AK$187 > $G157), AK$187 - SUM(AK$188:AK188), IF($G158 <= AK$187, $G158 - SUM(AK$188:AK188), 0)) -> 0 | AL189: =IF(AND(AL$187 <= $G158, AL$187 > $G157), AL$187 - SUM(AL$188:AL188), IF($G158 <= AL$187, $G158 - SUM(AL$188:AL188), 0)) -> 0 | AM189: =IF(AND(AM$187 <= $G158, AM$187 > $G157), AM$187 - SUM(AM$188:AM188), IF($G158 <= AM$187, $G158 - SUM(AM$188:AM188), 0)) -> 0 | AN189: =IF(AND(AN$187 <= $G158, AN$187 > $G157), AN$187 - SUM(AN$188:AN188), IF($G158 <= AN$187, $G158 - SUM(AN$188:AN188), 0)) -> 0 | AO189: =IF(AND(AO$187 <= $G158, AO$187 > $G157), AO$187 - SUM(AO$188:AO188), IF($G158 <= AO$187, $G158 - SUM(AO$188:AO188), 0)) -> 0 | AP189: =IF(AND(AP$187 <= $G158, AP$187 > $G157), AP$187 - SUM(AP$188:AP188), IF($G158 <= AP$187, $G158 - SUM(AP$188:AP188), 0)) -> 0 | AQ189: =IF(AND(AQ$187 <= $G158, AQ$187 > $G157), AQ$187 - SUM(AQ$188:AQ188), IF($G158 <= AQ$187, $G158 - SUM(AQ$188:AQ188), 0)) -> 0 | AR189: =IF(AND(AR$187 <= $G158, AR$187 > $G157), AR$187 - SUM(AR$188:AR188), IF($G158 <= AR$187, $G158 - SUM(AR$188:AR188), 0)) -> 0
E190: =$E$159 -> Staffel 2 | F190: =$F$159 -> 10001 | G190: =$G$159 -> 50000 | J190: =IF(AND(J$187 <= $G159, J$187 > $G158), J$187 - SUM(J$188:J189), IF($G159 <= J$187, $G159 - SUM(J$188:J189), 0)) -> 0 | K190: =IF(AND(K$187 <= $G159, K$187 > $G158), K$187 - SUM(K$188:K189), IF($G159 <= K$187, $G159 - SUM(K$188:K189), 0)) -> 0 | L190: =IF(AND(L$187 <= $G159, L$187 > $G158), L$187 - SUM(L$188:L189), IF($G159 <= L$187, $G159 - SUM(L$188:L189), 0)) -> 0 | M190: =IF(AND(M$187 <= $G159, M$187 > $G158), M$187 - SUM(M$188:M189), IF($G159 <= M$187, $G159 - SUM(M$188:M189), 0)) -> 0 | N190: =IF(AND(N$187 <= $G159, N$187 > $G158), N$187 - SUM(N$188:N189), IF($G159 <= N$187, $G159 - SUM(N$188:N189), 0)) -> 0 | O190: =IF(AND(O$187 <= $G159, O$187 > $G158), O$187 - SUM(O$188:O189), IF($G159 <= O$187, $G159 - SUM(O$188:O189), 0)) -> 0 | P190: =IF(AND(P$187 <= $G159, P$187 > $G158), P$187 - SUM(P$188:P189), IF($G159 <= P$187, $G159 - SUM(P$188:P189), 0)) -> 0 | Q190: =IF(AND(Q$187 <= $G159, Q$187 > $G158), Q$187 - SUM(Q$188:Q189), IF($G159 <= Q$187, $G159 - SUM(Q$188:Q189), 0)) -> 0 | R190: =IF(AND(R$187 <= $G159, R$187 > $G158), R$187 - SUM(R$188:R189), IF($G159 <= R$187, $G159 - SUM(R$188:R189), 0)) -> 0 | S190: =IF(AND(S$187 <= $G159, S$187 > $G158), S$187 - SUM(S$188:S189), IF($G159 <= S$187, $G159 - SUM(S$188:S189), 0)) -> 0 | T190: =IF(AND(T$187 <= $G159, T$187 > $G158), T$187 - SUM(T$188:T189), IF($G159 <= T$187, $G159 - SUM(T$188:T189), 0)) -> 0 | U190: =IF(AND(U$187 <= $G159, U$187 > $G158), U$187 - SUM(U$188:U189), IF($G159 <= U$187, $G159 - SUM(U$188:U189), 0)) -> 0 | V190: =IF(AND(V$187 <= $G159, V$187 > $G158), V$187 - SUM(V$188:V189), IF($G159 <= V$187, $G159 - SUM(V$188:V189), 0)) -> 0 | W190: =IF(AND(W$187 <= $G159, W$187 > $G158), W$187 - SUM(W$188:W189), IF($G159 <= W$187, $G159 - SUM(W$188:W189), 0)) -> 0 | X190: =IF(AND(X$187 <= $G159, X$187 > $G158), X$187 - SUM(X$188:X189), IF($G159 <= X$187, $G159 - SUM(X$188:X189), 0)) -> 0 | Y190: =IF(AND(Y$187 <= $G159, Y$187 > $G158), Y$187 - SUM(Y$188:Y189), IF($G159 <= Y$187, $G159 - SUM(Y$188:Y189), 0)) -> 0 | Z190: =IF(AND(Z$187 <= $G159, Z$187 > $G158), Z$187 - SUM(Z$188:Z189), IF($G159 <= Z$187, $G159 - SUM(Z$188:Z189), 0)) -> 0 | AA190: =IF(AND(AA$187 <= $G159, AA$187 > $G158), AA$187 - SUM(AA$188:AA189), IF($G159 <= AA$187, $G159 - SUM(AA$188:AA189), 0)) -> 0 | AB190: =IF(AND(AB$187 <= $G159, AB$187 > $G158), AB$187 - SUM(AB$188:AB189), IF($G159 <= AB$187, $G159 - SUM(AB$188:AB189), 0)) -> 0 | AC190: =IF(AND(AC$187 <= $G159, AC$187 > $G158), AC$187 - SUM(AC$188:AC189), IF($G159 <= AC$187, $G159 - SUM(AC$188:AC189), 0)) -> 0 | AD190: =IF(AND(AD$187 <= $G159, AD$187 > $G158), AD$187 - SUM(AD$188:AD189), IF($G159 <= AD$187, $G159 - SUM(AD$188:AD189), 0)) -> 0 | AE190: =IF(AND(AE$187 <= $G159, AE$187 > $G158), AE$187 - SUM(AE$188:AE189), IF($G159 <= AE$187, $G159 - SUM(AE$188:AE189), 0)) -> 0 | AF190: =IF(AND(AF$187 <= $G159, AF$187 > $G158), AF$187 - SUM(AF$188:AF189), IF($G159 <= AF$187, $G159 - SUM(AF$188:AF189), 0)) -> 0 | AG190: =IF(AND(AG$187 <= $G159, AG$187 > $G158), AG$187 - SUM(AG$188:AG189), IF($G159 <= AG$187, $G159 - SUM(AG$188:AG189), 0)) -> 0 | AH190: =IF(AND(AH$187 <= $G159, AH$187 > $G158), AH$187 - SUM(AH$188:AH189), IF($G159 <= AH$187, $G159 - SUM(AH$188:AH189), 0)) -> 0 | AI190: =IF(AND(AI$187 <= $G159, AI$187 > $G158), AI$187 - SUM(AI$188:AI189), IF($G159 <= AI$187, $G159 - SUM(AI$188:AI189), 0)) -> 0 | AJ190: =IF(AND(AJ$187 <= $G159, AJ$187 > $G158), AJ$187 - SUM(AJ$188:AJ189), IF($G159 <= AJ$187, $G159 - SUM(AJ$188:AJ189), 0)) -> 0 | AK190: =IF(AND(AK$187 <= $G159, AK$187 > $G158), AK$187 - SUM(AK$188:AK189), IF($G159 <= AK$187, $G159 - SUM(AK$188:AK189), 0)) -> 0 | AL190: =IF(AND(AL$187 <= $G159, AL$187 > $G158), AL$187 - SUM(AL$188:AL189), IF($G159 <= AL$187, $G159 - SUM(AL$188:AL189), 0)) -> 0 | AM190: =IF(AND(AM$187 <= $G159, AM$187 > $G158), AM$187 - SUM(AM$188:AM189), IF($G159 <= AM$187, $G159 - SUM(AM$188:AM189), 0)) -> 0 | AN190: =IF(AND(AN$187 <= $G159, AN$187 > $G158), AN$187 - SUM(AN$188:AN189), IF($G159 <= AN$187, $G159 - SUM(AN$188:AN189), 0)) -> 0 | AO190: =IF(AND(AO$187 <= $G159, AO$187 > $G158), AO$187 - SUM(AO$188:AO189), IF($G159 <= AO$187, $G159 - SUM(AO$188:AO189), 0)) -> 0 | AP190: =IF(AND(AP$187 <= $G159, AP$187 > $G158), AP$187 - SUM(AP$188:AP189), IF($G159 <= AP$187, $G159 - SUM(AP$188:AP189), 0)) -> 0 | AQ190: =IF(AND(AQ$187 <= $G159, AQ$187 > $G158), AQ$187 - SUM(AQ$188:AQ189), IF($G159 <= AQ$187, $G159 - SUM(AQ$188:AQ189), 0)) -> 0 | AR190: =IF(AND(AR$187 <= $G159, AR$187 > $G158), AR$187 - SUM(AR$188:AR189), IF($G159 <= AR$187, $G159 - SUM(AR$188:AR189), 0)) -> 0
E191: =$E$160 -> Staffel 3 | F191: =$F$160 -> 50001 | G191: =$G$160 -> 10000000 | J191: =IF(AND(J$187 <= $G160, J$187 > $G159), J$187 - SUM(J$188:J190), IF($G160 <= J$187, $G160 - SUM(J$188:J190), 0)) -> 0 | K191: =IF(AND(K$187 <= $G160, K$187 > $G159), K$187 - SUM(K$188:K190), IF($G160 <= K$187, $G160 - SUM(K$188:K190), 0)) -> 0 | L191: =IF(AND(L$187 <= $G160, L$187 > $G159), L$187 - SUM(L$188:L190), IF($G160 <= L$187, $G160 - SUM(L$188:L190), 0)) -> 0 | M191: =IF(AND(M$187 <= $G160, M$187 > $G159), M$187 - SUM(M$188:M190), IF($G160 <= M$187, $G160 - SUM(M$188:M190), 0)) -> 0 | N191: =IF(AND(N$187 <= $G160, N$187 > $G159), N$187 - SUM(N$188:N190), IF($G160 <= N$187, $G160 - SUM(N$188:N190), 0)) -> 0 | O191: =IF(AND(O$187 <= $G160, O$187 > $G159), O$187 - SUM(O$188:O190), IF($G160 <= O$187, $G160 - SUM(O$188:O190), 0)) -> 0 | P191: =IF(AND(P$187 <= $G160, P$187 > $G159), P$187 - SUM(P$188:P190), IF($G160 <= P$187, $G160 - SUM(P$188:P190), 0)) -> 0 | Q191: =IF(AND(Q$187 <= $G160, Q$187 > $G159), Q$187 - SUM(Q$188:Q190), IF($G160 <= Q$187, $G160 - SUM(Q$188:Q190), 0)) -> 0 | R191: =IF(AND(R$187 <= $G160, R$187 > $G159), R$187 - SUM(R$188:R190), IF($G160 <= R$187, $G160 - SUM(R$188:R190), 0)) -> 0 | S191: =IF(AND(S$187 <= $G160, S$187 > $G159), S$187 - SUM(S$188:S190), IF($G160 <= S$187, $G160 - SUM(S$188:S190), 0)) -> 0 | T191: =IF(AND(T$187 <= $G160, T$187 > $G159), T$187 - SUM(T$188:T190), IF($G160 <= T$187, $G160 - SUM(T$188:T190), 0)) -> 0 | U191: =IF(AND(U$187 <= $G160, U$187 > $G159), U$187 - SUM(U$188:U190), IF($G160 <= U$187, $G160 - SUM(U$188:U190), 0)) -> 0 | V191: =IF(AND(V$187 <= $G160, V$187 > $G159), V$187 - SUM(V$188:V190), IF($G160 <= V$187, $G160 - SUM(V$188:V190), 0)) -> 0 | W191: =IF(AND(W$187 <= $G160, W$187 > $G159), W$187 - SUM(W$188:W190), IF($G160 <= W$187, $G160 - SUM(W$188:W190), 0)) -> 0 | X191: =IF(AND(X$187 <= $G160, X$187 > $G159), X$187 - SUM(X$188:X190), IF($G160 <= X$187, $G160 - SUM(X$188:X190), 0)) -> 0 | Y191: =IF(AND(Y$187 <= $G160, Y$187 > $G159), Y$187 - SUM(Y$188:Y190), IF($G160 <= Y$187, $G160 - SUM(Y$188:Y190), 0)) -> 0 | Z191: =IF(AND(Z$187 <= $G160, Z$187 > $G159), Z$187 - SUM(Z$188:Z190), IF($G160 <= Z$187, $G160 - SUM(Z$188:Z190), 0)) -> 0 | AA191: =IF(AND(AA$187 <= $G160, AA$187 > $G159), AA$187 - SUM(AA$188:AA190), IF($G160 <= AA$187, $G160 - SUM(AA$188:AA190), 0)) -> 0 | AB191: =IF(AND(AB$187 <= $G160, AB$187 > $G159), AB$187 - SUM(AB$188:AB190), IF($G160 <= AB$187, $G160 - SUM(AB$188:AB190), 0)) -> 0 | AC191: =IF(AND(AC$187 <= $G160, AC$187 > $G159), AC$187 - SUM(AC$188:AC190), IF($G160 <= AC$187, $G160 - SUM(AC$188:AC190), 0)) -> 0 | AD191: =IF(AND(AD$187 <= $G160, AD$187 > $G159), AD$187 - SUM(AD$188:AD190), IF($G160 <= AD$187, $G160 - SUM(AD$188:AD190), 0)) -> 0 | AE191: =IF(AND(AE$187 <= $G160, AE$187 > $G159), AE$187 - SUM(AE$188:AE190), IF($G160 <= AE$187, $G160 - SUM(AE$188:AE190), 0)) -> 0 | AF191: =IF(AND(AF$187 <= $G160, AF$187 > $G159), AF$187 - SUM(AF$188:AF190), IF($G160 <= AF$187, $G160 - SUM(AF$188:AF190), 0)) -> 0 | AG191: =IF(AND(AG$187 <= $G160, AG$187 > $G159), AG$187 - SUM(AG$188:AG190), IF($G160 <= AG$187, $G160 - SUM(AG$188:AG190), 0)) -> 0 | AH191: =IF(AND(AH$187 <= $G160, AH$187 > $G159), AH$187 - SUM(AH$188:AH190), IF($G160 <= AH$187, $G160 - SUM(AH$188:AH190), 0)) -> 0 | AI191: =IF(AND(AI$187 <= $G160, AI$187 > $G159), AI$187 - SUM(AI$188:AI190), IF($G160 <= AI$187, $G160 - SUM(AI$188:AI190), 0)) -> 0 | AJ191: =IF(AND(AJ$187 <= $G160, AJ$187 > $G159), AJ$187 - SUM(AJ$188:AJ190), IF($G160 <= AJ$187, $G160 - SUM(AJ$188:AJ190), 0)) -> 0 | AK191: =IF(AND(AK$187 <= $G160, AK$187 > $G159), AK$187 - SUM(AK$188:AK190), IF($G160 <= AK$187, $G160 - SUM(AK$188:AK190), 0)) -> 0 | AL191: =IF(AND(AL$187 <= $G160, AL$187 > $G159), AL$187 - SUM(AL$188:AL190), IF($G160 <= AL$187, $G160 - SUM(AL$188:AL190), 0)) -> 0 | AM191: =IF(AND(AM$187 <= $G160, AM$187 > $G159), AM$187 - SUM(AM$188:AM190), IF($G160 <= AM$187, $G160 - SUM(AM$188:AM190), 0)) -> 0 | AN191: =IF(AND(AN$187 <= $G160, AN$187 > $G159), AN$187 - SUM(AN$188:AN190), IF($G160 <= AN$187, $G160 - SUM(AN$188:AN190), 0)) -> 0 | AO191: =IF(AND(AO$187 <= $G160, AO$187 > $G159), AO$187 - SUM(AO$188:AO190), IF($G160 <= AO$187, $G160 - SUM(AO$188:AO190), 0)) -> 0 | AP191: =IF(AND(AP$187 <= $G160, AP$187 > $G159), AP$187 - SUM(AP$188:AP190), IF($G160 <= AP$187, $G160 - SUM(AP$188:AP190), 0)) -> 0 | AQ191: =IF(AND(AQ$187 <= $G160, AQ$187 > $G159), AQ$187 - SUM(AQ$188:AQ190), IF($G160 <= AQ$187, $G160 - SUM(AQ$188:AQ190), 0)) -> 0 | AR191: =IF(AND(AR$187 <= $G160, AR$187 > $G159), AR$187 - SUM(AR$188:AR190), IF($G160 <= AR$187, $G160 - SUM(AR$188:AR190), 0)) -> 0
E192: =$E$161 -> Staffel 4 | F192: =$F$161 -> 10000001 | G192: =$G$161 -> 99999999 | J192: =IF(AND(J$187 <= $G161, J$187 > $G160), J$187 - SUM(J$188:J191), IF($G161 <= J$187, $G161 - SUM(J$188:J191), 0)) -> 0 | K192: =IF(AND(K$187 <= $G161, K$187 > $G160), K$187 - SUM(K$188:K191), IF($G161 <= K$187, $G161 - SUM(K$188:K191), 0)) -> 0 | L192: =IF(AND(L$187 <= $G161, L$187 > $G160), L$187 - SUM(L$188:L191), IF($G161 <= L$187, $G161 - SUM(L$188:L191), 0)) -> 0 | M192: =IF(AND(M$187 <= $G161, M$187 > $G160), M$187 - SUM(M$188:M191), IF($G161 <= M$187, $G161 - SUM(M$188:M191), 0)) -> 0 | N192: =IF(AND(N$187 <= $G161, N$187 > $G160), N$187 - SUM(N$188:N191), IF($G161 <= N$187, $G161 - SUM(N$188:N191), 0)) -> 0 | O192: =IF(AND(O$187 <= $G161, O$187 > $G160), O$187 - SUM(O$188:O191), IF($G161 <= O$187, $G161 - SUM(O$188:O191), 0)) -> 0 | P192: =IF(AND(P$187 <= $G161, P$187 > $G160), P$187 - SUM(P$188:P191), IF($G161 <= P$187, $G161 - SUM(P$188:P191), 0)) -> 0 | Q192: =IF(AND(Q$187 <= $G161, Q$187 > $G160), Q$187 - SUM(Q$188:Q191), IF($G161 <= Q$187, $G161 - SUM(Q$188:Q191), 0)) -> 0 | R192: =IF(AND(R$187 <= $G161, R$187 > $G160), R$187 - SUM(R$188:R191), IF($G161 <= R$187, $G161 - SUM(R$188:R191), 0)) -> 0 | S192: =IF(AND(S$187 <= $G161, S$187 > $G160), S$187 - SUM(S$188:S191), IF($G161 <= S$187, $G161 - SUM(S$188:S191), 0)) -> 0 | T192: =IF(AND(T$187 <= $G161, T$187 > $G160), T$187 - SUM(T$188:T191), IF($G161 <= T$187, $G161 - SUM(T$188:T191), 0)) -> 0 | U192: =IF(AND(U$187 <= $G161, U$187 > $G160), U$187 - SUM(U$188:U191), IF($G161 <= U$187, $G161 - SUM(U$188:U191), 0)) -> 0 | V192: =IF(AND(V$187 <= $G161, V$187 > $G160), V$187 - SUM(V$188:V191), IF($G161 <= V$187, $G161 - SUM(V$188:V191), 0)) -> 0 | W192: =IF(AND(W$187 <= $G161, W$187 > $G160), W$187 - SUM(W$188:W191), IF($G161 <= W$187, $G161 - SUM(W$188:W191), 0)) -> 0 | X192: =IF(AND(X$187 <= $G161, X$187 > $G160), X$187 - SUM(X$188:X191), IF($G161 <= X$187, $G161 - SUM(X$188:X191), 0)) -> 0 | Y192: =IF(AND(Y$187 <= $G161, Y$187 > $G160), Y$187 - SUM(Y$188:Y191), IF($G161 <= Y$187, $G161 - SUM(Y$188:Y191), 0)) -> 0 | Z192: =IF(AND(Z$187 <= $G161, Z$187 > $G160), Z$187 - SUM(Z$188:Z191), IF($G161 <= Z$187, $G161 - SUM(Z$188:Z191), 0)) -> 0 | AA192: =IF(AND(AA$187 <= $G161, AA$187 > $G160), AA$187 - SUM(AA$188:AA191), IF($G161 <= AA$187, $G161 - SUM(AA$188:AA191), 0)) -> 0 | AB192: =IF(AND(AB$187 <= $G161, AB$187 > $G160), AB$187 - SUM(AB$188:AB191), IF($G161 <= AB$187, $G161 - SUM(AB$188:AB191), 0)) -> 0 | AC192: =IF(AND(AC$187 <= $G161, AC$187 > $G160), AC$187 - SUM(AC$188:AC191), IF($G161 <= AC$187, $G161 - SUM(AC$188:AC191), 0)) -> 0 | AD192: =IF(AND(AD$187 <= $G161, AD$187 > $G160), AD$187 - SUM(AD$188:AD191), IF($G161 <= AD$187, $G161 - SUM(AD$188:AD191), 0)) -> 0 | AE192: =IF(AND(AE$187 <= $G161, AE$187 > $G160), AE$187 - SUM(AE$188:AE191), IF($G161 <= AE$187, $G161 - SUM(AE$188:AE191), 0)) -> 0 | AF192: =IF(AND(AF$187 <= $G161, AF$187 > $G160), AF$187 - SUM(AF$188:AF191), IF($G161 <= AF$187, $G161 - SUM(AF$188:AF191), 0)) -> 0 | AG192: =IF(AND(AG$187 <= $G161, AG$187 > $G160), AG$187 - SUM(AG$188:AG191), IF($G161 <= AG$187, $G161 - SUM(AG$188:AG191), 0)) -> 0 | AH192: =IF(AND(AH$187 <= $G161, AH$187 > $G160), AH$187 - SUM(AH$188:AH191), IF($G161 <= AH$187, $G161 - SUM(AH$188:AH191), 0)) -> 0 | AI192: =IF(AND(AI$187 <= $G161, AI$187 > $G160), AI$187 - SUM(AI$188:AI191), IF($G161 <= AI$187, $G161 - SUM(AI$188:AI191), 0)) -> 0 | AJ192: =IF(AND(AJ$187 <= $G161, AJ$187 > $G160), AJ$187 - SUM(AJ$188:AJ191), IF($G161 <= AJ$187, $G161 - SUM(AJ$188:AJ191), 0)) -> 0 | AK192: =IF(AND(AK$187 <= $G161, AK$187 > $G160), AK$187 - SUM(AK$188:AK191), IF($G161 <= AK$187, $G161 - SUM(AK$188:AK191), 0)) -> 0 | AL192: =IF(AND(AL$187 <= $G161, AL$187 > $G160), AL$187 - SUM(AL$188:AL191), IF($G161 <= AL$187, $G161 - SUM(AL$188:AL191), 0)) -> 0 | AM192: =IF(AND(AM$187 <= $G161, AM$187 > $G160), AM$187 - SUM(AM$188:AM191), IF($G161 <= AM$187, $G161 - SUM(AM$188:AM191), 0)) -> 0 | AN192: =IF(AND(AN$187 <= $G161, AN$187 > $G160), AN$187 - SUM(AN$188:AN191), IF($G161 <= AN$187, $G161 - SUM(AN$188:AN191), 0)) -> 0 | AO192: =IF(AND(AO$187 <= $G161, AO$187 > $G160), AO$187 - SUM(AO$188:AO191), IF($G161 <= AO$187, $G161 - SUM(AO$188:AO191), 0)) -> 0 | AP192: =IF(AND(AP$187 <= $G161, AP$187 > $G160), AP$187 - SUM(AP$188:AP191), IF($G161 <= AP$187, $G161 - SUM(AP$188:AP191), 0)) -> 0 | AQ192: =IF(AND(AQ$187 <= $G161, AQ$187 > $G160), AQ$187 - SUM(AQ$188:AQ191), IF($G161 <= AQ$187, $G161 - SUM(AQ$188:AQ191), 0)) -> 0 | AR192: =IF(AND(AR$187 <= $G161, AR$187 > $G160), AR$187 - SUM(AR$188:AR191), IF($G161 <= AR$187, $G161 - SUM(AR$188:AR191), 0)) -> 0
E194: =E134 -> Aanvullend te leveren door derden | G194: =G134 -> kWh | J194: =J134 -> 0 | K194: =K134 -> 0 | L194: 0 | M194: 0 | N194: 0 | O194: 0 | P194: 0 | Q194: =Q134 -> 0 | R194: 0 | S194: 0 | T194: 0 | U194: 0 | V194: 0 | W194: 0 | X194: 0 | Y194: 0 | Z194: 0 | AA194: 0 | AB194: 0 | AC194: 0 | AD194: 0 | AE194: 0 | AF194: 0 | AG194: 0 | AH194: 0 | AI194: 0 | AJ194: 0 | AK194: 0 | AL194: 0 | AM194: 0 | AN194: 0 | AO194: 0 | AP194: 0 | AQ194: 0 | AR194: 0
E195: Staffels (nieuw)
E196: =$E$158 -> Staffel 1 | F196: =$F$158 -> 0 | G196: =$G$158 -> 10000 | J196: =IF(AND(J$134 <= $G158, J$134 > $G157), J$134 - SUM(J$195:J195), IF($G158 <= J$134, $G158 - SUM(J$195:J195), 0)) -> 0 | K196: =IF(AND(K$134 <= $G158, K$134 > $G157), K$134 - SUM(K$195:K195), IF($G158 <= K$134, $G158 - SUM(K$195:K195), 0)) -> 0 | L196: =IF(AND(L$134 <= $G158, L$134 > $G157), L$134 - SUM(L$195:L195), IF($G158 <= L$134, $G158 - SUM(L$195:L195), 0)) -> 0 | M196: =IF(AND(M$134 <= $G158, M$134 > $G157), M$134 - SUM(M$195:M195), IF($G158 <= M$134, $G158 - SUM(M$195:M195), 0)) -> 0 | N196: =IF(AND(N$134 <= $G158, N$134 > $G157), N$134 - SUM(N$195:N195), IF($G158 <= N$134, $G158 - SUM(N$195:N195), 0)) -> 0 | O196: =IF(AND(O$134 <= $G158, O$134 > $G157), O$134 - SUM(O$195:O195), IF($G158 <= O$134, $G158 - SUM(O$195:O195), 0)) -> 0 | P196: =IF(AND(P$134 <= $G158, P$134 > $G157), P$134 - SUM(P$195:P195), IF($G158 <= P$134, $G158 - SUM(P$195:P195), 0)) -> 0 | Q196: =IF(AND(Q$134 <= $G158, Q$134 > $G157), Q$134 - SUM(Q$195:Q195), IF($G158 <= Q$134, $G158 - SUM(Q$195:Q195), 0)) -> 0 | R196: =IF(AND(R$134 <= $G158, R$134 > $G157), R$134 - SUM(R$195:R195), IF($G158 <= R$134, $G158 - SUM(R$195:R195), 0)) -> 0 | S196: =IF(AND(S$134 <= $G158, S$134 > $G157), S$134 - SUM(S$195:S195), IF($G158 <= S$134, $G158 - SUM(S$195:S195), 0)) -> 0 | T196: =IF(AND(T$134 <= $G158, T$134 > $G157), T$134 - SUM(T$195:T195), IF($G158 <= T$134, $G158 - SUM(T$195:T195), 0)) -> 0 | U196: =IF(AND(U$134 <= $G158, U$134 > $G157), U$134 - SUM(U$195:U195), IF($G158 <= U$134, $G158 - SUM(U$195:U195), 0)) -> 0 | V196: =IF(AND(V$134 <= $G158, V$134 > $G157), V$134 - SUM(V$195:V195), IF($G158 <= V$134, $G158 - SUM(V$195:V195), 0)) -> 0 | W196: =IF(AND(W$134 <= $G158, W$134 > $G157), W$134 - SUM(W$195:W195), IF($G158 <= W$134, $G158 - SUM(W$195:W195), 0)) -> 0 | X196: =IF(AND(X$134 <= $G158, X$134 > $G157), X$134 - SUM(X$195:X195), IF($G158 <= X$134, $G158 - SUM(X$195:X195), 0)) -> 0 | Y196: =IF(AND(Y$134 <= $G158, Y$134 > $G157), Y$134 - SUM(Y$195:Y195), IF($G158 <= Y$134, $G158 - SUM(Y$195:Y195), 0)) -> 0 | Z196: =IF(AND(Z$134 <= $G158, Z$134 > $G157), Z$134 - SUM(Z$195:Z195), IF($G158 <= Z$134, $G158 - SUM(Z$195:Z195), 0)) -> 0 | AA196: =IF(AND(AA$134 <= $G158, AA$134 > $G157), AA$134 - SUM(AA$195:AA195), IF($G158 <= AA$134, $G158 - SUM(AA$195:AA195), 0)) -> 0 | AB196: =IF(AND(AB$134 <= $G158, AB$134 > $G157), AB$134 - SUM(AB$195:AB195), IF($G158 <= AB$134, $G158 - SUM(AB$195:AB195), 0)) -> 0 | AC196: =IF(AND(AC$134 <= $G158, AC$134 > $G157), AC$134 - SUM(AC$195:AC195), IF($G158 <= AC$134, $G158 - SUM(AC$195:AC195), 0)) -> 0 | AD196: =IF(AND(AD$134 <= $G158, AD$134 > $G157), AD$134 - SUM(AD$195:AD195), IF($G158 <= AD$134, $G158 - SUM(AD$195:AD195), 0)) -> 0 | AE196: =IF(AND(AE$134 <= $G158, AE$134 > $G157), AE$134 - SUM(AE$195:AE195), IF($G158 <= AE$134, $G158 - SUM(AE$195:AE195), 0)) -> 0 | AF196: =IF(AND(AF$134 <= $G158, AF$134 > $G157), AF$134 - SUM(AF$195:AF195), IF($G158 <= AF$134, $G158 - SUM(AF$195:AF195), 0)) -> 0 | AG196: =IF(AND(AG$134 <= $G158, AG$134 > $G157), AG$134 - SUM(AG$195:AG195), IF($G158 <= AG$134, $G158 - SUM(AG$195:AG195), 0)) -> 0 | AH196: =IF(AND(AH$134 <= $G158, AH$134 > $G157), AH$134 - SUM(AH$195:AH195), IF($G158 <= AH$134, $G158 - SUM(AH$195:AH195), 0)) -> 0 | AI196: =IF(AND(AI$134 <= $G158, AI$134 > $G157), AI$134 - SUM(AI$195:AI195), IF($G158 <= AI$134, $G158 - SUM(AI$195:AI195), 0)) -> 0 | AJ196: =IF(AND(AJ$134 <= $G158, AJ$134 > $G157), AJ$134 - SUM(AJ$195:AJ195), IF($G158 <= AJ$134, $G158 - SUM(AJ$195:AJ195), 0)) -> 0 | AK196: =IF(AND(AK$134 <= $G158, AK$134 > $G157), AK$134 - SUM(AK$195:AK195), IF($G158 <= AK$134, $G158 - SUM(AK$195:AK195), 0)) -> 0 | AL196: =IF(AND(AL$134 <= $G158, AL$134 > $G157), AL$134 - SUM(AL$195:AL195), IF($G158 <= AL$134, $G158 - SUM(AL$195:AL195), 0)) -> 0 | AM196: =IF(AND(AM$134 <= $G158, AM$134 > $G157), AM$134 - SUM(AM$195:AM195), IF($G158 <= AM$134, $G158 - SUM(AM$195:AM195), 0)) -> 0 | AN196: =IF(AND(AN$134 <= $G158, AN$134 > $G157), AN$134 - SUM(AN$195:AN195), IF($G158 <= AN$134, $G158 - SUM(AN$195:AN195), 0)) -> 0 | AO196: =IF(AND(AO$134 <= $G158, AO$134 > $G157), AO$134 - SUM(AO$195:AO195), IF($G158 <= AO$134, $G158 - SUM(AO$195:AO195), 0)) -> 0 | AP196: =IF(AND(AP$134 <= $G158, AP$134 > $G157), AP$134 - SUM(AP$195:AP195), IF($G158 <= AP$134, $G158 - SUM(AP$195:AP195), 0)) -> 0 | AQ196: =IF(AND(AQ$134 <= $G158, AQ$134 > $G157), AQ$134 - SUM(AQ$195:AQ195), IF($G158 <= AQ$134, $G158 - SUM(AQ$195:AQ195), 0)) -> 0 | AR196: =IF(AND(AR$134 <= $G158, AR$134 > $G157), AR$134 - SUM(AR$195:AR195), IF($G158 <= AR$134, $G158 - SUM(AR$195:AR195), 0)) -> 0
E197: =$E$159 -> Staffel 2 | F197: =$F$159 -> 10001 | G197: =$G$159 -> 50000 | J197: =IF(AND(J$134 <= $G159, J$134 > $G158), J$134 - SUM(J$195:J196), IF($G159 <= J$134, $G159 - SUM(J$195:J196), 0)) -> 0 | K197: =IF(AND(K$134 <= $G159, K$134 > $G158), K$134 - SUM(K$195:K196), IF($G159 <= K$134, $G159 - SUM(K$195:K196), 0)) -> 0 | L197: =IF(AND(L$134 <= $G159, L$134 > $G158), L$134 - SUM(L$195:L196), IF($G159 <= L$134, $G159 - SUM(L$195:L196), 0)) -> 0 | M197: =IF(AND(M$134 <= $G159, M$134 > $G158), M$134 - SUM(M$195:M196), IF($G159 <= M$134, $G159 - SUM(M$195:M196), 0)) -> 0 | N197: =IF(AND(N$134 <= $G159, N$134 > $G158), N$134 - SUM(N$195:N196), IF($G159 <= N$134, $G159 - SUM(N$195:N196), 0)) -> 0 | O197: =IF(AND(O$134 <= $G159, O$134 > $G158), O$134 - SUM(O$195:O196), IF($G159 <= O$134, $G159 - SUM(O$195:O196), 0)) -> 0 | P197: =IF(AND(P$134 <= $G159, P$134 > $G158), P$134 - SUM(P$195:P196), IF($G159 <= P$134, $G159 - SUM(P$195:P196), 0)) -> 0 | Q197: =IF(AND(Q$134 <= $G159, Q$134 > $G158), Q$134 - SUM(Q$195:Q196), IF($G159 <= Q$134, $G159 - SUM(Q$195:Q196), 0)) -> 0 | R197: =IF(AND(R$134 <= $G159, R$134 > $G158), R$134 - SUM(R$195:R196), IF($G159 <= R$134, $G159 - SUM(R$195:R196), 0)) -> 0 | S197: =IF(AND(S$134 <= $G159, S$134 > $G158), S$134 - SUM(S$195:S196), IF($G159 <= S$134, $G159 - SUM(S$195:S196), 0)) -> 0 | T197: =IF(AND(T$134 <= $G159, T$134 > $G158), T$134 - SUM(T$195:T196), IF($G159 <= T$134, $G159 - SUM(T$195:T196), 0)) -> 0 | U197: =IF(AND(U$134 <= $G159, U$134 > $G158), U$134 - SUM(U$195:U196), IF($G159 <= U$134, $G159 - SUM(U$195:U196), 0)) -> 0 | V197: =IF(AND(V$134 <= $G159, V$134 > $G158), V$134 - SUM(V$195:V196), IF($G159 <= V$134, $G159 - SUM(V$195:V196), 0)) -> 0 | W197: =IF(AND(W$134 <= $G159, W$134 > $G158), W$134 - SUM(W$195:W196), IF($G159 <= W$134, $G159 - SUM(W$195:W196), 0)) -> 0 | X197: =IF(AND(X$134 <= $G159, X$134 > $G158), X$134 - SUM(X$195:X196), IF($G159 <= X$134, $G159 - SUM(X$195:X196), 0)) -> 0 | Y197: =IF(AND(Y$134 <= $G159, Y$134 > $G158), Y$134 - SUM(Y$195:Y196), IF($G159 <= Y$134, $G159 - SUM(Y$195:Y196), 0)) -> 0 | Z197: =IF(AND(Z$134 <= $G159, Z$134 > $G158), Z$134 - SUM(Z$195:Z196), IF($G159 <= Z$134, $G159 - SUM(Z$195:Z196), 0)) -> 0 | AA197: =IF(AND(AA$134 <= $G159, AA$134 > $G158), AA$134 - SUM(AA$195:AA196), IF($G159 <= AA$134, $G159 - SUM(AA$195:AA196), 0)) -> 0 | AB197: =IF(AND(AB$134 <= $G159, AB$134 > $G158), AB$134 - SUM(AB$195:AB196), IF($G159 <= AB$134, $G159 - SUM(AB$195:AB196), 0)) -> 0 | AC197: =IF(AND(AC$134 <= $G159, AC$134 > $G158), AC$134 - SUM(AC$195:AC196), IF($G159 <= AC$134, $G159 - SUM(AC$195:AC196), 0)) -> 0 | AD197: =IF(AND(AD$134 <= $G159, AD$134 > $G158), AD$134 - SUM(AD$195:AD196), IF($G159 <= AD$134, $G159 - SUM(AD$195:AD196), 0)) -> 0 | AE197: =IF(AND(AE$134 <= $G159, AE$134 > $G158), AE$134 - SUM(AE$195:AE196), IF($G159 <= AE$134, $G159 - SUM(AE$195:AE196), 0)) -> 0 | AF197: =IF(AND(AF$134 <= $G159, AF$134 > $G158), AF$134 - SUM(AF$195:AF196), IF($G159 <= AF$134, $G159 - SUM(AF$195:AF196), 0)) -> 0 | AG197: =IF(AND(AG$134 <= $G159, AG$134 > $G158), AG$134 - SUM(AG$195:AG196), IF($G159 <= AG$134, $G159 - SUM(AG$195:AG196), 0)) -> 0 | AH197: =IF(AND(AH$134 <= $G159, AH$134 > $G158), AH$134 - SUM(AH$195:AH196), IF($G159 <= AH$134, $G159 - SUM(AH$195:AH196), 0)) -> 0 | AI197: =IF(AND(AI$134 <= $G159, AI$134 > $G158), AI$134 - SUM(AI$195:AI196), IF($G159 <= AI$134, $G159 - SUM(AI$195:AI196), 0)) -> 0 | AJ197: =IF(AND(AJ$134 <= $G159, AJ$134 > $G158), AJ$134 - SUM(AJ$195:AJ196), IF($G159 <= AJ$134, $G159 - SUM(AJ$195:AJ196), 0)) -> 0 | AK197: =IF(AND(AK$134 <= $G159, AK$134 > $G158), AK$134 - SUM(AK$195:AK196), IF($G159 <= AK$134, $G159 - SUM(AK$195:AK196), 0)) -> 0 | AL197: =IF(AND(AL$134 <= $G159, AL$134 > $G158), AL$134 - SUM(AL$195:AL196), IF($G159 <= AL$134, $G159 - SUM(AL$195:AL196), 0)) -> 0 | AM197: =IF(AND(AM$134 <= $G159, AM$134 > $G158), AM$134 - SUM(AM$195:AM196), IF($G159 <= AM$134, $G159 - SUM(AM$195:AM196), 0)) -> 0 | AN197: =IF(AND(AN$134 <= $G159, AN$134 > $G158), AN$134 - SUM(AN$195:AN196), IF($G159 <= AN$134, $G159 - SUM(AN$195:AN196), 0)) -> 0 | AO197: =IF(AND(AO$134 <= $G159, AO$134 > $G158), AO$134 - SUM(AO$195:AO196), IF($G159 <= AO$134, $G159 - SUM(AO$195:AO196), 0)) -> 0 | AP197: =IF(AND(AP$134 <= $G159, AP$134 > $G158), AP$134 - SUM(AP$195:AP196), IF($G159 <= AP$134, $G159 - SUM(AP$195:AP196), 0)) -> 0 | AQ197: =IF(AND(AQ$134 <= $G159, AQ$134 > $G158), AQ$134 - SUM(AQ$195:AQ196), IF($G159 <= AQ$134, $G159 - SUM(AQ$195:AQ196), 0)) -> 0 | AR197: =IF(AND(AR$134 <= $G159, AR$134 > $G158), AR$134 - SUM(AR$195:AR196), IF($G159 <= AR$134, $G159 - SUM(AR$195:AR196), 0)) -> 0
E198: =$E$160 -> Staffel 3 | F198: =$F$160 -> 50001 | G198: =$G$160 -> 10000000 | J198: =IF(AND(J$134 <= $G160, J$134 > $G159), J$134 - SUM(J$195:J197), IF($G160 <= J$134, $G160 - SUM(J$195:J197), 0)) -> 0 | K198: =IF(AND(K$134 <= $G160, K$134 > $G159), K$134 - SUM(K$195:K197), IF($G160 <= K$134, $G160 - SUM(K$195:K197), 0)) -> 0 | L198: =IF(AND(L$134 <= $G160, L$134 > $G159), L$134 - SUM(L$195:L197), IF($G160 <= L$134, $G160 - SUM(L$195:L197), 0)) -> 0 | M198: =IF(AND(M$134 <= $G160, M$134 > $G159), M$134 - SUM(M$195:M197), IF($G160 <= M$134, $G160 - SUM(M$195:M197), 0)) -> 0 | N198: =IF(AND(N$134 <= $G160, N$134 > $G159), N$134 - SUM(N$195:N197), IF($G160 <= N$134, $G160 - SUM(N$195:N197), 0)) -> 0 | O198: =IF(AND(O$134 <= $G160, O$134 > $G159), O$134 - SUM(O$195:O197), IF($G160 <= O$134, $G160 - SUM(O$195:O197), 0)) -> 0 | P198: =IF(AND(P$134 <= $G160, P$134 > $G159), P$134 - SUM(P$195:P197), IF($G160 <= P$134, $G160 - SUM(P$195:P197), 0)) -> 0 | Q198: =IF(AND(Q$134 <= $G160, Q$134 > $G159), Q$134 - SUM(Q$195:Q197), IF($G160 <= Q$134, $G160 - SUM(Q$195:Q197), 0)) -> 0 | R198: =IF(AND(R$134 <= $G160, R$134 > $G159), R$134 - SUM(R$195:R197), IF($G160 <= R$134, $G160 - SUM(R$195:R197), 0)) -> 0 | S198: =IF(AND(S$134 <= $G160, S$134 > $G159), S$134 - SUM(S$195:S197), IF($G160 <= S$134, $G160 - SUM(S$195:S197), 0)) -> 0 | T198: =IF(AND(T$134 <= $G160, T$134 > $G159), T$134 - SUM(T$195:T197), IF($G160 <= T$134, $G160 - SUM(T$195:T197), 0)) -> 0 | U198: =IF(AND(U$134 <= $G160, U$134 > $G159), U$134 - SUM(U$195:U197), IF($G160 <= U$134, $G160 - SUM(U$195:U197), 0)) -> 0 | V198: =IF(AND(V$134 <= $G160, V$134 > $G159), V$134 - SUM(V$195:V197), IF($G160 <= V$134, $G160 - SUM(V$195:V197), 0)) -> 0 | W198: =IF(AND(W$134 <= $G160, W$134 > $G159), W$134 - SUM(W$195:W197), IF($G160 <= W$134, $G160 - SUM(W$195:W197), 0)) -> 0 | X198: =IF(AND(X$134 <= $G160, X$134 > $G159), X$134 - SUM(X$195:X197), IF($G160 <= X$134, $G160 - SUM(X$195:X197), 0)) -> 0 | Y198: =IF(AND(Y$134 <= $G160, Y$134 > $G159), Y$134 - SUM(Y$195:Y197), IF($G160 <= Y$134, $G160 - SUM(Y$195:Y197), 0)) -> 0 | Z198: =IF(AND(Z$134 <= $G160, Z$134 > $G159), Z$134 - SUM(Z$195:Z197), IF($G160 <= Z$134, $G160 - SUM(Z$195:Z197), 0)) -> 0 | AA198: =IF(AND(AA$134 <= $G160, AA$134 > $G159), AA$134 - SUM(AA$195:AA197), IF($G160 <= AA$134, $G160 - SUM(AA$195:AA197), 0)) -> 0 | AB198: =IF(AND(AB$134 <= $G160, AB$134 > $G159), AB$134 - SUM(AB$195:AB197), IF($G160 <= AB$134, $G160 - SUM(AB$195:AB197), 0)) -> 0 | AC198: =IF(AND(AC$134 <= $G160, AC$134 > $G159), AC$134 - SUM(AC$195:AC197), IF($G160 <= AC$134, $G160 - SUM(AC$195:AC197), 0)) -> 0 | AD198: =IF(AND(AD$134 <= $G160, AD$134 > $G159), AD$134 - SUM(AD$195:AD197), IF($G160 <= AD$134, $G160 - SUM(AD$195:AD197), 0)) -> 0 | AE198: =IF(AND(AE$134 <= $G160, AE$134 > $G159), AE$134 - SUM(AE$195:AE197), IF($G160 <= AE$134, $G160 - SUM(AE$195:AE197), 0)) -> 0 | AF198: =IF(AND(AF$134 <= $G160, AF$134 > $G159), AF$134 - SUM(AF$195:AF197), IF($G160 <= AF$134, $G160 - SUM(AF$195:AF197), 0)) -> 0 | AG198: =IF(AND(AG$134 <= $G160, AG$134 > $G159), AG$134 - SUM(AG$195:AG197), IF($G160 <= AG$134, $G160 - SUM(AG$195:AG197), 0)) -> 0 | AH198: =IF(AND(AH$134 <= $G160, AH$134 > $G159), AH$134 - SUM(AH$195:AH197), IF($G160 <= AH$134, $G160 - SUM(AH$195:AH197), 0)) -> 0 | AI198: =IF(AND(AI$134 <= $G160, AI$134 > $G159), AI$134 - SUM(AI$195:AI197), IF($G160 <= AI$134, $G160 - SUM(AI$195:AI197), 0)) -> 0 | AJ198: =IF(AND(AJ$134 <= $G160, AJ$134 > $G159), AJ$134 - SUM(AJ$195:AJ197), IF($G160 <= AJ$134, $G160 - SUM(AJ$195:AJ197), 0)) -> 0 | AK198: =IF(AND(AK$134 <= $G160, AK$134 > $G159), AK$134 - SUM(AK$195:AK197), IF($G160 <= AK$134, $G160 - SUM(AK$195:AK197), 0)) -> 0 | AL198: =IF(AND(AL$134 <= $G160, AL$134 > $G159), AL$134 - SUM(AL$195:AL197), IF($G160 <= AL$134, $G160 - SUM(AL$195:AL197), 0)) -> 0 | AM198: =IF(AND(AM$134 <= $G160, AM$134 > $G159), AM$134 - SUM(AM$195:AM197), IF($G160 <= AM$134, $G160 - SUM(AM$195:AM197), 0)) -> 0 | AN198: =IF(AND(AN$134 <= $G160, AN$134 > $G159), AN$134 - SUM(AN$195:AN197), IF($G160 <= AN$134, $G160 - SUM(AN$195:AN197), 0)) -> 0 | AO198: =IF(AND(AO$134 <= $G160, AO$134 > $G159), AO$134 - SUM(AO$195:AO197), IF($G160 <= AO$134, $G160 - SUM(AO$195:AO197), 0)) -> 0 | AP198: =IF(AND(AP$134 <= $G160, AP$134 > $G159), AP$134 - SUM(AP$195:AP197), IF($G160 <= AP$134, $G160 - SUM(AP$195:AP197), 0)) -> 0 | AQ198: =IF(AND(AQ$134 <= $G160, AQ$134 > $G159), AQ$134 - SUM(AQ$195:AQ197), IF($G160 <= AQ$134, $G160 - SUM(AQ$195:AQ197), 0)) -> 0 | AR198: =IF(AND(AR$134 <= $G160, AR$134 > $G159), AR$134 - SUM(AR$195:AR197), IF($G160 <= AR$134, $G160 - SUM(AR$195:AR197), 0)) -> 0
E199: =$E$161 -> Staffel 4 | F199: =$F$161 -> 10000001 | G199: =$G$161 -> 99999999 | J199: =IF(AND(J$134 <= $G161, J$134 > $G160), J$134 - SUM(J$195:J198), IF($G161 <= J$134, $G161 - SUM(J$195:J198), 0)) -> 0 | K199: =IF(AND(K$134 <= $G161, K$134 > $G160), K$134 - SUM(K$195:K198), IF($G161 <= K$134, $G161 - SUM(K$195:K198), 0)) -> 0 | L199: =IF(AND(L$134 <= $G161, L$134 > $G160), L$134 - SUM(L$195:L198), IF($G161 <= L$134, $G161 - SUM(L$195:L198), 0)) -> 0 | M199: =IF(AND(M$134 <= $G161, M$134 > $G160), M$134 - SUM(M$195:M198), IF($G161 <= M$134, $G161 - SUM(M$195:M198), 0)) -> 0 | N199: =IF(AND(N$134 <= $G161, N$134 > $G160), N$134 - SUM(N$195:N198), IF($G161 <= N$134, $G161 - SUM(N$195:N198), 0)) -> 0 | O199: =IF(AND(O$134 <= $G161, O$134 > $G160), O$134 - SUM(O$195:O198), IF($G161 <= O$134, $G161 - SUM(O$195:O198), 0)) -> 0 | P199: =IF(AND(P$134 <= $G161, P$134 > $G160), P$134 - SUM(P$195:P198), IF($G161 <= P$134, $G161 - SUM(P$195:P198), 0)) -> 0 | Q199: =IF(AND(Q$134 <= $G161, Q$134 > $G160), Q$134 - SUM(Q$195:Q198), IF($G161 <= Q$134, $G161 - SUM(Q$195:Q198), 0)) -> 0 | R199: =IF(AND(R$134 <= $G161, R$134 > $G160), R$134 - SUM(R$195:R198), IF($G161 <= R$134, $G161 - SUM(R$195:R198), 0)) -> 0 | S199: =IF(AND(S$134 <= $G161, S$134 > $G160), S$134 - SUM(S$195:S198), IF($G161 <= S$134, $G161 - SUM(S$195:S198), 0)) -> 0 | T199: =IF(AND(T$134 <= $G161, T$134 > $G160), T$134 - SUM(T$195:T198), IF($G161 <= T$134, $G161 - SUM(T$195:T198), 0)) -> 0 | U199: =IF(AND(U$134 <= $G161, U$134 > $G160), U$134 - SUM(U$195:U198), IF($G161 <= U$134, $G161 - SUM(U$195:U198), 0)) -> 0 | V199: =IF(AND(V$134 <= $G161, V$134 > $G160), V$134 - SUM(V$195:V198), IF($G161 <= V$134, $G161 - SUM(V$195:V198), 0)) -> 0 | W199: =IF(AND(W$134 <= $G161, W$134 > $G160), W$134 - SUM(W$195:W198), IF($G161 <= W$134, $G161 - SUM(W$195:W198), 0)) -> 0 | X199: =IF(AND(X$134 <= $G161, X$134 > $G160), X$134 - SUM(X$195:X198), IF($G161 <= X$134, $G161 - SUM(X$195:X198), 0)) -> 0 | Y199: =IF(AND(Y$134 <= $G161, Y$134 > $G160), Y$134 - SUM(Y$195:Y198), IF($G161 <= Y$134, $G161 - SUM(Y$195:Y198), 0)) -> 0 | Z199: =IF(AND(Z$134 <= $G161, Z$134 > $G160), Z$134 - SUM(Z$195:Z198), IF($G161 <= Z$134, $G161 - SUM(Z$195:Z198), 0)) -> 0 | AA199: =IF(AND(AA$134 <= $G161, AA$134 > $G160), AA$134 - SUM(AA$195:AA198), IF($G161 <= AA$134, $G161 - SUM(AA$195:AA198), 0)) -> 0 | AB199: =IF(AND(AB$134 <= $G161, AB$134 > $G160), AB$134 - SUM(AB$195:AB198), IF($G161 <= AB$134, $G161 - SUM(AB$195:AB198), 0)) -> 0 | AC199: =IF(AND(AC$134 <= $G161, AC$134 > $G160), AC$134 - SUM(AC$195:AC198), IF($G161 <= AC$134, $G161 - SUM(AC$195:AC198), 0)) -> 0 | AD199: =IF(AND(AD$134 <= $G161, AD$134 > $G160), AD$134 - SUM(AD$195:AD198), IF($G161 <= AD$134, $G161 - SUM(AD$195:AD198), 0)) -> 0 | AE199: =IF(AND(AE$134 <= $G161, AE$134 > $G160), AE$134 - SUM(AE$195:AE198), IF($G161 <= AE$134, $G161 - SUM(AE$195:AE198), 0)) -> 0 | AF199: =IF(AND(AF$134 <= $G161, AF$134 > $G160), AF$134 - SUM(AF$195:AF198), IF($G161 <= AF$134, $G161 - SUM(AF$195:AF198), 0)) -> 0 | AG199: =IF(AND(AG$134 <= $G161, AG$134 > $G160), AG$134 - SUM(AG$195:AG198), IF($G161 <= AG$134, $G161 - SUM(AG$195:AG198), 0)) -> 0 | AH199: =IF(AND(AH$134 <= $G161, AH$134 > $G160), AH$134 - SUM(AH$195:AH198), IF($G161 <= AH$134, $G161 - SUM(AH$195:AH198), 0)) -> 0 | AI199: =IF(AND(AI$134 <= $G161, AI$134 > $G160), AI$134 - SUM(AI$195:AI198), IF($G161 <= AI$134, $G161 - SUM(AI$195:AI198), 0)) -> 0 | AJ199: =IF(AND(AJ$134 <= $G161, AJ$134 > $G160), AJ$134 - SUM(AJ$195:AJ198), IF($G161 <= AJ$134, $G161 - SUM(AJ$195:AJ198), 0)) -> 0 | AK199: =IF(AND(AK$134 <= $G161, AK$134 > $G160), AK$134 - SUM(AK$195:AK198), IF($G161 <= AK$134, $G161 - SUM(AK$195:AK198), 0)) -> 0 | AL199: =IF(AND(AL$134 <= $G161, AL$134 > $G160), AL$134 - SUM(AL$195:AL198), IF($G161 <= AL$134, $G161 - SUM(AL$195:AL198), 0)) -> 0 | AM199: =IF(AND(AM$134 <= $G161, AM$134 > $G160), AM$134 - SUM(AM$195:AM198), IF($G161 <= AM$134, $G161 - SUM(AM$195:AM198), 0)) -> 0 | AN199: =IF(AND(AN$134 <= $G161, AN$134 > $G160), AN$134 - SUM(AN$195:AN198), IF($G161 <= AN$134, $G161 - SUM(AN$195:AN198), 0)) -> 0 | AO199: =IF(AND(AO$134 <= $G161, AO$134 > $G160), AO$134 - SUM(AO$195:AO198), IF($G161 <= AO$134, $G161 - SUM(AO$195:AO198), 0)) -> 0 | AP199: =IF(AND(AP$134 <= $G161, AP$134 > $G160), AP$134 - SUM(AP$195:AP198), IF($G161 <= AP$134, $G161 - SUM(AP$195:AP198), 0)) -> 0 | AQ199: =IF(AND(AQ$134 <= $G161, AQ$134 > $G160), AQ$134 - SUM(AQ$195:AQ198), IF($G161 <= AQ$134, $G161 - SUM(AQ$195:AQ198), 0)) -> 0 | AR199: =IF(AND(AR$134 <= $G161, AR$134 > $G160), AR$134 - SUM(AR$195:AR198), IF($G161 <= AR$134, $G161 - SUM(AR$195:AR198), 0)) -> 0
E201: EB + ODE (oud) | G201: € | J201: =SUMPRODUCT(J189:J192,J170:J173) + SUMPRODUCT(J189:J192,J182:J185) -> 0 | K201: 0 | L201: 0 | M201: 0 | N201: 0 | O201: 0 | P201: 0 | Q201: 0 | R201: 0 | S201: 0 | T201: 0 | U201: 0 | V201: 0 | W201: 0 | X201: 0 | Y201: 0 | Z201: 0 | AA201: 0 | AB201: 0 | AC201: 0 | AD201: 0 | AE201: 0 | AF201: 0 | AG201: 0 | AH201: 0 | AI201: 0 | AJ201: 0 | AK201: 0 | AL201: 0 | AM201: 0 | AN201: 0 | AO201: 0 | AP201: 0 | AQ201: 0 | AR201: 0
E202: EB + ODE (nieuw) | G202: € | J202: =SUMPRODUCT(J196:J199,J170:J173) + SUMPRODUCT(J196:J199,J182:J185) -> 0 | K202: 0 | L202: 0 | M202: 0 | N202: 0 | O202: 0 | P202: 0 | Q202: 0 | R202: 0 | S202: 0 | T202: 0 | U202: 0 | V202: 0 | W202: 0 | X202: 0 | Y202: 0 | Z202: 0 | AA202: 0 | AB202: 0 | AC202: 0 | AD202: 0 | AE202: 0 | AF202: 0 | AG202: 0 | AH202: 0 | AI202: 0 | AJ202: 0 | AK202: 0 | AL202: 0 | AM202: 0 | AN202: 0 | AO202: 0 | AP202: 0 | AQ202: 0 | AR202: 0
E204: =Config!$E$141 -> Belasting toegevoegde waarde (BTW) | F204: =Config!$F$141 -> 0.21
E205: BTW op omzet | F205: =IF($F$26 = Config!$E$33, Config!$E$15, Config!$E$16) -> Nee
E207: Omzet uit vermeden EB + ODE | G207: € | J207: =(J201 - J202) * (1 + IF($F$205 = Config!$E$15, $F$204, 0)) -> 0 | K207: =(K201 - K202) * (1 + IF($F$205 = Config!$E$15, $F$204, 0)) -> 0 | L207: =(L201 - L202) * (1 + IF($F$205 = Config!$E$15, $F$204, 0)) -> 0 | M207: =(M201 - M202) * (1 + IF($F$205 = Config!$E$15, $F$204, 0)) -> 0 | N207: =(N201 - N202) * (1 + IF($F$205 = Config!$E$15, $F$204, 0)) -> 0 | O207: =(O201 - O202) * (1 + IF($F$205 = Config!$E$15, $F$204, 0)) -> 0 | P207: =(P201 - P202) * (1 + IF($F$205 = Config!$E$15, $F$204, 0)) -> 0 | Q207: =(Q201 - Q202) * (1 + IF($F$205 = Config!$E$15, $F$204, 0)) -> 0 | R207: =(R201 - R202) * (1 + IF($F$205 = Config!$E$15, $F$204, 0)) -> 0 | S207: =(S201 - S202) * (1 + IF($F$205 = Config!$E$15, $F$204, 0)) -> 0 | T207: =(T201 - T202) * (1 + IF($F$205 = Config!$E$15, $F$204, 0)) -> 0 | U207: =(U201 - U202) * (1 + IF($F$205 = Config!$E$15, $F$204, 0)) -> 0 | V207: =(V201 - V202) * (1 + IF($F$205 = Config!$E$15, $F$204, 0)) -> 0 | W207: =(W201 - W202) * (1 + IF($F$205 = Config!$E$15, $F$204, 0)) -> 0 | X207: =(X201 - X202) * (1 + IF($F$205 = Config!$E$15, $F$204, 0)) -> 0 | Y207: =(Y201 - Y202) * (1 + IF($F$205 = Config!$E$15, $F$204, 0)) -> 0 | Z207: =(Z201 - Z202) * (1 + IF($F$205 = Config!$E$15, $F$204, 0)) -> 0 | AA207: =(AA201 - AA202) * (1 + IF($F$205 = Config!$E$15, $F$204, 0)) -> 0 | AB207: =(AB201 - AB202) * (1 + IF($F$205 = Config!$E$15, $F$204, 0)) -> 0 | AC207: =(AC201 - AC202) * (1 + IF($F$205 = Config!$E$15, $F$204, 0)) -> 0 | AD207: =(AD201 - AD202) * (1 + IF($F$205 = Config!$E$15, $F$204, 0)) -> 0 | AE207: =(AE201 - AE202) * (1 + IF($F$205 = Config!$E$15, $F$204, 0)) -> 0 | AF207: =(AF201 - AF202) * (1 + IF($F$205 = Config!$E$15, $F$204, 0)) -> 0 | AG207: =(AG201 - AG202) * (1 + IF($F$205 = Config!$E$15, $F$204, 0)) -> 0 | AH207: =(AH201 - AH202) * (1 + IF($F$205 = Config!$E$15, $F$204, 0)) -> 0 | AI207: =(AI201 - AI202) * (1 + IF($F$205 = Config!$E$15, $F$204, 0)) -> 0 | AJ207: =(AJ201 - AJ202) * (1 + IF($F$205 = Config!$E$15, $F$204, 0)) -> 0 | AK207: =(AK201 - AK202) * (1 + IF($F$205 = Config!$E$15, $F$204, 0)) -> 0 | AL207: =(AL201 - AL202) * (1 + IF($F$205 = Config!$E$15, $F$204, 0)) -> 0 | AM207: =(AM201 - AM202) * (1 + IF($F$205 = Config!$E$15, $F$204, 0)) -> 0 | AN207: =(AN201 - AN202) * (1 + IF($F$205 = Config!$E$15, $F$204, 0)) -> 0 | AO207: =(AO201 - AO202) * (1 + IF($F$205 = Config!$E$15, $F$204, 0)) -> 0 | AP207: =(AP201 - AP202) * (1 + IF($F$205 = Config!$E$15, $F$204, 0)) -> 0 | AQ207: =(AQ201 - AQ202) * (1 + IF($F$205 = Config!$E$15, $F$204, 0)) -> 0 | AR207: =(AR201 - AR202) * (1 + IF($F$205 = Config!$E$15, $F$204, 0)) -> 0
E208: =$E$116 -> Individueel of collectief salderen | F208: =$F$116 -> 0 | G208: =$G$116 -> TRUE = woning, FALSE = complex
E209: Totaal omzet uit vermeden EB + ODE | G209: € | J209: =IF($F$208 = FALSE, J207, IF($F$208 = TRUE, J207 * $F$109, 0)) -> 0 | K209: 0 | L209: 0 | M209: 0 | N209: 0 | O209: 0 | P209: 0 | Q209: 0 | R209: 0 | S209: 0 | T209: 0 | U209: 0 | V209: 0 | W209: 0 | X209: 0 | Y209: 0 | Z209: 0 | AA209: 0 | AB209: 0 | AC209: 0 | AD209: 0 | AE209: 0 | AF209: 0 | AG209: 0 | AH209: 0 | AI209: 0 | AJ209: 0 | AK209: 0 | AL209: 0 | AM209: 0 | AN209: 0 | AO209: 0 | AP209: 0 | AQ209: 0 | AR209: 0
D211: Omzet uit vermeden transportkosten
E212: Verbruik minus aanvullend te leveren | G212: kWh | J212: =J123 - J134 -> 0 | K212: 0 | L212: 0 | M212: 0 | N212: 0 | O212: 0 | P212: 0 | Q212: 0 | R212: 0 | S212: 0 | T212: 0 | U212: 0 | V212: 0 | W212: 0 | X212: 0 | Y212: 0 | Z212: 0 | AA212: 0 | AB212: 0 | AC212: 0 | AD212: 0 | AE212: 0 | AF212: 0 | AG212: 0 | AH212: 0 | AI212: 0 | AJ212: 0 | AK212: 0 | AL212: 0 | AM212: 0 | AN212: 0 | AO212: 0 | AP212: 0 | AQ212: 0 | AR212: 0
E213: =$E$24 -> Subsidie-regeling | F213: =$F$24 -> 0
E214: =InAlgemeen!$E$28 -> Transportkosten | F214: =IF($F$213 = Config!$E$38, InAlgemeen!$F$28, 0) -> 0 | G214: =InAlgemeen!$G$28 -> € per kWh
E215: =InAlgemeen!$I$25 -> Index | F215: =InAlgemeen!$I$29 -> 0
E217: =Config!$E$141 -> Belasting toegevoegde waarde (BTW) | F217: =Config!$F$141 -> 0.21
E218: BTW op omzet | F218: =IF($F$26 = Config!$E$33, Config!$E$15, Config!$E$16) -> Nee
E220: Omzet uit vermeden transportkosten | G220: € | J220: =(J212 * $F214 * (1 + $F215) ^ J$3) * (1 + IF($F$218 = Config!$E$15, $F$217, 0)) -> 0 | K220: =(K212 * $F214 * (1 + $F215) ^ K$3) * (1 + IF($F$218 = Config!$E$15, $F$217, 0)) -> 0 | L220: =(L212 * $F214 * (1 + $F215) ^ L$3) * (1 + IF($F$218 = Config!$E$15, $F$217, 0)) -> 0 | M220: =(M212 * $F214 * (1 + $F215) ^ M$3) * (1 + IF($F$218 = Config!$E$15, $F$217, 0)) -> 0 | N220: =(N212 * $F214 * (1 + $F215) ^ N$3) * (1 + IF($F$218 = Config!$E$15, $F$217, 0)) -> 0 | O220: =(O212 * $F214 * (1 + $F215) ^ O$3) * (1 + IF($F$218 = Config!$E$15, $F$217, 0)) -> 0 | P220: =(P212 * $F214 * (1 + $F215) ^ P$3) * (1 + IF($F$218 = Config!$E$15, $F$217, 0)) -> 0 | Q220: =(Q212 * $F214 * (1 + $F215) ^ Q$3) * (1 + IF($F$218 = Config!$E$15, $F$217, 0)) -> 0 | R220: =(R212 * $F214 * (1 + $F215) ^ R$3) * (1 + IF($F$218 = Config!$E$15, $F$217, 0)) -> 0 | S220: =(S212 * $F214 * (1 + $F215) ^ S$3) * (1 + IF($F$218 = Config!$E$15, $F$217, 0)) -> 0 | T220: =(T212 * $F214 * (1 + $F215) ^ T$3) * (1 + IF($F$218 = Config!$E$15, $F$217, 0)) -> 0 | U220: =(U212 * $F214 * (1 + $F215) ^ U$3) * (1 + IF($F$218 = Config!$E$15, $F$217, 0)) -> 0 | V220: =(V212 * $F214 * (1 + $F215) ^ V$3) * (1 + IF($F$218 = Config!$E$15, $F$217, 0)) -> 0 | W220: =(W212 * $F214 * (1 + $F215) ^ W$3) * (1 + IF($F$218 = Config!$E$15, $F$217, 0)) -> 0 | X220: =(X212 * $F214 * (1 + $F215) ^ X$3) * (1 + IF($F$218 = Config!$E$15, $F$217, 0)) -> 0 | Y220: =(Y212 * $F214 * (1 + $F215) ^ Y$3) * (1 + IF($F$218 = Config!$E$15, $F$217, 0)) -> 0 | Z220: =(Z212 * $F214 * (1 + $F215) ^ Z$3) * (1 + IF($F$218 = Config!$E$15, $F$217, 0)) -> 0 | AA220: =(AA212 * $F214 * (1 + $F215) ^ AA$3) * (1 + IF($F$218 = Config!$E$15, $F$217, 0)) -> 0 | AB220: =(AB212 * $F214 * (1 + $F215) ^ AB$3) * (1 + IF($F$218 = Config!$E$15, $F$217, 0)) -> 0 | AC220: =(AC212 * $F214 * (1 + $F215) ^ AC$3) * (1 + IF($F$218 = Config!$E$15, $F$217, 0)) -> 0 | AD220: =(AD212 * $F214 * (1 + $F215) ^ AD$3) * (1 + IF($F$218 = Config!$E$15, $F$217, 0)) -> 0 | AE220: =(AE212 * $F214 * (1 + $F215) ^ AE$3) * (1 + IF($F$218 = Config!$E$15, $F$217, 0)) -> 0 | AF220: =(AF212 * $F214 * (1 + $F215) ^ AF$3) * (1 + IF($F$218 = Config!$E$15, $F$217, 0)) -> 0 | AG220: =(AG212 * $F214 * (1 + $F215) ^ AG$3) * (1 + IF($F$218 = Config!$E$15, $F$217, 0)) -> 0 | AH220: =(AH212 * $F214 * (1 + $F215) ^ AH$3) * (1 + IF($F$218 = Config!$E$15, $F$217, 0)) -> 0 | AI220: =(AI212 * $F214 * (1 + $F215) ^ AI$3) * (1 + IF($F$218 = Config!$E$15, $F$217, 0)) -> 0 | AJ220: =(AJ212 * $F214 * (1 + $F215) ^ AJ$3) * (1 + IF($F$218 = Config!$E$15, $F$217, 0)) -> 0 | AK220: =(AK212 * $F214 * (1 + $F215) ^ AK$3) * (1 + IF($F$218 = Config!$E$15, $F$217, 0)) -> 0 | AL220: =(AL212 * $F214 * (1 + $F215) ^ AL$3) * (1 + IF($F$218 = Config!$E$15, $F$217, 0)) -> 0 | AM220: =(AM212 * $F214 * (1 + $F215) ^ AM$3) * (1 + IF($F$218 = Config!$E$15, $F$217, 0)) -> 0 | AN220: =(AN212 * $F214 * (1 + $F215) ^ AN$3) * (1 + IF($F$218 = Config!$E$15, $F$217, 0)) -> 0 | AO220: =(AO212 * $F214 * (1 + $F215) ^ AO$3) * (1 + IF($F$218 = Config!$E$15, $F$217, 0)) -> 0 | AP220: =(AP212 * $F214 * (1 + $F215) ^ AP$3) * (1 + IF($F$218 = Config!$E$15, $F$217, 0)) -> 0 | AQ220: =(AQ212 * $F214 * (1 + $F215) ^ AQ$3) * (1 + IF($F$218 = Config!$E$15, $F$217, 0)) -> 0 | AR220: =(AR212 * $F214 * (1 + $F215) ^ AR$3) * (1 + IF($F$218 = Config!$E$15, $F$217, 0)) -> 0
E221: =$E$116 -> Individueel of collectief salderen | F221: =$F$116 -> 0 | G221: =$G$116 -> TRUE = woning, FALSE = complex
E222: Totaal omzet uit vermeden transportkosten | G222: € | J222: =IF($F$221 = FALSE, J220, IF($F$221 = TRUE, J220 * $F$109, 0)) -> 0 | K222: 0 | L222: =IF($F$221 = FALSE, L220, IF($F$221 = TRUE, L220 * $F$109, 0)) -> 0 | M222: 0 | N222: 0 | O222: 0 | P222: 0 | Q222: 0 | R222: 0 | S222: 0 | T222: 0 | U222: 0 | V222: 0 | W222: 0 | X222: 0 | Y222: 0 | Z222: 0 | AA222: 0 | AB222: 0 | AC222: 0 | AD222: 0 | AE222: 0 | AF222: 0 | AG222: 0 | AH222: 0 | AI222: 0 | AJ222: 0 | AK222: 0 | AL222: 0 | AM222: 0 | AN222: 0 | AO222: 0 | AP222: 0 | AQ222: 0 | AR222: 0
D224: Omzet uit SDE++
E225: =E133 -> Teruglevering | G225: =G133 -> kWh | J225: =J133 -> 0 | K225: =K133 -> 0 | L225: 0 | M225: 0 | N225: 0 | O225: 0 | P225: 0 | Q225: 0 | R225: 0 | S225: 0 | T225: 0 | U225: 0 | V225: 0 | W225: 0 | X225: 0 | Y225: 0 | Z225: 0 | AA225: 0 | AB225: 0 | AC225: 0 | AD225: 0 | AE225: 0 | AF225: 0 | AG225: 0 | AH225: 0 | AI225: 0 | AJ225: 0 | AK225: 0 | AL225: 0 | AM225: 0 | AN225: 0 | AO225: 0 | AP225: 0 | AQ225: 0 | AR225: 0
E226: =E127 -> Eigen gebruik van opwekking | G226: =G127 -> kWh | J226: =J127 -> 0 | K226: 0 | L226: 0 | M226: 0 | N226: 0 | O226: 0 | P226: 0 | Q226: 0 | R226: 0 | S226: 0 | T226: 0 | U226: 0 | V226: 0 | W226: 0 | X226: 0 | Y226: 0 | Z226: 0 | AA226: 0 | AB226: 0 | AC226: 0 | AD226: 0 | AE226: 0 | AF226: 0 | AG226: 0 | AH226: 0 | AI226: 0 | AJ226: 0 | AK226: 0 | AL226: 0 | AM226: 0 | AN226: 0 | AO226: 0 | AP226: 0 | AQ226: 0 | AR226: 0
E227: =$E$24 -> Subsidie-regeling | F227: =$F$24 -> 0
E228: =InAlgemeen!$E$35 -> Looptijd subsidie | F228: =InAlgemeen!$F$35 -> 15 | G228: =InAlgemeen!$G$35 -> jaar
E229: =E33 -> Investerings-periode | F229: =F33 -> 0 | J229: =J33 -> 0 | K229: 0 | L229: 0 | M229: 0 | N229: 0 | O229: 0 | P229: 0 | Q229: 0 | R229: 0 | S229: 0 | T229: 0 | U229: 0 | V229: 0 | W229: 0 | X229: 0 | Y229: 0 | Z229: 0 | AA229: 0 | AB229: 0 | AC229: 0 | AD229: 0 | AE229: 0 | AF229: 0 | AG229: 0 | AH229: 0 | AI229: 0 | AJ229: 0 | AK229: 0 | AL229: 0 | AM229: 0 | AN229: 0 | AO229: 0 | AP229: 0 | AQ229: 0 | AR229: 0
E230: Flag eind subsidie | J230: =IF(AND(J2 >= ($F$32 + $F$228), J2 < ($F$32 + $F$228 + $F$229)), 1 / $F$33, 0) -> 0 | K230: 0 | L230: 0 | M230: 0 | N230: 0 | O230: 0 | P230: 0 | Q230: 0 | R230: 0 | S230: 0 | T230: 0 | U230: 0 | V230: 0 | W230: 0 | X230: 0 | Y230: 0 | Z230: 0 | AA230: 0 | AB230: 0 | AC230: 0 | AD230: 0 | AE230: 0 | AF230: 0 | AG230: 0 | AH230: 0 | AI230: 0 | AJ230: 0 | AK230: 0 | AL230: 0 | AM230: 0 | AN230: 0 | AO230: 0 | AP230: 0 | AQ230: 0 | AR230: 0
E231: Flag looptijd subsidie | J231: =IF((I231 + J229 - J230) > 0, (I231 + J229 - I230), 0) -> 0 | K231: =IF((J231 + K229 - K230) > 0, (J231 + K229 - J230), 0) -> 0 | L231: 0 | M231: 0 | N231: 0 | O231: 0 | P231: 0 | Q231: 0 | R231: 0 | S231: 0 | T231: 0 | U231: 0 | V231: 0 | W231: 0 | X231: 0 | Y231: 0 | Z231: 0 | AA231: 0 | AB231: 0 | AC231: 0 | AD231: 0 | AE231: 0 | AF231: 0 | AG231: 0 | AH231: 0 | AI231: 0 | AJ231: 0 | AK231: 0 | AL231: 0 | AM231: 0 | AN231: 0 | AO231: 0 | AP231: 0 | AQ231: 0 | AR231: 0
E232: SDE++ beschikbaar | F232: =IF($F$227 = Config!$E$38, 1, 0) -> 0
E233: Flag SDE++ | J233: =IF(J229 > 0, 1, IF(J231 > 0, J231, 0)) * $F$232 -> 0 | K233: =IF(K229 > 0, 1, IF(K231 > 0, K231, 0)) * $F$232 -> 0 | L233: 0 | M233: 0 | N233: 0 | O233: 0 | P233: 0 | Q233: 0 | R233: 0 | S233: 0 | T233: 0 | U233: 0 | V233: 0 | W233: 0 | X233: 0 | Y233: 0 | Z233: 0 | AA233: 0 | AB233: 0 | AC233: 0 | AD233: 0 | AE233: 0 | AF233: 0 | AG233: 0 | AH233: 0 | AI233: 0 | AJ233: 0 | AK233: 0 | AL233: 0 | AM233: 0 | AN233: 0 | AO233: 0 | AP233: 0 | AQ233: 0 | AR233: 0
E235: =InAlgemeen!E32 -> Basisbedrag | F235: =InAlgemeen!F32 -> 0.085 | G235: =InAlgemeen!G32 -> € per kWh
E236: =InAlgemeen!E33 -> Correctiebedrag netlevering | F236: =InAlgemeen!F33 -> 0.05 | G236: =InAlgemeen!G33 -> € per kWh
E237: =InAlgemeen!E34 -> Correctiebedrag niet-netlevering | F237: =InAlgemeen!F34 -> 0.078 | G237: =InAlgemeen!G34 -> € per kWh
E239: Omzet SDE++ uit netlevering | G239: € | J239: =IF(J$233 > 0, J$225 * ($F$235 - $F$236), 0) -> 0 | K239: =IF(K$233 > 0, K$225 * ($F$235 - $F$236), 0) -> 0 | L239: 0 | M239: 0 | N239: 0 | O239: 0 | P239: 0 | Q239: 0 | R239: 0 | S239: 0 | T239: 0 | U239: 0 | V239: 0 | W239: 0 | X239: 0 | Y239: 0 | Z239: 0 | AA239: 0 | AB239: 0 | AC239: 0 | AD239: 0 | AE239: 0 | AF239: 0 | AG239: 0 | AH239: 0 | AI239: 0 | AJ239: 0 | AK239: 0 | AL239: 0 | AM239: 0 | AN239: 0 | AO239: 0 | AP239: 0 | AQ239: 0 | AR239: 0
E240: Omzet SDE++ uit niet-netlevering | G240: € | J240: =IF(J$233 > 0, J$226 * ($F$235 - $F$237), 0) -> 0 | K240: =IF(K$233 > 0, K$226 * ($F$235 - $F$237), 0) -> 0 | L240: 0 | M240: 0 | N240: 0 | O240: 0 | P240: 0 | Q240: 0 | R240: 0 | S240: 0 | T240: 0 | U240: 0 | V240: 0 | W240: 0 | X240: 0 | Y240: 0 | Z240: 0 | AA240: 0 | AB240: 0 | AC240: 0 | AD240: 0 | AE240: 0 | AF240: 0 | AG240: 0 | AH240: 0 | AI240: 0 | AJ240: 0 | AK240: 0 | AL240: 0 | AM240: 0 | AN240: 0 | AO240: 0 | AP240: 0 | AQ240: 0 | AR240: 0
E242: Omzet uit SDE++ | G242: € | J242: =SUM(J239:J240) -> 0 | K242: =SUM(K239:K240) -> 0 | L242: 0 | M242: 0 | N242: 0 | O242: 0 | P242: 0 | Q242: 0 | R242: 0 | S242: 0 | T242: 0 | U242: 0 | V242: 0 | W242: 0 | X242: 0 | Y242: 0 | Z242: 0 | AA242: 0 | AB242: 0 | AC242: 0 | AD242: 0 | AE242: 0 | AF242: 0 | AG242: 0 | AH242: 0 | AI242: 0 | AJ242: 0 | AK242: 0 | AL242: 0 | AM242: 0 | AN242: 0 | AO242: 0 | AP242: 0 | AQ242: 0 | AR242: 0
E243: =$E$116 -> Individueel of collectief salderen | F243: =$F$116 -> 0 | G243: =$G$116 -> TRUE = woning, FALSE = complex
E244: Totaal omzet uit SDE++ | G244: € | J244: =IF($F$243 = FALSE, J242, IF($F$243 = TRUE, J242 * $F$109, 0)) -> 0 | K244: 0 | L244: =IF($F$243 = FALSE, L242, IF($F$243 = TRUE, L242 * $F$109, 0)) -> 0 | M244: 0 | N244: 0 | O244: 0 | P244: 0 | Q244: 0 | R244: 0 | S244: 0 | T244: 0 | U244: 0 | V244: 0 | W244: 0 | X244: 0 | Y244: 0 | Z244: 0 | AA244: 0 | AB244: 0 | AC244: 0 | AD244: 0 | AE244: 0 | AF244: 0 | AG244: 0 | AH244: 0 | AI244: 0 | AJ244: 0 | AK244: 0 | AL244: 0 | AM244: 0 | AN244: 0 | AO244: 0 | AP244: 0 | AQ244: 0 | AR244: 0
D246: Omzet uit terugleveringsvergoeding
E247: =E133 -> Teruglevering | G247: =G133 -> kWh | J247: =J133 -> 0 | K247: 0 | L247: 0 | M247: 0 | N247: 0 | O247: 0 | P247: 0 | Q247: 0 | R247: 0 | S247: 0 | T247: 0 | U247: 0 | V247: 0 | W247: 0 | X247: 0 | Y247: 0 | Z247: 0 | AA247: 0 | AB247: 0 | AC247: 0 | AD247: 0 | AE247: 0 | AF247: 0 | AG247: 0 | AH247: 0 | AI247: 0 | AJ247: 0 | AK247: 0 | AL247: 0 | AM247: 0 | AN247: 0 | AO247: 0 | AP247: 0 | AQ247: 0 | AR247: 0
E248: =InAlgemeen!$E$26 -> Leveringstarief | F248: =InAlgemeen!$F$26 -> 0.05 | G248: =InAlgemeen!$G$26 -> € per kWh
E249: =InAlgemeen!$E$27 -> Kosten en marge leverancier | F249: =InAlgemeen!$F$27 -> 0 | G249: =InAlgemeen!$G$27 -> € per kWh
E250: =InAlgemeen!$E$29 -> Terugleveringsvergoeding | F250: =InAlgemeen!$F$29 -> 0.8 | G250: =InAlgemeen!$G$29 -> van leveringstarief
E251: =InAlgemeen!$I$25 -> Index | F251: =InAlgemeen!$I$27 -> 0
... 159 more rows

Sheet OutProject
A1: =RIGHT(CELL("filename", A1), LEN(CELL("filename", A1)) - FIND("]", CELL("filename", A1))) -> OutProject
E2: Type | F2: 1
L3: EBITDA | M3: EBITDA | N3: EBITDA | O3: EBITDA | P3: EBITDA | Q3: EBITDA | R3: EBITDA | S3: EBITDA | T3: EBITDA | U3: EBITDA | V3: EBITDA | W3: EBITDA | X3: EBITDA | Y3: EBITDA | Z3: EBITDA | AA3: EBITDA | AB3: EBITDA | AC3: EBITDA | AD3: EBITDA | AE3: EBITDA | AF3: EBITDA | AG3: EBITDA | AH3: EBITDA | AI3: EBITDA | AJ3: EBITDA | AK3: EBITDA | AL3: EBITDA | AM3: EBITDA | AN3: EBITDA | AO3: EBITDA | AP3: EBITDA | AQ3: EBITDA | AR3: EBITDA | AS3: EBITDA | AT3: EBITDA | AU3: Investering | AV3: Investering | AW3: Investering | AX3: Investering | AY3: Investering | AZ3: Investering | BA3: Investering | BB3: Investering | BC3: Investering | BD3: Investering | BE3: Investering | BF3: Investering | BG3: Investering | BH3: Investering | BI3: Investering | BJ3: Investering | BK3: Investering | BL3: Investering | BM3: Investering | BN3: Investering | BO3: Investering | BP3: Investering | BQ3: Investering | BR3: Investering | BS3: Investering | BT3: Investering | BU3: Investering | BV3: Investering | BW3: Investering | BX3: Investering | BY3: Investering | BZ3: Investering | CA3: Investering | CB3: Investering | CC3: Investering | CD3: Rente | CE3: Rente | CF3: Rente | CG3: Rente | CH3: Rente | CI3: Rente | CJ3: Rente | CK3: Rente | CL3: Rente | CM3: Rente | CN3: Rente | CO3: Rente | CP3: Rente | CQ3: Rente | CR3: Rente | CS3: Rente | CT3: Rente | CU3: Rente | CV3: Rente | CW3: Rente | CX3: Rente | CY3: Rente | CZ3: Rente | DA3: Rente | DB3: Rente | DC3: Rente | DD3: Rente | DE3: Rente | DF3: Rente | DG3: Rente | DH3: Rente | DI3: Rente | DJ3: Rente | DK3: Rente | DL3: Rente | DM3: Vpb | DN3: Vpb | DO3: Vpb | DP3: Vpb | DQ3: Vpb | DR3: Vpb | DS3: Vpb | DT3: Vpb | DU3: Vpb | DV3: Vpb | DW3: Vpb | DX3: Vpb | DY3: Vpb | DZ3: Vpb | EA3: Vpb | EB3: Vpb | EC3: Vpb | ED3: Vpb | EE3: Vpb | EF3: Vpb | EG3: Vpb | EH3: Vpb | EI3: Vpb | EJ3: Vpb | EK3: Vpb | EL3: Vpb | EM3: Vpb | EN3: Vpb | EO3: Vpb | EP3: Vpb | EQ3: Vpb | ER3: Vpb | ES3: Vpb | ET3: Vpb | EU3: Vpb | EV3: Aflossingen | EW3: Aflossingen | EX3: Aflossingen | EY3: Aflossingen | EZ3: Aflossingen | FA3: Aflossingen | FB3: Aflossingen | FC3: Aflossingen | FD3: Aflossingen | FE3: Aflossingen | FF3: Aflossingen | FG3: Aflossingen | FH3: Aflossingen | FI3: Aflossingen | FJ3: Aflossingen | FK3: Aflossingen | FL3: Aflossingen | FM3: Aflossingen | FN3: Aflossingen | FO3: Aflossingen | FP3: Aflossingen | FQ3: Aflossingen | FR3: Aflossingen | FS3: Aflossingen | FT3: Aflossingen | FU3: Aflossingen | FV3: Aflossingen | FW3: Aflossingen | FX3: Aflossingen | FY3: Aflossingen | FZ3: Aflossingen | GA3: Aflossingen | GB3: Aflossingen | GC3: Aflossingen | GD3: Aflossingen | GE3: Productie kWh | GF3: Productie kWh | GG3: Productie kWh | GH3: Productie kWh | GI3: Productie kWh | GJ3: Productie kWh | GK3: Productie kWh | GL3: Productie kWh | GM3: Productie kWh | GN3: Productie kWh | GO3: Productie kWh | GP3: Productie kWh | GQ3: Productie kWh | GR3: Productie kWh | GS3: Productie kWh | GT3: Productie kWh | GU3: Productie kWh | GV3: Productie kWh | GW3: Productie kWh | GX3: Productie kWh | GY3: Productie kWh | GZ3: Productie kWh | HA3: Productie kWh | HB3: Productie kWh | HC3: Productie kWh | HD3: Productie kWh | HE3: Productie kWh | HF3: Productie kWh | HG3: Productie kWh | HH3: Productie kWh | HI3: Productie kWh | HJ3: Productie kWh | HK3: Productie kWh | HL3: Productie kWh | HM3: Productie kWh | HN3: Aantal woningen | HO3: Aantal woningen | HP3: Aantal woningen | HQ3: Aantal woningen | HR3: Aantal woningen | HS3: Aantal woningen | HT3: Aantal woningen | HU3: Aantal woningen | HV3: Aantal woningen | HW3: Aantal woningen | HX3: Aantal woningen | HY3: Aantal woningen | HZ3: Aantal woningen | IA3: Aantal woningen | IB3: Aantal woningen | IC3: Aantal woningen | ID3: Aantal woningen | IE3: Aantal woningen | IF3: Aantal woningen | IG3: Aantal woningen | IH3: Aantal woningen | II3: Aantal woningen | IJ3: Aantal woningen | IK3: Aantal woningen | IL3: Aantal woningen | IM3: Aantal woningen | IN3: Aantal woningen | IO3: Aantal woningen | IP3: Aantal woningen | IQ3: Aantal woningen | IR3: Aantal woningen | IS3: Aantal woningen | IT3: Aantal woningen | IU3: Aantal woningen | IV3: Aantal woningen | IW3: Aantal woningen onttrokken | IX3: Aantal woningen onttrokken | IY3: Aantal woningen onttrokken | IZ3: Aantal woningen onttrokken | JA3: Aantal woningen onttrokken | JB3: Aantal woningen onttrokken | JC3: Aantal woningen onttrokken | JD3: Aantal woningen onttrokken | JE3: Aantal woningen onttrokken | JF3: Aantal woningen onttrokken | JG3: Aantal woningen onttrokken | JH3: Aantal woningen onttrokken | JI3: Aantal woningen onttrokken | JJ3: Aantal woningen onttrokken | JK3: Aantal woningen onttrokken | JL3: Aantal woningen onttrokken | JM3: Aantal woningen onttrokken | JN3: Aantal woningen onttrokken | JO3: Aantal woningen onttrokken | JP3: Aantal woningen onttrokken | JQ3: Aantal woningen onttrokken | JR3: Aantal woningen onttrokken | JS3: Aantal woningen onttrokken | JT3: Aantal woningen onttrokken | JU3: Aantal woningen onttrokken | JV3: Aantal woningen onttrokken | JW3: Aantal woningen onttrokken | JX3: Aantal woningen onttrokken | JY3: Aantal woningen onttrokken | JZ3: Aantal woningen onttrokken | KA3: Aantal woningen onttrokken | KB3: Aantal woningen onttrokken | KC3: Aantal woningen onttrokken | KD3: Aantal woningen onttrokken | KE3: Aantal woningen onttrokken | KF3: Investering EV | KG3: Investering EV | KH3: Investering EV | KI3: Investering EV | KJ3: Investering EV | KK3: Investering EV | KL3: Investering EV | KM3: Investering EV | KN3: Investering EV | KO3: Investering EV | KP3: Investering EV | KQ3: Investering EV | KR3: Investering EV | KS3: Investering EV | KT3: Investering EV | KU3: Investering EV | KV3: Investering EV | KW3: Investering EV | KX3: Investering EV | KY3: Investering EV | KZ3: Investering EV | LA3: Investering EV | LB3: Investering EV | LC3: Investering EV | LD3: Investering EV | LE3: Investering EV | LF3: Investering EV | LG3: Investering EV | LH3: Investering EV | LI3: Investering EV | LJ3: Investering EV | LK3: Investering EV | LL3: Investering EV | LM3: Investering EV | LN3: Investering EV | LO3: Besparing per bewoner | LP3: Besparing per bewoner | LQ3: Besparing per bewoner | LR3: Besparing per bewoner | LS3: Besparing per bewoner | LT3: Besparing per bewoner | LU3: Besparing per bewoner | LV3: Besparing per bewoner | LW3: Besparing per bewoner | LX3: Besparing per bewoner | LY3: Besparing per bewoner | LZ3: Besparing per bewoner | MA3: Besparing per bewoner | MB3: Besparing per bewoner | MC3: Besparing per bewoner | MD3: Besparing per bewoner | ME3: Besparing per bewoner | MF3: Besparing per bewoner | MG3: Besparing per bewoner | MH3: Besparing per bewoner | MI3: Besparing per bewoner | MJ3: Besparing per bewoner | MK3: Besparing per bewoner | ML3: Besparing per bewoner | MM3: Besparing per bewoner | MN3: Besparing per bewoner | MO3: Besparing per bewoner | MP3: Besparing per bewoner | MQ3: Besparing per bewoner | MR3: Besparing per bewoner | MS3: Besparing per bewoner | MT3: Besparing per bewoner | MU3: Besparing per bewoner | MV3: Besparing per bewoner | MW3: Besparing per bewoner
E4: Key | F4: =CalcProject!$E$7 -> Naam complex | G4: =InComplex!$O$6 -> Jaar van investering | H4: =InComplex!$E$6 -> Aantal woningen | I4: =InComplex!$K$6 -> Totaal netto dakoppervlak* | J4: =CalcProject!$E$66 -> Geïnstalleerd vermogen | K4: Gekozen subsidieregeling | L4: =CalcProject!J2 -> 2021 | M4: =CalcProject!K2 -> 2022 | N4: =CalcProject!L2 -> 2023 | O4: =CalcProject!M2 -> 2024 | P4: =CalcProject!N2 -> 2025 | Q4: =CalcProject!O2 -> 2026 | R4: =CalcProject!P2 -> 2027 | S4: =CalcProject!Q2 -> 2028 | T4: =CalcProject!R2 -> 2029 | U4: =CalcProject!S2 -> 2030 | V4: =CalcProject!T2 -> 2031 | W4: =CalcProject!U2 -> 2032 | X4: =CalcProject!V2 -> 2033 | Y4: =CalcProject!W2 -> 2034 | Z4: =CalcProject!X2 -> 2035 | AA4: =CalcProject!Y2 -> 2036 | AB4: =CalcProject!Z2 -> 2037 | AC4: =CalcProject!AA2 -> 2038 | AD4: =CalcProject!AB2 -> 2039 | AE4: =CalcProject!AC2 -> 2040 | AF4: =CalcProject!AD2 -> 2041 | AG4: =CalcProject!AE2 -> 2042 | AH4: =CalcProject!AF2 -> 2043 | AI4: =CalcProject!AG2 -> 2044 | AJ4: =CalcProject!AH2 -> 2045 | AK4: =CalcProject!AI2 -> 2046 | AL4: =CalcProject!AJ2 -> 2047 | AM4: =CalcProject!AK2 -> 2048 | AN4: =CalcProject!AL2 -> 2049 | AO4: =CalcProject!AM2 -> 2050 | AP4: =CalcProject!AN2 -> 2051 | AQ4: =CalcProject!AO2 -> 2052 | AR4: =CalcProject!AP2 -> 2053 | AS4: =CalcProject!AQ2 -> 2054 | AT4: =CalcProject!AR2 -> 2055 | AU4: =CalcProject!J2 -> 2021 | AV4: =CalcProject!K2 -> 2022 | AW4: =CalcProject!L2 -> 2023 | AX4: =CalcProject!M2 -> 2024 | AY4: =CalcProject!N2 -> 2025 | AZ4: =CalcProject!O2 -> 2026 | BA4: =CalcProject!P2 -> 2027 | BB4: =CalcProject!Q2 -> 2028 | BC4: =CalcProject!R2 -> 2029 | BD4: =CalcProject!S2 -> 2030 | BE4: =CalcProject!T2 -> 2031 | BF4: =CalcProject!U2 -> 2032 | BG4: =CalcProject!V2 -> 2033 | BH4: =CalcProject!W2 -> 2034 | BI4: =CalcProject!X2 -> 2035 | BJ4: =CalcProject!Y2 -> 2036 | BK4: =CalcProject!Z2 -> 2037 | BL4: =CalcProject!AA2 -> 2038 | BM4: =CalcProject!AB2 -> 2039 | BN4: =CalcProject!AC2 -> 2040 | BO4: =CalcProject!AD2 -> 2041 | BP4: =CalcProject!AE2 -> 2042 | BQ4: =CalcProject!AF2 -> 2043 | BR4: =CalcProject!AG2 -> 2044 | BS4: =CalcProject!AH2 -> 2045 | BT4: =CalcProject!AI2 -> 2046 | BU4: =CalcProject!AJ2 -> 2047 | BV4: =CalcProject!AK2 -> 2048 | BW4: =CalcProject!AL2 -> 2049 | BX4: =CalcProject!AM2 -> 2050 | BY4: =CalcProject!AN2 -> 2051 | BZ4: =CalcProject!AO2 -> 2052 | CA4: =CalcProject!AP2 -> 2053 | CB4: =CalcProject!AQ2 -> 2054 | CC4: =CalcProject!AR2 -> 2055 | CD4: =CalcProject!J2 -> 2021 | CE4: =CalcProject!K2 -> 2022 | CF4: =CalcProject!L2 -> 2023 | CG4: =CalcProject!M2 -> 2024 | CH4: =CalcProject!N2 -> 2025 | CI4: =CalcProject!O2 -> 2026 | CJ4: =CalcProject!P2 -> 2027 | CK4: =CalcProject!Q2 -> 2028 | CL4: =CalcProject!R2 -> 2029 | CM4: =CalcProject!S2 -> 2030 | CN4: =CalcProject!T2 -> 2031 | CO4: =CalcProject!U2 -> 2032 | CP4: =CalcProject!V2 -> 2033 | CQ4: =CalcProject!W2 -> 2034 | CR4: =CalcProject!X2 -> 2035 | CS4: =CalcProject!Y2 -> 2036 | CT4: =CalcProject!Z2 -> 2037 | CU4: =CalcProject!AA2 -> 2038 | CV4: =CalcProject!AB2 -> 2039 | CW4: =CalcProject!AC2 -> 2040 | CX4: =CalcProject!AD2 -> 2041 | CY4: =CalcProject!AE2 -> 2042 | CZ4: =CalcProject!AF2 -> 2043 | DA4: =CalcProject!AG2 -> 2044 | DB4: =CalcProject!AH2 -> 2045 | DC4: =CalcProject!AI2 -> 2046 | DD4: =CalcProject!AJ2 -> 2047 | DE4: =CalcProject!AK2 -> 2048 | DF4: =CalcProject!AL2 -> 2049 | DG4: =CalcProject!AM2 -> 2050 | DH4: =CalcProject!AN2 -> 2051 | DI4: =CalcProject!AO2 -> 2052 | DJ4: =CalcProject!AP2 -> 2053 | DK4: =CalcProject!AQ2 -> 2054 | DL4: =CalcProject!AR2 -> 2055 | DM4: =CalcProject!J2 -> 2021 | DN4: =CalcProject!K2 -> 2022 | DO4: =CalcProject!L2 -> 2023 | DP4: =CalcProject!M2 -> 2024 | DQ4: =CalcProject!N2 -> 2025 | DR4: =CalcProject!O2 -> 2026 | DS4: =CalcProject!P2 -> 2027 | DT4: =CalcProject!Q2 -> 2028 | DU4: =CalcProject!R2 -> 2029 | DV4: =CalcProject!S2 -> 2030 | DW4: =CalcProject!T2 -> 2031 | DX4: =CalcProject!U2 -> 2032 | DY4: =CalcProject!V2 -> 2033 | DZ4: =CalcProject!W2 -> 2034 | EA4: =CalcProject!X2 -> 2035 | EB4: =CalcProject!Y2 -> 2036 | EC4: =CalcProject!Z2 -> 2037 | ED4: =CalcProject!AA2 -> 2038 | EE4: =CalcProject!AB2 -> 2039 | EF4: =CalcProject!AC2 -> 2040 | EG4: =CalcProject!AD2 -> 2041 | EH4: =CalcProject!AE2 -> 2042 | EI4: =CalcProject!AF2 -> 2043 | EJ4: =CalcProject!AG2 -> 2044 | EK4: =CalcProject!AH2 -> 2045 | EL4: =CalcProject!AI2 -> 2046 | EM4: =CalcProject!AJ2 -> 2047 | EN4: =CalcProject!AK2 -> 2048 | EO4: =CalcProject!AL2 -> 2049 | EP4: =CalcProject!AM2 -> 2050 | EQ4: =CalcProject!AN2 -> 2051 | ER4: =CalcProject!AO2 -> 2052 | ES4: =CalcProject!AP2 -> 2053 | ET4: =CalcProject!AQ2 -> 2054 | EU4: =CalcProject!AR2 -> 2055 | EV4: =CalcProject!J2 -> 2021 | EW4: =CalcProject!K2 -> 2022 | EX4: =CalcProject!L2 -> 2023 | EY4: =CalcProject!M2 -> 2024 | EZ4: =CalcProject!N2 -> 2025 | FA4: =CalcProject!O2 -> 2026 | FB4: =CalcProject!P2 -> 2027 | FC4: =CalcProject!Q2 -> 2028 | FD4: =CalcProject!R2 -> 2029 | FE4: =CalcProject!S2 -> 2030 | FF4: =CalcProject!T2 -> 2031 | FG4: =CalcProject!U2 -> 2032 | FH4: =CalcProject!V2 -> 2033 | FI4: =CalcProject!W2 -> 2034 | FJ4: =CalcProject!X2 -> 2035 | FK4: =CalcProject!Y2 -> 2036 | FL4: =CalcProject!Z2 -> 2037 | FM4: =CalcProject!AA2 -> 2038 | FN4: =CalcProject!AB2 -> 2039 | FO4: =CalcProject!AC2 -> 2040 | FP4: =CalcProject!AD2 -> 2041 | FQ4: =CalcProject!AE2 -> 2042 | FR4: =CalcProject!AF2 -> 2043 | FS4: =CalcProject!AG2 -> 2044 | FT4: =CalcProject!AH2 -> 2045 | FU4: =CalcProject!AI2 -> 2046 | FV4: =CalcProject!AJ2 -> 2047 | FW4: =CalcProject!AK2 -> 2048 | FX4: =CalcProject!AL2 -> 2049 | FY4: =CalcProject!AM2 -> 2050 | FZ4: =CalcProject!AN2 -> 2051 | GA4: =CalcProject!AO2 -> 2052 | GB4: =CalcProject!AP2 -> 2053 | GC4: =CalcProject!AQ2 -> 2054 | GD4: =CalcProject!AR2 -> 2055 | GE4: =CalcProject!J2 -> 2021 | GF4: =CalcProject!K2 -> 2022 | GG4: =CalcProject!L2 -> 2023 | GH4: =CalcProject!M2 -> 2024 | GI4: =CalcProject!N2 -> 2025 | GJ4: =CalcProject!O2 -> 2026 | GK4: =CalcProject!P2 -> 2027 | GL4: =CalcProject!Q2 -> 2028 | GM4: =CalcProject!R2 -> 2029 | GN4: =CalcProject!S2 -> 2030 | GO4: =CalcProject!T2 -> 2031 | GP4: =CalcProject!U2 -> 2032 | GQ4: =CalcProject!V2 -> 2033 | GR4: =CalcProject!W2 -> 2034 | GS4: =CalcProject!X2 -> 2035 | GT4: =CalcProject!Y2 -> 2036 | GU4: =CalcProject!Z2 -> 2037 | GV4: =CalcProject!AA2 -> 2038 | GW4: =CalcProject!AB2 -> 2039 | GX4: =CalcProject!AC2 -> 2040 | GY4: =CalcProject!AD2 -> 2041 | GZ4: =CalcProject!AE2 -> 2042 | HA4: =CalcProject!AF2 -> 2043 | HB4: =CalcProject!AG2 -> 2044 | HC4: =CalcProject!AH2 -> 2045 | HD4: =CalcProject!AI2 -> 2046 | HE4: =CalcProject!AJ2 -> 2047 | HF4: =CalcProject!AK2 -> 2048 | HG4: =CalcProject!AL2 -> 2049 | HH4: =CalcProject!AM2 -> 2050 | HI4: =CalcProject!AN2 -> 2051 | HJ4: =CalcProject!AO2 -> 2052 | HK4: =CalcProject!AP2 -> 2053 | HL4: =CalcProject!AQ2 -> 2054 | HM4: =CalcProject!AR2 -> 2055 | HN4: =CalcProject!J2 -> 2021 | HO4: =CalcProject!K2 -> 2022 | HP4: =CalcProject!L2 -> 2023 | HQ4: =CalcProject!M2 -> 2024 | HR4: =CalcProject!N2 -> 2025 | HS4: =CalcProject!O2 -> 2026 | HT4: =CalcProject!P2 -> 2027 | HU4: =CalcProject!Q2 -> 2028 | HV4: =CalcProject!R2 -> 2029 | HW4: =CalcProject!S2 -> 2030 | HX4: =CalcProject!T2 -> 2031 | HY4: =CalcProject!U2 -> 2032 | HZ4: =CalcProject!V2 -> 2033 | IA4: =CalcProject!W2 -> 2034 | IB4: =CalcProject!X2 -> 2035 | IC4: =CalcProject!Y2 -> 2036 | ID4: =CalcProject!Z2 -> 2037 | IE4: =CalcProject!AA2 -> 2038 | IF4: =CalcProject!AB2 -> 2039 | IG4: =CalcProject!AC2 -> 2040 | IH4: =CalcProject!AD2 -> 2041 | II4: =CalcProject!AE2 -> 2042 | IJ4: =CalcProject!AF2 -> 2043 | IK4: =CalcProject!AG2 -> 2044 | IL4: =CalcProject!AH2 -> 2045 | IM4: =CalcProject!AI2 -> 2046 | IN4: =CalcProject!AJ2 -> 2047 | IO4: =CalcProject!AK2 -> 2048 | IP4: =CalcProject!AL2 -> 2049 | IQ4: =CalcProject!AM2 -> 2050 | IR4: =CalcProject!AN2 -> 2051 | IS4: =CalcProject!AO2 -> 2052 | IT4: =CalcProject!AP2 -> 2053 | IU4: =CalcProject!AQ2 -> 2054 | IV4: =CalcProject!AR2 -> 2055 | IW4: =CalcProject!J2 -> 2021 | IX4: =CalcProject!K2 -> 2022 | IY4: =CalcProject!L2 -> 2023 | IZ4: =CalcProject!M2 -> 2024 | JA4: =CalcProject!N2 -> 2025 | JB4: =CalcProject!O2 -> 2026 | JC4: =CalcProject!P2 -> 2027 | JD4: =CalcProject!Q2 -> 2028 | JE4: =CalcProject!R2 -> 2029 | JF4: =CalcProject!S2 -> 2030 | JG4: =CalcProject!T2 -> 2031 | JH4: =CalcProject!U2 -> 2032 | JI4: =CalcProject!V2 -> 2033 | JJ4: =CalcProject!W2 -> 2034 | JK4: =CalcProject!X2 -> 2035 | JL4: =CalcProject!Y2 -> 2036 | JM4: =CalcProject!Z2 -> 2037 | JN4: =CalcProject!AA2 -> 2038 | JO4: =CalcProject!AB2 -> 2039 | JP4: =CalcProject!AC2 -> 2040 | JQ4: =CalcProject!AD2 -> 2041 | JR4: =CalcProject!AE2 -> 2042 | JS4: =CalcProject!AF2 -> 2043 | JT4: =CalcProject!AG2 -> 2044 | JU4: =CalcProject!AH2 -> 2045 | JV4: =CalcProject!AI2 -> 2046 | JW4: =CalcProject!AJ2 -> 2047 | JX4: =CalcProject!AK2 -> 2048 | JY4: =CalcProject!AL2 -> 2049 | JZ4: =CalcProject!AM2 -> 2050 | KA4: =CalcProject!AN2 -> 2051 | KB4: =CalcProject!AO2 -> 2052 | KC4: =CalcProject!AP2 -> 2053 | KD4: =CalcProject!AQ2 -> 2054 | KE4: =CalcProject!AR2 -> 2055 | KF4: =CalcProject!J2 -> 2021 | KG4: =CalcProject!K2 -> 2022 | KH4: =CalcProject!L2 -> 2023 | KI4: =CalcProject!M2 -> 2024 | KJ4: =CalcProject!N2 -> 2025 | KK4: =CalcProject!O2 -> 2026 | KL4: =CalcProject!P2 -> 2027 | KM4: =CalcProject!Q2 -> 2028 | KN4: =CalcProject!R2 -> 2029 | KO4: =CalcProject!S2 -> 2030 | KP4: =CalcProject!T2 -> 2031 | KQ4: =CalcProject!U2 -> 2032 | KR4: =CalcProject!V2 -> 2033 | KS4: =CalcProject!W2 -> 2034 | KT4: =CalcProject!X2 -> 2035 | KU4: =CalcProject!Y2 -> 2036 | KV4: =CalcProject!Z2 -> 2037 | KW4: =CalcProject!AA2 -> 2038 | KX4: =CalcProject!AB2 -> 2039 | KY4: =CalcProject!AC2 -> 2040 | KZ4: =CalcProject!AD2 -> 2041 | LA4: =CalcProject!AE2 -> 2042 | LB4: =CalcProject!AF2 -> 2043 | LC4: =CalcProject!AG2 -> 2044 | LD4: =CalcProject!AH2 -> 2045 | LE4: =CalcProject!AI2 -> 2046 | LF4: =CalcProject!AJ2 -> 2047 | LG4: =CalcProject!AK2 -> 2048 | LH4: =CalcProject!AL2 -> 2049 | LI4: =CalcProject!AM2 -> 2050 | LJ4: =CalcProject!AN2 -> 2051 | LK4: =CalcProject!AO2 -> 2052 | LL4: =CalcProject!AP2 -> 2053 | LM4: =CalcProject!AQ2 -> 2054 | LN4: =CalcProject!AR2 -> 2055 | LO4: =CalcProject!J2 -> 2021 | LP4: =CalcProject!K2 -> 2022 | LQ4: =CalcProject!L2 -> 2023 | LR4: =CalcProject!M2 -> 2024 | LS4: =CalcProject!N2 -> 2025 | LT4: =CalcProject!O2 -> 2026 | LU4: =CalcProject!P2 -> 2027 | LV4: =CalcProject!Q2 -> 2028 | LW4: =CalcProject!R2 -> 2029 | LX4: =CalcProject!S2 -> 2030 | LY4: =CalcProject!T2 -> 2031 | LZ4: =CalcProject!U2 -> 2032 | MA4: =CalcProject!V2 -> 2033 | MB4: =CalcProject!W2 -> 2034 | MC4: =CalcProject!X2 -> 2035 | MD4: =CalcProject!Y2 -> 2036 | ME4: =CalcProject!Z2 -> 2037 | MF4: =CalcProject!AA2 -> 2038 | MG4: =CalcProject!AB2 -> 2039 | MH4: =CalcProject!AC2 -> 2040 | MI4: =CalcProject!AD2 -> 2041 | MJ4: =CalcProject!AE2 -> 2042 | MK4: =CalcProject!AF2 -> 2043 | ML4: =CalcProject!AG2 -> 2044 | MM4: =CalcProject!AH2 -> 2045 | MN4: =CalcProject!AI2 -> 2046 | MO4: =CalcProject!AJ2 -> 2047 | MP4: =CalcProject!AK2 -> 2048 | MQ4: =CalcProject!AL2 -> 2049 | MR4: =CalcProject!AM2 -> 2050 | MS4: =CalcProject!AN2 -> 2051 | MT4: =CalcProject!AO2 -> 2052 | MU4: =CalcProject!AP2 -> 2053 | MV4: =CalcProject!AQ2 -> 2054 | MW4: =CalcProject!AR2 -> 2055
F5: =CalcProject!$F$7 -> (Deel)complex 1 | G5: =CalcProject!$F$21 -> 0 | H5: =CalcProject!$F$11 -> 0 | I5: =CalcProject!$F$17 -> 0 | J5: =CalcProject!$F$66 -> 0 | K5: =CalcProject!$F$24 -> 0 | L5: =CalcProject!J405 -> 0 | M5: =CalcProject!K405 -> 0 | N5: =CalcProject!L405 -> 0 | O5: =CalcProject!M405 -> 0 | P5: =CalcProject!N405 -> 0 | Q5: =CalcProject!O405 -> 0 | R5: =CalcProject!P405 -> 0 | S5: =CalcProject!Q405 -> 0 | T5: =CalcProject!R405 -> 0 | U5: =CalcProject!S405 -> 0 | V5: =CalcProject!T405 -> 0 | W5: =CalcProject!U405 -> 0 | X5: =CalcProject!V405 -> 0 | Y5: =CalcProject!W405 -> 0 | Z5: =CalcProject!X405 -> 0 | AA5: =CalcProject!Y405 -> 0 | AB5: =CalcProject!Z405 -> 0 | AC5: =CalcProject!AA405 -> 0 | AD5: =CalcProject!AB405 -> 0 | AE5: =CalcProject!AC405 -> 0 | AF5: =CalcProject!AD405 -> 0 | AG5: =CalcProject!AE405 -> 0 | AH5: =CalcProject!AF405 -> 0 | AI5: =CalcProject!AG405 -> 0 | AJ5: =CalcProject!AH405 -> 0 | AK5: =CalcProject!AI405 -> 0 | AL5: =CalcProject!AJ405 -> 0 | AM5: =CalcProject!AK405 -> 0 | AN5: =CalcProject!AL405 -> 0 | AO5: =CalcProject!AM405 -> 0 | AP5: =CalcProject!AN405 -> 0 | AQ5: =CalcProject!AO405 -> 0 | AR5: =CalcProject!AP405 -> 0 | AS5: =CalcProject!AQ405 -> 0 | AT5: =CalcProject!AR405 -> 0 | AU5: =CalcProject!J105 -> 0 | AV5: =CalcProject!K105 -> 0 | AW5: =CalcProject!L105 -> 0 | AX5: =CalcProject!M105 -> 0 | AY5: =CalcProject!N105 -> 0 | AZ5: =CalcProject!O105 -> 0 | BA5: =CalcProject!P105 -> 0 | BB5: =CalcProject!Q105 -> 0 | BC5: =CalcProject!R105 -> 0 | BD5: =CalcProject!S105 -> 0 | BE5: =CalcProject!T105 -> 0 | BF5: =CalcProject!U105 -> 0 | BG5: =CalcProject!V105 -> 0 | BH5: =CalcProject!W105 -> 0 | BI5: =CalcProject!X105 -> 0 | BJ5: =CalcProject!Y105 -> 0 | BK5: =CalcProject!Z105 -> 0 | BL5: =CalcProject!AA105 -> 0 | BM5: =CalcProject!AB105 -> 0 | BN5: =CalcProject!AC105 -> 0 | BO5: =CalcProject!AD105 -> 0 | BP5: =CalcProject!AE105 -> 0 | BQ5: =CalcProject!AF105 -> 0 | BR5: =CalcProject!AG105 -> 0 | BS5: =CalcProject!AH105 -> 0 | BT5: =CalcProject!AI105 -> 0 | BU5: =CalcProject!AJ105 -> 0 | BV5: =CalcProject!AK105 -> 0 | BW5: =CalcProject!AL105 -> 0 | BX5: =CalcProject!AM105 -> 0 | BY5: =CalcProject!AN105 -> 0 | BZ5: =CalcProject!AO105 -> 0 | CA5: =CalcProject!AP105 -> 0 | CB5: =CalcProject!AQ105 -> 0 | CC5: =CalcProject!AR105 -> 0 | CD5: =CalcProject!J409 -> 0 | CE5: =CalcProject!K409 -> 0 | CF5: =CalcProject!L409 -> 0 | CG5: =CalcProject!M409 -> 0 | CH5: =CalcProject!N409 -> 0 | CI5: =CalcProject!O409 -> 0 | CJ5: =CalcProject!P409 -> 0 | CK5: =CalcProject!Q409 -> 0 | CL5: =CalcProject!R409 -> 0 | CM5: =CalcProject!S409 -> 0 | CN5: =CalcProject!T409 -> 0 | CO5: =CalcProject!U409 -> 0 | CP5: =CalcProject!V409 -> 0 | CQ5: =CalcProject!W409 -> 0 | CR5: =CalcProject!X409 -> 0 | CS5: =CalcProject!Y409 -> 0 | CT5: =CalcProject!Z409 -> 0 | CU5: =CalcProject!AA409 -> 0 | CV5: =CalcProject!AB409 -> 0 | CW5: =CalcProject!AC409 -> 0 | CX5: =CalcProject!AD409 -> 0 | CY5: =CalcProject!AE409 -> 0 | CZ5: =CalcProject!AF409 -> 0 | DA5: =CalcProject!AG409 -> 0 | DB5: =CalcProject!AH409 -> 0 | DC5: =CalcProject!AI409 -> 0 | DD5: =CalcProject!AJ409 -> 0 | DE5: =CalcProject!AK409 -> 0 | DF5: =CalcProject!AL409 -> 0 | DG5: =CalcProject!AM409 -> 0 | DH5: =CalcProject!AN409 -> 0 | DI5: =CalcProject!AO409 -> 0 | DJ5: =CalcProject!AP409 -> 0 | DK5: =CalcProject!AQ409 -> 0 | DL5: =CalcProject!AR409 -> 0 | DM5: =CalcProject!J415 -> 0 | DN5: =CalcProject!K415 -> 0 | DO5: =CalcProject!L415 -> 0 | DP5: =CalcProject!M415 -> 0 | DQ5: =CalcProject!N415 -> 0 | DR5: =CalcProject!O415 -> 0 | DS5: =CalcProject!P415 -> 0 | DT5: =CalcProject!Q415 -> 0 | DU5: =CalcProject!R415 -> 0 | DV5: =CalcProject!S415 -> 0 | DW5: =CalcProject!T415 -> 0 | DX5: =CalcProject!U415 -> 0 | DY5: =CalcProject!V415 -> 0 | DZ5: =CalcProject!W415 -> 0 | EA5: =CalcProject!X415 -> 0 | EB5: =CalcProject!Y415 -> 0 | EC5: =CalcProject!Z415 -> 0 | ED5: =CalcProject!AA415 -> 0 | EE5: =CalcProject!AB415 -> 0 | EF5: =CalcProject!AC415 -> 0 | EG5: =CalcProject!AD415 -> 0 | EH5: =CalcProject!AE415 -> 0 | EI5: =CalcProject!AF415 -> 0 | EJ5: =CalcProject!AG415 -> 0 | EK5: =CalcProject!AH415 -> 0 | EL5: =CalcProject!AI415 -> 0 | EM5: =CalcProject!AJ415 -> 0 | EN5: =CalcProject!AK415 -> 0 | EO5: =CalcProject!AL415 -> 0 | EP5: =CalcProject!AM415 -> 0 | EQ5: =CalcProject!AN415 -> 0 | ER5: =CalcProject!AO415 -> 0 | ES5: =CalcProject!AP415 -> 0 | ET5: =CalcProject!AQ415 -> 0 | EU5: =CalcProject!AR415 -> 0 | EV5: =CalcProject!J418 -> 0 | EW5: =CalcProject!K418 -> 0 | EX5: =CalcProject!L418 -> 0 | EY5: =CalcProject!M418 -> 0 | EZ5: =CalcProject!N418 -> 0 | FA5: =CalcProject!O418 -> 0 | FB5: =CalcProject!P418 -> 0 | FC5: =CalcProject!Q418 -> 0 | FD5: =CalcProject!R418 -> 0 | FE5: =CalcProject!S418 -> 0 | FF5: =CalcProject!T418 -> 0 | FG5: =CalcProject!U418 -> 0 | FH5: =CalcProject!V418 -> 0 | FI5: =CalcProject!W418 -> 0 | FJ5: =CalcProject!X418 -> 0 | FK5: =CalcProject!Y418 -> 0 | FL5: =CalcProject!Z418 -> 0 | FM5: =CalcProject!AA418 -> 0 | FN5: =CalcProject!AB418 -> 0 | FO5: =CalcProject!AC418 -> 0 | FP5: =CalcProject!AD418 -> 0 | FQ5: =CalcProject!AE418 -> 0 | FR5: =CalcProject!AF418 -> 0 | FS5: =CalcProject!AG418 -> 0 | FT5: =CalcProject!AH418 -> 0 | FU5: =CalcProject!AI418 -> 0 | FV5: =CalcProject!AJ418 -> 0 | FW5: =CalcProject!AK418 -> 0 | FX5: =CalcProject!AL418 -> 0 | FY5: =CalcProject!AM418 -> 0 | FZ5: =CalcProject!AN418 -> 0 | GA5: =CalcProject!AO418 -> 0 | GB5: =CalcProject!AP418 -> 0 | GC5: =CalcProject!AQ418 -> 0 | GD5: =CalcProject!AR418 -> 0 | GE5: =CalcProject!J69 -> 0 | GF5: =CalcProject!K69 -> 0 | GG5: =CalcProject!L69 -> 0 | GH5: =CalcProject!M69 -> 0 | GI5: =CalcProject!N69 -> 0 | GJ5: =CalcProject!O69 -> 0 | GK5: =CalcProject!P69 -> 0 | GL5: =CalcProject!Q69 -> 0 | GM5: =CalcProject!R69 -> 0 | GN5: =CalcProject!S69 -> 0 | GO5: =CalcProject!T69 -> 0 | GP5: =CalcProject!U69 -> 0 | GQ5: =CalcProject!V69 -> 0 | GR5: =CalcProject!W69 -> 0 | GS5: =CalcProject!X69 -> 0 | GT5: =CalcProject!Y69 -> 0 | GU5: =CalcProject!Z69 -> 0 | GV5: =CalcProject!AA69 -> 0 | GW5: =CalcProject!AB69 -> 0 | GX5: =CalcProject!AC69 -> 0 | GY5: =CalcProject!AD69 -> 0 | GZ5: =CalcProject!AE69 -> 0 | HA5: =CalcProject!AF69 -> 0 | HB5: =CalcProject!AG69 -> 0 | HC5: =CalcProject!AH69 -> 0 | HD5: =CalcProject!AI69 -> 0 | HE5: =CalcProject!AJ69 -> 0 | HF5: =CalcProject!AK69 -> 0 | HG5: =CalcProject!AL69 -> 0 | HH5: =CalcProject!AM69 -> 0 | HI5: =CalcProject!AN69 -> 0 | HJ5: =CalcProject!AO69 -> 0 | HK5: =CalcProject!AP69 -> 0 | HL5: =CalcProject!AQ69 -> 0 | HM5: =CalcProject!AR69 -> 0 | HN5: =CalcProject!J111 -> 0 | HO5: =CalcProject!K111 -> 0 | HP5: =CalcProject!L111 -> 0 | HQ5: =CalcProject!M111 -> 0 | HR5: =CalcProject!N111 -> 0 | HS5: =CalcProject!O111 -> 0 | HT5: =CalcProject!P111 -> 0 | HU5: =CalcProject!Q111 -> 0 | HV5: =CalcProject!R111 -> 0 | HW5: =CalcProject!S111 -> 0 | HX5: =CalcProject!T111 -> 0 | HY5: =CalcProject!U111 -> 0 | HZ5: =CalcProject!V111 -> 0 | IA5: =CalcProject!W111 -> 0 | IB5: =CalcProject!X111 -> 0 | IC5: =CalcProject!Y111 -> 0 | ID5: =CalcProject!Z111 -> 0 | IE5: =CalcProject!AA111 -> 0 | IF5: =CalcProject!AB111 -> 0 | IG5: =CalcProject!AC111 -> 0 | IH5: =CalcProject!AD111 -> 0 | II5: =CalcProject!AE111 -> 0 | IJ5: =CalcProject!AF111 -> 0 | IK5: =CalcProject!AG111 -> 0 | IL5: =CalcProject!AH111 -> 0 | IM5: =CalcProject!AI111 -> 0 | IN5: =CalcProject!AJ111 -> 0 | IO5: =CalcProject!AK111 -> 0 | IP5: =CalcProject!AL111 -> 0 | IQ5: =CalcProject!AM111 -> 0 | IR5: =CalcProject!AN111 -> 0 | IS5: =CalcProject!AO111 -> 0 | IT5: =CalcProject!AP111 -> 0 | IU5: =CalcProject!AQ111 -> 0 | IV5: =CalcProject!AR111 -> 0 | IW5: =CalcProject!J112 -> 0 | IX5: =CalcProject!K112 -> 0 | IY5: =CalcProject!L112 -> 0 | IZ5: =CalcProject!M112 -> 0 | JA5: =CalcProject!N112 -> 0 | JB5: =CalcProject!O112 -> 0 | JC5: =CalcProject!P112 -> 0 | JD5: =CalcProject!Q112 -> 0 | JE5: =CalcProject!R112 -> 0 | JF5: =CalcProject!S112 -> 0 | JG5: =CalcProject!T112 -> 0 | JH5: =CalcProject!U112 -> 0 | JI5: =CalcProject!V112 -> 0 | JJ5: =CalcProject!W112 -> 0 | JK5: =CalcProject!X112 -> 0 | JL5: =CalcProject!Y112 -> 0 | JM5: =CalcProject!Z112 -> 0 | JN5: =CalcProject!AA112 -> 0 | JO5: =CalcProject!AB112 -> 0 | JP5: =CalcProject!AC112 -> 0 | JQ5: =CalcProject!AD112 -> 0 | JR5: =CalcProject!AE112 -> 0 | JS5: =CalcProject!AF112 -> 0 | JT5: =CalcProject!AG112 -> 0 | JU5: =CalcProject!AH112 -> 0 | JV5: =CalcProject!AI112 -> 0 | JW5: =CalcProject!AJ112 -> 0 | JX5: =CalcProject!AK112 -> 0 | JY5: =CalcProject!AL112 -> 0 | JZ5: =CalcProject!AM112 -> 0 | KA5: =CalcProject!AN112 -> 0 | KB5: =CalcProject!AO112 -> 0 | KC5: =CalcProject!AP112 -> 0 | KD5: =CalcProject!AQ112 -> 0 | KE5: =CalcProject!AR112 -> 0 | KF5: =CalcProject!J446 -> 0 | KG5: =CalcProject!K446 -> 0 | KH5: =CalcProject!L446 -> 0 | KI5: =CalcProject!M446 -> 0 | KJ5: =CalcProject!N446 -> 0 | KK5: =CalcProject!O446 -> 0 | KL5: =CalcProject!P446 -> 0 | KM5: =CalcProject!Q446 -> 0 | KN5: =CalcProject!R446 -> 0 | KO5: =CalcProject!S446 -> 0 | KP5: =CalcProject!T446 -> 0 | KQ5: =CalcProject!U446 -> 0 | KR5: =CalcProject!V446 -> 0 | KS5: =CalcProject!W446 -> 0 | KT5: =CalcProject!X446 -> 0 | KU5: =CalcProject!Y446 -> 0 | KV5: =CalcProject!Z446 -> 0 | KW5: =CalcProject!AA446 -> 0 | KX5: =CalcProject!AB446 -> 0 | KY5: =CalcProject!AC446 -> 0 | KZ5: =CalcProject!AD446 -> 0 | LA5: =CalcProject!AE446 -> 0 | LB5: =CalcProject!AF446 -> 0 | LC5: =CalcProject!AG446 -> 0 | LD5: =CalcProject!AH446 -> 0 | LE5: =CalcProject!AI446 -> 0 | LF5: =CalcProject!AJ446 -> 0 | LG5: =CalcProject!AK446 -> 0 | LH5: =CalcProject!AL446 -> 0 | LI5: =CalcProject!AM446 -> 0 | LJ5: =CalcProject!AN446 -> 0 | LK5: =CalcProject!AO446 -> 0 | LL5: =CalcProject!AP446 -> 0 | LM5: =CalcProject!AQ446 -> 0 | LN5: =CalcProject!AR446 -> 0 | LO5: =CalcProject!J424 -> 0 | LP5: =CalcProject!K424 -> 0 | LQ5: =CalcProject!L424 -> 0 | LR5: =CalcProject!M424 -> 0 | LS5: =CalcProject!N424 -> 0 | LT5: =CalcProject!O424 -> 0 | LU5: =CalcProject!P424 -> 0 | LV5: =CalcProject!Q424 -> 0 | LW5: =CalcProject!R424 -> 0 | LX5: =CalcProject!S424 -> 0 | LY5: =CalcProject!T424 -> 0 | LZ5: =CalcProject!U424 -> 0 | MA5: =CalcProject!V424 -> 0 | MB5: =CalcProject!W424 -> 0 | MC5: =CalcProject!X424 -> 0 | MD5: =CalcProject!Y424 -> 0 | ME5: =CalcProject!Z424 -> 0 | MF5: =CalcProject!AA424 -> 0 | MG5: =CalcProject!AB424 -> 0 | MH5: =CalcProject!AC424 -> 0 | MI5: =CalcProject!AD424 -> 0 | MJ5: =CalcProject!AE424 -> 0 | MK5: =CalcProject!AF424 -> 0 | ML5: =CalcProject!AG424 -> 0 | MM5: =CalcProject!AH424 -> 0 | MN5: =CalcProject!AI424 -> 0 | MO5: =CalcProject!AJ424 -> 0 | MP5: =CalcProject!AK424 -> 0 | MQ5: =CalcProject!AL424 -> 0 | MR5: =CalcProject!AM424 -> 0 | MS5: =CalcProject!AN424 -> 0 | MT5: =CalcProject!AO424 -> 0 | MU5: =CalcProject!AP424 -> 0 | MV5: =CalcProject!AQ424 -> 0 | MW5: =CalcProject!AR424 -> 0
E6: 1 | F6: (Deel)complex 1 | G6: 0 | H6: 0 | I6: 0 | J6: 0 | K6: 0 | L6: 0 | M6: 0 | N6: 0 | O6: 0 | P6: 0 | Q6: 0 | R6: 0 | S6: 0 | T6: 0 | U6: 0 | V6: 0 | W6: 0 | X6: 0 | Y6: 0 | Z6: 0 | AA6: 0 | AB6: 0 | AC6: 0 | AD6: 0 | AE6: 0 | AF6: 0 | AG6: 0 | AH6: 0 | AI6: 0 | AJ6: 0 | AK6: 0 | AL6: 0 | AM6: 0 | AN6: 0 | AO6: 0 | AP6: 0 | AQ6: 0 | AR6: 0 | AS6: 0 | AT6: 0 | AU6: 0 | AV6: 0 | AW6: 0 | AX6: 0 | AY6: 0 | AZ6: 0 | BA6: 0 | BB6: 0 | BC6: 0 | BD6: 0 | BE6: 0 | BF6: 0 | BG6: 0 | BH6: 0 | BI6: 0 | BJ6: 0 | BK6: 0 | BL6: 0 | BM6: 0 | BN6: 0 | BO6: 0 | BP6: 0 | BQ6: 0 | BR6: 0 | BS6: 0 | BT6: 0 | BU6: 0 | BV6: 0 | BW6: 0 | BX6: 0 | BY6: 0 | BZ6: 0 | CA6: 0 | CB6: 0 | CC6: 0 | CD6: 0 | CE6: 0 | CF6: 0 | CG6: 0 | CH6: 0 | CI6: 0 | CJ6: 0 | CK6: 0 | CL6: 0 | CM6: 0 | CN6: 0 | CO6: 0 | CP6: 0 | CQ6: 0 | CR6: 0 | CS6: 0 | CT6: 0 | CU6: 0 | CV6: 0 | CW6: 0 | CX6: 0 | CY6: 0 | CZ6: 0 | DA6: 0 | DB6: 0 | DC6: 0 | DD6: 0 | DE6: 0 | DF6: 0 | DG6: 0 | DH6: 0 | DI6: 0 | DJ6: 0 | DK6: 0 | DL6: 0 | DM6: 0 | DN6: 0 | DO6: 0 | DP6: 0 | DQ6: 0 | DR6: 0 | DS6: 0 | DT6: 0 | DU6: 0 | DV6: 0 | DW6: 0 | DX6: 0 | DY6: 0 | DZ6: 0 | EA6: 0 | EB6: 0 | EC6: 0 | ED6: 0 | EE6: 0 | EF6: 0 | EG6: 0 | EH6: 0 | EI6: 0 | EJ6: 0 | EK6: 0 | EL6: 0 | EM6: 0 | EN6: 0 | EO6: 0 | EP6: 0 | EQ6: 0 | ER6: 0 | ES6: 0 | ET6: 0 | EU6: 0 | EV6: 0 | EW6: 0 | EX6: 0 | EY6: 0 | EZ6: 0 | FA6: 0 | FB6: 0 | FC6: 0 | FD6: 0 | FE6: 0 | FF6: 0 | FG6: 0 | FH6: 0 | FI6: 0 | FJ6: 0 | FK6: 0 | FL6: 0 | FM6: 0 | FN6: 0 | FO6: 0 | FP6: 0 | FQ6: 0 | FR6: 0 | FS6: 0 | FT6: 0 | FU6: 0 | FV6: 0 | FW6: 0 | FX6: 0 | FY6: 0 | FZ6: 0 | GA6: 0 | GB6: 0 | GC6: 0 | GD6: 0 | GE6: 0 | GF6: 0 | GG6: 0 | GH6: 0 | GI6: 0 | GJ6: 0 | GK6: 0 | GL6: 0 | GM6: 0 | GN6: 0 | GO6: 0 | GP6: 0 | GQ6: 0 | GR6: 0 | GS6: 0 | GT6: 0 | GU6: 0 | GV6: 0 | GW6: 0 | GX6: 0 | GY6: 0 | GZ6: 0 | HA6: 0 | HB6: 0 | HC6: 0 | HD6: 0 | HE6: 0 | HF6: 0 | HG6: 0 | HH6: 0 | HI6: 0 | HJ6: 0 | HK6: 0 | HL6: 0 | HM6: 0 | HN6: 0 | HO6: 0 | HP6: 0 | HQ6: 0 | HR6: 0 | HS6: 0 | HT6: 0 | HU6: 0 | HV6: 0 | HW6: 0 | HX6: 0 | HY6: 0 | HZ6: 0 | IA6: 0 | IB6: 0 | IC6: 0 | ID6: 0 | IE6: 0 | IF6: 0 | IG6: 0 | IH6: 0 | II6: 0 | IJ6: 0 | IK6: 0 | IL6: 0 | IM6: 0 | IN6: 0 | IO6: 0 | IP6: 0 | IQ6: 0 | IR6: 0 | IS6: 0 | IT6: 0 | IU6: 0 | IV6: 0 | IW6: 0 | IX6: 0 | IY6: 0 | IZ6: 0 | JA6: 0 | JB6: 0 | JC6: 0 | JD6: 0 | JE6: 0 | JF6: 0 | JG6: 0 | JH6: 0 | JI6: 0 | JJ6: 0 | JK6: 0 | JL6: 0 | JM6: 0 | JN6: 0 | JO6: 0 | JP6: 0 | JQ6: 0 | JR6: 0 | JS6: 0 | JT6: 0 | JU6: 0 | JV6: 0 | JW6: 0 | JX6: 0 | JY6: 0 | JZ6: 0 | KA6: 0 | KB6: 0 | KC6: 0 | KD6: 0 | KE6: 0 | KF6: 0 | KG6: 0 | KH6: 0 | KI6: 0 | KJ6: 0 | KK6: 0 | KL6: 0 | KM6: 0 | KN6: 0 | KO6: 0 | KP6: 0 | KQ6: 0 | KR6: 0 | KS6: 0 | KT6: 0 | KU6: 0 | KV6: 0 | KW6: 0 | KX6: 0 | KY6: 0 | KZ6: 0 | LA6: 0 | LB6: 0 | LC6: 0 | LD6: 0 | LE6: 0 | LF6: 0 | LG6: 0 | LH6: 0 | LI6: 0 | LJ6: 0 | LK6: 0 | LL6: 0 | LM6: 0 | LN6: 0 | LO6: 0 | LP6: 0 | LQ6: 0 | LR6: 0 | LS6: 0 | LT6: 0 | LU6: 0 | LV6: 0 | LW6: 0 | LX6: 0 | LY6: 0 | LZ6: 0 | MA6: 0 | MB6: 0 | MC6: 0 | MD6: 0 | ME6: 0 | MF6: 0 | MG6: 0 | MH6: 0 | MI6: 0 | MJ6: 0 | MK6: 0 | ML6: 0 | MM6: 0 | MN6: 0 | MO6: 0 | MP6: 0 | MQ6: 0 | MR6: 0 | MS6: 0 | MT6: 0 | MU6: 0 | MV6: 0 | MW6: 0
E7: =E6 + 1 -> 2 | F7: (Deel)complex 2 | G7: 0 | H7: 0 | I7: 0 | J7: 0 | K7: 0 | L7: 0 | M7: 0 | N7: 0 | O7: 0 | P7: 0 | Q7: 0 | R7: 0 | S7: 0 | T7: 0 | U7: 0 | V7: 0 | W7: 0 | X7: 0 | Y7: 0 | Z7: 0 | AA7: 0 | AB7: 0 | AC7: 0 | AD7: 0 | AE7: 0 | AF7: 0 | AG7: 0 | AH7: 0 | AI7: 0 | AJ7: 0 | AK7: 0 | AL7: 0 | AM7: 0 | AN7: 0 | AO7: 0 | AP7: 0 | AQ7: 0 | AR7: 0 | AS7: 0 | AT7: 0 | AU7: 0 | AV7: 0 | AW7: 0 | AX7: 0 | AY7: 0 | AZ7: 0 | BA7: 0 | BB7: 0 | BC7: 0 | BD7: 0 | BE7: 0 | BF7: 0 | BG7: 0 | BH7: 0 | BI7: 0 | BJ7: 0 | BK7: 0 | BL7: 0 | BM7: 0 | BN7: 0 | BO7: 0 | BP7: 0 | BQ7: 0 | BR7: 0 | BS7: 0 | BT7: 0 | BU7: 0 | BV7: 0 | BW7: 0 | BX7: 0 | BY7: 0 | BZ7: 0 | CA7: 0 | CB7: 0 | CC7: 0 | CD7: 0 | CE7: 0 | CF7: 0 | CG7: 0 | CH7: 0 | CI7: 0 | CJ7: 0 | CK7: 0 | CL7: 0 | CM7: 0 | CN7: 0 | CO7: 0 | CP7: 0 | CQ7: 0 | CR7: 0 | CS7: 0 | CT7: 0 | CU7: 0 | CV7: 0 | CW7: 0 | CX7: 0 | CY7: 0 | CZ7: 0 | DA7: 0 | DB7: 0 | DC7: 0 | DD7: 0 | DE7: 0 | DF7: 0 | DG7: 0 | DH7: 0 | DI7: 0 | DJ7: 0 | DK7: 0 | DL7: 0 | DM7: 0 | DN7: 0 | DO7: 0 | DP7: 0 | DQ7: 0 | DR7: 0 | DS7: 0 | DT7: 0 | DU7: 0 | DV7: 0 | DW7: 0 | DX7: 0 | DY7: 0 | DZ7: 0 | EA7: 0 | EB7: 0 | EC7: 0 | ED7: 0 | EE7: 0 | EF7: 0 | EG7: 0 | EH7: 0 | EI7: 0 | EJ7: 0 | EK7: 0 | EL7: 0 | EM7: 0 | EN7: 0 | EO7: 0 | EP7: 0 | EQ7: 0 | ER7: 0 | ES7: 0 | ET7: 0 | EU7: 0 | EV7: 0 | EW7: 0 | EX7: 0 | EY7: 0 | EZ7: 0 | FA7: 0 | FB7: 0 | FC7: 0 | FD7: 0 | FE7: 0 | FF7: 0 | FG7: 0 | FH7: 0 | FI7: 0 | FJ7: 0 | FK7: 0 | FL7: 0 | FM7: 0 | FN7: 0 | FO7: 0 | FP7: 0 | FQ7: 0 | FR7: 0 | FS7: 0 | FT7: 0 | FU7: 0 | FV7: 0 | FW7: 0 | FX7: 0 | FY7: 0 | FZ7: 0 | GA7: 0 | GB7: 0 | GC7: 0 | GD7: 0 | GE7: 0 | GF7: 0 | GG7: 0 | GH7: 0 | GI7: 0 | GJ7: 0 | GK7: 0 | GL7: 0 | GM7: 0 | GN7: 0 | GO7: 0 | GP7: 0 | GQ7: 0 | GR7: 0 | GS7: 0 | GT7: 0 | GU7: 0 | GV7: 0 | GW7: 0 | GX7: 0 | GY7: 0 | GZ7: 0 | HA7: 0 | HB7: 0 | HC7: 0 | HD7: 0 | HE7: 0 | HF7: 0 | HG7: 0 | HH7: 0 | HI7: 0 | HJ7: 0 | HK7: 0 | HL7: 0 | HM7: 0 | HN7: 0 | HO7: 0 | HP7: 0 | HQ7: 0 | HR7: 0 | HS7: 0 | HT7: 0 | HU7: 0 | HV7: 0 | HW7: 0 | HX7: 0 | HY7: 0 | HZ7: 0 | IA7: 0 | IB7: 0 | IC7: 0 | ID7: 0 | IE7: 0 | IF7: 0 | IG7: 0 | IH7: 0 | II7: 0 | IJ7: 0 | IK7: 0 | IL7: 0 | IM7: 0 | IN7: 0 | IO7: 0 | IP7: 0 | IQ7: 0 | IR7: 0 | IS7: 0 | IT7: 0 | IU7: 0 | IV7: 0 | IW7: 0 | IX7: 0 | IY7: 0 | IZ7: 0 | JA7: 0 | JB7: 0 | JC7: 0 | JD7: 0 | JE7: 0 | JF7: 0 | JG7: 0 | JH7: 0 | JI7: 0 | JJ7: 0 | JK7: 0 | JL7: 0 | JM7: 0 | JN7: 0 | JO7: 0 | JP7: 0 | JQ7: 0 | JR7: 0 | JS7: 0 | JT7: 0 | JU7: 0 | JV7: 0 | JW7: 0 | JX7: 0 | JY7: 0 | JZ7: 0 | KA7: 0 | KB7: 0 | KC7: 0 | KD7: 0 | KE7: 0 | KF7: 0 | KG7: 0 | KH7: 0 | KI7: 0 | KJ7: 0 | KK7: 0 | KL7: 0 | KM7: 0 | KN7: 0 | KO7: 0 | KP7: 0 | KQ7: 0 | KR7: 0 | KS7: 0 | KT7: 0 | KU7: 0 | KV7: 0 | KW7: 0 | KX7: 0 | KY7: 0 | KZ7: 0 | LA7: 0 | LB7: 0 | LC7: 0 | LD7: 0 | LE7: 0 | LF7: 0 | LG7: 0 | LH7: 0 | LI7: 0 | LJ7: 0 | LK7: 0 | LL7: 0 | LM7: 0 | LN7: 0 | LO7: 0 | LP7: 0 | LQ7: 0 | LR7: 0 | LS7: 0 | LT7: 0 | LU7: 0 | LV7: 0 | LW7: 0 | LX7: 0 | LY7: 0 | LZ7: 0 | MA7: 0 | MB7: 0 | MC7: 0 | MD7: 0 | ME7: 0 | MF7: 0 | MG7: 0 | MH7: 0 | MI7: 0 | MJ7: 0 | MK7: 0 | ML7: 0 | MM7: 0 | MN7: 0 | MO7: 0 | MP7: 0 | MQ7: 0 | MR7: 0 | MS7: 0 | MT7: 0 | MU7: 0 | MV7: 0 | MW7: 0
E8: 3 | F8: (Deel)complex 3 | G8: 0 | H8: 0 | I8: 0 | J8: 0 | K8: 0 | L8: 0 | M8: 0 | N8: 0 | O8: 0 | P8: 0 | Q8: 0 | R8: 0 | S8: 0 | T8: 0 | U8: 0 | V8: 0 | W8: 0 | X8: 0 | Y8: 0 | Z8: 0 | AA8: 0 | AB8: 0 | AC8: 0 | AD8: 0 | AE8: 0 | AF8: 0 | AG8: 0 | AH8: 0 | AI8: 0 | AJ8: 0 | AK8: 0 | AL8: 0 | AM8: 0 | AN8: 0 | AO8: 0 | AP8: 0 | AQ8: 0 | AR8: 0 | AS8: 0 | AT8: 0 | AU8: 0 | AV8: 0 | AW8: 0 | AX8: 0 | AY8: 0 | AZ8: 0 | BA8: 0 | BB8: 0 | BC8: 0 | BD8: 0 | BE8: 0 | BF8: 0 | BG8: 0 | BH8: 0 | BI8: 0 | BJ8: 0 | BK8: 0 | BL8: 0 | BM8: 0 | BN8: 0 | BO8: 0 | BP8: 0 | BQ8: 0 | BR8: 0 | BS8: 0 | BT8: 0 | BU8: 0 | BV8: 0 | BW8: 0 | BX8: 0 | BY8: 0 | BZ8: 0 | CA8: 0 | CB8: 0 | CC8: 0 | CD8: 0 | CE8: 0 | CF8: 0 | CG8: 0 | CH8: 0 | CI8: 0 | CJ8: 0 | CK8: 0 | CL8: 0 | CM8: 0 | CN8: 0 | CO8: 0 | CP8: 0 | CQ8: 0 | CR8: 0 | CS8: 0 | CT8: 0 | CU8: 0 | CV8: 0 | CW8: 0 | CX8: 0 | CY8: 0 | CZ8: 0 | DA8: 0 | DB8: 0 | DC8: 0 | DD8: 0 | DE8: 0 | DF8: 0 | DG8: 0 | DH8: 0 | DI8: 0 | DJ8: 0 | DK8: 0 | DL8: 0 | DM8: 0 | DN8: 0 | DO8: 0 | DP8: 0 | DQ8: 0 | DR8: 0 | DS8: 0 | DT8: 0 | DU8: 0 | DV8: 0 | DW8: 0 | DX8: 0 | DY8: 0 | DZ8: 0 | EA8: 0 | EB8: 0 | EC8: 0 | ED8: 0 | EE8: 0 | EF8: 0 | EG8: 0 | EH8: 0 | EI8: 0 | EJ8: 0 | EK8: 0 | EL8: 0 | EM8: 0 | EN8: 0 | EO8: 0 | EP8: 0 | EQ8: 0 | ER8: 0 | ES8: 0 | ET8: 0 | EU8: 0 | EV8: 0 | EW8: 0 | EX8: 0 | EY8: 0 | EZ8: 0 | FA8: 0 | FB8: 0 | FC8: 0 | FD8: 0 | FE8: 0 | FF8: 0 | FG8: 0 | FH8: 0 | FI8: 0 | FJ8: 0 | FK8: 0 | FL8: 0 | FM8: 0 | FN8: 0 | FO8: 0 | FP8: 0 | FQ8: 0 | FR8: 0 | FS8: 0 | FT8: 0 | FU8: 0 | FV8: 0 | FW8: 0 | FX8: 0 | FY8: 0 | FZ8: 0 | GA8: 0 | GB8: 0 | GC8: 0 | GD8: 0 | GE8: 0 | GF8: 0 | GG8: 0 | GH8: 0 | GI8: 0 | GJ8: 0 | GK8: 0 | GL8: 0 | GM8: 0 | GN8: 0 | GO8: 0 | GP8: 0 | GQ8: 0 | GR8: 0 | GS8: 0 | GT8: 0 | GU8: 0 | GV8: 0 | GW8: 0 | GX8: 0 | GY8: 0 | GZ8: 0 | HA8: 0 | HB8: 0 | HC8: 0 | HD8: 0 | HE8: 0 | HF8: 0 | HG8: 0 | HH8: 0 | HI8: 0 | HJ8: 0 | HK8: 0 | HL8: 0 | HM8: 0 | HN8: 0 | HO8: 0 | HP8: 0 | HQ8: 0 | HR8: 0 | HS8: 0 | HT8: 0 | HU8: 0 | HV8: 0 | HW8: 0 | HX8: 0 | HY8: 0 | HZ8: 0 | IA8: 0 | IB8: 0 | IC8: 0 | ID8: 0 | IE8: 0 | IF8: 0 | IG8: 0 | IH8: 0 | II8: 0 | IJ8: 0 | IK8: 0 | IL8: 0 | IM8: 0 | IN8: 0 | IO8: 0 | IP8: 0 | IQ8: 0 | IR8: 0 | IS8: 0 | IT8: 0 | IU8: 0 | IV8: 0 | IW8: 0 | IX8: 0 | IY8: 0 | IZ8: 0 | JA8: 0 | JB8: 0 | JC8: 0 | JD8: 0 | JE8: 0 | JF8: 0 | JG8: 0 | JH8: 0 | JI8: 0 | JJ8: 0 | JK8: 0 | JL8: 0 | JM8: 0 | JN8: 0 | JO8: 0 | JP8: 0 | JQ8: 0 | JR8: 0 | JS8: 0 | JT8: 0 | JU8: 0 | JV8: 0 | JW8: 0 | JX8: 0 | JY8: 0 | JZ8: 0 | KA8: 0 | KB8: 0 | KC8: 0 | KD8: 0 | KE8: 0 | KF8: 0 | KG8: 0 | KH8: 0 | KI8: 0 | KJ8: 0 | KK8: 0 | KL8: 0 | KM8: 0 | KN8: 0 | KO8: 0 | KP8: 0 | KQ8: 0 | KR8: 0 | KS8: 0 | KT8: 0 | KU8: 0 | KV8: 0 | KW8: 0 | KX8: 0 | KY8: 0 | KZ8: 0 | LA8: 0 | LB8: 0 | LC8: 0 | LD8: 0 | LE8: 0 | LF8: 0 | LG8: 0 | LH8: 0 | LI8: 0 | LJ8: 0 | LK8: 0 | LL8: 0 | LM8: 0 | LN8: 0 | LO8: 0 | LP8: 0 | LQ8: 0 | LR8: 0 | LS8: 0 | LT8: 0 | LU8: 0 | LV8: 0 | LW8: 0 | LX8: 0 | LY8: 0 | LZ8: 0 | MA8: 0 | MB8: 0 | MC8: 0 | MD8: 0 | ME8: 0 | MF8: 0 | MG8: 0 | MH8: 0 | MI8: 0 | MJ8: 0 | MK8: 0 | ML8: 0 | MM8: 0 | MN8: 0 | MO8: 0 | MP8: 0 | MQ8: 0 | MR8: 0 | MS8: 0 | MT8: 0 | MU8: 0 | MV8: 0 | MW8: 0
E9: 4 | F9: (Deel)complex 4 | G9: 0 | H9: 0 | I9: 0 | J9: 0 | K9: 0 | L9: 0 | M9: 0 | N9: 0 | O9: 0 | P9: 0 | Q9: 0 | R9: 0 | S9: 0 | T9: 0 | U9: 0 | V9: 0 | W9: 0 | X9: 0 | Y9: 0 | Z9: 0 | AA9: 0 | AB9: 0 | AC9: 0 | AD9: 0 | AE9: 0 | AF9: 0 | AG9: 0 | AH9: 0 | AI9: 0 | AJ9: 0 | AK9: 0 | AL9: 0 | AM9: 0 | AN9: 0 | AO9: 0 | AP9: 0 | AQ9: 0 | AR9: 0 | AS9: 0 | AT9: 0 | AU9: 0 | AV9: 0 | AW9: 0 | AX9: 0 | AY9: 0 | AZ9: 0 | BA9: 0 | BB9: 0 | BC9: 0 | BD9: 0 | BE9: 0 | BF9: 0 | BG9: 0 | BH9: 0 | BI9: 0 | BJ9: 0 | BK9: 0 | BL9: 0 | BM9: 0 | BN9: 0 | BO9: 0 | BP9: 0 | BQ9: 0 | BR9: 0 | BS9: 0 | BT9: 0 | BU9: 0 | BV9: 0 | BW9: 0 | BX9: 0 | BY9: 0 | BZ9: 0 | CA9: 0 | CB9: 0 | CC9: 0 | CD9: 0 | CE9: 0 | CF9: 0 | CG9: 0 | CH9: 0 | CI9: 0 | CJ9: 0 | CK9: 0 | CL9: 0 | CM9: 0 | CN9: 0 | CO9: 0 | CP9: 0 | CQ9: 0 | CR9: 0 | CS9: 0 | CT9: 0 | CU9: 0 | CV9: 0 | CW9: 0 | CX9: 0 | CY9: 0 | CZ9: 0 | DA9: 0 | DB9: 0 | DC9: 0 | DD9: 0 | DE9: 0 | DF9: 0 | DG9: 0 | DH9: 0 | DI9: 0 | DJ9: 0 | DK9: 0 | DL9: 0 | DM9: 0 | DN9: 0 | DO9: 0 | DP9: 0 | DQ9: 0 | DR9: 0 | DS9: 0 | DT9: 0 | DU9: 0 | DV9: 0 | DW9: 0 | DX9: 0 | DY9: 0 | DZ9: 0 | EA9: 0 | EB9: 0 | EC9: 0 | ED9: 0 | EE9: 0 | EF9: 0 | EG9: 0 | EH9: 0 | EI9: 0 | EJ9: 0 | EK9: 0 | EL9: 0 | EM9: 0 | EN9: 0 | EO9: 0 | EP9: 0 | EQ9: 0 | ER9: 0 | ES9: 0 | ET9: 0 | EU9: 0 | EV9: 0 | EW9: 0 | EX9: 0 | EY9: 0 | EZ9: 0 | FA9: 0 | FB9: 0 | FC9: 0 | FD9: 0 | FE9: 0 | FF9: 0 | FG9: 0 | FH9: 0 | FI9: 0 | FJ9: 0 | FK9: 0 | FL9: 0 | FM9: 0 | FN9: 0 | FO9: 0 | FP9: 0 | FQ9: 0 | FR9: 0 | FS9: 0 | FT9: 0 | FU9: 0 | FV9: 0 | FW9: 0 | FX9: 0 | FY9: 0 | FZ9: 0 | GA9: 0 | GB9: 0 | GC9: 0 | GD9: 0 | GE9: 0 | GF9: 0 | GG9: 0 | GH9: 0 | GI9: 0 | GJ9: 0 | GK9: 0 | GL9: 0 | GM9: 0 | GN9: 0 | GO9: 0 | GP9: 0 | GQ9: 0 | GR9: 0 | GS9: 0 | GT9: 0 | GU9: 0 | GV9: 0 | GW9: 0 | GX9: 0 | GY9: 0 | GZ9: 0 | HA9: 0 | HB9: 0 | HC9: 0 | HD9: 0 | HE9: 0 | HF9: 0 | HG9: 0 | HH9: 0 | HI9: 0 | HJ9: 0 | HK9: 0 | HL9: 0 | HM9: 0 | HN9: 0 | HO9: 0 | HP9: 0 | HQ9: 0 | HR9: 0 | HS9: 0 | HT9: 0 | HU9: 0 | HV9: 0 | HW9: 0 | HX9: 0 | HY9: 0 | HZ9: 0 | IA9: 0 | IB9: 0 | IC9: 0 | ID9: 0 | IE9: 0 | IF9: 0 | IG9: 0 | IH9: 0 | II9: 0 | IJ9: 0 | IK9: 0 | IL9: 0 | IM9: 0 | IN9: 0 | IO9: 0 | IP9: 0 | IQ9: 0 | IR9: 0 | IS9: 0 | IT9: 0 | IU9: 0 | IV9: 0 | IW9: 0 | IX9: 0 | IY9: 0 | IZ9: 0 | JA9: 0 | JB9: 0 | JC9: 0 | JD9: 0 | JE9: 0 | JF9: 0 | JG9: 0 | JH9: 0 | JI9: 0 | JJ9: 0 | JK9: 0 | JL9: 0 | JM9: 0 | JN9: 0 | JO9: 0 | JP9: 0 | JQ9: 0 | JR9: 0 | JS9: 0 | JT9: 0 | JU9: 0 | JV9: 0 | JW9: 0 | JX9: 0 | JY9: 0 | JZ9: 0 | KA9: 0 | KB9: 0 | KC9: 0 | KD9: 0 | KE9: 0 | KF9: 0 | KG9: 0 | KH9: 0 | KI9: 0 | KJ9: 0 | KK9: 0 | KL9: 0 | KM9: 0 | KN9: 0 | KO9: 0 | KP9: 0 | KQ9: 0 | KR9: 0 | KS9: 0 | KT9: 0 | KU9: 0 | KV9: 0 | KW9: 0 | KX9: 0 | KY9: 0 | KZ9: 0 | LA9: 0 | LB9: 0 | LC9: 0 | LD9: 0 | LE9: 0 | LF9: 0 | LG9: 0 | LH9: 0 | LI9: 0 | LJ9: 0 | LK9: 0 | LL9: 0 | LM9: 0 | LN9: 0 | LO9: 0 | LP9: 0 | LQ9: 0 | LR9: 0 | LS9: 0 | LT9: 0 | LU9: 0 | LV9: 0 | LW9: 0 | LX9: 0 | LY9: 0 | LZ9: 0 | MA9: 0 | MB9: 0 | MC9: 0 | MD9: 0 | ME9: 0 | MF9: 0 | MG9: 0 | MH9: 0 | MI9: 0 | MJ9: 0 | MK9: 0 | ML9: 0 | MM9: 0 | MN9: 0 | MO9: 0 | MP9: 0 | MQ9: 0 | MR9: 0 | MS9: 0 | MT9: 0 | MU9: 0 | MV9: 0 | MW9: 0
E10: 5 | F10: (Deel)complex 5 | G10: 0 | H10: 0 | I10: 0 | J10: 0 | K10: 0 | L10: 0 | M10: 0 | N10: 0 | O10: 0 | P10: 0 | Q10: 0 | R10: 0 | S10: 0 | T10: 0 | U10: 0 | V10: 0 | W10: 0 | X10: 0 | Y10: 0 | Z10: 0 | AA10: 0 | AB10: 0 | AC10: 0 | AD10: 0 | AE10: 0 | AF10: 0 | AG10: 0 | AH10: 0 | AI10: 0 | AJ10: 0 | AK10: 0 | AL10: 0 | AM10: 0 | AN10: 0 | AO10: 0 | AP10: 0 | AQ10: 0 | AR10: 0 | AS10: 0 | AT10: 0 | AU10: 0 | AV10: 0 | AW10: 0 | AX10: 0 | AY10: 0 | AZ10: 0 | BA10: 0 | BB10: 0 | BC10: 0 | BD10: 0 | BE10: 0 | BF10: 0 | BG10: 0 | BH10: 0 | BI10: 0 | BJ10: 0 | BK10: 0 | BL10: 0 | BM10: 0 | BN10: 0 | BO10: 0 | BP10: 0 | BQ10: 0 | BR10: 0 | BS10: 0 | BT10: 0 | BU10: 0 | BV10: 0 | BW10: 0 | BX10: 0 | BY10: 0 | BZ10: 0 | CA10: 0 | CB10: 0 | CC10: 0 | CD10: 0 | CE10: 0 | CF10: 0 | CG10: 0 | CH10: 0 | CI10: 0 | CJ10: 0 | CK10: 0 | CL10: 0 | CM10: 0 | CN10: 0 | CO10: 0 | CP10: 0 | CQ10: 0 | CR10: 0 | CS10: 0 | CT10: 0 | CU10: 0 | CV10: 0 | CW10: 0 | CX10: 0 | CY10: 0 | CZ10: 0 | DA10: 0 | DB10: 0 | DC10: 0 | DD10: 0 | DE10: 0 | DF10: 0 | DG10: 0 | DH10: 0 | DI10: 0 | DJ10: 0 | DK10: 0 | DL10: 0 | DM10: 0 | DN10: 0 | DO10: 0 | DP10: 0 | DQ10: 0 | DR10: 0 | DS10: 0 | DT10: 0 | DU10: 0 | DV10: 0 | DW10: 0 | DX10: 0 | DY10: 0 | DZ10: 0 | EA10: 0 | EB10: 0 | EC10: 0 | ED10: 0 | EE10: 0 | EF10: 0 | EG10: 0 | EH10: 0 | EI10: 0 | EJ10: 0 | EK10: 0 | EL10: 0 | EM10: 0 | EN10: 0 | EO10: 0 | EP10: 0 | EQ10: 0 | ER10: 0 | ES10: 0 | ET10: 0 | EU10: 0 | EV10: 0 | EW10: 0 | EX10: 0 | EY10: 0 | EZ10: 0 | FA10: 0 | FB10: 0 | FC10: 0 | FD10: 0 | FE10: 0 | FF10: 0 | FG10: 0 | FH10: 0 | FI10: 0 | FJ10: 0 | FK10: 0 | FL10: 0 | FM10: 0 | FN10: 0 | FO10: 0 | FP10: 0 | FQ10: 0 | FR10: 0 | FS10: 0 | FT10: 0 | FU10: 0 | FV10: 0 | FW10: 0 | FX10: 0 | FY10: 0 | FZ10: 0 | GA10: 0 | GB10: 0 | GC10: 0 | GD10: 0 | GE10: 0 | GF10: 0 | GG10: 0 | GH10: 0 | GI10: 0 | GJ10: 0 | GK10: 0 | GL10: 0 | GM10: 0 | GN10: 0 | GO10: 0 | GP10: 0 | GQ10: 0 | GR10: 0 | GS10: 0 | GT10: 0 | GU10: 0 | GV10: 0 | GW10: 0 | GX10: 0 | GY10: 0 | GZ10: 0 | HA10: 0 | HB10: 0 | HC10: 0 | HD10: 0 | HE10: 0 | HF10: 0 | HG10: 0 | HH10: 0 | HI10: 0 | HJ10: 0 | HK10: 0 | HL10: 0 | HM10: 0 | HN10: 0 | HO10: 0 | HP10: 0 | HQ10: 0 | HR10: 0 | HS10: 0 | HT10: 0 | HU10: 0 | HV10: 0 | HW10: 0 | HX10: 0 | HY10: 0 | HZ10: 0 | IA10: 0 | IB10: 0 | IC10: 0 | ID10: 0 | IE10: 0 | IF10: 0 | IG10: 0 | IH10: 0 | II10: 0 | IJ10: 0 | IK10: 0 | IL10: 0 | IM10: 0 | IN10: 0 | IO10: 0 | IP10: 0 | IQ10: 0 | IR10: 0 | IS10: 0 | IT10: 0 | IU10: 0 | IV10: 0 | IW10: 0 | IX10: 0 | IY10: 0 | IZ10: 0 | JA10: 0 | JB10: 0 | JC10: 0 | JD10: 0 | JE10: 0 | JF10: 0 | JG10: 0 | JH10: 0 | JI10: 0 | JJ10: 0 | JK10: 0 | JL10: 0 | JM10: 0 | JN10: 0 | JO10: 0 | JP10: 0 | JQ10: 0 | JR10: 0 | JS10: 0 | JT10: 0 | JU10: 0 | JV10: 0 | JW10: 0 | JX10: 0 | JY10: 0 | JZ10: 0 | KA10: 0 | KB10: 0 | KC10: 0 | KD10: 0 | KE10: 0 | KF10: 0 | KG10: 0 | KH10: 0 | KI10: 0 | KJ10: 0 | KK10: 0 | KL10: 0 | KM10: 0 | KN10: 0 | KO10: 0 | KP10: 0 | KQ10: 0 | KR10: 0 | KS10: 0 | KT10: 0 | KU10: 0 | KV10: 0 | KW10: 0 | KX10: 0 | KY10: 0 | KZ10: 0 | LA10: 0 | LB10: 0 | LC10: 0 | LD10: 0 | LE10: 0 | LF10: 0 | LG10: 0 | LH10: 0 | LI10: 0 | LJ10: 0 | LK10: 0 | LL10: 0 | LM10: 0 | LN10: 0 | LO10: 0 | LP10: 0 | LQ10: 0 | LR10: 0 | LS10: 0 | LT10: 0 | LU10: 0 | LV10: 0 | LW10: 0 | LX10: 0 | LY10: 0 | LZ10: 0 | MA10: 0 | MB10: 0 | MC10: 0 | MD10: 0 | ME10: 0 | MF10: 0 | MG10: 0 | MH10: 0 | MI10: 0 | MJ10: 0 | MK10: 0 | ML10: 0 | MM10: 0 | MN10: 0 | MO10: 0 | MP10: 0 | MQ10: 0 | MR10: 0 | MS10: 0 | MT10: 0 | MU10: 0 | MV10: 0 | MW10: 0
E11: 6 | F11: (Deel)complex 6 | G11: 0 | H11: 0 | I11: 0 | J11: 0 | K11: 0 | L11: 0 | M11: 0 | N11: 0 | O11: 0 | P11: 0 | Q11: 0 | R11: 0 | S11: 0 | T11: 0 | U11: 0 | V11: 0 | W11: 0 | X11: 0 | Y11: 0 | Z11: 0 | AA11: 0 | AB11: 0 | AC11: 0 | AD11: 0 | AE11: 0 | AF11: 0 | AG11: 0 | AH11: 0 | AI11: 0 | AJ11: 0 | AK11: 0 | AL11: 0 | AM11: 0 | AN11: 0 | AO11: 0 | AP11: 0 | AQ11: 0 | AR11: 0 | AS11: 0 | AT11: 0 | AU11: 0 | AV11: 0 | AW11: 0 | AX11: 0 | AY11: 0 | AZ11: 0 | BA11: 0 | BB11: 0 | BC11: 0 | BD11: 0 | BE11: 0 | BF11: 0 | BG11: 0 | BH11: 0 | BI11: 0 | BJ11: 0 | BK11: 0 | BL11: 0 | BM11: 0 | BN11: 0 | BO11: 0 | BP11: 0 | BQ11: 0 | BR11: 0 | BS11: 0 | BT11: 0 | BU11: 0 | BV11: 0 | BW11: 0 | BX11: 0 | BY11: 0 | BZ11: 0 | CA11: 0 | CB11: 0 | CC11: 0 | CD11: 0 | CE11: 0 | CF11: 0 | CG11: 0 | CH11: 0 | CI11: 0 | CJ11: 0 | CK11: 0 | CL11: 0 | CM11: 0 | CN11: 0 | CO11: 0 | CP11: 0 | CQ11: 0 | CR11: 0 | CS11: 0 | CT11: 0 | CU11: 0 | CV11: 0 | CW11: 0 | CX11: 0 | CY11: 0 | CZ11: 0 | DA11: 0 | DB11: 0 | DC11: 0 | DD11: 0 | DE11: 0 | DF11: 0 | DG11: 0 | DH11: 0 | DI11: 0 | DJ11: 0 | DK11: 0 | DL11: 0 | DM11: 0 | DN11: 0 | DO11: 0 | DP11: 0 | DQ11: 0 | DR11: 0 | DS11: 0 | DT11: 0 | DU11: 0 | DV11: 0 | DW11: 0 | DX11: 0 | DY11: 0 | DZ11: 0 | EA11: 0 | EB11: 0 | EC11: 0 | ED11: 0 | EE11: 0 | EF11: 0 | EG11: 0 | EH11: 0 | EI11: 0 | EJ11: 0 | EK11: 0 | EL11: 0 | EM11: 0 | EN11: 0 | EO11: 0 | EP11: 0 | EQ11: 0 | ER11: 0 | ES11: 0 | ET11: 0 | EU11: 0 | EV11: 0 | EW11: 0 | EX11: 0 | EY11: 0 | EZ11: 0 | FA11: 0 | FB11: 0 | FC11: 0 | FD11: 0 | FE11: 0 | FF11: 0 | FG11: 0 | FH11: 0 | FI11: 0 | FJ11: 0 | FK11: 0 | FL11: 0 | FM11: 0 | FN11: 0 | FO11: 0 | FP11: 0 | FQ11: 0 | FR11: 0 | FS11: 0 | FT11: 0 | FU11: 0 | FV11: 0 | FW11: 0 | FX11: 0 | FY11: 0 | FZ11: 0 | GA11: 0 | GB11: 0 | GC11: 0 | GD11: 0 | GE11: 0 | GF11: 0 | GG11: 0 | GH11: 0 | GI11: 0 | GJ11: 0 | GK11: 0 | GL11: 0 | GM11: 0 | GN11: 0 | GO11: 0 | GP11: 0 | GQ11: 0 | GR11: 0 | GS11: 0 | GT11: 0 | GU11: 0 | GV11: 0 | GW11: 0 | GX11: 0 | GY11: 0 | GZ11: 0 | HA11: 0 | HB11: 0 | HC11: 0 | HD11: 0 | HE11: 0 | HF11: 0 | HG11: 0 | HH11: 0 | HI11: 0 | HJ11: 0 | HK11: 0 | HL11: 0 | HM11: 0 | HN11: 0 | HO11: 0 | HP11: 0 | HQ11: 0 | HR11: 0 | HS11: 0 | HT11: 0 | HU11: 0 | HV11: 0 | HW11: 0 | HX11: 0 | HY11: 0 | HZ11: 0 | IA11: 0 | IB11: 0 | IC11: 0 | ID11: 0 | IE11: 0 | IF11: 0 | IG11: 0 | IH11: 0 | II11: 0 | IJ11: 0 | IK11: 0 | IL11: 0 | IM11: 0 | IN11: 0 | IO11: 0 | IP11: 0 | IQ11: 0 | IR11: 0 | IS11: 0 | IT11: 0 | IU11: 0 | IV11: 0 | IW11: 0 | IX11: 0 | IY11: 0 | IZ11: 0 | JA11: 0 | JB11: 0 | JC11: 0 | JD11: 0 | JE11: 0 | JF11: 0 | JG11: 0 | JH11: 0 | JI11: 0 | JJ11: 0 | JK11: 0 | JL11: 0 | JM11: 0 | JN11: 0 | JO11: 0 | JP11: 0 | JQ11: 0 | JR11: 0 | JS11: 0 | JT11: 0 | JU11: 0 | JV11: 0 | JW11: 0 | JX11: 0 | JY11: 0 | JZ11: 0 | KA11: 0 | KB11: 0 | KC11: 0 | KD11: 0 | KE11: 0 | KF11: 0 | KG11: 0 | KH11: 0 | KI11: 0 | KJ11: 0 | KK11: 0 | KL11: 0 | KM11: 0 | KN11: 0 | KO11: 0 | KP11: 0 | KQ11: 0 | KR11: 0 | KS11: 0 | KT11: 0 | KU11: 0 | KV11: 0 | KW11: 0 | KX11: 0 | KY11: 0 | KZ11: 0 | LA11: 0 | LB11: 0 | LC11: 0 | LD11: 0 | LE11: 0 | LF11: 0 | LG11: 0 | LH11: 0 | LI11: 0 | LJ11: 0 | LK11: 0 | LL11: 0 | LM11: 0 | LN11: 0 | LO11: 0 | LP11: 0 | LQ11: 0 | LR11: 0 | LS11: 0 | LT11: 0 | LU11: 0 | LV11: 0 | LW11: 0 | LX11: 0 | LY11: 0 | LZ11: 0 | MA11: 0 | MB11: 0 | MC11: 0 | MD11: 0 | ME11: 0 | MF11: 0 | MG11: 0 | MH11: 0 | MI11: 0 | MJ11: 0 | MK11: 0 | ML11: 0 | MM11: 0 | MN11: 0 | MO11: 0 | MP11: 0 | MQ11: 0 | MR11: 0 | MS11: 0 | MT11: 0 | MU11: 0 | MV11: 0 | MW11: 0
E12: 7 | F12: (Deel)complex 7 | G12: 0 | H12: 0 | I12: 0 | J12: 0 | K12: 0 | L12: 0 | M12: 0 | N12: 0 | O12: 0 | P12: 0 | Q12: 0 | R12: 0 | S12: 0 | T12: 0 | U12: 0 | V12: 0 | W12: 0 | X12: 0 | Y12: 0 | Z12: 0 | AA12: 0 | AB12: 0 | AC12: 0 | AD12: 0 | AE12: 0 | AF12: 0 | AG12: 0 | AH12: 0 | AI12: 0 | AJ12: 0 | AK12: 0 | AL12: 0 | AM12: 0 | AN12: 0 | AO12: 0 | AP12: 0 | AQ12: 0 | AR12: 0 | AS12: 0 | AT12: 0 | AU12: 0 | AV12: 0 | AW12: 0 | AX12: 0 | AY12: 0 | AZ12: 0 | BA12: 0 | BB12: 0 | BC12: 0 | BD12: 0 | BE12: 0 | BF12: 0 | BG12: 0 | BH12: 0 | BI12: 0 | BJ12: 0 | BK12: 0 | BL12: 0 | BM12: 0 | BN12: 0 | BO12: 0 | BP12: 0 | BQ12: 0 | BR12: 0 | BS12: 0 | BT12: 0 | BU12: 0 | BV12: 0 | BW12: 0 | BX12: 0 | BY12: 0 | BZ12: 0 | CA12: 0 | CB12: 0 | CC12: 0 | CD12: 0 | CE12: 0 | CF12: 0 | CG12: 0 | CH12: 0 | CI12: 0 | CJ12: 0 | CK12: 0 | CL12: 0 | CM12: 0 | CN12: 0 | CO12: 0 | CP12: 0 | CQ12: 0 | CR12: 0 | CS12: 0 | CT12: 0 | CU12: 0 | CV12: 0 | CW12: 0 | CX12: 0 | CY12: 0 | CZ12: 0 | DA12: 0 | DB12: 0 | DC12: 0 | DD12: 0 | DE12: 0 | DF12: 0 | DG12: 0 | DH12: 0 | DI12: 0 | DJ12: 0 | DK12: 0 | DL12: 0 | DM12: 0 | DN12: 0 | DO12: 0 | DP12: 0 | DQ12: 0 | DR12: 0 | DS12: 0 | DT12: 0 | DU12: 0 | DV12: 0 | DW12: 0 | DX12: 0 | DY12: 0 | DZ12: 0 | EA12: 0 | EB12: 0 | EC12: 0 | ED12: 0 | EE12: 0 | EF12: 0 | EG12: 0 | EH12: 0 | EI12: 0 | EJ12: 0 | EK12: 0 | EL12: 0 | EM12: 0 | EN12: 0 | EO12: 0 | EP12: 0 | EQ12: 0 | ER12: 0 | ES12: 0 | ET12: 0 | EU12: 0 | EV12: 0 | EW12: 0 | EX12: 0 | EY12: 0 | EZ12: 0 | FA12: 0 | FB12: 0 | FC12: 0 | FD12: 0 | FE12: 0 | FF12: 0 | FG12: 0 | FH12: 0 | FI12: 0 | FJ12: 0 | FK12: 0 | FL12: 0 | FM12: 0 | FN12: 0 | FO12: 0 | FP12: 0 | FQ12: 0 | FR12: 0 | FS12: 0 | FT12: 0 | FU12: 0 | FV12: 0 | FW12: 0 | FX12: 0 | FY12: 0 | FZ12: 0 | GA12: 0 | GB12: 0 | GC12: 0 | GD12: 0 | GE12: 0 | GF12: 0 | GG12: 0 | GH12: 0 | GI12: 0 | GJ12: 0 | GK12: 0 | GL12: 0 | GM12: 0 | GN12: 0 | GO12: 0 | GP12: 0 | GQ12: 0 | GR12: 0 | GS12: 0 | GT12: 0 | GU12: 0 | GV12: 0 | GW12: 0 | GX12: 0 | GY12: 0 | GZ12: 0 | HA12: 0 | HB12: 0 | HC12: 0 | HD12: 0 | HE12: 0 | HF12: 0 | HG12: 0 | HH12: 0 | HI12: 0 | HJ12: 0 | HK12: 0 | HL12: 0 | HM12: 0 | HN12: 0 | HO12: 0 | HP12: 0 | HQ12: 0 | HR12: 0 | HS12: 0 | HT12: 0 | HU12: 0 | HV12: 0 | HW12: 0 | HX12: 0 | HY12: 0 | HZ12: 0 | IA12: 0 | IB12: 0 | IC12: 0 | ID12: 0 | IE12: 0 | IF12: 0 | IG12: 0 | IH12: 0 | II12: 0 | IJ12: 0 | IK12: 0 | IL12: 0 | IM12: 0 | IN12: 0 | IO12: 0 | IP12: 0 | IQ12: 0 | IR12: 0 | IS12: 0 | IT12: 0 | IU12: 0 | IV12: 0 | IW12: 0 | IX12: 0 | IY12: 0 | IZ12: 0 | JA12: 0 | JB12: 0 | JC12: 0 | JD12: 0 | JE12: 0 | JF12: 0 | JG12: 0 | JH12: 0 | JI12: 0 | JJ12: 0 | JK12: 0 | JL12: 0 | JM12: 0 | JN12: 0 | JO12: 0 | JP12: 0 | JQ12: 0 | JR12: 0 | JS12: 0 | JT12: 0 | JU12: 0 | JV12: 0 | JW12: 0 | JX12: 0 | JY12: 0 | JZ12: 0 | KA12: 0 | KB12: 0 | KC12: 0 | KD12: 0 | KE12: 0 | KF12: 0 | KG12: 0 | KH12: 0 | KI12: 0 | KJ12: 0 | KK12: 0 | KL12: 0 | KM12: 0 | KN12: 0 | KO12: 0 | KP12: 0 | KQ12: 0 | KR12: 0 | KS12: 0 | KT12: 0 | KU12: 0 | KV12: 0 | KW12: 0 | KX12: 0 | KY12: 0 | KZ12: 0 | LA12: 0 | LB12: 0 | LC12: 0 | LD12: 0 | LE12: 0 | LF12: 0 | LG12: 0 | LH12: 0 | LI12: 0 | LJ12: 0 | LK12: 0 | LL12: 0 | LM12: 0 | LN12: 0 | LO12: 0 | LP12: 0 | LQ12: 0 | LR12: 0 | LS12: 0 | LT12: 0 | LU12: 0 | LV12: 0 | LW12: 0 | LX12: 0 | LY12: 0 | LZ12: 0 | MA12: 0 | MB12: 0 | MC12: 0 | MD12: 0 | ME12: 0 | MF12: 0 | MG12: 0 | MH12: 0 | MI12: 0 | MJ12: 0 | MK12: 0 | ML12: 0 | MM12: 0 | MN12: 0 | MO12: 0 | MP12: 0 | MQ12: 0 | MR12: 0 | MS12: 0 | MT12: 0 | MU12: 0 | MV12: 0 | MW12: 0
E13: 8 | F13: (Deel)complex 8 | G13: 0 | H13: 0 | I13: 0 | J13: 0 | K13: 0 | L13: 0 | M13: 0 | N13: 0 | O13: 0 | P13: 0 | Q13: 0 | R13: 0 | S13: 0 | T13: 0 | U13: 0 | V13: 0 | W13: 0 | X13: 0 | Y13: 0 | Z13: 0 | AA13: 0 | AB13: 0 | AC13: 0 | AD13: 0 | AE13: 0 | AF13: 0 | AG13: 0 | AH13: 0 | AI13: 0 | AJ13: 0 | AK13: 0 | AL13: 0 | AM13: 0 | AN13: 0 | AO13: 0 | AP13: 0 | AQ13: 0 | AR13: 0 | AS13: 0 | AT13: 0 | AU13: 0 | AV13: 0 | AW13: 0 | AX13: 0 | AY13: 0 | AZ13: 0 | BA13: 0 | BB13: 0 | BC13: 0 | BD13: 0 | BE13: 0 | BF13: 0 | BG13: 0 | BH13: 0 | BI13: 0 | BJ13: 0 | BK13: 0 | BL13: 0 | BM13: 0 | BN13: 0 | BO13: 0 | BP13: 0 | BQ13: 0 | BR13: 0 | BS13: 0 | BT13: 0 | BU13: 0 | BV13: 0 | BW13: 0 | BX13: 0 | BY13: 0 | BZ13: 0 | CA13: 0 | CB13: 0 | CC13: 0 | CD13: 0 | CE13: 0 | CF13: 0 | CG13: 0 | CH13: 0 | CI13: 0 | CJ13: 0 | CK13: 0 | CL13: 0 | CM13: 0 | CN13: 0 | CO13: 0 | CP13: 0 | CQ13: 0 | CR13: 0 | CS13: 0 | CT13: 0 | CU13: 0 | CV13: 0 | CW13: 0 | CX13: 0 | CY13: 0 | CZ13: 0 | DA13: 0 | DB13: 0 | DC13: 0 | DD13: 0 | DE13: 0 | DF13: 0 | DG13: 0 | DH13: 0 | DI13: 0 | DJ13: 0 | DK13: 0 | DL13: 0 | DM13: 0 | DN13: 0 | DO13: 0 | DP13: 0 | DQ13: 0 | DR13: 0 | DS13: 0 | DT13: 0 | DU13: 0 | DV13: 0 | DW13: 0 | DX13: 0 | DY13: 0 | DZ13: 0 | EA13: 0 | EB13: 0 | EC13: 0 | ED13: 0 | EE13: 0 | EF13: 0 | EG13: 0 | EH13: 0 | EI13: 0 | EJ13: 0 | EK13: 0 | EL13: 0 | EM13: 0 | EN13: 0 | EO13: 0 | EP13: 0 | EQ13: 0 | ER13: 0 | ES13: 0 | ET13: 0 | EU13: 0 | EV13: 0 | EW13: 0 | EX13: 0 | EY13: 0 | EZ13: 0 | FA13: 0 | FB13: 0 | FC13: 0 | FD13: 0 | FE13: 0 | FF13: 0 | FG13: 0 | FH13: 0 | FI13: 0 | FJ13: 0 | FK13: 0 | FL13: 0 | FM13: 0 | FN13: 0 | FO13: 0 | FP13: 0 | FQ13: 0 | FR13: 0 | FS13: 0 | FT13: 0 | FU13: 0 | FV13: 0 | FW13: 0 | FX13: 0 | FY13: 0 | FZ13: 0 | GA13: 0 | GB13: 0 | GC13: 0 | GD13: 0 | GE13: 0 | GF13: 0 | GG13: 0 | GH13: 0 | GI13: 0 | GJ13: 0 | GK13: 0 | GL13: 0 | GM13: 0 | GN13: 0 | GO13: 0 | GP13: 0 | GQ13: 0 | GR13: 0 | GS13: 0 | GT13: 0 | GU13: 0 | GV13: 0 | GW13: 0 | GX13: 0 | GY13: 0 | GZ13: 0 | HA13: 0 | HB13: 0 | HC13: 0 | HD13: 0 | HE13: 0 | HF13: 0 | HG13: 0 | HH13: 0 | HI13: 0 | HJ13: 0 | HK13: 0 | HL13: 0 | HM13: 0 | HN13: 0 | HO13: 0 | HP13: 0 | HQ13: 0 | HR13: 0 | HS13: 0 | HT13: 0 | HU13: 0 | HV13: 0 | HW13: 0 | HX13: 0 | HY13: 0 | HZ13: 0 | IA13: 0 | IB13: 0 | IC13: 0 | ID13: 0 | IE13: 0 | IF13: 0 | IG13: 0 | IH13: 0 | II13: 0 | IJ13: 0 | IK13: 0 | IL13: 0 | IM13: 0 | IN13: 0 | IO13: 0 | IP13: 0 | IQ13: 0 | IR13: 0 | IS13: 0 | IT13: 0 | IU13: 0 | IV13: 0 | IW13: 0 | IX13: 0 | IY13: 0 | IZ13: 0 | JA13: 0 | JB13: 0 | JC13: 0 | JD13: 0 | JE13: 0 | JF13: 0 | JG13: 0 | JH13: 0 | JI13: 0 | JJ13: 0 | JK13: 0 | JL13: 0 | JM13: 0 | JN13: 0 | JO13: 0 | JP13: 0 | JQ13: 0 | JR13: 0 | JS13: 0 | JT13: 0 | JU13: 0 | JV13: 0 | JW13: 0 | JX13: 0 | JY13: 0 | JZ13: 0 | KA13: 0 | KB13: 0 | KC13: 0 | KD13: 0 | KE13: 0 | KF13: 0 | KG13: 0 | KH13: 0 | KI13: 0 | KJ13: 0 | KK13: 0 | KL13: 0 | KM13: 0 | KN13: 0 | KO13: 0 | KP13: 0 | KQ13: 0 | KR13: 0 | KS13: 0 | KT13: 0 | KU13: 0 | KV13: 0 | KW13: 0 | KX13: 0 | KY13: 0 | KZ13: 0 | LA13: 0 | LB13: 0 | LC13: 0 | LD13: 0 | LE13: 0 | LF13: 0 | LG13: 0 | LH13: 0 | LI13: 0 | LJ13: 0 | LK13: 0 | LL13: 0 | LM13: 0 | LN13: 0 | LO13: 0 | LP13: 0 | LQ13: 0 | LR13: 0 | LS13: 0 | LT13: 0 | LU13: 0 | LV13: 0 | LW13: 0 | LX13: 0 | LY13: 0 | LZ13: 0 | MA13: 0 | MB13: 0 | MC13: 0 | MD13: 0 | ME13: 0 | MF13: 0 | MG13: 0 | MH13: 0 | MI13: 0 | MJ13: 0 | MK13: 0 | ML13: 0 | MM13: 0 | MN13: 0 | MO13: 0 | MP13: 0 | MQ13: 0 | MR13: 0 | MS13: 0 | MT13: 0 | MU13: 0 | MV13: 0 | MW13: 0
E14: 9 | F14: (Deel)complex 9 | G14: 0 | H14: 0 | I14: 0 | J14: 0 | K14: 0 | L14: 0 | M14: 0 | N14: 0 | O14: 0 | P14: 0 | Q14: 0 | R14: 0 | S14: 0 | T14: 0 | U14: 0 | V14: 0 | W14: 0 | X14: 0 | Y14: 0 | Z14: 0 | AA14: 0 | AB14: 0 | AC14: 0 | AD14: 0 | AE14: 0 | AF14: 0 | AG14: 0 | AH14: 0 | AI14: 0 | AJ14: 0 | AK14: 0 | AL14: 0 | AM14: 0 | AN14: 0 | AO14: 0 | AP14: 0 | AQ14: 0 | AR14: 0 | AS14: 0 | AT14: 0 | AU14: 0 | AV14: 0 | AW14: 0 | AX14: 0 | AY14: 0 | AZ14: 0 | BA14: 0 | BB14: 0 | BC14: 0 | BD14: 0 | BE14: 0 | BF14: 0 | BG14: 0 | BH14: 0 | BI14: 0 | BJ14: 0 | BK14: 0 | BL14: 0 | BM14: 0 | BN14: 0 | BO14: 0 | BP14: 0 | BQ14: 0 | BR14: 0 | BS14: 0 | BT14: 0 | BU14: 0 | BV14: 0 | BW14: 0 | BX14: 0 | BY14: 0 | BZ14: 0 | CA14: 0 | CB14: 0 | CC14: 0 | CD14: 0 | CE14: 0 | CF14: 0 | CG14: 0 | CH14: 0 | CI14: 0 | CJ14: 0 | CK14: 0 | CL14: 0 | CM14: 0 | CN14: 0 | CO14: 0 | CP14: 0 | CQ14: 0 | CR14: 0 | CS14: 0 | CT14: 0 | CU14: 0 | CV14: 0 | CW14: 0 | CX14: 0 | CY14: 0 | CZ14: 0 | DA14: 0 | DB14: 0 | DC14: 0 | DD14: 0 | DE14: 0 | DF14: 0 | DG14: 0 | DH14: 0 | DI14: 0 | DJ14: 0 | DK14: 0 | DL14: 0 | DM14: 0 | DN14: 0 | DO14: 0 | DP14: 0 | DQ14: 0 | DR14: 0 | DS14: 0 | DT14: 0 | DU14: 0 | DV14: 0 | DW14: 0 | DX14: 0 | DY14: 0 | DZ14: 0 | EA14: 0 | EB14: 0 | EC14: 0 | ED14: 0 | EE14: 0 | EF14: 0 | EG14: 0 | EH14: 0 | EI14: 0 | EJ14: 0 | EK14: 0 | EL14: 0 | EM14: 0 | EN14: 0 | EO14: 0 | EP14: 0 | EQ14: 0 | ER14: 0 | ES14: 0 | ET14: 0 | EU14: 0 | EV14: 0 | EW14: 0 | EX14: 0 | EY14: 0 | EZ14: 0 | FA14: 0 | FB14: 0 | FC14: 0 | FD14: 0 | FE14: 0 | FF14: 0 | FG14: 0 | FH14: 0 | FI14: 0 | FJ14: 0 | FK14: 0 | FL14: 0 | FM14: 0 | FN14: 0 | FO14: 0 | FP14: 0 | FQ14: 0 | FR14: 0 | FS14: 0 | FT14: 0 | FU14: 0 | FV14: 0 | FW14: 0 | FX14: 0 | FY14: 0 | FZ14: 0 | GA14: 0 | GB14: 0 | GC14: 0 | GD14: 0 | GE14: 0 | GF14: 0 | GG14: 0 | GH14: 0 | GI14: 0 | GJ14: 0 | GK14: 0 | GL14: 0 | GM14: 0 | GN14: 0 | GO14: 0 | GP14: 0 | GQ14: 0 | GR14: 0 | GS14: 0 | GT14: 0 | GU14: 0 | GV14: 0 | GW14: 0 | GX14: 0 | GY14: 0 | GZ14: 0 | HA14: 0 | HB14: 0 | HC14: 0 | HD14: 0 | HE14: 0 | HF14: 0 | HG14: 0 | HH14: 0 | HI14: 0 | HJ14: 0 | HK14: 0 | HL14: 0 | HM14: 0 | HN14: 0 | HO14: 0 | HP14: 0 | HQ14: 0 | HR14: 0 | HS14: 0 | HT14: 0 | HU14: 0 | HV14: 0 | HW14: 0 | HX14: 0 | HY14: 0 | HZ14: 0 | IA14: 0 | IB14: 0 | IC14: 0 | ID14: 0 | IE14: 0 | IF14: 0 | IG14: 0 | IH14: 0 | II14: 0 | IJ14: 0 | IK14: 0 | IL14: 0 | IM14: 0 | IN14: 0 | IO14: 0 | IP14: 0 | IQ14: 0 | IR14: 0 | IS14: 0 | IT14: 0 | IU14: 0 | IV14: 0 | IW14: 0 | IX14: 0 | IY14: 0 | IZ14: 0 | JA14: 0 | JB14: 0 | JC14: 0 | JD14: 0 | JE14: 0 | JF14: 0 | JG14: 0 | JH14: 0 | JI14: 0 | JJ14: 0 | JK14: 0 | JL14: 0 | JM14: 0 | JN14: 0 | JO14: 0 | JP14: 0 | JQ14: 0 | JR14: 0 | JS14: 0 | JT14: 0 | JU14: 0 | JV14: 0 | JW14: 0 | JX14: 0 | JY14: 0 | JZ14: 0 | KA14: 0 | KB14: 0 | KC14: 0 | KD14: 0 | KE14: 0 | KF14: 0 | KG14: 0 | KH14: 0 | KI14: 0 | KJ14: 0 | KK14: 0 | KL14: 0 | KM14: 0 | KN14: 0 | KO14: 0 | KP14: 0 | KQ14: 0 | KR14: 0 | KS14: 0 | KT14: 0 | KU14: 0 | KV14: 0 | KW14: 0 | KX14: 0 | KY14: 0 | KZ14: 0 | LA14: 0 | LB14: 0 | LC14: 0 | LD14: 0 | LE14: 0 | LF14: 0 | LG14: 0 | LH14: 0 | LI14: 0 | LJ14: 0 | LK14: 0 | LL14: 0 | LM14: 0 | LN14: 0 | LO14: 0 | LP14: 0 | LQ14: 0 | LR14: 0 | LS14: 0 | LT14: 0 | LU14: 0 | LV14: 0 | LW14: 0 | LX14: 0 | LY14: 0 | LZ14: 0 | MA14: 0 | MB14: 0 | MC14: 0 | MD14: 0 | ME14: 0 | MF14: 0 | MG14: 0 | MH14: 0 | MI14: 0 | MJ14: 0 | MK14: 0 | ML14: 0 | MM14: 0 | MN14: 0 | MO14: 0 | MP14: 0 | MQ14: 0 | MR14: 0 | MS14: 0 | MT14: 0 | MU14: 0 | MV14: 0 | MW14: 0
E15: 10 | F15: (Deel)complex 10 | G15: 0 | H15: 0 | I15: 0 | J15: 0 | K15: 0 | L15: 0 | M15: 0 | N15: 0 | O15: 0 | P15: 0 | Q15: 0 | R15: 0 | S15: 0 | T15: 0 | U15: 0 | V15: 0 | W15: 0 | X15: 0 | Y15: 0 | Z15: 0 | AA15: 0 | AB15: 0 | AC15: 0 | AD15: 0 | AE15: 0 | AF15: 0 | AG15: 0 | AH15: 0 | AI15: 0 | AJ15: 0 | AK15: 0 | AL15: 0 | AM15: 0 | AN15: 0 | AO15: 0 | AP15: 0 | AQ15: 0 | AR15: 0 | AS15: 0 | AT15: 0 | AU15: 0 | AV15: 0 | AW15: 0 | AX15: 0 | AY15: 0 | AZ15: 0 | BA15: 0 | BB15: 0 | BC15: 0 | BD15: 0 | BE15: 0 | BF15: 0 | BG15: 0 | BH15: 0 | BI15: 0 | BJ15: 0 | BK15: 0 | BL15: 0 | BM15: 0 | BN15: 0 | BO15: 0 | BP15: 0 | BQ15: 0 | BR15: 0 | BS15: 0 | BT15: 0 | BU15: 0 | BV15: 0 | BW15: 0 | BX15: 0 | BY15: 0 | BZ15: 0 | CA15: 0 | CB15: 0 | CC15: 0 | CD15: 0 | CE15: 0 | CF15: 0 | CG15: 0 | CH15: 0 | CI15: 0 | CJ15: 0 | CK15: 0 | CL15: 0 | CM15: 0 | CN15: 0 | CO15: 0 | CP15: 0 | CQ15: 0 | CR15: 0 | CS15: 0 | CT15: 0 | CU15: 0 | CV15: 0 | CW15: 0 | CX15: 0 | CY15: 0 | CZ15: 0 | DA15: 0 | DB15: 0 | DC15: 0 | DD15: 0 | DE15: 0 | DF15: 0 | DG15: 0 | DH15: 0 | DI15: 0 | DJ15: 0 | DK15: 0 | DL15: 0 | DM15: 0 | DN15: 0 | DO15: 0 | DP15: 0 | DQ15: 0 | DR15: 0 | DS15: 0 | DT15: 0 | DU15: 0 | DV15: 0 | DW15: 0 | DX15: 0 | DY15: 0 | DZ15: 0 | EA15: 0 | EB15: 0 | EC15: 0 | ED15: 0 | EE15: 0 | EF15: 0 | EG15: 0 | EH15: 0 | EI15: 0 | EJ15: 0 | EK15: 0 | EL15: 0 | EM15: 0 | EN15: 0 | EO15: 0 | EP15: 0 | EQ15: 0 | ER15: 0 | ES15: 0 | ET15: 0 | EU15: 0 | EV15: 0 | EW15: 0 | EX15: 0 | EY15: 0 | EZ15: 0 | FA15: 0 | FB15: 0 | FC15: 0 | FD15: 0 | FE15: 0 | FF15: 0 | FG15: 0 | FH15: 0 | FI15: 0 | FJ15: 0 | FK15: 0 | FL15: 0 | FM15: 0 | FN15: 0 | FO15: 0 | FP15: 0 | FQ15: 0 | FR15: 0 | FS15: 0 | FT15: 0 | FU15: 0 | FV15: 0 | FW15: 0 | FX15: 0 | FY15: 0 | FZ15: 0 | GA15: 0 | GB15: 0 | GC15: 0 | GD15: 0 | GE15: 0 | GF15: 0 | GG15: 0 | GH15: 0 | GI15: 0 | GJ15: 0 | GK15: 0 | GL15: 0 | GM15: 0 | GN15: 0 | GO15: 0 | GP15: 0 | GQ15: 0 | GR15: 0 | GS15: 0 | GT15: 0 | GU15: 0 | GV15: 0 | GW15: 0 | GX15: 0 | GY15: 0 | GZ15: 0 | HA15: 0 | HB15: 0 | HC15: 0 | HD15: 0 | HE15: 0 | HF15: 0 | HG15: 0 | HH15: 0 | HI15: 0 | HJ15: 0 | HK15: 0 | HL15: 0 | HM15: 0 | HN15: 0 | HO15: 0 | HP15: 0 | HQ15: 0 | HR15: 0 | HS15: 0 | HT15: 0 | HU15: 0 | HV15: 0 | HW15: 0 | HX15: 0 | HY15: 0 | HZ15: 0 | IA15: 0 | IB15: 0 | IC15: 0 | ID15: 0 | IE15: 0 | IF15: 0 | IG15: 0 | IH15: 0 | II15: 0 | IJ15: 0 | IK15: 0 | IL15: 0 | IM15: 0 | IN15: 0 | IO15: 0 | IP15: 0 | IQ15: 0 | IR15: 0 | IS15: 0 | IT15: 0 | IU15: 0 | IV15: 0 | IW15: 0 | IX15: 0 | IY15: 0 | IZ15: 0 | JA15: 0 | JB15: 0 | JC15: 0 | JD15: 0 | JE15: 0 | JF15: 0 | JG15: 0 | JH15: 0 | JI15: 0 | JJ15: 0 | JK15: 0 | JL15: 0 | JM15: 0 | JN15: 0 | JO15: 0 | JP15: 0 | JQ15: 0 | JR15: 0 | JS15: 0 | JT15: 0 | JU15: 0 | JV15: 0 | JW15: 0 | JX15: 0 | JY15: 0 | JZ15: 0 | KA15: 0 | KB15: 0 | KC15: 0 | KD15: 0 | KE15: 0 | KF15: 0 | KG15: 0 | KH15: 0 | KI15: 0 | KJ15: 0 | KK15: 0 | KL15: 0 | KM15: 0 | KN15: 0 | KO15: 0 | KP15: 0 | KQ15: 0 | KR15: 0 | KS15: 0 | KT15: 0 | KU15: 0 | KV15: 0 | KW15: 0 | KX15: 0 | KY15: 0 | KZ15: 0 | LA15: 0 | LB15: 0 | LC15: 0 | LD15: 0 | LE15: 0 | LF15: 0 | LG15: 0 | LH15: 0 | LI15: 0 | LJ15: 0 | LK15: 0 | LL15: 0 | LM15: 0 | LN15: 0 | LO15: 0 | LP15: 0 | LQ15: 0 | LR15: 0 | LS15: 0 | LT15: 0 | LU15: 0 | LV15: 0 | LW15: 0 | LX15: 0 | LY15: 0 | LZ15: 0 | MA15: 0 | MB15: 0 | MC15: 0 | MD15: 0 | ME15: 0 | MF15: 0 | MG15: 0 | MH15: 0 | MI15: 0 | MJ15: 0 | MK15: 0 | ML15: 0 | MM15: 0 | MN15: 0 | MO15: 0 | MP15: 0 | MQ15: 0 | MR15: 0 | MS15: 0 | MT15: 0 | MU15: 0 | MV15: 0 | MW15: 0
E16: =E15 + 1 -> 11 | F16: (Deel)complex 11 | G16: 0 | H16: 0 | I16: 0 | J16: 0 | K16: 0 | L16: 0 | M16: 0 | N16: 0 | O16: 0 | P16: 0 | Q16: 0 | R16: 0 | S16: 0 | T16: 0 | U16: 0 | V16: 0 | W16: 0 | X16: 0 | Y16: 0 | Z16: 0 | AA16: 0 | AB16: 0 | AC16: 0 | AD16: 0 | AE16: 0 | AF16: 0 | AG16: 0 | AH16: 0 | AI16: 0 | AJ16: 0 | AK16: 0 | AL16: 0 | AM16: 0 | AN16: 0 | AO16: 0 | AP16: 0 | AQ16: 0 | AR16: 0 | AS16: 0 | AT16: 0 | AU16: 0 | AV16: 0 | AW16: 0 | AX16: 0 | AY16: 0 | AZ16: 0 | BA16: 0 | BB16: 0 | BC16: 0 | BD16: 0 | BE16: 0 | BF16: 0 | BG16: 0 | BH16: 0 | BI16: 0 | BJ16: 0 | BK16: 0 | BL16: 0 | BM16: 0 | BN16: 0 | BO16: 0 | BP16: 0 | BQ16: 0 | BR16: 0 | BS16: 0 | BT16: 0 | BU16: 0 | BV16: 0 | BW16: 0 | BX16: 0 | BY16: 0 | BZ16: 0 | CA16: 0 | CB16: 0 | CC16: 0 | CD16: 0 | CE16: 0 | CF16: 0 | CG16: 0 | CH16: 0 | CI16: 0 | CJ16: 0 | CK16: 0 | CL16: 0 | CM16: 0 | CN16: 0 | CO16: 0 | CP16: 0 | CQ16: 0 | CR16: 0 | CS16: 0 | CT16: 0 | CU16: 0 | CV16: 0 | CW16: 0 | CX16: 0 | CY16: 0 | CZ16: 0 | DA16: 0 | DB16: 0 | DC16: 0 | DD16: 0 | DE16: 0 | DF16: 0 | DG16: 0 | DH16: 0 | DI16: 0 | DJ16: 0 | DK16: 0 | DL16: 0 | DM16: 0 | DN16: 0 | DO16: 0 | DP16: 0 | DQ16: 0 | DR16: 0 | DS16: 0 | DT16: 0 | DU16: 0 | DV16: 0 | DW16: 0 | DX16: 0 | DY16: 0 | DZ16: 0 | EA16: 0 | EB16: 0 | EC16: 0 | ED16: 0 | EE16: 0 | EF16: 0 | EG16: 0 | EH16: 0 | EI16: 0 | EJ16: 0 | EK16: 0 | EL16: 0 | EM16: 0 | EN16: 0 | EO16: 0 | EP16: 0 | EQ16: 0 | ER16: 0 | ES16: 0 | ET16: 0 | EU16: 0 | EV16: 0 | EW16: 0 | EX16: 0 | EY16: 0 | EZ16: 0 | FA16: 0 | FB16: 0 | FC16: 0 | FD16: 0 | FE16: 0 | FF16: 0 | FG16: 0 | FH16: 0 | FI16: 0 | FJ16: 0 | FK16: 0 | FL16: 0 | FM16: 0 | FN16: 0 | FO16: 0 | FP16: 0 | FQ16: 0 | FR16: 0 | FS16: 0 | FT16: 0 | FU16: 0 | FV16: 0 | FW16: 0 | FX16: 0 | FY16: 0 | FZ16: 0 | GA16: 0 | GB16: 0 | GC16: 0 | GD16: 0 | GE16: 0 | GF16: 0 | GG16: 0 | GH16: 0 | GI16: 0 | GJ16: 0 | GK16: 0 | GL16: 0 | GM16: 0 | GN16: 0 | GO16: 0 | GP16: 0 | GQ16: 0 | GR16: 0 | GS16: 0 | GT16: 0 | GU16: 0 | GV16: 0 | GW16: 0 | GX16: 0 | GY16: 0 | GZ16: 0 | HA16: 0 | HB16: 0 | HC16: 0 | HD16: 0 | HE16: 0 | HF16: 0 | HG16: 0 | HH16: 0 | HI16: 0 | HJ16: 0 | HK16: 0 | HL16: 0 | HM16: 0 | HN16: 0 | HO16: 0 | HP16: 0 | HQ16: 0 | HR16: 0 | HS16: 0 | HT16: 0 | HU16: 0 | HV16: 0 | HW16: 0 | HX16: 0 | HY16: 0 | HZ16: 0 | IA16: 0 | IB16: 0 | IC16: 0 | ID16: 0 | IE16: 0 | IF16: 0 | IG16: 0 | IH16: 0 | II16: 0 | IJ16: 0 | IK16: 0 | IL16: 0 | IM16: 0 | IN16: 0 | IO16: 0 | IP16: 0 | IQ16: 0 | IR16: 0 | IS16: 0 | IT16: 0 | IU16: 0 | IV16: 0 | IW16: 0 | IX16: 0 | IY16: 0 | IZ16: 0 | JA16: 0 | JB16: 0 | JC16: 0 | JD16: 0 | JE16: 0 | JF16: 0 | JG16: 0 | JH16: 0 | JI16: 0 | JJ16: 0 | JK16: 0 | JL16: 0 | JM16: 0 | JN16: 0 | JO16: 0 | JP16: 0 | JQ16: 0 | JR16: 0 | JS16: 0 | JT16: 0 | JU16: 0 | JV16: 0 | JW16: 0 | JX16: 0 | JY16: 0 | JZ16: 0 | KA16: 0 | KB16: 0 | KC16: 0 | KD16: 0 | KE16: 0 | KF16: 0 | KG16: 0 | KH16: 0 | KI16: 0 | KJ16: 0 | KK16: 0 | KL16: 0 | KM16: 0 | KN16: 0 | KO16: 0 | KP16: 0 | KQ16: 0 | KR16: 0 | KS16: 0 | KT16: 0 | KU16: 0 | KV16: 0 | KW16: 0 | KX16: 0 | KY16: 0 | KZ16: 0 | LA16: 0 | LB16: 0 | LC16: 0 | LD16: 0 | LE16: 0 | LF16: 0 | LG16: 0 | LH16: 0 | LI16: 0 | LJ16: 0 | LK16: 0 | LL16: 0 | LM16: 0 | LN16: 0 | LO16: 0 | LP16: 0 | LQ16: 0 | LR16: 0 | LS16: 0 | LT16: 0 | LU16: 0 | LV16: 0 | LW16: 0 | LX16: 0 | LY16: 0 | LZ16: 0 | MA16: 0 | MB16: 0 | MC16: 0 | MD16: 0 | ME16: 0 | MF16: 0 | MG16: 0 | MH16: 0 | MI16: 0 | MJ16: 0 | MK16: 0 | ML16: 0 | MM16: 0 | MN16: 0 | MO16: 0 | MP16: 0 | MQ16: 0 | MR16: 0 | MS16: 0 | MT16: 0 | MU16: 0 | MV16: 0 | MW16: 0
E17: 12 | F17: (Deel)complex 12 | G17: 0 | H17: 0 | I17: 0 | J17: 0 | K17: 0 | L17: 0 | M17: 0 | N17: 0 | O17: 0 | P17: 0 | Q17: 0 | R17: 0 | S17: 0 | T17: 0 | U17: 0 | V17: 0 | W17: 0 | X17: 0 | Y17: 0 | Z17: 0 | AA17: 0 | AB17: 0 | AC17: 0 | AD17: 0 | AE17: 0 | AF17: 0 | AG17: 0 | AH17: 0 | AI17: 0 | AJ17: 0 | AK17: 0 | AL17: 0 | AM17: 0 | AN17: 0 | AO17: 0 | AP17: 0 | AQ17: 0 | AR17: 0 | AS17: 0 | AT17: 0 | AU17: 0 | AV17: 0 | AW17: 0 | AX17: 0 | AY17: 0 | AZ17: 0 | BA17: 0 | BB17: 0 | BC17: 0 | BD17: 0 | BE17: 0 | BF17: 0 | BG17: 0 | BH17: 0 | BI17: 0 | BJ17: 0 | BK17: 0 | BL17: 0 | BM17: 0 | BN17: 0 | BO17: 0 | BP17: 0 | BQ17: 0 | BR17: 0 | BS17: 0 | BT17: 0 | BU17: 0 | BV17: 0 | BW17: 0 | BX17: 0 | BY17: 0 | BZ17: 0 | CA17: 0 | CB17: 0 | CC17: 0 | CD17: 0 | CE17: 0 | CF17: 0 | CG17: 0 | CH17: 0 | CI17: 0 | CJ17: 0 | CK17: 0 | CL17: 0 | CM17: 0 | CN17: 0 | CO17: 0 | CP17: 0 | CQ17: 0 | CR17: 0 | CS17: 0 | CT17: 0 | CU17: 0 | CV17: 0 | CW17: 0 | CX17: 0 | CY17: 0 | CZ17: 0 | DA17: 0 | DB17: 0 | DC17: 0 | DD17: 0 | DE17: 0 | DF17: 0 | DG17: 0 | DH17: 0 | DI17: 0 | DJ17: 0 | DK17: 0 | DL17: 0 | DM17: 0 | DN17: 0 | DO17: 0 | DP17: 0 | DQ17: 0 | DR17: 0 | DS17: 0 | DT17: 0 | DU17: 0 | DV17: 0 | DW17: 0 | DX17: 0 | DY17: 0 | DZ17: 0 | EA17: 0 | EB17: 0 | EC17: 0 | ED17: 0 | EE17: 0 | EF17: 0 | EG17: 0 | EH17: 0 | EI17: 0 | EJ17: 0 | EK17: 0 | EL17: 0 | EM17: 0 | EN17: 0 | EO17: 0 | EP17: 0 | EQ17: 0 | ER17: 0 | ES17: 0 | ET17: 0 | EU17: 0 | EV17: 0 | EW17: 0 | EX17: 0 | EY17: 0 | EZ17: 0 | FA17: 0 | FB17: 0 | FC17: 0 | FD17: 0 | FE17: 0 | FF17: 0 | FG17: 0 | FH17: 0 | FI17: 0 | FJ17: 0 | FK17: 0 | FL17: 0 | FM17: 0 | FN17: 0 | FO17: 0 | FP17: 0 | FQ17: 0 | FR17: 0 | FS17: 0 | FT17: 0 | FU17: 0 | FV17: 0 | FW17: 0 | FX17: 0 | FY17: 0 | FZ17: 0 | GA17: 0 | GB17: 0 | GC17: 0 | GD17: 0 | GE17: 0 | GF17: 0 | GG17: 0 | GH17: 0 | GI17: 0 | GJ17: 0 | GK17: 0 | GL17: 0 | GM17: 0 | GN17: 0 | GO17: 0 | GP17: 0 | GQ17: 0 | GR17: 0 | GS17: 0 | GT17: 0 | GU17: 0 | GV17: 0 | GW17: 0 | GX17: 0 | GY17: 0 | GZ17: 0 | HA17: 0 | HB17: 0 | HC17: 0 | HD17: 0 | HE17: 0 | HF17: 0 | HG17: 0 | HH17: 0 | HI17: 0 | HJ17: 0 | HK17: 0 | HL17: 0 | HM17: 0 | HN17: 0 | HO17: 0 | HP17: 0 | HQ17: 0 | HR17: 0 | HS17: 0 | HT17: 0 | HU17: 0 | HV17: 0 | HW17: 0 | HX17: 0 | HY17: 0 | HZ17: 0 | IA17: 0 | IB17: 0 | IC17: 0 | ID17: 0 | IE17: 0 | IF17: 0 | IG17: 0 | IH17: 0 | II17: 0 | IJ17: 0 | IK17: 0 | IL17: 0 | IM17: 0 | IN17: 0 | IO17: 0 | IP17: 0 | IQ17: 0 | IR17: 0 | IS17: 0 | IT17: 0 | IU17: 0 | IV17: 0 | IW17: 0 | IX17: 0 | IY17: 0 | IZ17: 0 | JA17: 0 | JB17: 0 | JC17: 0 | JD17: 0 | JE17: 0 | JF17: 0 | JG17: 0 | JH17: 0 | JI17: 0 | JJ17: 0 | JK17: 0 | JL17: 0 | JM17: 0 | JN17: 0 | JO17: 0 | JP17: 0 | JQ17: 0 | JR17: 0 | JS17: 0 | JT17: 0 | JU17: 0 | JV17: 0 | JW17: 0 | JX17: 0 | JY17: 0 | JZ17: 0 | KA17: 0 | KB17: 0 | KC17: 0 | KD17: 0 | KE17: 0 | KF17: 0 | KG17: 0 | KH17: 0 | KI17: 0 | KJ17: 0 | KK17: 0 | KL17: 0 | KM17: 0 | KN17: 0 | KO17: 0 | KP17: 0 | KQ17: 0 | KR17: 0 | KS17: 0 | KT17: 0 | KU17: 0 | KV17: 0 | KW17: 0 | KX17: 0 | KY17: 0 | KZ17: 0 | LA17: 0 | LB17: 0 | LC17: 0 | LD17: 0 | LE17: 0 | LF17: 0 | LG17: 0 | LH17: 0 | LI17: 0 | LJ17: 0 | LK17: 0 | LL17: 0 | LM17: 0 | LN17: 0 | LO17: 0 | LP17: 0 | LQ17: 0 | LR17: 0 | LS17: 0 | LT17: 0 | LU17: 0 | LV17: 0 | LW17: 0 | LX17: 0 | LY17: 0 | LZ17: 0 | MA17: 0 | MB17: 0 | MC17: 0 | MD17: 0 | ME17: 0 | MF17: 0 | MG17: 0 | MH17: 0 | MI17: 0 | MJ17: 0 | MK17: 0 | ML17: 0 | MM17: 0 | MN17: 0 | MO17: 0 | MP17: 0 | MQ17: 0 | MR17: 0 | MS17: 0 | MT17: 0 | MU17: 0 | MV17: 0 | MW17: 0
E18: 13 | F18: (Deel)complex 13 | G18: 0 | H18: 0 | I18: 0 | J18: 0 | K18: 0 | L18: 0 | M18: 0 | N18: 0 | O18: 0 | P18: 0 | Q18: 0 | R18: 0 | S18: 0 | T18: 0 | U18: 0 | V18: 0 | W18: 0 | X18: 0 | Y18: 0 | Z18: 0 | AA18: 0 | AB18: 0 | AC18: 0 | AD18: 0 | AE18: 0 | AF18: 0 | AG18: 0 | AH18: 0 | AI18: 0 | AJ18: 0 | AK18: 0 | AL18: 0 | AM18: 0 | AN18: 0 | AO18: 0 | AP18: 0 | AQ18: 0 | AR18: 0 | AS18: 0 | AT18: 0 | AU18: 0 | AV18: 0 | AW18: 0 | AX18: 0 | AY18: 0 | AZ18: 0 | BA18: 0 | BB18: 0 | BC18: 0 | BD18: 0 | BE18: 0 | BF18: 0 | BG18: 0 | BH18: 0 | BI18: 0 | BJ18: 0 | BK18: 0 | BL18: 0 | BM18: 0 | BN18: 0 | BO18: 0 | BP18: 0 | BQ18: 0 | BR18: 0 | BS18: 0 | BT18: 0 | BU18: 0 | BV18: 0 | BW18: 0 | BX18: 0 | BY18: 0 | BZ18: 0 | CA18: 0 | CB18: 0 | CC18: 0 | CD18: 0 | CE18: 0 | CF18: 0 | CG18: 0 | CH18: 0 | CI18: 0 | CJ18: 0 | CK18: 0 | CL18: 0 | CM18: 0 | CN18: 0 | CO18: 0 | CP18: 0 | CQ18: 0 | CR18: 0 | CS18: 0 | CT18: 0 | CU18: 0 | CV18: 0 | CW18: 0 | CX18: 0 | CY18: 0 | CZ18: 0 | DA18: 0 | DB18: 0 | DC18: 0 | DD18: 0 | DE18: 0 | DF18: 0 | DG18: 0 | DH18: 0 | DI18: 0 | DJ18: 0 | DK18: 0 | DL18: 0 | DM18: 0 | DN18: 0 | DO18: 0 | DP18: 0 | DQ18: 0 | DR18: 0 | DS18: 0 | DT18: 0 | DU18: 0 | DV18: 0 | DW18: 0 | DX18: 0 | DY18: 0 | DZ18: 0 | EA18: 0 | EB18: 0 | EC18: 0 | ED18: 0 | EE18: 0 | EF18: 0 | EG18: 0 | EH18: 0 | EI18: 0 | EJ18: 0 | EK18: 0 | EL18: 0 | EM18: 0 | EN18: 0 | EO18: 0 | EP18: 0 | EQ18: 0 | ER18: 0 | ES18: 0 | ET18: 0 | EU18: 0 | EV18: 0 | EW18: 0 | EX18: 0 | EY18: 0 | EZ18: 0 | FA18: 0 | FB18: 0 | FC18: 0 | FD18: 0 | FE18: 0 | FF18: 0 | FG18: 0 | FH18: 0 | FI18: 0 | FJ18: 0 | FK18: 0 | FL18: 0 | FM18: 0 | FN18: 0 | FO18: 0 | FP18: 0 | FQ18: 0 | FR18: 0 | FS18: 0 | FT18: 0 | FU18: 0 | FV18: 0 | FW18: 0 | FX18: 0 | FY18: 0 | FZ18: 0 | GA18: 0 | GB18: 0 | GC18: 0 | GD18: 0 | GE18: 0 | GF18: 0 | GG18: 0 | GH18: 0 | GI18: 0 | GJ18: 0 | GK18: 0 | GL18: 0 | GM18: 0 | GN18: 0 | GO18: 0 | GP18: 0 | GQ18: 0 | GR18: 0 | GS18: 0 | GT18: 0 | GU18: 0 | GV18: 0 | GW18: 0 | GX18: 0 | GY18: 0 | GZ18: 0 | HA18: 0 | HB18: 0 | HC18: 0 | HD18: 0 | HE18: 0 | HF18: 0 | HG18: 0 | HH18: 0 | HI18: 0 | HJ18: 0 | HK18: 0 | HL18: 0 | HM18: 0 | HN18: 0 | HO18: 0 | HP18: 0 | HQ18: 0 | HR18: 0 | HS18: 0 | HT18: 0 | HU18: 0 | HV18: 0 | HW18: 0 | HX18: 0 | HY18: 0 | HZ18: 0 | IA18: 0 | IB18: 0 | IC18: 0 | ID18: 0 | IE18: 0 | IF18: 0 | IG18: 0 | IH18: 0 | II18: 0 | IJ18: 0 | IK18: 0 | IL18: 0 | IM18: 0 | IN18: 0 | IO18: 0 | IP18: 0 | IQ18: 0 | IR18: 0 | IS18: 0 | IT18: 0 | IU18: 0 | IV18: 0 | IW18: 0 | IX18: 0 | IY18: 0 | IZ18: 0 | JA18: 0 | JB18: 0 | JC18: 0 | JD18: 0 | JE18: 0 | JF18: 0 | JG18: 0 | JH18: 0 | JI18: 0 | JJ18: 0 | JK18: 0 | JL18: 0 | JM18: 0 | JN18: 0 | JO18: 0 | JP18: 0 | JQ18: 0 | JR18: 0 | JS18: 0 | JT18: 0 | JU18: 0 | JV18: 0 | JW18: 0 | JX18: 0 | JY18: 0 | JZ18: 0 | KA18: 0 | KB18: 0 | KC18: 0 | KD18: 0 | KE18: 0 | KF18: 0 | KG18: 0 | KH18: 0 | KI18: 0 | KJ18: 0 | KK18: 0 | KL18: 0 | KM18: 0 | KN18: 0 | KO18: 0 | KP18: 0 | KQ18: 0 | KR18: 0 | KS18: 0 | KT18: 0 | KU18: 0 | KV18: 0 | KW18: 0 | KX18: 0 | KY18: 0 | KZ18: 0 | LA18: 0 | LB18: 0 | LC18: 0 | LD18: 0 | LE18: 0 | LF18: 0 | LG18: 0 | LH18: 0 | LI18: 0 | LJ18: 0 | LK18: 0 | LL18: 0 | LM18: 0 | LN18: 0 | LO18: 0 | LP18: 0 | LQ18: 0 | LR18: 0 | LS18: 0 | LT18: 0 | LU18: 0 | LV18: 0 | LW18: 0 | LX18: 0 | LY18: 0 | LZ18: 0 | MA18: 0 | MB18: 0 | MC18: 0 | MD18: 0 | ME18: 0 | MF18: 0 | MG18: 0 | MH18: 0 | MI18: 0 | MJ18: 0 | MK18: 0 | ML18: 0 | MM18: 0 | MN18: 0 | MO18: 0 | MP18: 0 | MQ18: 0 | MR18: 0 | MS18: 0 | MT18: 0 | MU18: 0 | MV18: 0 | MW18: 0
E19: 14 | F19: (Deel)complex 14 | G19: 0 | H19: 0 | I19: 0 | J19: 0 | K19: 0 | L19: 0 | M19: 0 | N19: 0 | O19: 0 | P19: 0 | Q19: 0 | R19: 0 | S19: 0 | T19: 0 | U19: 0 | V19: 0 | W19: 0 | X19: 0 | Y19: 0 | Z19: 0 | AA19: 0 | AB19: 0 | AC19: 0 | AD19: 0 | AE19: 0 | AF19: 0 | AG19: 0 | AH19: 0 | AI19: 0 | AJ19: 0 | AK19: 0 | AL19: 0 | AM19: 0 | AN19: 0 | AO19: 0 | AP19: 0 | AQ19: 0 | AR19: 0 | AS19: 0 | AT19: 0 | AU19: 0 | AV19: 0 | AW19: 0 | AX19: 0 | AY19: 0 | AZ19: 0 | BA19: 0 | BB19: 0 | BC19: 0 | BD19: 0 | BE19: 0 | BF19: 0 | BG19: 0 | BH19: 0 | BI19: 0 | BJ19: 0 | BK19: 0 | BL19: 0 | BM19: 0 | BN19: 0 | BO19: 0 | BP19: 0 | BQ19: 0 | BR19: 0 | BS19: 0 | BT19: 0 | BU19: 0 | BV19: 0 | BW19: 0 | BX19: 0 | BY19: 0 | BZ19: 0 | CA19: 0 | CB19: 0 | CC19: 0 | CD19: 0 | CE19: 0 | CF19: 0 | CG19: 0 | CH19: 0 | CI19: 0 | CJ19: 0 | CK19: 0 | CL19: 0 | CM19: 0 | CN19: 0 | CO19: 0 | CP19: 0 | CQ19: 0 | CR19: 0 | CS19: 0 | CT19: 0 | CU19: 0 | CV19: 0 | CW19: 0 | CX19: 0 | CY19: 0 | CZ19: 0 | DA19: 0 | DB19: 0 | DC19: 0 | DD19: 0 | DE19: 0 | DF19: 0 | DG19: 0 | DH19: 0 | DI19: 0 | DJ19: 0 | DK19: 0 | DL19: 0 | DM19: 0 | DN19: 0 | DO19: 0 | DP19: 0 | DQ19: 0 | DR19: 0 | DS19: 0 | DT19: 0 | DU19: 0 | DV19: 0 | DW19: 0 | DX19: 0 | DY19: 0 | DZ19: 0 | EA19: 0 | EB19: 0 | EC19: 0 | ED19: 0 | EE19: 0 | EF19: 0 | EG19: 0 | EH19: 0 | EI19: 0 | EJ19: 0 | EK19: 0 | EL19: 0 | EM19: 0 | EN19: 0 | EO19: 0 | EP19: 0 | EQ19: 0 | ER19: 0 | ES19: 0 | ET19: 0 | EU19: 0 | EV19: 0 | EW19: 0 | EX19: 0 | EY19: 0 | EZ19: 0 | FA19: 0 | FB19: 0 | FC19: 0 | FD19: 0 | FE19: 0 | FF19: 0 | FG19: 0 | FH19: 0 | FI19: 0 | FJ19: 0 | FK19: 0 | FL19: 0 | FM19: 0 | FN19: 0 | FO19: 0 | FP19: 0 | FQ19: 0 | FR19: 0 | FS19: 0 | FT19: 0 | FU19: 0 | FV19: 0 | FW19: 0 | FX19: 0 | FY19: 0 | FZ19: 0 | GA19: 0 | GB19: 0 | GC19: 0 | GD19: 0 | GE19: 0 | GF19: 0 | GG19: 0 | GH19: 0 | GI19: 0 | GJ19: 0 | GK19: 0 | GL19: 0 | GM19: 0 | GN19: 0 | GO19: 0 | GP19: 0 | GQ19: 0 | GR19: 0 | GS19: 0 | GT19: 0 | GU19: 0 | GV19: 0 | GW19: 0 | GX19: 0 | GY19: 0 | GZ19: 0 | HA19: 0 | HB19: 0 | HC19: 0 | HD19: 0 | HE19: 0 | HF19: 0 | HG19: 0 | HH19: 0 | HI19: 0 | HJ19: 0 | HK19: 0 | HL19: 0 | HM19: 0 | HN19: 0 | HO19: 0 | HP19: 0 | HQ19: 0 | HR19: 0 | HS19: 0 | HT19: 0 | HU19: 0 | HV19: 0 | HW19: 0 | HX19: 0 | HY19: 0 | HZ19: 0 | IA19: 0 | IB19: 0 | IC19: 0 | ID19: 0 | IE19: 0 | IF19: 0 | IG19: 0 | IH19: 0 | II19: 0 | IJ19: 0 | IK19: 0 | IL19: 0 | IM19: 0 | IN19: 0 | IO19: 0 | IP19: 0 | IQ19: 0 | IR19: 0 | IS19: 0 | IT19: 0 | IU19: 0 | IV19: 0 | IW19: 0 | IX19: 0 | IY19: 0 | IZ19: 0 | JA19: 0 | JB19: 0 | JC19: 0 | JD19: 0 | JE19: 0 | JF19: 0 | JG19: 0 | JH19: 0 | JI19: 0 | JJ19: 0 | JK19: 0 | JL19: 0 | JM19: 0 | JN19: 0 | JO19: 0 | JP19: 0 | JQ19: 0 | JR19: 0 | JS19: 0 | JT19: 0 | JU19: 0 | JV19: 0 | JW19: 0 | JX19: 0 | JY19: 0 | JZ19: 0 | KA19: 0 | KB19: 0 | KC19: 0 | KD19: 0 | KE19: 0 | KF19: 0 | KG19: 0 | KH19: 0 | KI19: 0 | KJ19: 0 | KK19: 0 | KL19: 0 | KM19: 0 | KN19: 0 | KO19: 0 | KP19: 0 | KQ19: 0 | KR19: 0 | KS19: 0 | KT19: 0 | KU19: 0 | KV19: 0 | KW19: 0 | KX19: 0 | KY19: 0 | KZ19: 0 | LA19: 0 | LB19: 0 | LC19: 0 | LD19: 0 | LE19: 0 | LF19: 0 | LG19: 0 | LH19: 0 | LI19: 0 | LJ19: 0 | LK19: 0 | LL19: 0 | LM19: 0 | LN19: 0 | LO19: 0 | LP19: 0 | LQ19: 0 | LR19: 0 | LS19: 0 | LT19: 0 | LU19: 0 | LV19: 0 | LW19: 0 | LX19: 0 | LY19: 0 | LZ19: 0 | MA19: 0 | MB19: 0 | MC19: 0 | MD19: 0 | ME19: 0 | MF19: 0 | MG19: 0 | MH19: 0 | MI19: 0 | MJ19: 0 | MK19: 0 | ML19: 0 | MM19: 0 | MN19: 0 | MO19: 0 | MP19: 0 | MQ19: 0 | MR19: 0 | MS19: 0 | MT19: 0 | MU19: 0 | MV19: 0 | MW19: 0
E20: 15 | F20: (Deel)complex 15 | G20: 0 | H20: 0 | I20: 0 | J20: 0 | K20: 0 | L20: 0 | M20: 0 | N20: 0 | O20: 0 | P20: 0 | Q20: 0 | R20: 0 | S20: 0 | T20: 0 | U20: 0 | V20: 0 | W20: 0 | X20: 0 | Y20: 0 | Z20: 0 | AA20: 0 | AB20: 0 | AC20: 0 | AD20: 0 | AE20: 0 | AF20: 0 | AG20: 0 | AH20: 0 | AI20: 0 | AJ20: 0 | AK20: 0 | AL20: 0 | AM20: 0 | AN20: 0 | AO20: 0 | AP20: 0 | AQ20: 0 | AR20: 0 | AS20: 0 | AT20: 0 | AU20: 0 | AV20: 0 | AW20: 0 | AX20: 0 | AY20: 0 | AZ20: 0 | BA20: 0 | BB20: 0 | BC20: 0 | BD20: 0 | BE20: 0 | BF20: 0 | BG20: 0 | BH20: 0 | BI20: 0 | BJ20: 0 | BK20: 0 | BL20: 0 | BM20: 0 | BN20: 0 | BO20: 0 | BP20: 0 | BQ20: 0 | BR20: 0 | BS20: 0 | BT20: 0 | BU20: 0 | BV20: 0 | BW20: 0 | BX20: 0 | BY20: 0 | BZ20: 0 | CA20: 0 | CB20: 0 | CC20: 0 | CD20: 0 | CE20: 0 | CF20: 0 | CG20: 0 | CH20: 0 | CI20: 0 | CJ20: 0 | CK20: 0 | CL20: 0 | CM20: 0 | CN20: 0 | CO20: 0 | CP20: 0 | CQ20: 0 | CR20: 0 | CS20: 0 | CT20: 0 | CU20: 0 | CV20: 0 | CW20: 0 | CX20: 0 | CY20: 0 | CZ20: 0 | DA20: 0 | DB20: 0 | DC20: 0 | DD20: 0 | DE20: 0 | DF20: 0 | DG20: 0 | DH20: 0 | DI20: 0 | DJ20: 0 | DK20: 0 | DL20: 0 | DM20: 0 | DN20: 0 | DO20: 0 | DP20: 0 | DQ20: 0 | DR20: 0 | DS20: 0 | DT20: 0 | DU20: 0 | DV20: 0 | DW20: 0 | DX20: 0 | DY20: 0 | DZ20: 0 | EA20: 0 | EB20: 0 | EC20: 0 | ED20: 0 | EE20: 0 | EF20: 0 | EG20: 0 | EH20: 0 | EI20: 0 | EJ20: 0 | EK20: 0 | EL20: 0 | EM20: 0 | EN20: 0 | EO20: 0 | EP20: 0 | EQ20: 0 | ER20: 0 | ES20: 0 | ET20: 0 | EU20: 0 | EV20: 0 | EW20: 0 | EX20: 0 | EY20: 0 | EZ20: 0 | FA20: 0 | FB20: 0 | FC20: 0 | FD20: 0 | FE20: 0 | FF20: 0 | FG20: 0 | FH20: 0 | FI20: 0 | FJ20: 0 | FK20: 0 | FL20: 0 | FM20: 0 | FN20: 0 | FO20: 0 | FP20: 0 | FQ20: 0 | FR20: 0 | FS20: 0 | FT20: 0 | FU20: 0 | FV20: 0 | FW20: 0 | FX20: 0 | FY20: 0 | FZ20: 0 | GA20: 0 | GB20: 0 | GC20: 0 | GD20: 0 | GE20: 0 | GF20: 0 | GG20: 0 | GH20: 0 | GI20: 0 | GJ20: 0 | GK20: 0 | GL20: 0 | GM20: 0 | GN20: 0 | GO20: 0 | GP20: 0 | GQ20: 0 | GR20: 0 | GS20: 0 | GT20: 0 | GU20: 0 | GV20: 0 | GW20: 0 | GX20: 0 | GY20: 0 | GZ20: 0 | HA20: 0 | HB20: 0 | HC20: 0 | HD20: 0 | HE20: 0 | HF20: 0 | HG20: 0 | HH20: 0 | HI20: 0 | HJ20: 0 | HK20: 0 | HL20: 0 | HM20: 0 | HN20: 0 | HO20: 0 | HP20: 0 | HQ20: 0 | HR20: 0 | HS20: 0 | HT20: 0 | HU20: 0 | HV20: 0 | HW20: 0 | HX20: 0 | HY20: 0 | HZ20: 0 | IA20: 0 | IB20: 0 | IC20: 0 | ID20: 0 | IE20: 0 | IF20: 0 | IG20: 0 | IH20: 0 | II20: 0 | IJ20: 0 | IK20: 0 | IL20: 0 | IM20: 0 | IN20: 0 | IO20: 0 | IP20: 0 | IQ20: 0 | IR20: 0 | IS20: 0 | IT20: 0 | IU20: 0 | IV20: 0 | IW20: 0 | IX20: 0 | IY20: 0 | IZ20: 0 | JA20: 0 | JB20: 0 | JC20: 0 | JD20: 0 | JE20: 0 | JF20: 0 | JG20: 0 | JH20: 0 | JI20: 0 | JJ20: 0 | JK20: 0 | JL20: 0 | JM20: 0 | JN20: 0 | JO20: 0 | JP20: 0 | JQ20: 0 | JR20: 0 | JS20: 0 | JT20: 0 | JU20: 0 | JV20: 0 | JW20: 0 | JX20: 0 | JY20: 0 | JZ20: 0 | KA20: 0 | KB20: 0 | KC20: 0 | KD20: 0 | KE20: 0 | KF20: 0 | KG20: 0 | KH20: 0 | KI20: 0 | KJ20: 0 | KK20: 0 | KL20: 0 | KM20: 0 | KN20: 0 | KO20: 0 | KP20: 0 | KQ20: 0 | KR20: 0 | KS20: 0 | KT20: 0 | KU20: 0 | KV20: 0 | KW20: 0 | KX20: 0 | KY20: 0 | KZ20: 0 | LA20: 0 | LB20: 0 | LC20: 0 | LD20: 0 | LE20: 0 | LF20: 0 | LG20: 0 | LH20: 0 | LI20: 0 | LJ20: 0 | LK20: 0 | LL20: 0 | LM20: 0 | LN20: 0 | LO20: 0 | LP20: 0 | LQ20: 0 | LR20: 0 | LS20: 0 | LT20: 0 | LU20: 0 | LV20: 0 | LW20: 0 | LX20: 0 | LY20: 0 | LZ20: 0 | MA20: 0 | MB20: 0 | MC20: 0 | MD20: 0 | ME20: 0 | MF20: 0 | MG20: 0 | MH20: 0 | MI20: 0 | MJ20: 0 | MK20: 0 | ML20: 0 | MM20: 0 | MN20: 0 | MO20: 0 | MP20: 0 | MQ20: 0 | MR20: 0 | MS20: 0 | MT20: 0 | MU20: 0 | MV20: 0 | MW20: 0
E21: 16 | F21: (Deel)complex 16 | G21: 0 | H21: 0 | I21: 0 | J21: 0 | K21: 0 | L21: 0 | M21: 0 | N21: 0 | O21: 0 | P21: 0 | Q21: 0 | R21: 0 | S21: 0 | T21: 0 | U21: 0 | V21: 0 | W21: 0 | X21: 0 | Y21: 0 | Z21: 0 | AA21: 0 | AB21: 0 | AC21: 0 | AD21: 0 | AE21: 0 | AF21: 0 | AG21: 0 | AH21: 0 | AI21: 0 | AJ21: 0 | AK21: 0 | AL21: 0 | AM21: 0 | AN21: 0 | AO21: 0 | AP21: 0 | AQ21: 0 | AR21: 0 | AS21: 0 | AT21: 0 | AU21: 0 | AV21: 0 | AW21: 0 | AX21: 0 | AY21: 0 | AZ21: 0 | BA21: 0 | BB21: 0 | BC21: 0 | BD21: 0 | BE21: 0 | BF21: 0 | BG21: 0 | BH21: 0 | BI21: 0 | BJ21: 0 | BK21: 0 | BL21: 0 | BM21: 0 | BN21: 0 | BO21: 0 | BP21: 0 | BQ21: 0 | BR21: 0 | BS21: 0 | BT21: 0 | BU21: 0 | BV21: 0 | BW21: 0 | BX21: 0 | BY21: 0 | BZ21: 0 | CA21: 0 | CB21: 0 | CC21: 0 | CD21: 0 | CE21: 0 | CF21: 0 | CG21: 0 | CH21: 0 | CI21: 0 | CJ21: 0 | CK21: 0 | CL21: 0 | CM21: 0 | CN21: 0 | CO21: 0 | CP21: 0 | CQ21: 0 | CR21: 0 | CS21: 0 | CT21: 0 | CU21: 0 | CV21: 0 | CW21: 0 | CX21: 0 | CY21: 0 | CZ21: 0 | DA21: 0 | DB21: 0 | DC21: 0 | DD21: 0 | DE21: 0 | DF21: 0 | DG21: 0 | DH21: 0 | DI21: 0 | DJ21: 0 | DK21: 0 | DL21: 0 | DM21: 0 | DN21: 0 | DO21: 0 | DP21: 0 | DQ21: 0 | DR21: 0 | DS21: 0 | DT21: 0 | DU21: 0 | DV21: 0 | DW21: 0 | DX21: 0 | DY21: 0 | DZ21: 0 | EA21: 0 | EB21: 0 | EC21: 0 | ED21: 0 | EE21: 0 | EF21: 0 | EG21: 0 | EH21: 0 | EI21: 0 | EJ21: 0 | EK21: 0 | EL21: 0 | EM21: 0 | EN21: 0 | EO21: 0 | EP21: 0 | EQ21: 0 | ER21: 0 | ES21: 0 | ET21: 0 | EU21: 0 | EV21: 0 | EW21: 0 | EX21: 0 | EY21: 0 | EZ21: 0 | FA21: 0 | FB21: 0 | FC21: 0 | FD21: 0 | FE21: 0 | FF21: 0 | FG21: 0 | FH21: 0 | FI21: 0 | FJ21: 0 | FK21: 0 | FL21: 0 | FM21: 0 | FN21: 0 | FO21: 0 | FP21: 0 | FQ21: 0 | FR21: 0 | FS21: 0 | FT21: 0 | FU21: 0 | FV21: 0 | FW21: 0 | FX21: 0 | FY21: 0 | FZ21: 0 | GA21: 0 | GB21: 0 | GC21: 0 | GD21: 0 | GE21: 0 | GF21: 0 | GG21: 0 | GH21: 0 | GI21: 0 | GJ21: 0 | GK21: 0 | GL21: 0 | GM21: 0 | GN21: 0 | GO21: 0 | GP21: 0 | GQ21: 0 | GR21: 0 | GS21: 0 | GT21: 0 | GU21: 0 | GV21: 0 | GW21: 0 | GX21: 0 | GY21: 0 | GZ21: 0 | HA21: 0 | HB21: 0 | HC21: 0 | HD21: 0 | HE21: 0 | HF21: 0 | HG21: 0 | HH21: 0 | HI21: 0 | HJ21: 0 | HK21: 0 | HL21: 0 | HM21: 0 | HN21: 0 | HO21: 0 | HP21: 0 | HQ21: 0 | HR21: 0 | HS21: 0 | HT21: 0 | HU21: 0 | HV21: 0 | HW21: 0 | HX21: 0 | HY21: 0 | HZ21: 0 | IA21: 0 | IB21: 0 | IC21: 0 | ID21: 0 | IE21: 0 | IF21: 0 | IG21: 0 | IH21: 0 | II21: 0 | IJ21: 0 | IK21: 0 | IL21: 0 | IM21: 0 | IN21: 0 | IO21: 0 | IP21: 0 | IQ21: 0 | IR21: 0 | IS21: 0 | IT21: 0 | IU21: 0 | IV21: 0 | IW21: 0 | IX21: 0 | IY21: 0 | IZ21: 0 | JA21: 0 | JB21: 0 | JC21: 0 | JD21: 0 | JE21: 0 | JF21: 0 | JG21: 0 | JH21: 0 | JI21: 0 | JJ21: 0 | JK21: 0 | JL21: 0 | JM21: 0 | JN21: 0 | JO21: 0 | JP21: 0 | JQ21: 0 | JR21: 0 | JS21: 0 | JT21: 0 | JU21: 0 | JV21: 0 | JW21: 0 | JX21: 0 | JY21: 0 | JZ21: 0 | KA21: 0 | KB21: 0 | KC21: 0 | KD21: 0 | KE21: 0 | KF21: 0 | KG21: 0 | KH21: 0 | KI21: 0 | KJ21: 0 | KK21: 0 | KL21: 0 | KM21: 0 | KN21: 0 | KO21: 0 | KP21: 0 | KQ21: 0 | KR21: 0 | KS21: 0 | KT21: 0 | KU21: 0 | KV21: 0 | KW21: 0 | KX21: 0 | KY21: 0 | KZ21: 0 | LA21: 0 | LB21: 0 | LC21: 0 | LD21: 0 | LE21: 0 | LF21: 0 | LG21: 0 | LH21: 0 | LI21: 0 | LJ21: 0 | LK21: 0 | LL21: 0 | LM21: 0 | LN21: 0 | LO21: 0 | LP21: 0 | LQ21: 0 | LR21: 0 | LS21: 0 | LT21: 0 | LU21: 0 | LV21: 0 | LW21: 0 | LX21: 0 | LY21: 0 | LZ21: 0 | MA21: 0 | MB21: 0 | MC21: 0 | MD21: 0 | ME21: 0 | MF21: 0 | MG21: 0 | MH21: 0 | MI21: 0 | MJ21: 0 | MK21: 0 | ML21: 0 | MM21: 0 | MN21: 0 | MO21: 0 | MP21: 0 | MQ21: 0 | MR21: 0 | MS21: 0 | MT21: 0 | MU21: 0 | MV21: 0 | MW21: 0
E22: 17 | F22: (Deel)complex 17 | G22: 0 | H22: 0 | I22: 0 | J22: 0 | K22: 0 | L22: 0 | M22: 0 | N22: 0 | O22: 0 | P22: 0 | Q22: 0 | R22: 0 | S22: 0 | T22: 0 | U22: 0 | V22: 0 | W22: 0 | X22: 0 | Y22: 0 | Z22: 0 | AA22: 0 | AB22: 0 | AC22: 0 | AD22: 0 | AE22: 0 | AF22: 0 | AG22: 0 | AH22: 0 | AI22: 0 | AJ22: 0 | AK22: 0 | AL22: 0 | AM22: 0 | AN22: 0 | AO22: 0 | AP22: 0 | AQ22: 0 | AR22: 0 | AS22: 0 | AT22: 0 | AU22: 0 | AV22: 0 | AW22: 0 | AX22: 0 | AY22: 0 | AZ22: 0 | BA22: 0 | BB22: 0 | BC22: 0 | BD22: 0 | BE22: 0 | BF22: 0 | BG22: 0 | BH22: 0 | BI22: 0 | BJ22: 0 | BK22: 0 | BL22: 0 | BM22: 0 | BN22: 0 | BO22: 0 | BP22: 0 | BQ22: 0 | BR22: 0 | BS22: 0 | BT22: 0 | BU22: 0 | BV22: 0 | BW22: 0 | BX22: 0 | BY22: 0 | BZ22: 0 | CA22: 0 | CB22: 0 | CC22: 0 | CD22: 0 | CE22: 0 | CF22: 0 | CG22: 0 | CH22: 0 | CI22: 0 | CJ22: 0 | CK22: 0 | CL22: 0 | CM22: 0 | CN22: 0 | CO22: 0 | CP22: 0 | CQ22: 0 | CR22: 0 | CS22: 0 | CT22: 0 | CU22: 0 | CV22: 0 | CW22: 0 | CX22: 0 | CY22: 0 | CZ22: 0 | DA22: 0 | DB22: 0 | DC22: 0 | DD22: 0 | DE22: 0 | DF22: 0 | DG22: 0 | DH22: 0 | DI22: 0 | DJ22: 0 | DK22: 0 | DL22: 0 | DM22: 0 | DN22: 0 | DO22: 0 | DP22: 0 | DQ22: 0 | DR22: 0 | DS22: 0 | DT22: 0 | DU22: 0 | DV22: 0 | DW22: 0 | DX22: 0 | DY22: 0 | DZ22: 0 | EA22: 0 | EB22: 0 | EC22: 0 | ED22: 0 | EE22: 0 | EF22: 0 | EG22: 0 | EH22: 0 | EI22: 0 | EJ22: 0 | EK22: 0 | EL22: 0 | EM22: 0 | EN22: 0 | EO22: 0 | EP22: 0 | EQ22: 0 | ER22: 0 | ES22: 0 | ET22: 0 | EU22: 0 | EV22: 0 | EW22: 0 | EX22: 0 | EY22: 0 | EZ22: 0 | FA22: 0 | FB22: 0 | FC22: 0 | FD22: 0 | FE22: 0 | FF22: 0 | FG22: 0 | FH22: 0 | FI22: 0 | FJ22: 0 | FK22: 0 | FL22: 0 | FM22: 0 | FN22: 0 | FO22: 0 | FP22: 0 | FQ22: 0 | FR22: 0 | FS22: 0 | FT22: 0 | FU22: 0 | FV22: 0 | FW22: 0 | FX22: 0 | FY22: 0 | FZ22: 0 | GA22: 0 | GB22: 0 | GC22: 0 | GD22: 0 | GE22: 0 | GF22: 0 | GG22: 0 | GH22: 0 | GI22: 0 | GJ22: 0 | GK22: 0 | GL22: 0 | GM22: 0 | GN22: 0 | GO22: 0 | GP22: 0 | GQ22: 0 | GR22: 0 | GS22: 0 | GT22: 0 | GU22: 0 | GV22: 0 | GW22: 0 | GX22: 0 | GY22: 0 | GZ22: 0 | HA22: 0 | HB22: 0 | HC22: 0 | HD22: 0 | HE22: 0 | HF22: 0 | HG22: 0 | HH22: 0 | HI22: 0 | HJ22: 0 | HK22: 0 | HL22: 0 | HM22: 0 | HN22: 0 | HO22: 0 | HP22: 0 | HQ22: 0 | HR22: 0 | HS22: 0 | HT22: 0 | HU22: 0 | HV22: 0 | HW22: 0 | HX22: 0 | HY22: 0 | HZ22: 0 | IA22: 0 | IB22: 0 | IC22: 0 | ID22: 0 | IE22: 0 | IF22: 0 | IG22: 0 | IH22: 0 | II22: 0 | IJ22: 0 | IK22: 0 | IL22: 0 | IM22: 0 | IN22: 0 | IO22: 0 | IP22: 0 | IQ22: 0 | IR22: 0 | IS22: 0 | IT22: 0 | IU22: 0 | IV22: 0 | IW22: 0 | IX22: 0 | IY22: 0 | IZ22: 0 | JA22: 0 | JB22: 0 | JC22: 0 | JD22: 0 | JE22: 0 | JF22: 0 | JG22: 0 | JH22: 0 | JI22: 0 | JJ22: 0 | JK22: 0 | JL22: 0 | JM22: 0 | JN22: 0 | JO22: 0 | JP22: 0 | JQ22: 0 | JR22: 0 | JS22: 0 | JT22: 0 | JU22: 0 | JV22: 0 | JW22: 0 | JX22: 0 | JY22: 0 | JZ22: 0 | KA22: 0 | KB22: 0 | KC22: 0 | KD22: 0 | KE22: 0 | KF22: 0 | KG22: 0 | KH22: 0 | KI22: 0 | KJ22: 0 | KK22: 0 | KL22: 0 | KM22: 0 | KN22: 0 | KO22: 0 | KP22: 0 | KQ22: 0 | KR22: 0 | KS22: 0 | KT22: 0 | KU22: 0 | KV22: 0 | KW22: 0 | KX22: 0 | KY22: 0 | KZ22: 0 | LA22: 0 | LB22: 0 | LC22: 0 | LD22: 0 | LE22: 0 | LF22: 0 | LG22: 0 | LH22: 0 | LI22: 0 | LJ22: 0 | LK22: 0 | LL22: 0 | LM22: 0 | LN22: 0 | LO22: 0 | LP22: 0 | LQ22: 0 | LR22: 0 | LS22: 0 | LT22: 0 | LU22: 0 | LV22: 0 | LW22: 0 | LX22: 0 | LY22: 0 | LZ22: 0 | MA22: 0 | MB22: 0 | MC22: 0 | MD22: 0 | ME22: 0 | MF22: 0 | MG22: 0 | MH22: 0 | MI22: 0 | MJ22: 0 | MK22: 0 | ML22: 0 | MM22: 0 | MN22: 0 | MO22: 0 | MP22: 0 | MQ22: 0 | MR22: 0 | MS22: 0 | MT22: 0 | MU22: 0 | MV22: 0 | MW22: 0
E23: 18 | F23: (Deel)complex 18 | G23: 0 | H23: 0 | I23: 0 | J23: 0 | K23: 0 | L23: 0 | M23: 0 | N23: 0 | O23: 0 | P23: 0 | Q23: 0 | R23: 0 | S23: 0 | T23: 0 | U23: 0 | V23: 0 | W23: 0 | X23: 0 | Y23: 0 | Z23: 0 | AA23: 0 | AB23: 0 | AC23: 0 | AD23: 0 | AE23: 0 | AF23: 0 | AG23: 0 | AH23: 0 | AI23: 0 | AJ23: 0 | AK23: 0 | AL23: 0 | AM23: 0 | AN23: 0 | AO23: 0 | AP23: 0 | AQ23: 0 | AR23: 0 | AS23: 0 | AT23: 0 | AU23: 0 | AV23: 0 | AW23: 0 | AX23: 0 | AY23: 0 | AZ23: 0 | BA23: 0 | BB23: 0 | BC23: 0 | BD23: 0 | BE23: 0 | BF23: 0 | BG23: 0 | BH23: 0 | BI23: 0 | BJ23: 0 | BK23: 0 | BL23: 0 | BM23: 0 | BN23: 0 | BO23: 0 | BP23: 0 | BQ23: 0 | BR23: 0 | BS23: 0 | BT23: 0 | BU23: 0 | BV23: 0 | BW23: 0 | BX23: 0 | BY23: 0 | BZ23: 0 | CA23: 0 | CB23: 0 | CC23: 0 | CD23: 0 | CE23: 0 | CF23: 0 | CG23: 0 | CH23: 0 | CI23: 0 | CJ23: 0 | CK23: 0 | CL23: 0 | CM23: 0 | CN23: 0 | CO23: 0 | CP23: 0 | CQ23: 0 | CR23: 0 | CS23: 0 | CT23: 0 | CU23: 0 | CV23: 0 | CW23: 0 | CX23: 0 | CY23: 0 | CZ23: 0 | DA23: 0 | DB23: 0 | DC23: 0 | DD23: 0 | DE23: 0 | DF23: 0 | DG23: 0 | DH23: 0 | DI23: 0 | DJ23: 0 | DK23: 0 | DL23: 0 | DM23: 0 | DN23: 0 | DO23: 0 | DP23: 0 | DQ23: 0 | DR23: 0 | DS23: 0 | DT23: 0 | DU23: 0 | DV23: 0 | DW23: 0 | DX23: 0 | DY23: 0 | DZ23: 0 | EA23: 0 | EB23: 0 | EC23: 0 | ED23: 0 | EE23: 0 | EF23: 0 | EG23: 0 | EH23: 0 | EI23: 0 | EJ23: 0 | EK23: 0 | EL23: 0 | EM23: 0 | EN23: 0 | EO23: 0 | EP23: 0 | EQ23: 0 | ER23: 0 | ES23: 0 | ET23: 0 | EU23: 0 | EV23: 0 | EW23: 0 | EX23: 0 | EY23: 0 | EZ23: 0 | FA23: 0 | FB23: 0 | FC23: 0 | FD23: 0 | FE23: 0 | FF23: 0 | FG23: 0 | FH23: 0 | FI23: 0 | FJ23: 0 | FK23: 0 | FL23: 0 | FM23: 0 | FN23: 0 | FO23: 0 | FP23: 0 | FQ23: 0 | FR23: 0 | FS23: 0 | FT23: 0 | FU23: 0 | FV23: 0 | FW23: 0 | FX23: 0 | FY23: 0 | FZ23: 0 | GA23: 0 | GB23: 0 | GC23: 0 | GD23: 0 | GE23: 0 | GF23: 0 | GG23: 0 | GH23: 0 | GI23: 0 | GJ23: 0 | GK23: 0 | GL23: 0 | GM23: 0 | GN23: 0 | GO23: 0 | GP23: 0 | GQ23: 0 | GR23: 0 | GS23: 0 | GT23: 0 | GU23: 0 | GV23: 0 | GW23: 0 | GX23: 0 | GY23: 0 | GZ23: 0 | HA23: 0 | HB23: 0 | HC23: 0 | HD23: 0 | HE23: 0 | HF23: 0 | HG23: 0 | HH23: 0 | HI23: 0 | HJ23: 0 | HK23: 0 | HL23: 0 | HM23: 0 | HN23: 0 | HO23: 0 | HP23: 0 | HQ23: 0 | HR23: 0 | HS23: 0 | HT23: 0 | HU23: 0 | HV23: 0 | HW23: 0 | HX23: 0 | HY23: 0 | HZ23: 0 | IA23: 0 | IB23: 0 | IC23: 0 | ID23: 0 | IE23: 0 | IF23: 0 | IG23: 0 | IH23: 0 | II23: 0 | IJ23: 0 | IK23: 0 | IL23: 0 | IM23: 0 | IN23: 0 | IO23: 0 | IP23: 0 | IQ23: 0 | IR23: 0 | IS23: 0 | IT23: 0 | IU23: 0 | IV23: 0 | IW23: 0 | IX23: 0 | IY23: 0 | IZ23: 0 | JA23: 0 | JB23: 0 | JC23: 0 | JD23: 0 | JE23: 0 | JF23: 0 | JG23: 0 | JH23: 0 | JI23: 0 | JJ23: 0 | JK23: 0 | JL23: 0 | JM23: 0 | JN23: 0 | JO23: 0 | JP23: 0 | JQ23: 0 | JR23: 0 | JS23: 0 | JT23: 0 | JU23: 0 | JV23: 0 | JW23: 0 | JX23: 0 | JY23: 0 | JZ23: 0 | KA23: 0 | KB23: 0 | KC23: 0 | KD23: 0 | KE23: 0 | KF23: 0 | KG23: 0 | KH23: 0 | KI23: 0 | KJ23: 0 | KK23: 0 | KL23: 0 | KM23: 0 | KN23: 0 | KO23: 0 | KP23: 0 | KQ23: 0 | KR23: 0 | KS23: 0 | KT23: 0 | KU23: 0 | KV23: 0 | KW23: 0 | KX23: 0 | KY23: 0 | KZ23: 0 | LA23: 0 | LB23: 0 | LC23: 0 | LD23: 0 | LE23: 0 | LF23: 0 | LG23: 0 | LH23: 0 | LI23: 0 | LJ23: 0 | LK23: 0 | LL23: 0 | LM23: 0 | LN23: 0 | LO23: 0 | LP23: 0 | LQ23: 0 | LR23: 0 | LS23: 0 | LT23: 0 | LU23: 0 | LV23: 0 | LW23: 0 | LX23: 0 | LY23: 0 | LZ23: 0 | MA23: 0 | MB23: 0 | MC23: 0 | MD23: 0 | ME23: 0 | MF23: 0 | MG23: 0 | MH23: 0 | MI23: 0 | MJ23: 0 | MK23: 0 | ML23: 0 | MM23: 0 | MN23: 0 | MO23: 0 | MP23: 0 | MQ23: 0 | MR23: 0 | MS23: 0 | MT23: 0 | MU23: 0 | MV23: 0 | MW23: 0
E24: 19 | F24: (Deel)complex 19 | G24: 0 | H24: 0 | I24: 0 | J24: 0 | K24: 0 | L24: 0 | M24: 0 | N24: 0 | O24: 0 | P24: 0 | Q24: 0 | R24: 0 | S24: 0 | T24: 0 | U24: 0 | V24: 0 | W24: 0 | X24: 0 | Y24: 0 | Z24: 0 | AA24: 0 | AB24: 0 | AC24: 0 | AD24: 0 | AE24: 0 | AF24: 0 | AG24: 0 | AH24: 0 | AI24: 0 | AJ24: 0 | AK24: 0 | AL24: 0 | AM24: 0 | AN24: 0 | AO24: 0 | AP24: 0 | AQ24: 0 | AR24: 0 | AS24: 0 | AT24: 0 | AU24: 0 | AV24: 0 | AW24: 0 | AX24: 0 | AY24: 0 | AZ24: 0 | BA24: 0 | BB24: 0 | BC24: 0 | BD24: 0 | BE24: 0 | BF24: 0 | BG24: 0 | BH24: 0 | BI24: 0 | BJ24: 0 | BK24: 0 | BL24: 0 | BM24: 0 | BN24: 0 | BO24: 0 | BP24: 0 | BQ24: 0 | BR24: 0 | BS24: 0 | BT24: 0 | BU24: 0 | BV24: 0 | BW24: 0 | BX24: 0 | BY24: 0 | BZ24: 0 | CA24: 0 | CB24: 0 | CC24: 0 | CD24: 0 | CE24: 0 | CF24: 0 | CG24: 0 | CH24: 0 | CI24: 0 | CJ24: 0 | CK24: 0 | CL24: 0 | CM24: 0 | CN24: 0 | CO24: 0 | CP24: 0 | CQ24: 0 | CR24: 0 | CS24: 0 | CT24: 0 | CU24: 0 | CV24: 0 | CW24: 0 | CX24: 0 | CY24: 0 | CZ24: 0 | DA24: 0 | DB24: 0 | DC24: 0 | DD24: 0 | DE24: 0 | DF24: 0 | DG24: 0 | DH24: 0 | DI24: 0 | DJ24: 0 | DK24: 0 | DL24: 0 | DM24: 0 | DN24: 0 | DO24: 0 | DP24: 0 | DQ24: 0 | DR24: 0 | DS24: 0 | DT24: 0 | DU24: 0 | DV24: 0 | DW24: 0 | DX24: 0 | DY24: 0 | DZ24: 0 | EA24: 0 | EB24: 0 | EC24: 0 | ED24: 0 | EE24: 0 | EF24: 0 | EG24: 0 | EH24: 0 | EI24: 0 | EJ24: 0 | EK24: 0 | EL24: 0 | EM24: 0 | EN24: 0 | EO24: 0 | EP24: 0 | EQ24: 0 | ER24: 0 | ES24: 0 | ET24: 0 | EU24: 0 | EV24: 0 | EW24: 0 | EX24: 0 | EY24: 0 | EZ24: 0 | FA24: 0 | FB24: 0 | FC24: 0 | FD24: 0 | FE24: 0 | FF24: 0 | FG24: 0 | FH24: 0 | FI24: 0 | FJ24: 0 | FK24: 0 | FL24: 0 | FM24: 0 | FN24: 0 | FO24: 0 | FP24: 0 | FQ24: 0 | FR24: 0 | FS24: 0 | FT24: 0 | FU24: 0 | FV24: 0 | FW24: 0 | FX24: 0 | FY24: 0 | FZ24: 0 | GA24: 0 | GB24: 0 | GC24: 0 | GD24: 0 | GE24: 0 | GF24: 0 | GG24: 0 | GH24: 0 | GI24: 0 | GJ24: 0 | GK24: 0 | GL24: 0 | GM24: 0 | GN24: 0 | GO24: 0 | GP24: 0 | GQ24: 0 | GR24: 0 | GS24: 0 | GT24: 0 | GU24: 0 | GV24: 0 | GW24: 0 | GX24: 0 | GY24: 0 | GZ24: 0 | HA24: 0 | HB24: 0 | HC24: 0 | HD24: 0 | HE24: 0 | HF24: 0 | HG24: 0 | HH24: 0 | HI24: 0 | HJ24: 0 | HK24: 0 | HL24: 0 | HM24: 0 | HN24: 0 | HO24: 0 | HP24: 0 | HQ24: 0 | HR24: 0 | HS24: 0 | HT24: 0 | HU24: 0 | HV24: 0 | HW24: 0 | HX24: 0 | HY24: 0 | HZ24: 0 | IA24: 0 | IB24: 0 | IC24: 0 | ID24: 0 | IE24: 0 | IF24: 0 | IG24: 0 | IH24: 0 | II24: 0 | IJ24: 0 | IK24: 0 | IL24: 0 | IM24: 0 | IN24: 0 | IO24: 0 | IP24: 0 | IQ24: 0 | IR24: 0 | IS24: 0 | IT24: 0 | IU24: 0 | IV24: 0 | IW24: 0 | IX24: 0 | IY24: 0 | IZ24: 0 | JA24: 0 | JB24: 0 | JC24: 0 | JD24: 0 | JE24: 0 | JF24: 0 | JG24: 0 | JH24: 0 | JI24: 0 | JJ24: 0 | JK24: 0 | JL24: 0 | JM24: 0 | JN24: 0 | JO24: 0 | JP24: 0 | JQ24: 0 | JR24: 0 | JS24: 0 | JT24: 0 | JU24: 0 | JV24: 0 | JW24: 0 | JX24: 0 | JY24: 0 | JZ24: 0 | KA24: 0 | KB24: 0 | KC24: 0 | KD24: 0 | KE24: 0 | KF24: 0 | KG24: 0 | KH24: 0 | KI24: 0 | KJ24: 0 | KK24: 0 | KL24: 0 | KM24: 0 | KN24: 0 | KO24: 0 | KP24: 0 | KQ24: 0 | KR24: 0 | KS24: 0 | KT24: 0 | KU24: 0 | KV24: 0 | KW24: 0 | KX24: 0 | KY24: 0 | KZ24: 0 | LA24: 0 | LB24: 0 | LC24: 0 | LD24: 0 | LE24: 0 | LF24: 0 | LG24: 0 | LH24: 0 | LI24: 0 | LJ24: 0 | LK24: 0 | LL24: 0 | LM24: 0 | LN24: 0 | LO24: 0 | LP24: 0 | LQ24: 0 | LR24: 0 | LS24: 0 | LT24: 0 | LU24: 0 | LV24: 0 | LW24: 0 | LX24: 0 | LY24: 0 | LZ24: 0 | MA24: 0 | MB24: 0 | MC24: 0 | MD24: 0 | ME24: 0 | MF24: 0 | MG24: 0 | MH24: 0 | MI24: 0 | MJ24: 0 | MK24: 0 | ML24: 0 | MM24: 0 | MN24: 0 | MO24: 0 | MP24: 0 | MQ24: 0 | MR24: 0 | MS24: 0 | MT24: 0 | MU24: 0 | MV24: 0 | MW24: 0
E25: 20 | F25: (Deel)complex 20 | G25: 0 | H25: 0 | I25: 0 | J25: 0 | K25: 0 | L25: 0 | M25: 0 | N25: 0 | O25: 0 | P25: 0 | Q25: 0 | R25: 0 | S25: 0 | T25: 0 | U25: 0 | V25: 0 | W25: 0 | X25: 0 | Y25: 0 | Z25: 0 | AA25: 0 | AB25: 0 | AC25: 0 | AD25: 0 | AE25: 0 | AF25: 0 | AG25: 0 | AH25: 0 | AI25: 0 | AJ25: 0 | AK25: 0 | AL25: 0 | AM25: 0 | AN25: 0 | AO25: 0 | AP25: 0 | AQ25: 0 | AR25: 0 | AS25: 0 | AT25: 0 | AU25: 0 | AV25: 0 | AW25: 0 | AX25: 0 | AY25: 0 | AZ25: 0 | BA25: 0 | BB25: 0 | BC25: 0 | BD25: 0 | BE25: 0 | BF25: 0 | BG25: 0 | BH25: 0 | BI25: 0 | BJ25: 0 | BK25: 0 | BL25: 0 | BM25: 0 | BN25: 0 | BO25: 0 | BP25: 0 | BQ25: 0 | BR25: 0 | BS25: 0 | BT25: 0 | BU25: 0 | BV25: 0 | BW25: 0 | BX25: 0 | BY25: 0 | BZ25: 0 | CA25: 0 | CB25: 0 | CC25: 0 | CD25: 0 | CE25: 0 | CF25: 0 | CG25: 0 | CH25: 0 | CI25: 0 | CJ25: 0 | CK25: 0 | CL25: 0 | CM25: 0 | CN25: 0 | CO25: 0 | CP25: 0 | CQ25: 0 | CR25: 0 | CS25: 0 | CT25: 0 | CU25: 0 | CV25: 0 | CW25: 0 | CX25: 0 | CY25: 0 | CZ25: 0 | DA25: 0 | DB25: 0 | DC25: 0 | DD25: 0 | DE25: 0 | DF25: 0 | DG25: 0 | DH25: 0 | DI25: 0 | DJ25: 0 | DK25: 0 | DL25: 0 | DM25: 0 | DN25: 0 | DO25: 0 | DP25: 0 | DQ25: 0 | DR25: 0 | DS25: 0 | DT25: 0 | DU25: 0 | DV25: 0 | DW25: 0 | DX25: 0 | DY25: 0 | DZ25: 0 | EA25: 0 | EB25: 0 | EC25: 0 | ED25: 0 | EE25: 0 | EF25: 0 | EG25: 0 | EH25: 0 | EI25: 0 | EJ25: 0 | EK25: 0 | EL25: 0 | EM25: 0 | EN25: 0 | EO25: 0 | EP25: 0 | EQ25: 0 | ER25: 0 | ES25: 0 | ET25: 0 | EU25: 0 | EV25: 0 | EW25: 0 | EX25: 0 | EY25: 0 | EZ25: 0 | FA25: 0 | FB25: 0 | FC25: 0 | FD25: 0 | FE25: 0 | FF25: 0 | FG25: 0 | FH25: 0 | FI25: 0 | FJ25: 0 | FK25: 0 | FL25: 0 | FM25: 0 | FN25: 0 | FO25: 0 | FP25: 0 | FQ25: 0 | FR25: 0 | FS25: 0 | FT25: 0 | FU25: 0 | FV25: 0 | FW25: 0 | FX25: 0 | FY25: 0 | FZ25: 0 | GA25: 0 | GB25: 0 | GC25: 0 | GD25: 0 | GE25: 0 | GF25: 0 | GG25: 0 | GH25: 0 | GI25: 0 | GJ25: 0 | GK25: 0 | GL25: 0 | GM25: 0 | GN25: 0 | GO25: 0 | GP25: 0 | GQ25: 0 | GR25: 0 | GS25: 0 | GT25: 0 | GU25: 0 | GV25: 0 | GW25: 0 | GX25: 0 | GY25: 0 | GZ25: 0 | HA25: 0 | HB25: 0 | HC25: 0 | HD25: 0 | HE25: 0 | HF25: 0 | HG25: 0 | HH25: 0 | HI25: 0 | HJ25: 0 | HK25: 0 | HL25: 0 | HM25: 0 | HN25: 0 | HO25: 0 | HP25: 0 | HQ25: 0 | HR25: 0 | HS25: 0 | HT25: 0 | HU25: 0 | HV25: 0 | HW25: 0 | HX25: 0 | HY25: 0 | HZ25: 0 | IA25: 0 | IB25: 0 | IC25: 0 | ID25: 0 | IE25: 0 | IF25: 0 | IG25: 0 | IH25: 0 | II25: 0 | IJ25: 0 | IK25: 0 | IL25: 0 | IM25: 0 | IN25: 0 | IO25: 0 | IP25: 0 | IQ25: 0 | IR25: 0 | IS25: 0 | IT25: 0 | IU25: 0 | IV25: 0 | IW25: 0 | IX25: 0 | IY25: 0 | IZ25: 0 | JA25: 0 | JB25: 0 | JC25: 0 | JD25: 0 | JE25: 0 | JF25: 0 | JG25: 0 | JH25: 0 | JI25: 0 | JJ25: 0 | JK25: 0 | JL25: 0 | JM25: 0 | JN25: 0 | JO25: 0 | JP25: 0 | JQ25: 0 | JR25: 0 | JS25: 0 | JT25: 0 | JU25: 0 | JV25: 0 | JW25: 0 | JX25: 0 | JY25: 0 | JZ25: 0 | KA25: 0 | KB25: 0 | KC25: 0 | KD25: 0 | KE25: 0 | KF25: 0 | KG25: 0 | KH25: 0 | KI25: 0 | KJ25: 0 | KK25: 0 | KL25: 0 | KM25: 0 | KN25: 0 | KO25: 0 | KP25: 0 | KQ25: 0 | KR25: 0 | KS25: 0 | KT25: 0 | KU25: 0 | KV25: 0 | KW25: 0 | KX25: 0 | KY25: 0 | KZ25: 0 | LA25: 0 | LB25: 0 | LC25: 0 | LD25: 0 | LE25: 0 | LF25: 0 | LG25: 0 | LH25: 0 | LI25: 0 | LJ25: 0 | LK25: 0 | LL25: 0 | LM25: 0 | LN25: 0 | LO25: 0 | LP25: 0 | LQ25: 0 | LR25: 0 | LS25: 0 | LT25: 0 | LU25: 0 | LV25: 0 | LW25: 0 | LX25: 0 | LY25: 0 | LZ25: 0 | MA25: 0 | MB25: 0 | MC25: 0 | MD25: 0 | ME25: 0 | MF25: 0 | MG25: 0 | MH25: 0 | MI25: 0 | MJ25: 0 | MK25: 0 | ML25: 0 | MM25: 0 | MN25: 0 | MO25: 0 | MP25: 0 | MQ25: 0 | MR25: 0 | MS25: 0 | MT25: 0 | MU25: 0 | MV25: 0 | MW25: 0
E26: 21 | F26: (Deel)complex 21 | G26: 0 | H26: 0 | I26: 0 | J26: 0 | K26: 0 | L26: 0 | M26: 0 | N26: 0 | O26: 0 | P26: 0 | Q26: 0 | R26: 0 | S26: 0 | T26: 0 | U26: 0 | V26: 0 | W26: 0 | X26: 0 | Y26: 0 | Z26: 0 | AA26: 0 | AB26: 0 | AC26: 0 | AD26: 0 | AE26: 0 | AF26: 0 | AG26: 0 | AH26: 0 | AI26: 0 | AJ26: 0 | AK26: 0 | AL26: 0 | AM26: 0 | AN26: 0 | AO26: 0 | AP26: 0 | AQ26: 0 | AR26: 0 | AS26: 0 | AT26: 0 | AU26: 0 | AV26: 0 | AW26: 0 | AX26: 0 | AY26: 0 | AZ26: 0 | BA26: 0 | BB26: 0 | BC26: 0 | BD26: 0 | BE26: 0 | BF26: 0 | BG26: 0 | BH26: 0 | BI26: 0 | BJ26: 0 | BK26: 0 | BL26: 0 | BM26: 0 | BN26: 0 | BO26: 0 | BP26: 0 | BQ26: 0 | BR26: 0 | BS26: 0 | BT26: 0 | BU26: 0 | BV26: 0 | BW26: 0 | BX26: 0 | BY26: 0 | BZ26: 0 | CA26: 0 | CB26: 0 | CC26: 0 | CD26: 0 | CE26: 0 | CF26: 0 | CG26: 0 | CH26: 0 | CI26: 0 | CJ26: 0 | CK26: 0 | CL26: 0 | CM26: 0 | CN26: 0 | CO26: 0 | CP26: 0 | CQ26: 0 | CR26: 0 | CS26: 0 | CT26: 0 | CU26: 0 | CV26: 0 | CW26: 0 | CX26: 0 | CY26: 0 | CZ26: 0 | DA26: 0 | DB26: 0 | DC26: 0 | DD26: 0 | DE26: 0 | DF26: 0 | DG26: 0 | DH26: 0 | DI26: 0 | DJ26: 0 | DK26: 0 | DL26: 0 | DM26: 0 | DN26: 0 | DO26: 0 | DP26: 0 | DQ26: 0 | DR26: 0 | DS26: 0 | DT26: 0 | DU26: 0 | DV26: 0 | DW26: 0 | DX26: 0 | DY26: 0 | DZ26: 0 | EA26: 0 | EB26: 0 | EC26: 0 | ED26: 0 | EE26: 0 | EF26: 0 | EG26: 0 | EH26: 0 | EI26: 0 | EJ26: 0 | EK26: 0 | EL26: 0 | EM26: 0 | EN26: 0 | EO26: 0 | EP26: 0 | EQ26: 0 | ER26: 0 | ES26: 0 | ET26: 0 | EU26: 0 | EV26: 0 | EW26: 0 | EX26: 0 | EY26: 0 | EZ26: 0 | FA26: 0 | FB26: 0 | FC26: 0 | FD26: 0 | FE26: 0 | FF26: 0 | FG26: 0 | FH26: 0 | FI26: 0 | FJ26: 0 | FK26: 0 | FL26: 0 | FM26: 0 | FN26: 0 | FO26: 0 | FP26: 0 | FQ26: 0 | FR26: 0 | FS26: 0 | FT26: 0 | FU26: 0 | FV26: 0 | FW26: 0 | FX26: 0 | FY26: 0 | FZ26: 0 | GA26: 0 | GB26: 0 | GC26: 0 | GD26: 0 | GE26: 0 | GF26: 0 | GG26: 0 | GH26: 0 | GI26: 0 | GJ26: 0 | GK26: 0 | GL26: 0 | GM26: 0 | GN26: 0 | GO26: 0 | GP26: 0 | GQ26: 0 | GR26: 0 | GS26: 0 | GT26: 0 | GU26: 0 | GV26: 0 | GW26: 0 | GX26: 0 | GY26: 0 | GZ26: 0 | HA26: 0 | HB26: 0 | HC26: 0 | HD26: 0 | HE26: 0 | HF26: 0 | HG26: 0 | HH26: 0 | HI26: 0 | HJ26: 0 | HK26: 0 | HL26: 0 | HM26: 0 | HN26: 0 | HO26: 0 | HP26: 0 | HQ26: 0 | HR26: 0 | HS26: 0 | HT26: 0 | HU26: 0 | HV26: 0 | HW26: 0 | HX26: 0 | HY26: 0 | HZ26: 0 | IA26: 0 | IB26: 0 | IC26: 0 | ID26: 0 | IE26: 0 | IF26: 0 | IG26: 0 | IH26: 0 | II26: 0 | IJ26: 0 | IK26: 0 | IL26: 0 | IM26: 0 | IN26: 0 | IO26: 0 | IP26: 0 | IQ26: 0 | IR26: 0 | IS26: 0 | IT26: 0 | IU26: 0 | IV26: 0 | IW26: 0 | IX26: 0 | IY26: 0 | IZ26: 0 | JA26: 0 | JB26: 0 | JC26: 0 | JD26: 0 | JE26: 0 | JF26: 0 | JG26: 0 | JH26: 0 | JI26: 0 | JJ26: 0 | JK26: 0 | JL26: 0 | JM26: 0 | JN26: 0 | JO26: 0 | JP26: 0 | JQ26: 0 | JR26: 0 | JS26: 0 | JT26: 0 | JU26: 0 | JV26: 0 | JW26: 0 | JX26: 0 | JY26: 0 | JZ26: 0 | KA26: 0 | KB26: 0 | KC26: 0 | KD26: 0 | KE26: 0 | KF26: 0 | KG26: 0 | KH26: 0 | KI26: 0 | KJ26: 0 | KK26: 0 | KL26: 0 | KM26: 0 | KN26: 0 | KO26: 0 | KP26: 0 | KQ26: 0 | KR26: 0 | KS26: 0 | KT26: 0 | KU26: 0 | KV26: 0 | KW26: 0 | KX26: 0 | KY26: 0 | KZ26: 0 | LA26: 0 | LB26: 0 | LC26: 0 | LD26: 0 | LE26: 0 | LF26: 0 | LG26: 0 | LH26: 0 | LI26: 0 | LJ26: 0 | LK26: 0 | LL26: 0 | LM26: 0 | LN26: 0 | LO26: 0 | LP26: 0 | LQ26: 0 | LR26: 0 | LS26: 0 | LT26: 0 | LU26: 0 | LV26: 0 | LW26: 0 | LX26: 0 | LY26: 0 | LZ26: 0 | MA26: 0 | MB26: 0 | MC26: 0 | MD26: 0 | ME26: 0 | MF26: 0 | MG26: 0 | MH26: 0 | MI26: 0 | MJ26: 0 | MK26: 0 | ML26: 0 | MM26: 0 | MN26: 0 | MO26: 0 | MP26: 0 | MQ26: 0 | MR26: 0 | MS26: 0 | MT26: 0 | MU26: 0 | MV26: 0 | MW26: 0
E27: 22 | F27: (Deel)complex 22 | G27: 0 | H27: 0 | I27: 0 | J27: 0 | K27: 0 | L27: 0 | M27: 0 | N27: 0 | O27: 0 | P27: 0 | Q27: 0 | R27: 0 | S27: 0 | T27: 0 | U27: 0 | V27: 0 | W27: 0 | X27: 0 | Y27: 0 | Z27: 0 | AA27: 0 | AB27: 0 | AC27: 0 | AD27: 0 | AE27: 0 | AF27: 0 | AG27: 0 | AH27: 0 | AI27: 0 | AJ27: 0 | AK27: 0 | AL27: 0 | AM27: 0 | AN27: 0 | AO27: 0 | AP27: 0 | AQ27: 0 | AR27: 0 | AS27: 0 | AT27: 0 | AU27: 0 | AV27: 0 | AW27: 0 | AX27: 0 | AY27: 0 | AZ27: 0 | BA27: 0 | BB27: 0 | BC27: 0 | BD27: 0 | BE27: 0 | BF27: 0 | BG27: 0 | BH27: 0 | BI27: 0 | BJ27: 0 | BK27: 0 | BL27: 0 | BM27: 0 | BN27: 0 | BO27: 0 | BP27: 0 | BQ27: 0 | BR27: 0 | BS27: 0 | BT27: 0 | BU27: 0 | BV27: 0 | BW27: 0 | BX27: 0 | BY27: 0 | BZ27: 0 | CA27: 0 | CB27: 0 | CC27: 0 | CD27: 0 | CE27: 0 | CF27: 0 | CG27: 0 | CH27: 0 | CI27: 0 | CJ27: 0 | CK27: 0 | CL27: 0 | CM27: 0 | CN27: 0 | CO27: 0 | CP27: 0 | CQ27: 0 | CR27: 0 | CS27: 0 | CT27: 0 | CU27: 0 | CV27: 0 | CW27: 0 | CX27: 0 | CY27: 0 | CZ27: 0 | DA27: 0 | DB27: 0 | DC27: 0 | DD27: 0 | DE27: 0 | DF27: 0 | DG27: 0 | DH27: 0 | DI27: 0 | DJ27: 0 | DK27: 0 | DL27: 0 | DM27: 0 | DN27: 0 | DO27: 0 | DP27: 0 | DQ27: 0 | DR27: 0 | DS27: 0 | DT27: 0 | DU27: 0 | DV27: 0 | DW27: 0 | DX27: 0 | DY27: 0 | DZ27: 0 | EA27: 0 | EB27: 0 | EC27: 0 | ED27: 0 | EE27: 0 | EF27: 0 | EG27: 0 | EH27: 0 | EI27: 0 | EJ27: 0 | EK27: 0 | EL27: 0 | EM27: 0 | EN27: 0 | EO27: 0 | EP27: 0 | EQ27: 0 | ER27: 0 | ES27: 0 | ET27: 0 | EU27: 0 | EV27: 0 | EW27: 0 | EX27: 0 | EY27: 0 | EZ27: 0 | FA27: 0 | FB27: 0 | FC27: 0 | FD27: 0 | FE27: 0 | FF27: 0 | FG27: 0 | FH27: 0 | FI27: 0 | FJ27: 0 | FK27: 0 | FL27: 0 | FM27: 0 | FN27: 0 | FO27: 0 | FP27: 0 | FQ27: 0 | FR27: 0 | FS27: 0 | FT27: 0 | FU27: 0 | FV27: 0 | FW27: 0 | FX27: 0 | FY27: 0 | FZ27: 0 | GA27: 0 | GB27: 0 | GC27: 0 | GD27: 0 | GE27: 0 | GF27: 0 | GG27: 0 | GH27: 0 | GI27: 0 | GJ27: 0 | GK27: 0 | GL27: 0 | GM27: 0 | GN27: 0 | GO27: 0 | GP27: 0 | GQ27: 0 | GR27: 0 | GS27: 0 | GT27: 0 | GU27: 0 | GV27: 0 | GW27: 0 | GX27: 0 | GY27: 0 | GZ27: 0 | HA27: 0 | HB27: 0 | HC27: 0 | HD27: 0 | HE27: 0 | HF27: 0 | HG27: 0 | HH27: 0 | HI27: 0 | HJ27: 0 | HK27: 0 | HL27: 0 | HM27: 0 | HN27: 0 | HO27: 0 | HP27: 0 | HQ27: 0 | HR27: 0 | HS27: 0 | HT27: 0 | HU27: 0 | HV27: 0 | HW27: 0 | HX27: 0 | HY27: 0 | HZ27: 0 | IA27: 0 | IB27: 0 | IC27: 0 | ID27: 0 | IE27: 0 | IF27: 0 | IG27: 0 | IH27: 0 | II27: 0 | IJ27: 0 | IK27: 0 | IL27: 0 | IM27: 0 | IN27: 0 | IO27: 0 | IP27: 0 | IQ27: 0 | IR27: 0 | IS27: 0 | IT27: 0 | IU27: 0 | IV27: 0 | IW27: 0 | IX27: 0 | IY27: 0 | IZ27: 0 | JA27: 0 | JB27: 0 | JC27: 0 | JD27: 0 | JE27: 0 | JF27: 0 | JG27: 0 | JH27: 0 | JI27: 0 | JJ27: 0 | JK27: 0 | JL27: 0 | JM27: 0 | JN27: 0 | JO27: 0 | JP27: 0 | JQ27: 0 | JR27: 0 | JS27: 0 | JT27: 0 | JU27: 0 | JV27: 0 | JW27: 0 | JX27: 0 | JY27: 0 | JZ27: 0 | KA27: 0 | KB27: 0 | KC27: 0 | KD27: 0 | KE27: 0 | KF27: 0 | KG27: 0 | KH27: 0 | KI27: 0 | KJ27: 0 | KK27: 0 | KL27: 0 | KM27: 0 | KN27: 0 | KO27: 0 | KP27: 0 | KQ27: 0 | KR27: 0 | KS27: 0 | KT27: 0 | KU27: 0 | KV27: 0 | KW27: 0 | KX27: 0 | KY27: 0 | KZ27: 0 | LA27: 0 | LB27: 0 | LC27: 0 | LD27: 0 | LE27: 0 | LF27: 0 | LG27: 0 | LH27: 0 | LI27: 0 | LJ27: 0 | LK27: 0 | LL27: 0 | LM27: 0 | LN27: 0 | LO27: 0 | LP27: 0 | LQ27: 0 | LR27: 0 | LS27: 0 | LT27: 0 | LU27: 0 | LV27: 0 | LW27: 0 | LX27: 0 | LY27: 0 | LZ27: 0 | MA27: 0 | MB27: 0 | MC27: 0 | MD27: 0 | ME27: 0 | MF27: 0 | MG27: 0 | MH27: 0 | MI27: 0 | MJ27: 0 | MK27: 0 | ML27: 0 | MM27: 0 | MN27: 0 | MO27: 0 | MP27: 0 | MQ27: 0 | MR27: 0 | MS27: 0 | MT27: 0 | MU27: 0 | MV27: 0 | MW27: 0
E28: 23 | F28: (Deel)complex 23 | G28: 0 | H28: 0 | I28: 0 | J28: 0 | K28: 0 | L28: 0 | M28: 0 | N28: 0 | O28: 0 | P28: 0 | Q28: 0 | R28: 0 | S28: 0 | T28: 0 | U28: 0 | V28: 0 | W28: 0 | X28: 0 | Y28: 0 | Z28: 0 | AA28: 0 | AB28: 0 | AC28: 0 | AD28: 0 | AE28: 0 | AF28: 0 | AG28: 0 | AH28: 0 | AI28: 0 | AJ28: 0 | AK28: 0 | AL28: 0 | AM28: 0 | AN28: 0 | AO28: 0 | AP28: 0 | AQ28: 0 | AR28: 0 | AS28: 0 | AT28: 0 | AU28: 0 | AV28: 0 | AW28: 0 | AX28: 0 | AY28: 0 | AZ28: 0 | BA28: 0 | BB28: 0 | BC28: 0 | BD28: 0 | BE28: 0 | BF28: 0 | BG28: 0 | BH28: 0 | BI28: 0 | BJ28: 0 | BK28: 0 | BL28: 0 | BM28: 0 | BN28: 0 | BO28: 0 | BP28: 0 | BQ28: 0 | BR28: 0 | BS28: 0 | BT28: 0 | BU28: 0 | BV28: 0 | BW28: 0 | BX28: 0 | BY28: 0 | BZ28: 0 | CA28: 0 | CB28: 0 | CC28: 0 | CD28: 0 | CE28: 0 | CF28: 0 | CG28: 0 | CH28: 0 | CI28: 0 | CJ28: 0 | CK28: 0 | CL28: 0 | CM28: 0 | CN28: 0 | CO28: 0 | CP28: 0 | CQ28: 0 | CR28: 0 | CS28: 0 | CT28: 0 | CU28: 0 | CV28: 0 | CW28: 0 | CX28: 0 | CY28: 0 | CZ28: 0 | DA28: 0 | DB28: 0 | DC28: 0 | DD28: 0 | DE28: 0 | DF28: 0 | DG28: 0 | DH28: 0 | DI28: 0 | DJ28: 0 | DK28: 0 | DL28: 0 | DM28: 0 | DN28: 0 | DO28: 0 | DP28: 0 | DQ28: 0 | DR28: 0 | DS28: 0 | DT28: 0 | DU28: 0 | DV28: 0 | DW28: 0 | DX28: 0 | DY28: 0 | DZ28: 0 | EA28: 0 | EB28: 0 | EC28: 0 | ED28: 0 | EE28: 0 | EF28: 0 | EG28: 0 | EH28: 0 | EI28: 0 | EJ28: 0 | EK28: 0 | EL28: 0 | EM28: 0 | EN28: 0 | EO28: 0 | EP28: 0 | EQ28: 0 | ER28: 0 | ES28: 0 | ET28: 0 | EU28: 0 | EV28: 0 | EW28: 0 | EX28: 0 | EY28: 0 | EZ28: 0 | FA28: 0 | FB28: 0 | FC28: 0 | FD28: 0 | FE28: 0 | FF28: 0 | FG28: 0 | FH28: 0 | FI28: 0 | FJ28: 0 | FK28: 0 | FL28: 0 | FM28: 0 | FN28: 0 | FO28: 0 | FP28: 0 | FQ28: 0 | FR28: 0 | FS28: 0 | FT28: 0 | FU28: 0 | FV28: 0 | FW28: 0 | FX28: 0 | FY28: 0 | FZ28: 0 | GA28: 0 | GB28: 0 | GC28: 0 | GD28: 0 | GE28: 0 | GF28: 0 | GG28: 0 | GH28: 0 | GI28: 0 | GJ28: 0 | GK28: 0 | GL28: 0 | GM28: 0 | GN28: 0 | GO28: 0 | GP28: 0 | GQ28: 0 | GR28: 0 | GS28: 0 | GT28: 0 | GU28: 0 | GV28: 0 | GW28: 0 | GX28: 0 | GY28: 0 | GZ28: 0 | HA28: 0 | HB28: 0 | HC28: 0 | HD28: 0 | HE28: 0 | HF28: 0 | HG28: 0 | HH28: 0 | HI28: 0 | HJ28: 0 | HK28: 0 | HL28: 0 | HM28: 0 | HN28: 0 | HO28: 0 | HP28: 0 | HQ28: 0 | HR28: 0 | HS28: 0 | HT28: 0 | HU28: 0 | HV28: 0 | HW28: 0 | HX28: 0 | HY28: 0 | HZ28: 0 | IA28: 0 | IB28: 0 | IC28: 0 | ID28: 0 | IE28: 0 | IF28: 0 | IG28: 0 | IH28: 0 | II28: 0 | IJ28: 0 | IK28: 0 | IL28: 0 | IM28: 0 | IN28: 0 | IO28: 0 | IP28: 0 | IQ28: 0 | IR28: 0 | IS28: 0 | IT28: 0 | IU28: 0 | IV28: 0 | IW28: 0 | IX28: 0 | IY28: 0 | IZ28: 0 | JA28: 0 | JB28: 0 | JC28: 0 | JD28: 0 | JE28: 0 | JF28: 0 | JG28: 0 | JH28: 0 | JI28: 0 | JJ28: 0 | JK28: 0 | JL28: 0 | JM28: 0 | JN28: 0 | JO28: 0 | JP28: 0 | JQ28: 0 | JR28: 0 | JS28: 0 | JT28: 0 | JU28: 0 | JV28: 0 | JW28: 0 | JX28: 0 | JY28: 0 | JZ28: 0 | KA28: 0 | KB28: 0 | KC28: 0 | KD28: 0 | KE28: 0 | KF28: 0 | KG28: 0 | KH28: 0 | KI28: 0 | KJ28: 0 | KK28: 0 | KL28: 0 | KM28: 0 | KN28: 0 | KO28: 0 | KP28: 0 | KQ28: 0 | KR28: 0 | KS28: 0 | KT28: 0 | KU28: 0 | KV28: 0 | KW28: 0 | KX28: 0 | KY28: 0 | KZ28: 0 | LA28: 0 | LB28: 0 | LC28: 0 | LD28: 0 | LE28: 0 | LF28: 0 | LG28: 0 | LH28: 0 | LI28: 0 | LJ28: 0 | LK28: 0 | LL28: 0 | LM28: 0 | LN28: 0 | LO28: 0 | LP28: 0 | LQ28: 0 | LR28: 0 | LS28: 0 | LT28: 0 | LU28: 0 | LV28: 0 | LW28: 0 | LX28: 0 | LY28: 0 | LZ28: 0 | MA28: 0 | MB28: 0 | MC28: 0 | MD28: 0 | ME28: 0 | MF28: 0 | MG28: 0 | MH28: 0 | MI28: 0 | MJ28: 0 | MK28: 0 | ML28: 0 | MM28: 0 | MN28: 0 | MO28: 0 | MP28: 0 | MQ28: 0 | MR28: 0 | MS28: 0 | MT28: 0 | MU28: 0 | MV28: 0 | MW28: 0
E29: 24 | F29: (Deel)complex 24 | G29: 0 | H29: 0 | I29: 0 | J29: 0 | K29: 0 | L29: 0 | M29: 0 | N29: 0 | O29: 0 | P29: 0 | Q29: 0 | R29: 0 | S29: 0 | T29: 0 | U29: 0 | V29: 0 | W29: 0 | X29: 0 | Y29: 0 | Z29: 0 | AA29: 0 | AB29: 0 | AC29: 0 | AD29: 0 | AE29: 0 | AF29: 0 | AG29: 0 | AH29: 0 | AI29: 0 | AJ29: 0 | AK29: 0 | AL29: 0 | AM29: 0 | AN29: 0 | AO29: 0 | AP29: 0 | AQ29: 0 | AR29: 0 | AS29: 0 | AT29: 0 | AU29: 0 | AV29: 0 | AW29: 0 | AX29: 0 | AY29: 0 | AZ29: 0 | BA29: 0 | BB29: 0 | BC29: 0 | BD29: 0 | BE29: 0 | BF29: 0 | BG29: 0 | BH29: 0 | BI29: 0 | BJ29: 0 | BK29: 0 | BL29: 0 | BM29: 0 | BN29: 0 | BO29: 0 | BP29: 0 | BQ29: 0 | BR29: 0 | BS29: 0 | BT29: 0 | BU29: 0 | BV29: 0 | BW29: 0 | BX29: 0 | BY29: 0 | BZ29: 0 | CA29: 0 | CB29: 0 | CC29: 0 | CD29: 0 | CE29: 0 | CF29: 0 | CG29: 0 | CH29: 0 | CI29: 0 | CJ29: 0 | CK29: 0 | CL29: 0 | CM29: 0 | CN29: 0 | CO29: 0 | CP29: 0 | CQ29: 0 | CR29: 0 | CS29: 0 | CT29: 0 | CU29: 0 | CV29: 0 | CW29: 0 | CX29: 0 | CY29: 0 | CZ29: 0 | DA29: 0 | DB29: 0 | DC29: 0 | DD29: 0 | DE29: 0 | DF29: 0 | DG29: 0 | DH29: 0 | DI29: 0 | DJ29: 0 | DK29: 0 | DL29: 0 | DM29: 0 | DN29: 0 | DO29: 0 | DP29: 0 | DQ29: 0 | DR29: 0 | DS29: 0 | DT29: 0 | DU29: 0 | DV29: 0 | DW29: 0 | DX29: 0 | DY29: 0 | DZ29: 0 | EA29: 0 | EB29: 0 | EC29: 0 | ED29: 0 | EE29: 0 | EF29: 0 | EG29: 0 | EH29: 0 | EI29: 0 | EJ29: 0 | EK29: 0 | EL29: 0 | EM29: 0 | EN29: 0 | EO29: 0 | EP29: 0 | EQ29: 0 | ER29: 0 | ES29: 0 | ET29: 0 | EU29: 0 | EV29: 0 | EW29: 0 | EX29: 0 | EY29: 0 | EZ29: 0 | FA29: 0 | FB29: 0 | FC29: 0 | FD29: 0 | FE29: 0 | FF29: 0 | FG29: 0 | FH29: 0 | FI29: 0 | FJ29: 0 | FK29: 0 | FL29: 0 | FM29: 0 | FN29: 0 | FO29: 0 | FP29: 0 | FQ29: 0 | FR29: 0 | FS29: 0 | FT29: 0 | FU29: 0 | FV29: 0 | FW29: 0 | FX29: 0 | FY29: 0 | FZ29: 0 | GA29: 0 | GB29: 0 | GC29: 0 | GD29: 0 | GE29: 0 | GF29: 0 | GG29: 0 | GH29: 0 | GI29: 0 | GJ29: 0 | GK29: 0 | GL29: 0 | GM29: 0 | GN29: 0 | GO29: 0 | GP29: 0 | GQ29: 0 | GR29: 0 | GS29: 0 | GT29: 0 | GU29: 0 | GV29: 0 | GW29: 0 | GX29: 0 | GY29: 0 | GZ29: 0 | HA29: 0 | HB29: 0 | HC29: 0 | HD29: 0 | HE29: 0 | HF29: 0 | HG29: 0 | HH29: 0 | HI29: 0 | HJ29: 0 | HK29: 0 | HL29: 0 | HM29: 0 | HN29: 0 | HO29: 0 | HP29: 0 | HQ29: 0 | HR29: 0 | HS29: 0 | HT29: 0 | HU29: 0 | HV29: 0 | HW29: 0 | HX29: 0 | HY29: 0 | HZ29: 0 | IA29: 0 | IB29: 0 | IC29: 0 | ID29: 0 | IE29: 0 | IF29: 0 | IG29: 0 | IH29: 0 | II29: 0 | IJ29: 0 | IK29: 0 | IL29: 0 | IM29: 0 | IN29: 0 | IO29: 0 | IP29: 0 | IQ29: 0 | IR29: 0 | IS29: 0 | IT29: 0 | IU29: 0 | IV29: 0 | IW29: 0 | IX29: 0 | IY29: 0 | IZ29: 0 | JA29: 0 | JB29: 0 | JC29: 0 | JD29: 0 | JE29: 0 | JF29: 0 | JG29: 0 | JH29: 0 | JI29: 0 | JJ29: 0 | JK29: 0 | JL29: 0 | JM29: 0 | JN29: 0 | JO29: 0 | JP29: 0 | JQ29: 0 | JR29: 0 | JS29: 0 | JT29: 0 | JU29: 0 | JV29: 0 | JW29: 0 | JX29: 0 | JY29: 0 | JZ29: 0 | KA29: 0 | KB29: 0 | KC29: 0 | KD29: 0 | KE29: 0 | KF29: 0 | KG29: 0 | KH29: 0 | KI29: 0 | KJ29: 0 | KK29: 0 | KL29: 0 | KM29: 0 | KN29: 0 | KO29: 0 | KP29: 0 | KQ29: 0 | KR29: 0 | KS29: 0 | KT29: 0 | KU29: 0 | KV29: 0 | KW29: 0 | KX29: 0 | KY29: 0 | KZ29: 0 | LA29: 0 | LB29: 0 | LC29: 0 | LD29: 0 | LE29: 0 | LF29: 0 | LG29: 0 | LH29: 0 | LI29: 0 | LJ29: 0 | LK29: 0 | LL29: 0 | LM29: 0 | LN29: 0 | LO29: 0 | LP29: 0 | LQ29: 0 | LR29: 0 | LS29: 0 | LT29: 0 | LU29: 0 | LV29: 0 | LW29: 0 | LX29: 0 | LY29: 0 | LZ29: 0 | MA29: 0 | MB29: 0 | MC29: 0 | MD29: 0 | ME29: 0 | MF29: 0 | MG29: 0 | MH29: 0 | MI29: 0 | MJ29: 0 | MK29: 0 | ML29: 0 | MM29: 0 | MN29: 0 | MO29: 0 | MP29: 0 | MQ29: 0 | MR29: 0 | MS29: 0 | MT29: 0 | MU29: 0 | MV29: 0 | MW29: 0
E30: 25 | F30: (Deel)complex 25 | G30: 0 | H30: 0 | I30: 0 | J30: 0 | K30: 0 | L30: 0 | M30: 0 | N30: 0 | O30: 0 | P30: 0 | Q30: 0 | R30: 0 | S30: 0 | T30: 0 | U30: 0 | V30: 0 | W30: 0 | X30: 0 | Y30: 0 | Z30: 0 | AA30: 0 | AB30: 0 | AC30: 0 | AD30: 0 | AE30: 0 | AF30: 0 | AG30: 0 | AH30: 0 | AI30: 0 | AJ30: 0 | AK30: 0 | AL30: 0 | AM30: 0 | AN30: 0 | AO30: 0 | AP30: 0 | AQ30: 0 | AR30: 0 | AS30: 0 | AT30: 0 | AU30: 0 | AV30: 0 | AW30: 0 | AX30: 0 | AY30: 0 | AZ30: 0 | BA30: 0 | BB30: 0 | BC30: 0 | BD30: 0 | BE30: 0 | BF30: 0 | BG30: 0 | BH30: 0 | BI30: 0 | BJ30: 0 | BK30: 0 | BL30: 0 | BM30: 0 | BN30: 0 | BO30: 0 | BP30: 0 | BQ30: 0 | BR30: 0 | BS30: 0 | BT30: 0 | BU30: 0 | BV30: 0 | BW30: 0 | BX30: 0 | BY30: 0 | BZ30: 0 | CA30: 0 | CB30: 0 | CC30: 0 | CD30: 0 | CE30: 0 | CF30: 0 | CG30: 0 | CH30: 0 | CI30: 0 | CJ30: 0 | CK30: 0 | CL30: 0 | CM30: 0 | CN30: 0 | CO30: 0 | CP30: 0 | CQ30: 0 | CR30: 0 | CS30: 0 | CT30: 0 | CU30: 0 | CV30: 0 | CW30: 0 | CX30: 0 | CY30: 0 | CZ30: 0 | DA30: 0 | DB30: 0 | DC30: 0 | DD30: 0 | DE30: 0 | DF30: 0 | DG30: 0 | DH30: 0 | DI30: 0 | DJ30: 0 | DK30: 0 | DL30: 0 | DM30: 0 | DN30: 0 | DO30: 0 | DP30: 0 | DQ30: 0 | DR30: 0 | DS30: 0 | DT30: 0 | DU30: 0 | DV30: 0 | DW30: 0 | DX30: 0 | DY30: 0 | DZ30: 0 | EA30: 0 | EB30: 0 | EC30: 0 | ED30: 0 | EE30: 0 | EF30: 0 | EG30: 0 | EH30: 0 | EI30: 0 | EJ30: 0 | EK30: 0 | EL30: 0 | EM30: 0 | EN30: 0 | EO30: 0 | EP30: 0 | EQ30: 0 | ER30: 0 | ES30: 0 | ET30: 0 | EU30: 0 | EV30: 0 | EW30: 0 | EX30: 0 | EY30: 0 | EZ30: 0 | FA30: 0 | FB30: 0 | FC30: 0 | FD30: 0 | FE30: 0 | FF30: 0 | FG30: 0 | FH30: 0 | FI30: 0 | FJ30: 0 | FK30: 0 | FL30: 0 | FM30: 0 | FN30: 0 | FO30: 0 | FP30: 0 | FQ30: 0 | FR30: 0 | FS30: 0 | FT30: 0 | FU30: 0 | FV30: 0 | FW30: 0 | FX30: 0 | FY30: 0 | FZ30: 0 | GA30: 0 | GB30: 0 | GC30: 0 | GD30: 0 | GE30: 0 | GF30: 0 | GG30: 0 | GH30: 0 | GI30: 0 | GJ30: 0 | GK30: 0 | GL30: 0 | GM30: 0 | GN30: 0 | GO30: 0 | GP30: 0 | GQ30: 0 | GR30: 0 | GS30: 0 | GT30: 0 | GU30: 0 | GV30: 0 | GW30: 0 | GX30: 0 | GY30: 0 | GZ30: 0 | HA30: 0 | HB30: 0 | HC30: 0 | HD30: 0 | HE30: 0 | HF30: 0 | HG30: 0 | HH30: 0 | HI30: 0 | HJ30: 0 | HK30: 0 | HL30: 0 | HM30: 0 | HN30: 0 | HO30: 0 | HP30: 0 | HQ30: 0 | HR30: 0 | HS30: 0 | HT30: 0 | HU30: 0 | HV30: 0 | HW30: 0 | HX30: 0 | HY30: 0 | HZ30: 0 | IA30: 0 | IB30: 0 | IC30: 0 | ID30: 0 | IE30: 0 | IF30: 0 | IG30: 0 | IH30: 0 | II30: 0 | IJ30: 0 | IK30: 0 | IL30: 0 | IM30: 0 | IN30: 0 | IO30: 0 | IP30: 0 | IQ30: 0 | IR30: 0 | IS30: 0 | IT30: 0 | IU30: 0 | IV30: 0 | IW30: 0 | IX30: 0 | IY30: 0 | IZ30: 0 | JA30: 0 | JB30: 0 | JC30: 0 | JD30: 0 | JE30: 0 | JF30: 0 | JG30: 0 | JH30: 0 | JI30: 0 | JJ30: 0 | JK30: 0 | JL30: 0 | JM30: 0 | JN30: 0 | JO30: 0 | JP30: 0 | JQ30: 0 | JR30: 0 | JS30: 0 | JT30: 0 | JU30: 0 | JV30: 0 | JW30: 0 | JX30: 0 | JY30: 0 | JZ30: 0 | KA30: 0 | KB30: 0 | KC30: 0 | KD30: 0 | KE30: 0 | KF30: 0 | KG30: 0 | KH30: 0 | KI30: 0 | KJ30: 0 | KK30: 0 | KL30: 0 | KM30: 0 | KN30: 0 | KO30: 0 | KP30: 0 | KQ30: 0 | KR30: 0 | KS30: 0 | KT30: 0 | KU30: 0 | KV30: 0 | KW30: 0 | KX30: 0 | KY30: 0 | KZ30: 0 | LA30: 0 | LB30: 0 | LC30: 0 | LD30: 0 | LE30: 0 | LF30: 0 | LG30: 0 | LH30: 0 | LI30: 0 | LJ30: 0 | LK30: 0 | LL30: 0 | LM30: 0 | LN30: 0 | LO30: 0 | LP30: 0 | LQ30: 0 | LR30: 0 | LS30: 0 | LT30: 0 | LU30: 0 | LV30: 0 | LW30: 0 | LX30: 0 | LY30: 0 | LZ30: 0 | MA30: 0 | MB30: 0 | MC30: 0 | MD30: 0 | ME30: 0 | MF30: 0 | MG30: 0 | MH30: 0 | MI30: 0 | MJ30: 0 | MK30: 0 | ML30: 0 | MM30: 0 | MN30: 0 | MO30: 0 | MP30: 0 | MQ30: 0 | MR30: 0 | MS30: 0 | MT30: 0 | MU30: 0 | MV30: 0 | MW30: 0
E31: 26 | F31: (Deel)complex 26 | G31: 0 | H31: 0 | I31: 0 | J31: 0 | K31: 0 | L31: 0 | M31: 0 | N31: 0 | O31: 0 | P31: 0 | Q31: 0 | R31: 0 | S31: 0 | T31: 0 | U31: 0 | V31: 0 | W31: 0 | X31: 0 | Y31: 0 | Z31: 0 | AA31: 0 | AB31: 0 | AC31: 0 | AD31: 0 | AE31: 0 | AF31: 0 | AG31: 0 | AH31: 0 | AI31: 0 | AJ31: 0 | AK31: 0 | AL31: 0 | AM31: 0 | AN31: 0 | AO31: 0 | AP31: 0 | AQ31: 0 | AR31: 0 | AS31: 0 | AT31: 0 | AU31: 0 | AV31: 0 | AW31: 0 | AX31: 0 | AY31: 0 | AZ31: 0 | BA31: 0 | BB31: 0 | BC31: 0 | BD31: 0 | BE31: 0 | BF31: 0 | BG31: 0 | BH31: 0 | BI31: 0 | BJ31: 0 | BK31: 0 | BL31: 0 | BM31: 0 | BN31: 0 | BO31: 0 | BP31: 0 | BQ31: 0 | BR31: 0 | BS31: 0 | BT31: 0 | BU31: 0 | BV31: 0 | BW31: 0 | BX31: 0 | BY31: 0 | BZ31: 0 | CA31: 0 | CB31: 0 | CC31: 0 | CD31: 0 | CE31: 0 | CF31: 0 | CG31: 0 | CH31: 0 | CI31: 0 | CJ31: 0 | CK31: 0 | CL31: 0 | CM31: 0 | CN31: 0 | CO31: 0 | CP31: 0 | CQ31: 0 | CR31: 0 | CS31: 0 | CT31: 0 | CU31: 0 | CV31: 0 | CW31: 0 | CX31: 0 | CY31: 0 | CZ31: 0 | DA31: 0 | DB31: 0 | DC31: 0 | DD31: 0 | DE31: 0 | DF31: 0 | DG31: 0 | DH31: 0 | DI31: 0 | DJ31: 0 | DK31: 0 | DL31: 0 | DM31: 0 | DN31: 0 | DO31: 0 | DP31: 0 | DQ31: 0 | DR31: 0 | DS31: 0 | DT31: 0 | DU31: 0 | DV31: 0 | DW31: 0 | DX31: 0 | DY31: 0 | DZ31: 0 | EA31: 0 | EB31: 0 | EC31: 0 | ED31: 0 | EE31: 0 | EF31: 0 | EG31: 0 | EH31: 0 | EI31: 0 | EJ31: 0 | EK31: 0 | EL31: 0 | EM31: 0 | EN31: 0 | EO31: 0 | EP31: 0 | EQ31: 0 | ER31: 0 | ES31: 0 | ET31: 0 | EU31: 0 | EV31: 0 | EW31: 0 | EX31: 0 | EY31: 0 | EZ31: 0 | FA31: 0 | FB31: 0 | FC31: 0 | FD31: 0 | FE31: 0 | FF31: 0 | FG31: 0 | FH31: 0 | FI31: 0 | FJ31: 0 | FK31: 0 | FL31: 0 | FM31: 0 | FN31: 0 | FO31: 0 | FP31: 0 | FQ31: 0 | FR31: 0 | FS31: 0 | FT31: 0 | FU31: 0 | FV31: 0 | FW31: 0 | FX31: 0 | FY31: 0 | FZ31: 0 | GA31: 0 | GB31: 0 | GC31: 0 | GD31: 0 | GE31: 0 | GF31: 0 | GG31: 0 | GH31: 0 | GI31: 0 | GJ31: 0 | GK31: 0 | GL31: 0 | GM31: 0 | GN31: 0 | GO31: 0 | GP31: 0 | GQ31: 0 | GR31: 0 | GS31: 0 | GT31: 0 | GU31: 0 | GV31: 0 | GW31: 0 | GX31: 0 | GY31: 0 | GZ31: 0 | HA31: 0 | HB31: 0 | HC31: 0 | HD31: 0 | HE31: 0 | HF31: 0 | HG31: 0 | HH31: 0 | HI31: 0 | HJ31: 0 | HK31: 0 | HL31: 0 | HM31: 0 | HN31: 0 | HO31: 0 | HP31: 0 | HQ31: 0 | HR31: 0 | HS31: 0 | HT31: 0 | HU31: 0 | HV31: 0 | HW31: 0 | HX31: 0 | HY31: 0 | HZ31: 0 | IA31: 0 | IB31: 0 | IC31: 0 | ID31: 0 | IE31: 0 | IF31: 0 | IG31: 0 | IH31: 0 | II31: 0 | IJ31: 0 | IK31: 0 | IL31: 0 | IM31: 0 | IN31: 0 | IO31: 0 | IP31: 0 | IQ31: 0 | IR31: 0 | IS31: 0 | IT31: 0 | IU31: 0 | IV31: 0 | IW31: 0 | IX31: 0 | IY31: 0 | IZ31: 0 | JA31: 0 | JB31: 0 | JC31: 0 | JD31: 0 | JE31: 0 | JF31: 0 | JG31: 0 | JH31: 0 | JI31: 0 | JJ31: 0 | JK31: 0 | JL31: 0 | JM31: 0 | JN31: 0 | JO31: 0 | JP31: 0 | JQ31: 0 | JR31: 0 | JS31: 0 | JT31: 0 | JU31: 0 | JV31: 0 | JW31: 0 | JX31: 0 | JY31: 0 | JZ31: 0 | KA31: 0 | KB31: 0 | KC31: 0 | KD31: 0 | KE31: 0 | KF31: 0 | KG31: 0 | KH31: 0 | KI31: 0 | KJ31: 0 | KK31: 0 | KL31: 0 | KM31: 0 | KN31: 0 | KO31: 0 | KP31: 0 | KQ31: 0 | KR31: 0 | KS31: 0 | KT31: 0 | KU31: 0 | KV31: 0 | KW31: 0 | KX31: 0 | KY31: 0 | KZ31: 0 | LA31: 0 | LB31: 0 | LC31: 0 | LD31: 0 | LE31: 0 | LF31: 0 | LG31: 0 | LH31: 0 | LI31: 0 | LJ31: 0 | LK31: 0 | LL31: 0 | LM31: 0 | LN31: 0 | LO31: 0 | LP31: 0 | LQ31: 0 | LR31: 0 | LS31: 0 | LT31: 0 | LU31: 0 | LV31: 0 | LW31: 0 | LX31: 0 | LY31: 0 | LZ31: 0 | MA31: 0 | MB31: 0 | MC31: 0 | MD31: 0 | ME31: 0 | MF31: 0 | MG31: 0 | MH31: 0 | MI31: 0 | MJ31: 0 | MK31: 0 | ML31: 0 | MM31: 0 | MN31: 0 | MO31: 0 | MP31: 0 | MQ31: 0 | MR31: 0 | MS31: 0 | MT31: 0 | MU31: 0 | MV31: 0 | MW31: 0
E32: 27 | F32: (Deel)complex 27 | G32: 0 | H32: 0 | I32: 0 | J32: 0 | K32: 0 | L32: 0 | M32: 0 | N32: 0 | O32: 0 | P32: 0 | Q32: 0 | R32: 0 | S32: 0 | T32: 0 | U32: 0 | V32: 0 | W32: 0 | X32: 0 | Y32: 0 | Z32: 0 | AA32: 0 | AB32: 0 | AC32: 0 | AD32: 0 | AE32: 0 | AF32: 0 | AG32: 0 | AH32: 0 | AI32: 0 | AJ32: 0 | AK32: 0 | AL32: 0 | AM32: 0 | AN32: 0 | AO32: 0 | AP32: 0 | AQ32: 0 | AR32: 0 | AS32: 0 | AT32: 0 | AU32: 0 | AV32: 0 | AW32: 0 | AX32: 0 | AY32: 0 | AZ32: 0 | BA32: 0 | BB32: 0 | BC32: 0 | BD32: 0 | BE32: 0 | BF32: 0 | BG32: 0 | BH32: 0 | BI32: 0 | BJ32: 0 | BK32: 0 | BL32: 0 | BM32: 0 | BN32: 0 | BO32: 0 | BP32: 0 | BQ32: 0 | BR32: 0 | BS32: 0 | BT32: 0 | BU32: 0 | BV32: 0 | BW32: 0 | BX32: 0 | BY32: 0 | BZ32: 0 | CA32: 0 | CB32: 0 | CC32: 0 | CD32: 0 | CE32: 0 | CF32: 0 | CG32: 0 | CH32: 0 | CI32: 0 | CJ32: 0 | CK32: 0 | CL32: 0 | CM32: 0 | CN32: 0 | CO32: 0 | CP32: 0 | CQ32: 0 | CR32: 0 | CS32: 0 | CT32: 0 | CU32: 0 | CV32: 0 | CW32: 0 | CX32: 0 | CY32: 0 | CZ32: 0 | DA32: 0 | DB32: 0 | DC32: 0 | DD32: 0 | DE32: 0 | DF32: 0 | DG32: 0 | DH32: 0 | DI32: 0 | DJ32: 0 | DK32: 0 | DL32: 0 | DM32: 0 | DN32: 0 | DO32: 0 | DP32: 0 | DQ32: 0 | DR32: 0 | DS32: 0 | DT32: 0 | DU32: 0 | DV32: 0 | DW32: 0 | DX32: 0 | DY32: 0 | DZ32: 0 | EA32: 0 | EB32: 0 | EC32: 0 | ED32: 0 | EE32: 0 | EF32: 0 | EG32: 0 | EH32: 0 | EI32: 0 | EJ32: 0 | EK32: 0 | EL32: 0 | EM32: 0 | EN32: 0 | EO32: 0 | EP32: 0 | EQ32: 0 | ER32: 0 | ES32: 0 | ET32: 0 | EU32: 0 | EV32: 0 | EW32: 0 | EX32: 0 | EY32: 0 | EZ32: 0 | FA32: 0 | FB32: 0 | FC32: 0 | FD32: 0 | FE32: 0 | FF32: 0 | FG32: 0 | FH32: 0 | FI32: 0 | FJ32: 0 | FK32: 0 | FL32: 0 | FM32: 0 | FN32: 0 | FO32: 0 | FP32: 0 | FQ32: 0 | FR32: 0 | FS32: 0 | FT32: 0 | FU32: 0 | FV32: 0 | FW32: 0 | FX32: 0 | FY32: 0 | FZ32: 0 | GA32: 0 | GB32: 0 | GC32: 0 | GD32: 0 | GE32: 0 | GF32: 0 | GG32: 0 | GH32: 0 | GI32: 0 | GJ32: 0 | GK32: 0 | GL32: 0 | GM32: 0 | GN32: 0 | GO32: 0 | GP32: 0 | GQ32: 0 | GR32: 0 | GS32: 0 | GT32: 0 | GU32: 0 | GV32: 0 | GW32: 0 | GX32: 0 | GY32: 0 | GZ32: 0 | HA32: 0 | HB32: 0 | HC32: 0 | HD32: 0 | HE32: 0 | HF32: 0 | HG32: 0 | HH32: 0 | HI32: 0 | HJ32: 0 | HK32: 0 | HL32: 0 | HM32: 0 | HN32: 0 | HO32: 0 | HP32: 0 | HQ32: 0 | HR32: 0 | HS32: 0 | HT32: 0 | HU32: 0 | HV32: 0 | HW32: 0 | HX32: 0 | HY32: 0 | HZ32: 0 | IA32: 0 | IB32: 0 | IC32: 0 | ID32: 0 | IE32: 0 | IF32: 0 | IG32: 0 | IH32: 0 | II32: 0 | IJ32: 0 | IK32: 0 | IL32: 0 | IM32: 0 | IN32: 0 | IO32: 0 | IP32: 0 | IQ32: 0 | IR32: 0 | IS32: 0 | IT32: 0 | IU32: 0 | IV32: 0 | IW32: 0 | IX32: 0 | IY32: 0 | IZ32: 0 | JA32: 0 | JB32: 0 | JC32: 0 | JD32: 0 | JE32: 0 | JF32: 0 | JG32: 0 | JH32: 0 | JI32: 0 | JJ32: 0 | JK32: 0 | JL32: 0 | JM32: 0 | JN32: 0 | JO32: 0 | JP32: 0 | JQ32: 0 | JR32: 0 | JS32: 0 | JT32: 0 | JU32: 0 | JV32: 0 | JW32: 0 | JX32: 0 | JY32: 0 | JZ32: 0 | KA32: 0 | KB32: 0 | KC32: 0 | KD32: 0 | KE32: 0 | KF32: 0 | KG32: 0 | KH32: 0 | KI32: 0 | KJ32: 0 | KK32: 0 | KL32: 0 | KM32: 0 | KN32: 0 | KO32: 0 | KP32: 0 | KQ32: 0 | KR32: 0 | KS32: 0 | KT32: 0 | KU32: 0 | KV32: 0 | KW32: 0 | KX32: 0 | KY32: 0 | KZ32: 0 | LA32: 0 | LB32: 0 | LC32: 0 | LD32: 0 | LE32: 0 | LF32: 0 | LG32: 0 | LH32: 0 | LI32: 0 | LJ32: 0 | LK32: 0 | LL32: 0 | LM32: 0 | LN32: 0 | LO32: 0 | LP32: 0 | LQ32: 0 | LR32: 0 | LS32: 0 | LT32: 0 | LU32: 0 | LV32: 0 | LW32: 0 | LX32: 0 | LY32: 0 | LZ32: 0 | MA32: 0 | MB32: 0 | MC32: 0 | MD32: 0 | ME32: 0 | MF32: 0 | MG32: 0 | MH32: 0 | MI32: 0 | MJ32: 0 | MK32: 0 | ML32: 0 | MM32: 0 | MN32: 0 | MO32: 0 | MP32: 0 | MQ32: 0 | MR32: 0 | MS32: 0 | MT32: 0 | MU32: 0 | MV32: 0 | MW32: 0
E33: 28 | F33: (Deel)complex 28 | G33: 0 | H33: 0 | I33: 0 | J33: 0 | K33: 0 | L33: 0 | M33: 0 | N33: 0 | O33: 0 | P33: 0 | Q33: 0 | R33: 0 | S33: 0 | T33: 0 | U33: 0 | V33: 0 | W33: 0 | X33: 0 | Y33: 0 | Z33: 0 | AA33: 0 | AB33: 0 | AC33: 0 | AD33: 0 | AE33: 0 | AF33: 0 | AG33: 0 | AH33: 0 | AI33: 0 | AJ33: 0 | AK33: 0 | AL33: 0 | AM33: 0 | AN33: 0 | AO33: 0 | AP33: 0 | AQ33: 0 | AR33: 0 | AS33: 0 | AT33: 0 | AU33: 0 | AV33: 0 | AW33: 0 | AX33: 0 | AY33: 0 | AZ33: 0 | BA33: 0 | BB33: 0 | BC33: 0 | BD33: 0 | BE33: 0 | BF33: 0 | BG33: 0 | BH33: 0 | BI33: 0 | BJ33: 0 | BK33: 0 | BL33: 0 | BM33: 0 | BN33: 0 | BO33: 0 | BP33: 0 | BQ33: 0 | BR33: 0 | BS33: 0 | BT33: 0 | BU33: 0 | BV33: 0 | BW33: 0 | BX33: 0 | BY33: 0 | BZ33: 0 | CA33: 0 | CB33: 0 | CC33: 0 | CD33: 0 | CE33: 0 | CF33: 0 | CG33: 0 | CH33: 0 | CI33: 0 | CJ33: 0 | CK33: 0 | CL33: 0 | CM33: 0 | CN33: 0 | CO33: 0 | CP33: 0 | CQ33: 0 | CR33: 0 | CS33: 0 | CT33: 0 | CU33: 0 | CV33: 0 | CW33: 0 | CX33: 0 | CY33: 0 | CZ33: 0 | DA33: 0 | DB33: 0 | DC33: 0 | DD33: 0 | DE33: 0 | DF33: 0 | DG33: 0 | DH33: 0 | DI33: 0 | DJ33: 0 | DK33: 0 | DL33: 0 | DM33: 0 | DN33: 0 | DO33: 0 | DP33: 0 | DQ33: 0 | DR33: 0 | DS33: 0 | DT33: 0 | DU33: 0 | DV33: 0 | DW33: 0 | DX33: 0 | DY33: 0 | DZ33: 0 | EA33: 0 | EB33: 0 | EC33: 0 | ED33: 0 | EE33: 0 | EF33: 0 | EG33: 0 | EH33: 0 | EI33: 0 | EJ33: 0 | EK33: 0 | EL33: 0 | EM33: 0 | EN33: 0 | EO33: 0 | EP33: 0 | EQ33: 0 | ER33: 0 | ES33: 0 | ET33: 0 | EU33: 0 | EV33: 0 | EW33: 0 | EX33: 0 | EY33: 0 | EZ33: 0 | FA33: 0 | FB33: 0 | FC33: 0 | FD33: 0 | FE33: 0 | FF33: 0 | FG33: 0 | FH33: 0 | FI33: 0 | FJ33: 0 | FK33: 0 | FL33: 0 | FM33: 0 | FN33: 0 | FO33: 0 | FP33: 0 | FQ33: 0 | FR33: 0 | FS33: 0 | FT33: 0 | FU33: 0 | FV33: 0 | FW33: 0 | FX33: 0 | FY33: 0 | FZ33: 0 | GA33: 0 | GB33: 0 | GC33: 0 | GD33: 0 | GE33: 0 | GF33: 0 | GG33: 0 | GH33: 0 | GI33: 0 | GJ33: 0 | GK33: 0 | GL33: 0 | GM33: 0 | GN33: 0 | GO33: 0 | GP33: 0 | GQ33: 0 | GR33: 0 | GS33: 0 | GT33: 0 | GU33: 0 | GV33: 0 | GW33: 0 | GX33: 0 | GY33: 0 | GZ33: 0 | HA33: 0 | HB33: 0 | HC33: 0 | HD33: 0 | HE33: 0 | HF33: 0 | HG33: 0 | HH33: 0 | HI33: 0 | HJ33: 0 | HK33: 0 | HL33: 0 | HM33: 0 | HN33: 0 | HO33: 0 | HP33: 0 | HQ33: 0 | HR33: 0 | HS33: 0 | HT33: 0 | HU33: 0 | HV33: 0 | HW33: 0 | HX33: 0 | HY33: 0 | HZ33: 0 | IA33: 0 | IB33: 0 | IC33: 0 | ID33: 0 | IE33: 0 | IF33: 0 | IG33: 0 | IH33: 0 | II33: 0 | IJ33: 0 | IK33: 0 | IL33: 0 | IM33: 0 | IN33: 0 | IO33: 0 | IP33: 0 | IQ33: 0 | IR33: 0 | IS33: 0 | IT33: 0 | IU33: 0 | IV33: 0 | IW33: 0 | IX33: 0 | IY33: 0 | IZ33: 0 | JA33: 0 | JB33: 0 | JC33: 0 | JD33: 0 | JE33: 0 | JF33: 0 | JG33: 0 | JH33: 0 | JI33: 0 | JJ33: 0 | JK33: 0 | JL33: 0 | JM33: 0 | JN33: 0 | JO33: 0 | JP33: 0 | JQ33: 0 | JR33: 0 | JS33: 0 | JT33: 0 | JU33: 0 | JV33: 0 | JW33: 0 | JX33: 0 | JY33: 0 | JZ33: 0 | KA33: 0 | KB33: 0 | KC33: 0 | KD33: 0 | KE33: 0 | KF33: 0 | KG33: 0 | KH33: 0 | KI33: 0 | KJ33: 0 | KK33: 0 | KL33: 0 | KM33: 0 | KN33: 0 | KO33: 0 | KP33: 0 | KQ33: 0 | KR33: 0 | KS33: 0 | KT33: 0 | KU33: 0 | KV33: 0 | KW33: 0 | KX33: 0 | KY33: 0 | KZ33: 0 | LA33: 0 | LB33: 0 | LC33: 0 | LD33: 0 | LE33: 0 | LF33: 0 | LG33: 0 | LH33: 0 | LI33: 0 | LJ33: 0 | LK33: 0 | LL33: 0 | LM33: 0 | LN33: 0 | LO33: 0 | LP33: 0 | LQ33: 0 | LR33: 0 | LS33: 0 | LT33: 0 | LU33: 0 | LV33: 0 | LW33: 0 | LX33: 0 | LY33: 0 | LZ33: 0 | MA33: 0 | MB33: 0 | MC33: 0 | MD33: 0 | ME33: 0 | MF33: 0 | MG33: 0 | MH33: 0 | MI33: 0 | MJ33: 0 | MK33: 0 | ML33: 0 | MM33: 0 | MN33: 0 | MO33: 0 | MP33: 0 | MQ33: 0 | MR33: 0 | MS33: 0 | MT33: 0 | MU33: 0 | MV33: 0 | MW33: 0
E34: 29 | F34: (Deel)complex 29 | G34: 0 | H34: 0 | I34: 0 | J34: 0 | K34: 0 | L34: 0 | M34: 0 | N34: 0 | O34: 0 | P34: 0 | Q34: 0 | R34: 0 | S34: 0 | T34: 0 | U34: 0 | V34: 0 | W34: 0 | X34: 0 | Y34: 0 | Z34: 0 | AA34: 0 | AB34: 0 | AC34: 0 | AD34: 0 | AE34: 0 | AF34: 0 | AG34: 0 | AH34: 0 | AI34: 0 | AJ34: 0 | AK34: 0 | AL34: 0 | AM34: 0 | AN34: 0 | AO34: 0 | AP34: 0 | AQ34: 0 | AR34: 0 | AS34: 0 | AT34: 0 | AU34: 0 | AV34: 0 | AW34: 0 | AX34: 0 | AY34: 0 | AZ34: 0 | BA34: 0 | BB34: 0 | BC34: 0 | BD34: 0 | BE34: 0 | BF34: 0 | BG34: 0 | BH34: 0 | BI34: 0 | BJ34: 0 | BK34: 0 | BL34: 0 | BM34: 0 | BN34: 0 | BO34: 0 | BP34: 0 | BQ34: 0 | BR34: 0 | BS34: 0 | BT34: 0 | BU34: 0 | BV34: 0 | BW34: 0 | BX34: 0 | BY34: 0 | BZ34: 0 | CA34: 0 | CB34: 0 | CC34: 0 | CD34: 0 | CE34: 0 | CF34: 0 | CG34: 0 | CH34: 0 | CI34: 0 | CJ34: 0 | CK34: 0 | CL34: 0 | CM34: 0 | CN34: 0 | CO34: 0 | CP34: 0 | CQ34: 0 | CR34: 0 | CS34: 0 | CT34: 0 | CU34: 0 | CV34: 0 | CW34: 0 | CX34: 0 | CY34: 0 | CZ34: 0 | DA34: 0 | DB34: 0 | DC34: 0 | DD34: 0 | DE34: 0 | DF34: 0 | DG34: 0 | DH34: 0 | DI34: 0 | DJ34: 0 | DK34: 0 | DL34: 0 | DM34: 0 | DN34: 0 | DO34: 0 | DP34: 0 | DQ34: 0 | DR34: 0 | DS34: 0 | DT34: 0 | DU34: 0 | DV34: 0 | DW34: 0 | DX34: 0 | DY34: 0 | DZ34: 0 | EA34: 0 | EB34: 0 | EC34: 0 | ED34: 0 | EE34: 0 | EF34: 0 | EG34: 0 | EH34: 0 | EI34: 0 | EJ34: 0 | EK34: 0 | EL34: 0 | EM34: 0 | EN34: 0 | EO34: 0 | EP34: 0 | EQ34: 0 | ER34: 0 | ES34: 0 | ET34: 0 | EU34: 0 | EV34: 0 | EW34: 0 | EX34: 0 | EY34: 0 | EZ34: 0 | FA34: 0 | FB34: 0 | FC34: 0 | FD34: 0 | FE34: 0 | FF34: 0 | FG34: 0 | FH34: 0 | FI34: 0 | FJ34: 0 | FK34: 0 | FL34: 0 | FM34: 0 | FN34: 0 | FO34: 0 | FP34: 0 | FQ34: 0 | FR34: 0 | FS34: 0 | FT34: 0 | FU34: 0 | FV34: 0 | FW34: 0 | FX34: 0 | FY34: 0 | FZ34: 0 | GA34: 0 | GB34: 0 | GC34: 0 | GD34: 0 | GE34: 0 | GF34: 0 | GG34: 0 | GH34: 0 | GI34: 0 | GJ34: 0 | GK34: 0 | GL34: 0 | GM34: 0 | GN34: 0 | GO34: 0 | GP34: 0 | GQ34: 0 | GR34: 0 | GS34: 0 | GT34: 0 | GU34: 0 | GV34: 0 | GW34: 0 | GX34: 0 | GY34: 0 | GZ34: 0 | HA34: 0 | HB34: 0 | HC34: 0 | HD34: 0 | HE34: 0 | HF34: 0 | HG34: 0 | HH34: 0 | HI34: 0 | HJ34: 0 | HK34: 0 | HL34: 0 | HM34: 0 | HN34: 0 | HO34: 0 | HP34: 0 | HQ34: 0 | HR34: 0 | HS34: 0 | HT34: 0 | HU34: 0 | HV34: 0 | HW34: 0 | HX34: 0 | HY34: 0 | HZ34: 0 | IA34: 0 | IB34: 0 | IC34: 0 | ID34: 0 | IE34: 0 | IF34: 0 | IG34: 0 | IH34: 0 | II34: 0 | IJ34: 0 | IK34: 0 | IL34: 0 | IM34: 0 | IN34: 0 | IO34: 0 | IP34: 0 | IQ34: 0 | IR34: 0 | IS34: 0 | IT34: 0 | IU34: 0 | IV34: 0 | IW34: 0 | IX34: 0 | IY34: 0 | IZ34: 0 | JA34: 0 | JB34: 0 | JC34: 0 | JD34: 0 | JE34: 0 | JF34: 0 | JG34: 0 | JH34: 0 | JI34: 0 | JJ34: 0 | JK34: 0 | JL34: 0 | JM34: 0 | JN34: 0 | JO34: 0 | JP34: 0 | JQ34: 0 | JR34: 0 | JS34: 0 | JT34: 0 | JU34: 0 | JV34: 0 | JW34: 0 | JX34: 0 | JY34: 0 | JZ34: 0 | KA34: 0 | KB34: 0 | KC34: 0 | KD34: 0 | KE34: 0 | KF34: 0 | KG34: 0 | KH34: 0 | KI34: 0 | KJ34: 0 | KK34: 0 | KL34: 0 | KM34: 0 | KN34: 0 | KO34: 0 | KP34: 0 | KQ34: 0 | KR34: 0 | KS34: 0 | KT34: 0 | KU34: 0 | KV34: 0 | KW34: 0 | KX34: 0 | KY34: 0 | KZ34: 0 | LA34: 0 | LB34: 0 | LC34: 0 | LD34: 0 | LE34: 0 | LF34: 0 | LG34: 0 | LH34: 0 | LI34: 0 | LJ34: 0 | LK34: 0 | LL34: 0 | LM34: 0 | LN34: 0 | LO34: 0 | LP34: 0 | LQ34: 0 | LR34: 0 | LS34: 0 | LT34: 0 | LU34: 0 | LV34: 0 | LW34: 0 | LX34: 0 | LY34: 0 | LZ34: 0 | MA34: 0 | MB34: 0 | MC34: 0 | MD34: 0 | ME34: 0 | MF34: 0 | MG34: 0 | MH34: 0 | MI34: 0 | MJ34: 0 | MK34: 0 | ML34: 0 | MM34: 0 | MN34: 0 | MO34: 0 | MP34: 0 | MQ34: 0 | MR34: 0 | MS34: 0 | MT34: 0 | MU34: 0 | MV34: 0 | MW34: 0
E35: 30 | F35: (Deel)complex 30 | G35: 0 | H35: 0 | I35: 0 | J35: 0 | K35: 0 | L35: 0 | M35: 0 | N35: 0 | O35: 0 | P35: 0 | Q35: 0 | R35: 0 | S35: 0 | T35: 0 | U35: 0 | V35: 0 | W35: 0 | X35: 0 | Y35: 0 | Z35: 0 | AA35: 0 | AB35: 0 | AC35: 0 | AD35: 0 | AE35: 0 | AF35: 0 | AG35: 0 | AH35: 0 | AI35: 0 | AJ35: 0 | AK35: 0 | AL35: 0 | AM35: 0 | AN35: 0 | AO35: 0 | AP35: 0 | AQ35: 0 | AR35: 0 | AS35: 0 | AT35: 0 | AU35: 0 | AV35: 0 | AW35: 0 | AX35: 0 | AY35: 0 | AZ35: 0 | BA35: 0 | BB35: 0 | BC35: 0 | BD35: 0 | BE35: 0 | BF35: 0 | BG35: 0 | BH35: 0 | BI35: 0 | BJ35: 0 | BK35: 0 | BL35: 0 | BM35: 0 | BN35: 0 | BO35: 0 | BP35: 0 | BQ35: 0 | BR35: 0 | BS35: 0 | BT35: 0 | BU35: 0 | BV35: 0 | BW35: 0 | BX35: 0 | BY35: 0 | BZ35: 0 | CA35: 0 | CB35: 0 | CC35: 0 | CD35: 0 | CE35: 0 | CF35: 0 | CG35: 0 | CH35: 0 | CI35: 0 | CJ35: 0 | CK35: 0 | CL35: 0 | CM35: 0 | CN35: 0 | CO35: 0 | CP35: 0 | CQ35: 0 | CR35: 0 | CS35: 0 | CT35: 0 | CU35: 0 | CV35: 0 | CW35: 0 | CX35: 0 | CY35: 0 | CZ35: 0 | DA35: 0 | DB35: 0 | DC35: 0 | DD35: 0 | DE35: 0 | DF35: 0 | DG35: 0 | DH35: 0 | DI35: 0 | DJ35: 0 | DK35: 0 | DL35: 0 | DM35: 0 | DN35: 0 | DO35: 0 | DP35: 0 | DQ35: 0 | DR35: 0 | DS35: 0 | DT35: 0 | DU35: 0 | DV35: 0 | DW35: 0 | DX35: 0 | DY35: 0 | DZ35: 0 | EA35: 0 | EB35: 0 | EC35: 0 | ED35: 0 | EE35: 0 | EF35: 0 | EG35: 0 | EH35: 0 | EI35: 0 | EJ35: 0 | EK35: 0 | EL35: 0 | EM35: 0 | EN35: 0 | EO35: 0 | EP35: 0 | EQ35: 0 | ER35: 0 | ES35: 0 | ET35: 0 | EU35: 0 | EV35: 0 | EW35: 0 | EX35: 0 | EY35: 0 | EZ35: 0 | FA35: 0 | FB35: 0 | FC35: 0 | FD35: 0 | FE35: 0 | FF35: 0 | FG35: 0 | FH35: 0 | FI35: 0 | FJ35: 0 | FK35: 0 | FL35: 0 | FM35: 0 | FN35: 0 | FO35: 0 | FP35: 0 | FQ35: 0 | FR35: 0 | FS35: 0 | FT35: 0 | FU35: 0 | FV35: 0 | FW35: 0 | FX35: 0 | FY35: 0 | FZ35: 0 | GA35: 0 | GB35: 0 | GC35: 0 | GD35: 0 | GE35: 0 | GF35: 0 | GG35: 0 | GH35: 0 | GI35: 0 | GJ35: 0 | GK35: 0 | GL35: 0 | GM35: 0 | GN35: 0 | GO35: 0 | GP35: 0 | GQ35: 0 | GR35: 0 | GS35: 0 | GT35: 0 | GU35: 0 | GV35: 0 | GW35: 0 | GX35: 0 | GY35: 0 | GZ35: 0 | HA35: 0 | HB35: 0 | HC35: 0 | HD35: 0 | HE35: 0 | HF35: 0 | HG35: 0 | HH35: 0 | HI35: 0 | HJ35: 0 | HK35: 0 | HL35: 0 | HM35: 0 | HN35: 0 | HO35: 0 | HP35: 0 | HQ35: 0 | HR35: 0 | HS35: 0 | HT35: 0 | HU35: 0 | HV35: 0 | HW35: 0 | HX35: 0 | HY35: 0 | HZ35: 0 | IA35: 0 | IB35: 0 | IC35: 0 | ID35: 0 | IE35: 0 | IF35: 0 | IG35: 0 | IH35: 0 | II35: 0 | IJ35: 0 | IK35: 0 | IL35: 0 | IM35: 0 | IN35: 0 | IO35: 0 | IP35: 0 | IQ35: 0 | IR35: 0 | IS35: 0 | IT35: 0 | IU35: 0 | IV35: 0 | IW35: 0 | IX35: 0 | IY35: 0 | IZ35: 0 | JA35: 0 | JB35: 0 | JC35: 0 | JD35: 0 | JE35: 0 | JF35: 0 | JG35: 0 | JH35: 0 | JI35: 0 | JJ35: 0 | JK35: 0 | JL35: 0 | JM35: 0 | JN35: 0 | JO35: 0 | JP35: 0 | JQ35: 0 | JR35: 0 | JS35: 0 | JT35: 0 | JU35: 0 | JV35: 0 | JW35: 0 | JX35: 0 | JY35: 0 | JZ35: 0 | KA35: 0 | KB35: 0 | KC35: 0 | KD35: 0 | KE35: 0 | KF35: 0 | KG35: 0 | KH35: 0 | KI35: 0 | KJ35: 0 | KK35: 0 | KL35: 0 | KM35: 0 | KN35: 0 | KO35: 0 | KP35: 0 | KQ35: 0 | KR35: 0 | KS35: 0 | KT35: 0 | KU35: 0 | KV35: 0 | KW35: 0 | KX35: 0 | KY35: 0 | KZ35: 0 | LA35: 0 | LB35: 0 | LC35: 0 | LD35: 0 | LE35: 0 | LF35: 0 | LG35: 0 | LH35: 0 | LI35: 0 | LJ35: 0 | LK35: 0 | LL35: 0 | LM35: 0 | LN35: 0 | LO35: 0 | LP35: 0 | LQ35: 0 | LR35: 0 | LS35: 0 | LT35: 0 | LU35: 0 | LV35: 0 | LW35: 0 | LX35: 0 | LY35: 0 | LZ35: 0 | MA35: 0 | MB35: 0 | MC35: 0 | MD35: 0 | ME35: 0 | MF35: 0 | MG35: 0 | MH35: 0 | MI35: 0 | MJ35: 0 | MK35: 0 | ML35: 0 | MM35: 0 | MN35: 0 | MO35: 0 | MP35: 0 | MQ35: 0 | MR35: 0 | MS35: 0 | MT35: 0 | MU35: 0 | MV35: 0 | MW35: 0
E36: 31 | F36: (Deel)complex 31 | G36: 0 | H36: 0 | I36: 0 | J36: 0 | K36: 0 | L36: 0 | M36: 0 | N36: 0 | O36: 0 | P36: 0 | Q36: 0 | R36: 0 | S36: 0 | T36: 0 | U36: 0 | V36: 0 | W36: 0 | X36: 0 | Y36: 0 | Z36: 0 | AA36: 0 | AB36: 0 | AC36: 0 | AD36: 0 | AE36: 0 | AF36: 0 | AG36: 0 | AH36: 0 | AI36: 0 | AJ36: 0 | AK36: 0 | AL36: 0 | AM36: 0 | AN36: 0 | AO36: 0 | AP36: 0 | AQ36: 0 | AR36: 0 | AS36: 0 | AT36: 0 | AU36: 0 | AV36: 0 | AW36: 0 | AX36: 0 | AY36: 0 | AZ36: 0 | BA36: 0 | BB36: 0 | BC36: 0 | BD36: 0 | BE36: 0 | BF36: 0 | BG36: 0 | BH36: 0 | BI36: 0 | BJ36: 0 | BK36: 0 | BL36: 0 | BM36: 0 | BN36: 0 | BO36: 0 | BP36: 0 | BQ36: 0 | BR36: 0 | BS36: 0 | BT36: 0 | BU36: 0 | BV36: 0 | BW36: 0 | BX36: 0 | BY36: 0 | BZ36: 0 | CA36: 0 | CB36: 0 | CC36: 0 | CD36: 0 | CE36: 0 | CF36: 0 | CG36: 0 | CH36: 0 | CI36: 0 | CJ36: 0 | CK36: 0 | CL36: 0 | CM36: 0 | CN36: 0 | CO36: 0 | CP36: 0 | CQ36: 0 | CR36: 0 | CS36: 0 | CT36: 0 | CU36: 0 | CV36: 0 | CW36: 0 | CX36: 0 | CY36: 0 | CZ36: 0 | DA36: 0 | DB36: 0 | DC36: 0 | DD36: 0 | DE36: 0 | DF36: 0 | DG36: 0 | DH36: 0 | DI36: 0 | DJ36: 0 | DK36: 0 | DL36: 0 | DM36: 0 | DN36: 0 | DO36: 0 | DP36: 0 | DQ36: 0 | DR36: 0 | DS36: 0 | DT36: 0 | DU36: 0 | DV36: 0 | DW36: 0 | DX36: 0 | DY36: 0 | DZ36: 0 | EA36: 0 | EB36: 0 | EC36: 0 | ED36: 0 | EE36: 0 | EF36: 0 | EG36: 0 | EH36: 0 | EI36: 0 | EJ36: 0 | EK36: 0 | EL36: 0 | EM36: 0 | EN36: 0 | EO36: 0 | EP36: 0 | EQ36: 0 | ER36: 0 | ES36: 0 | ET36: 0 | EU36: 0 | EV36: 0 | EW36: 0 | EX36: 0 | EY36: 0 | EZ36: 0 | FA36: 0 | FB36: 0 | FC36: 0 | FD36: 0 | FE36: 0 | FF36: 0 | FG36: 0 | FH36: 0 | FI36: 0 | FJ36: 0 | FK36: 0 | FL36: 0 | FM36: 0 | FN36: 0 | FO36: 0 | FP36: 0 | FQ36: 0 | FR36: 0 | FS36: 0 | FT36: 0 | FU36: 0 | FV36: 0 | FW36: 0 | FX36: 0 | FY36: 0 | FZ36: 0 | GA36: 0 | GB36: 0 | GC36: 0 | GD36: 0 | GE36: 0 | GF36: 0 | GG36: 0 | GH36: 0 | GI36: 0 | GJ36: 0 | GK36: 0 | GL36: 0 | GM36: 0 | GN36: 0 | GO36: 0 | GP36: 0 | GQ36: 0 | GR36: 0 | GS36: 0 | GT36: 0 | GU36: 0 | GV36: 0 | GW36: 0 | GX36: 0 | GY36: 0 | GZ36: 0 | HA36: 0 | HB36: 0 | HC36: 0 | HD36: 0 | HE36: 0 | HF36: 0 | HG36: 0 | HH36: 0 | HI36: 0 | HJ36: 0 | HK36: 0 | HL36: 0 | HM36: 0 | HN36: 0 | HO36: 0 | HP36: 0 | HQ36: 0 | HR36: 0 | HS36: 0 | HT36: 0 | HU36: 0 | HV36: 0 | HW36: 0 | HX36: 0 | HY36: 0 | HZ36: 0 | IA36: 0 | IB36: 0 | IC36: 0 | ID36: 0 | IE36: 0 | IF36: 0 | IG36: 0 | IH36: 0 | II36: 0 | IJ36: 0 | IK36: 0 | IL36: 0 | IM36: 0 | IN36: 0 | IO36: 0 | IP36: 0 | IQ36: 0 | IR36: 0 | IS36: 0 | IT36: 0 | IU36: 0 | IV36: 0 | IW36: 0 | IX36: 0 | IY36: 0 | IZ36: 0 | JA36: 0 | JB36: 0 | JC36: 0 | JD36: 0 | JE36: 0 | JF36: 0 | JG36: 0 | JH36: 0 | JI36: 0 | JJ36: 0 | JK36: 0 | JL36: 0 | JM36: 0 | JN36: 0 | JO36: 0 | JP36: 0 | JQ36: 0 | JR36: 0 | JS36: 0 | JT36: 0 | JU36: 0 | JV36: 0 | JW36: 0 | JX36: 0 | JY36: 0 | JZ36: 0 | KA36: 0 | KB36: 0 | KC36: 0 | KD36: 0 | KE36: 0 | KF36: 0 | KG36: 0 | KH36: 0 | KI36: 0 | KJ36: 0 | KK36: 0 | KL36: 0 | KM36: 0 | KN36: 0 | KO36: 0 | KP36: 0 | KQ36: 0 | KR36: 0 | KS36: 0 | KT36: 0 | KU36: 0 | KV36: 0 | KW36: 0 | KX36: 0 | KY36: 0 | KZ36: 0 | LA36: 0 | LB36: 0 | LC36: 0 | LD36: 0 | LE36: 0 | LF36: 0 | LG36: 0 | LH36: 0 | LI36: 0 | LJ36: 0 | LK36: 0 | LL36: 0 | LM36: 0 | LN36: 0 | LO36: 0 | LP36: 0 | LQ36: 0 | LR36: 0 | LS36: 0 | LT36: 0 | LU36: 0 | LV36: 0 | LW36: 0 | LX36: 0 | LY36: 0 | LZ36: 0 | MA36: 0 | MB36: 0 | MC36: 0 | MD36: 0 | ME36: 0 | MF36: 0 | MG36: 0 | MH36: 0 | MI36: 0 | MJ36: 0 | MK36: 0 | ML36: 0 | MM36: 0 | MN36: 0 | MO36: 0 | MP36: 0 | MQ36: 0 | MR36: 0 | MS36: 0 | MT36: 0 | MU36: 0 | MV36: 0 | MW36: 0
E37: 32 | F37: (Deel)complex 32 | G37: 0 | H37: 0 | I37: 0 | J37: 0 | K37: 0 | L37: 0 | M37: 0 | N37: 0 | O37: 0 | P37: 0 | Q37: 0 | R37: 0 | S37: 0 | T37: 0 | U37: 0 | V37: 0 | W37: 0 | X37: 0 | Y37: 0 | Z37: 0 | AA37: 0 | AB37: 0 | AC37: 0 | AD37: 0 | AE37: 0 | AF37: 0 | AG37: 0 | AH37: 0 | AI37: 0 | AJ37: 0 | AK37: 0 | AL37: 0 | AM37: 0 | AN37: 0 | AO37: 0 | AP37: 0 | AQ37: 0 | AR37: 0 | AS37: 0 | AT37: 0 | AU37: 0 | AV37: 0 | AW37: 0 | AX37: 0 | AY37: 0 | AZ37: 0 | BA37: 0 | BB37: 0 | BC37: 0 | BD37: 0 | BE37: 0 | BF37: 0 | BG37: 0 | BH37: 0 | BI37: 0 | BJ37: 0 | BK37: 0 | BL37: 0 | BM37: 0 | BN37: 0 | BO37: 0 | BP37: 0 | BQ37: 0 | BR37: 0 | BS37: 0 | BT37: 0 | BU37: 0 | BV37: 0 | BW37: 0 | BX37: 0 | BY37: 0 | BZ37: 0 | CA37: 0 | CB37: 0 | CC37: 0 | CD37: 0 | CE37: 0 | CF37: 0 | CG37: 0 | CH37: 0 | CI37: 0 | CJ37: 0 | CK37: 0 | CL37: 0 | CM37: 0 | CN37: 0 | CO37: 0 | CP37: 0 | CQ37: 0 | CR37: 0 | CS37: 0 | CT37: 0 | CU37: 0 | CV37: 0 | CW37: 0 | CX37: 0 | CY37: 0 | CZ37: 0 | DA37: 0 | DB37: 0 | DC37: 0 | DD37: 0 | DE37: 0 | DF37: 0 | DG37: 0 | DH37: 0 | DI37: 0 | DJ37: 0 | DK37: 0 | DL37: 0 | DM37: 0 | DN37: 0 | DO37: 0 | DP37: 0 | DQ37: 0 | DR37: 0 | DS37: 0 | DT37: 0 | DU37: 0 | DV37: 0 | DW37: 0 | DX37: 0 | DY37: 0 | DZ37: 0 | EA37: 0 | EB37: 0 | EC37: 0 | ED37: 0 | EE37: 0 | EF37: 0 | EG37: 0 | EH37: 0 | EI37: 0 | EJ37: 0 | EK37: 0 | EL37: 0 | EM37: 0 | EN37: 0 | EO37: 0 | EP37: 0 | EQ37: 0 | ER37: 0 | ES37: 0 | ET37: 0 | EU37: 0 | EV37: 0 | EW37: 0 | EX37: 0 | EY37: 0 | EZ37: 0 | FA37: 0 | FB37: 0 | FC37: 0 | FD37: 0 | FE37: 0 | FF37: 0 | FG37: 0 | FH37: 0 | FI37: 0 | FJ37: 0 | FK37: 0 | FL37: 0 | FM37: 0 | FN37: 0 | FO37: 0 | FP37: 0 | FQ37: 0 | FR37: 0 | FS37: 0 | FT37: 0 | FU37: 0 | FV37: 0 | FW37: 0 | FX37: 0 | FY37: 0 | FZ37: 0 | GA37: 0 | GB37: 0 | GC37: 0 | GD37: 0 | GE37: 0 | GF37: 0 | GG37: 0 | GH37: 0 | GI37: 0 | GJ37: 0 | GK37: 0 | GL37: 0 | GM37: 0 | GN37: 0 | GO37: 0 | GP37: 0 | GQ37: 0 | GR37: 0 | GS37: 0 | GT37: 0 | GU37: 0 | GV37: 0 | GW37: 0 | GX37: 0 | GY37: 0 | GZ37: 0 | HA37: 0 | HB37: 0 | HC37: 0 | HD37: 0 | HE37: 0 | HF37: 0 | HG37: 0 | HH37: 0 | HI37: 0 | HJ37: 0 | HK37: 0 | HL37: 0 | HM37: 0 | HN37: 0 | HO37: 0 | HP37: 0 | HQ37: 0 | HR37: 0 | HS37: 0 | HT37: 0 | HU37: 0 | HV37: 0 | HW37: 0 | HX37: 0 | HY37: 0 | HZ37: 0 | IA37: 0 | IB37: 0 | IC37: 0 | ID37: 0 | IE37: 0 | IF37: 0 | IG37: 0 | IH37: 0 | II37: 0 | IJ37: 0 | IK37: 0 | IL37: 0 | IM37: 0 | IN37: 0 | IO37: 0 | IP37: 0 | IQ37: 0 | IR37: 0 | IS37: 0 | IT37: 0 | IU37: 0 | IV37: 0 | IW37: 0 | IX37: 0 | IY37: 0 | IZ37: 0 | JA37: 0 | JB37: 0 | JC37: 0 | JD37: 0 | JE37: 0 | JF37: 0 | JG37: 0 | JH37: 0 | JI37: 0 | JJ37: 0 | JK37: 0 | JL37: 0 | JM37: 0 | JN37: 0 | JO37: 0 | JP37: 0 | JQ37: 0 | JR37: 0 | JS37: 0 | JT37: 0 | JU37: 0 | JV37: 0 | JW37: 0 | JX37: 0 | JY37: 0 | JZ37: 0 | KA37: 0 | KB37: 0 | KC37: 0 | KD37: 0 | KE37: 0 | KF37: 0 | KG37: 0 | KH37: 0 | KI37: 0 | KJ37: 0 | KK37: 0 | KL37: 0 | KM37: 0 | KN37: 0 | KO37: 0 | KP37: 0 | KQ37: 0 | KR37: 0 | KS37: 0 | KT37: 0 | KU37: 0 | KV37: 0 | KW37: 0 | KX37: 0 | KY37: 0 | KZ37: 0 | LA37: 0 | LB37: 0 | LC37: 0 | LD37: 0 | LE37: 0 | LF37: 0 | LG37: 0 | LH37: 0 | LI37: 0 | LJ37: 0 | LK37: 0 | LL37: 0 | LM37: 0 | LN37: 0 | LO37: 0 | LP37: 0 | LQ37: 0 | LR37: 0 | LS37: 0 | LT37: 0 | LU37: 0 | LV37: 0 | LW37: 0 | LX37: 0 | LY37: 0 | LZ37: 0 | MA37: 0 | MB37: 0 | MC37: 0 | MD37: 0 | ME37: 0 | MF37: 0 | MG37: 0 | MH37: 0 | MI37: 0 | MJ37: 0 | MK37: 0 | ML37: 0 | MM37: 0 | MN37: 0 | MO37: 0 | MP37: 0 | MQ37: 0 | MR37: 0 | MS37: 0 | MT37: 0 | MU37: 0 | MV37: 0 | MW37: 0
E38: 33 | F38: (Deel)complex 33 | G38: 0 | H38: 0 | I38: 0 | J38: 0 | K38: 0 | L38: 0 | M38: 0 | N38: 0 | O38: 0 | P38: 0 | Q38: 0 | R38: 0 | S38: 0 | T38: 0 | U38: 0 | V38: 0 | W38: 0 | X38: 0 | Y38: 0 | Z38: 0 | AA38: 0 | AB38: 0 | AC38: 0 | AD38: 0 | AE38: 0 | AF38: 0 | AG38: 0 | AH38: 0 | AI38: 0 | AJ38: 0 | AK38: 0 | AL38: 0 | AM38: 0 | AN38: 0 | AO38: 0 | AP38: 0 | AQ38: 0 | AR38: 0 | AS38: 0 | AT38: 0 | AU38: 0 | AV38: 0 | AW38: 0 | AX38: 0 | AY38: 0 | AZ38: 0 | BA38: 0 | BB38: 0 | BC38: 0 | BD38: 0 | BE38: 0 | BF38: 0 | BG38: 0 | BH38: 0 | BI38: 0 | BJ38: 0 | BK38: 0 | BL38: 0 | BM38: 0 | BN38: 0 | BO38: 0 | BP38: 0 | BQ38: 0 | BR38: 0 | BS38: 0 | BT38: 0 | BU38: 0 | BV38: 0 | BW38: 0 | BX38: 0 | BY38: 0 | BZ38: 0 | CA38: 0 | CB38: 0 | CC38: 0 | CD38: 0 | CE38: 0 | CF38: 0 | CG38: 0 | CH38: 0 | CI38: 0 | CJ38: 0 | CK38: 0 | CL38: 0 | CM38: 0 | CN38: 0 | CO38: 0 | CP38: 0 | CQ38: 0 | CR38: 0 | CS38: 0 | CT38: 0 | CU38: 0 | CV38: 0 | CW38: 0 | CX38: 0 | CY38: 0 | CZ38: 0 | DA38: 0 | DB38: 0 | DC38: 0 | DD38: 0 | DE38: 0 | DF38: 0 | DG38: 0 | DH38: 0 | DI38: 0 | DJ38: 0 | DK38: 0 | DL38: 0 | DM38: 0 | DN38: 0 | DO38: 0 | DP38: 0 | DQ38: 0 | DR38: 0 | DS38: 0 | DT38: 0 | DU38: 0 | DV38: 0 | DW38: 0 | DX38: 0 | DY38: 0 | DZ38: 0 | EA38: 0 | EB38: 0 | EC38: 0 | ED38: 0 | EE38: 0 | EF38: 0 | EG38: 0 | EH38: 0 | EI38: 0 | EJ38: 0 | EK38: 0 | EL38: 0 | EM38: 0 | EN38: 0 | EO38: 0 | EP38: 0 | EQ38: 0 | ER38: 0 | ES38: 0 | ET38: 0 | EU38: 0 | EV38: 0 | EW38: 0 | EX38: 0 | EY38: 0 | EZ38: 0 | FA38: 0 | FB38: 0 | FC38: 0 | FD38: 0 | FE38: 0 | FF38: 0 | FG38: 0 | FH38: 0 | FI38: 0 | FJ38: 0 | FK38: 0 | FL38: 0 | FM38: 0 | FN38: 0 | FO38: 0 | FP38: 0 | FQ38: 0 | FR38: 0 | FS38: 0 | FT38: 0 | FU38: 0 | FV38: 0 | FW38: 0 | FX38: 0 | FY38: 0 | FZ38: 0 | GA38: 0 | GB38: 0 | GC38: 0 | GD38: 0 | GE38: 0 | GF38: 0 | GG38: 0 | GH38: 0 | GI38: 0 | GJ38: 0 | GK38: 0 | GL38: 0 | GM38: 0 | GN38: 0 | GO38: 0 | GP38: 0 | GQ38: 0 | GR38: 0 | GS38: 0 | GT38: 0 | GU38: 0 | GV38: 0 | GW38: 0 | GX38: 0 | GY38: 0 | GZ38: 0 | HA38: 0 | HB38: 0 | HC38: 0 | HD38: 0 | HE38: 0 | HF38: 0 | HG38: 0 | HH38: 0 | HI38: 0 | HJ38: 0 | HK38: 0 | HL38: 0 | HM38: 0 | HN38: 0 | HO38: 0 | HP38: 0 | HQ38: 0 | HR38: 0 | HS38: 0 | HT38: 0 | HU38: 0 | HV38: 0 | HW38: 0 | HX38: 0 | HY38: 0 | HZ38: 0 | IA38: 0 | IB38: 0 | IC38: 0 | ID38: 0 | IE38: 0 | IF38: 0 | IG38: 0 | IH38: 0 | II38: 0 | IJ38: 0 | IK38: 0 | IL38: 0 | IM38: 0 | IN38: 0 | IO38: 0 | IP38: 0 | IQ38: 0 | IR38: 0 | IS38: 0 | IT38: 0 | IU38: 0 | IV38: 0 | IW38: 0 | IX38: 0 | IY38: 0 | IZ38: 0 | JA38: 0 | JB38: 0 | JC38: 0 | JD38: 0 | JE38: 0 | JF38: 0 | JG38: 0 | JH38: 0 | JI38: 0 | JJ38: 0 | JK38: 0 | JL38: 0 | JM38: 0 | JN38: 0 | JO38: 0 | JP38: 0 | JQ38: 0 | JR38: 0 | JS38: 0 | JT38: 0 | JU38: 0 | JV38: 0 | JW38: 0 | JX38: 0 | JY38: 0 | JZ38: 0 | KA38: 0 | KB38: 0 | KC38: 0 | KD38: 0 | KE38: 0 | KF38: 0 | KG38: 0 | KH38: 0 | KI38: 0 | KJ38: 0 | KK38: 0 | KL38: 0 | KM38: 0 | KN38: 0 | KO38: 0 | KP38: 0 | KQ38: 0 | KR38: 0 | KS38: 0 | KT38: 0 | KU38: 0 | KV38: 0 | KW38: 0 | KX38: 0 | KY38: 0 | KZ38: 0 | LA38: 0 | LB38: 0 | LC38: 0 | LD38: 0 | LE38: 0 | LF38: 0 | LG38: 0 | LH38: 0 | LI38: 0 | LJ38: 0 | LK38: 0 | LL38: 0 | LM38: 0 | LN38: 0 | LO38: 0 | LP38: 0 | LQ38: 0 | LR38: 0 | LS38: 0 | LT38: 0 | LU38: 0 | LV38: 0 | LW38: 0 | LX38: 0 | LY38: 0 | LZ38: 0 | MA38: 0 | MB38: 0 | MC38: 0 | MD38: 0 | ME38: 0 | MF38: 0 | MG38: 0 | MH38: 0 | MI38: 0 | MJ38: 0 | MK38: 0 | ML38: 0 | MM38: 0 | MN38: 0 | MO38: 0 | MP38: 0 | MQ38: 0 | MR38: 0 | MS38: 0 | MT38: 0 | MU38: 0 | MV38: 0 | MW38: 0
E39: 34 | F39: (Deel)complex 34 | G39: 0 | H39: 0 | I39: 0 | J39: 0 | K39: 0 | L39: 0 | M39: 0 | N39: 0 | O39: 0 | P39: 0 | Q39: 0 | R39: 0 | S39: 0 | T39: 0 | U39: 0 | V39: 0 | W39: 0 | X39: 0 | Y39: 0 | Z39: 0 | AA39: 0 | AB39: 0 | AC39: 0 | AD39: 0 | AE39: 0 | AF39: 0 | AG39: 0 | AH39: 0 | AI39: 0 | AJ39: 0 | AK39: 0 | AL39: 0 | AM39: 0 | AN39: 0 | AO39: 0 | AP39: 0 | AQ39: 0 | AR39: 0 | AS39: 0 | AT39: 0 | AU39: 0 | AV39: 0 | AW39: 0 | AX39: 0 | AY39: 0 | AZ39: 0 | BA39: 0 | BB39: 0 | BC39: 0 | BD39: 0 | BE39: 0 | BF39: 0 | BG39: 0 | BH39: 0 | BI39: 0 | BJ39: 0 | BK39: 0 | BL39: 0 | BM39: 0 | BN39: 0 | BO39: 0 | BP39: 0 | BQ39: 0 | BR39: 0 | BS39: 0 | BT39: 0 | BU39: 0 | BV39: 0 | BW39: 0 | BX39: 0 | BY39: 0 | BZ39: 0 | CA39: 0 | CB39: 0 | CC39: 0 | CD39: 0 | CE39: 0 | CF39: 0 | CG39: 0 | CH39: 0 | CI39: 0 | CJ39: 0 | CK39: 0 | CL39: 0 | CM39: 0 | CN39: 0 | CO39: 0 | CP39: 0 | CQ39: 0 | CR39: 0 | CS39: 0 | CT39: 0 | CU39: 0 | CV39: 0 | CW39: 0 | CX39: 0 | CY39: 0 | CZ39: 0 | DA39: 0 | DB39: 0 | DC39: 0 | DD39: 0 | DE39: 0 | DF39: 0 | DG39: 0 | DH39: 0 | DI39: 0 | DJ39: 0 | DK39: 0 | DL39: 0 | DM39: 0 | DN39: 0 | DO39: 0 | DP39: 0 | DQ39: 0 | DR39: 0 | DS39: 0 | DT39: 0 | DU39: 0 | DV39: 0 | DW39: 0 | DX39: 0 | DY39: 0 | DZ39: 0 | EA39: 0 | EB39: 0 | EC39: 0 | ED39: 0 | EE39: 0 | EF39: 0 | EG39: 0 | EH39: 0 | EI39: 0 | EJ39: 0 | EK39: 0 | EL39: 0 | EM39: 0 | EN39: 0 | EO39: 0 | EP39: 0 | EQ39: 0 | ER39: 0 | ES39: 0 | ET39: 0 | EU39: 0 | EV39: 0 | EW39: 0 | EX39: 0 | EY39: 0 | EZ39: 0 | FA39: 0 | FB39: 0 | FC39: 0 | FD39: 0 | FE39: 0 | FF39: 0 | FG39: 0 | FH39: 0 | FI39: 0 | FJ39: 0 | FK39: 0 | FL39: 0 | FM39: 0 | FN39: 0 | FO39: 0 | FP39: 0 | FQ39: 0 | FR39: 0 | FS39: 0 | FT39: 0 | FU39: 0 | FV39: 0 | FW39: 0 | FX39: 0 | FY39: 0 | FZ39: 0 | GA39: 0 | GB39: 0 | GC39: 0 | GD39: 0 | GE39: 0 | GF39: 0 | GG39: 0 | GH39: 0 | GI39: 0 | GJ39: 0 | GK39: 0 | GL39: 0 | GM39: 0 | GN39: 0 | GO39: 0 | GP39: 0 | GQ39: 0 | GR39: 0 | GS39: 0 | GT39: 0 | GU39: 0 | GV39: 0 | GW39: 0 | GX39: 0 | GY39: 0 | GZ39: 0 | HA39: 0 | HB39: 0 | HC39: 0 | HD39: 0 | HE39: 0 | HF39: 0 | HG39: 0 | HH39: 0 | HI39: 0 | HJ39: 0 | HK39: 0 | HL39: 0 | HM39: 0 | HN39: 0 | HO39: 0 | HP39: 0 | HQ39: 0 | HR39: 0 | HS39: 0 | HT39: 0 | HU39: 0 | HV39: 0 | HW39: 0 | HX39: 0 | HY39: 0 | HZ39: 0 | IA39: 0 | IB39: 0 | IC39: 0 | ID39: 0 | IE39: 0 | IF39: 0 | IG39: 0 | IH39: 0 | II39: 0 | IJ39: 0 | IK39: 0 | IL39: 0 | IM39: 0 | IN39: 0 | IO39: 0 | IP39: 0 | IQ39: 0 | IR39: 0 | IS39: 0 | IT39: 0 | IU39: 0 | IV39: 0 | IW39: 0 | IX39: 0 | IY39: 0 | IZ39: 0 | JA39: 0 | JB39: 0 | JC39: 0 | JD39: 0 | JE39: 0 | JF39: 0 | JG39: 0 | JH39: 0 | JI39: 0 | JJ39: 0 | JK39: 0 | JL39: 0 | JM39: 0 | JN39: 0 | JO39: 0 | JP39: 0 | JQ39: 0 | JR39: 0 | JS39: 0 | JT39: 0 | JU39: 0 | JV39: 0 | JW39: 0 | JX39: 0 | JY39: 0 | JZ39: 0 | KA39: 0 | KB39: 0 | KC39: 0 | KD39: 0 | KE39: 0 | KF39: 0 | KG39: 0 | KH39: 0 | KI39: 0 | KJ39: 0 | KK39: 0 | KL39: 0 | KM39: 0 | KN39: 0 | KO39: 0 | KP39: 0 | KQ39: 0 | KR39: 0 | KS39: 0 | KT39: 0 | KU39: 0 | KV39: 0 | KW39: 0 | KX39: 0 | KY39: 0 | KZ39: 0 | LA39: 0 | LB39: 0 | LC39: 0 | LD39: 0 | LE39: 0 | LF39: 0 | LG39: 0 | LH39: 0 | LI39: 0 | LJ39: 0 | LK39: 0 | LL39: 0 | LM39: 0 | LN39: 0 | LO39: 0 | LP39: 0 | LQ39: 0 | LR39: 0 | LS39: 0 | LT39: 0 | LU39: 0 | LV39: 0 | LW39: 0 | LX39: 0 | LY39: 0 | LZ39: 0 | MA39: 0 | MB39: 0 | MC39: 0 | MD39: 0 | ME39: 0 | MF39: 0 | MG39: 0 | MH39: 0 | MI39: 0 | MJ39: 0 | MK39: 0 | ML39: 0 | MM39: 0 | MN39: 0 | MO39: 0 | MP39: 0 | MQ39: 0 | MR39: 0 | MS39: 0 | MT39: 0 | MU39: 0 | MV39: 0 | MW39: 0
E40: 35 | F40: (Deel)complex 35 | G40: 0 | H40: 0 | I40: 0 | J40: 0 | K40: 0 | L40: 0 | M40: 0 | N40: 0 | O40: 0 | P40: 0 | Q40: 0 | R40: 0 | S40: 0 | T40: 0 | U40: 0 | V40: 0 | W40: 0 | X40: 0 | Y40: 0 | Z40: 0 | AA40: 0 | AB40: 0 | AC40: 0 | AD40: 0 | AE40: 0 | AF40: 0 | AG40: 0 | AH40: 0 | AI40: 0 | AJ40: 0 | AK40: 0 | AL40: 0 | AM40: 0 | AN40: 0 | AO40: 0 | AP40: 0 | AQ40: 0 | AR40: 0 | AS40: 0 | AT40: 0 | AU40: 0 | AV40: 0 | AW40: 0 | AX40: 0 | AY40: 0 | AZ40: 0 | BA40: 0 | BB40: 0 | BC40: 0 | BD40: 0 | BE40: 0 | BF40: 0 | BG40: 0 | BH40: 0 | BI40: 0 | BJ40: 0 | BK40: 0 | BL40: 0 | BM40: 0 | BN40: 0 | BO40: 0 | BP40: 0 | BQ40: 0 | BR40: 0 | BS40: 0 | BT40: 0 | BU40: 0 | BV40: 0 | BW40: 0 | BX40: 0 | BY40: 0 | BZ40: 0 | CA40: 0 | CB40: 0 | CC40: 0 | CD40: 0 | CE40: 0 | CF40: 0 | CG40: 0 | CH40: 0 | CI40: 0 | CJ40: 0 | CK40: 0 | CL40: 0 | CM40: 0 | CN40: 0 | CO40: 0 | CP40: 0 | CQ40: 0 | CR40: 0 | CS40: 0 | CT40: 0 | CU40: 0 | CV40: 0 | CW40: 0 | CX40: 0 | CY40: 0 | CZ40: 0 | DA40: 0 | DB40: 0 | DC40: 0 | DD40: 0 | DE40: 0 | DF40: 0 | DG40: 0 | DH40: 0 | DI40: 0 | DJ40: 0 | DK40: 0 | DL40: 0 | DM40: 0 | DN40: 0 | DO40: 0 | DP40: 0 | DQ40: 0 | DR40: 0 | DS40: 0 | DT40: 0 | DU40: 0 | DV40: 0 | DW40: 0 | DX40: 0 | DY40: 0 | DZ40: 0 | EA40: 0 | EB40: 0 | EC40: 0 | ED40: 0 | EE40: 0 | EF40: 0 | EG40: 0 | EH40: 0 | EI40: 0 | EJ40: 0 | EK40: 0 | EL40: 0 | EM40: 0 | EN40: 0 | EO40: 0 | EP40: 0 | EQ40: 0 | ER40: 0 | ES40: 0 | ET40: 0 | EU40: 0 | EV40: 0 | EW40: 0 | EX40: 0 | EY40: 0 | EZ40: 0 | FA40: 0 | FB40: 0 | FC40: 0 | FD40: 0 | FE40: 0 | FF40: 0 | FG40: 0 | FH40: 0 | FI40: 0 | FJ40: 0 | FK40: 0 | FL40: 0 | FM40: 0 | FN40: 0 | FO40: 0 | FP40: 0 | FQ40: 0 | FR40: 0 | FS40: 0 | FT40: 0 | FU40: 0 | FV40: 0 | FW40: 0 | FX40: 0 | FY40: 0 | FZ40: 0 | GA40: 0 | GB40: 0 | GC40: 0 | GD40: 0 | GE40: 0 | GF40: 0 | GG40: 0 | GH40: 0 | GI40: 0 | GJ40: 0 | GK40: 0 | GL40: 0 | GM40: 0 | GN40: 0 | GO40: 0 | GP40: 0 | GQ40: 0 | GR40: 0 | GS40: 0 | GT40: 0 | GU40: 0 | GV40: 0 | GW40: 0 | GX40: 0 | GY40: 0 | GZ40: 0 | HA40: 0 | HB40: 0 | HC40: 0 | HD40: 0 | HE40: 0 | HF40: 0 | HG40: 0 | HH40: 0 | HI40: 0 | HJ40: 0 | HK40: 0 | HL40: 0 | HM40: 0 | HN40: 0 | HO40: 0 | HP40: 0 | HQ40: 0 | HR40: 0 | HS40: 0 | HT40: 0 | HU40: 0 | HV40: 0 | HW40: 0 | HX40: 0 | HY40: 0 | HZ40: 0 | IA40: 0 | IB40: 0 | IC40: 0 | ID40: 0 | IE40: 0 | IF40: 0 | IG40: 0 | IH40: 0 | II40: 0 | IJ40: 0 | IK40: 0 | IL40: 0 | IM40: 0 | IN40: 0 | IO40: 0 | IP40: 0 | IQ40: 0 | IR40: 0 | IS40: 0 | IT40: 0 | IU40: 0 | IV40: 0 | IW40: 0 | IX40: 0 | IY40: 0 | IZ40: 0 | JA40: 0 | JB40: 0 | JC40: 0 | JD40: 0 | JE40: 0 | JF40: 0 | JG40: 0 | JH40: 0 | JI40: 0 | JJ40: 0 | JK40: 0 | JL40: 0 | JM40: 0 | JN40: 0 | JO40: 0 | JP40: 0 | JQ40: 0 | JR40: 0 | JS40: 0 | JT40: 0 | JU40: 0 | JV40: 0 | JW40: 0 | JX40: 0 | JY40: 0 | JZ40: 0 | KA40: 0 | KB40: 0 | KC40: 0 | KD40: 0 | KE40: 0 | KF40: 0 | KG40: 0 | KH40: 0 | KI40: 0 | KJ40: 0 | KK40: 0 | KL40: 0 | KM40: 0 | KN40: 0 | KO40: 0 | KP40: 0 | KQ40: 0 | KR40: 0 | KS40: 0 | KT40: 0 | KU40: 0 | KV40: 0 | KW40: 0 | KX40: 0 | KY40: 0 | KZ40: 0 | LA40: 0 | LB40: 0 | LC40: 0 | LD40: 0 | LE40: 0 | LF40: 0 | LG40: 0 | LH40: 0 | LI40: 0 | LJ40: 0 | LK40: 0 | LL40: 0 | LM40: 0 | LN40: 0 | LO40: 0 | LP40: 0 | LQ40: 0 | LR40: 0 | LS40: 0 | LT40: 0 | LU40: 0 | LV40: 0 | LW40: 0 | LX40: 0 | LY40: 0 | LZ40: 0 | MA40: 0 | MB40: 0 | MC40: 0 | MD40: 0 | ME40: 0 | MF40: 0 | MG40: 0 | MH40: 0 | MI40: 0 | MJ40: 0 | MK40: 0 | ML40: 0 | MM40: 0 | MN40: 0 | MO40: 0 | MP40: 0 | MQ40: 0 | MR40: 0 | MS40: 0 | MT40: 0 | MU40: 0 | MV40: 0 | MW40: 0
E41: 36 | F41: (Deel)complex 36 | G41: 0 | H41: 0 | I41: 0 | J41: 0 | K41: 0 | L41: 0 | M41: 0 | N41: 0 | O41: 0 | P41: 0 | Q41: 0 | R41: 0 | S41: 0 | T41: 0 | U41: 0 | V41: 0 | W41: 0 | X41: 0 | Y41: 0 | Z41: 0 | AA41: 0 | AB41: 0 | AC41: 0 | AD41: 0 | AE41: 0 | AF41: 0 | AG41: 0 | AH41: 0 | AI41: 0 | AJ41: 0 | AK41: 0 | AL41: 0 | AM41: 0 | AN41: 0 | AO41: 0 | AP41: 0 | AQ41: 0 | AR41: 0 | AS41: 0 | AT41: 0 | AU41: 0 | AV41: 0 | AW41: 0 | AX41: 0 | AY41: 0 | AZ41: 0 | BA41: 0 | BB41: 0 | BC41: 0 | BD41: 0 | BE41: 0 | BF41: 0 | BG41: 0 | BH41: 0 | BI41: 0 | BJ41: 0 | BK41: 0 | BL41: 0 | BM41: 0 | BN41: 0 | BO41: 0 | BP41: 0 | BQ41: 0 | BR41: 0 | BS41: 0 | BT41: 0 | BU41: 0 | BV41: 0 | BW41: 0 | BX41: 0 | BY41: 0 | BZ41: 0 | CA41: 0 | CB41: 0 | CC41: 0 | CD41: 0 | CE41: 0 | CF41: 0 | CG41: 0 | CH41: 0 | CI41: 0 | CJ41: 0 | CK41: 0 | CL41: 0 | CM41: 0 | CN41: 0 | CO41: 0 | CP41: 0 | CQ41: 0 | CR41: 0 | CS41: 0 | CT41: 0 | CU41: 0 | CV41: 0 | CW41: 0 | CX41: 0 | CY41: 0 | CZ41: 0 | DA41: 0 | DB41: 0 | DC41: 0 | DD41: 0 | DE41: 0 | DF41: 0 | DG41: 0 | DH41: 0 | DI41: 0 | DJ41: 0 | DK41: 0 | DL41: 0 | DM41: 0 | DN41: 0 | DO41: 0 | DP41: 0 | DQ41: 0 | DR41: 0 | DS41: 0 | DT41: 0 | DU41: 0 | DV41: 0 | DW41: 0 | DX41: 0 | DY41: 0 | DZ41: 0 | EA41: 0 | EB41: 0 | EC41: 0 | ED41: 0 | EE41: 0 | EF41: 0 | EG41: 0 | EH41: 0 | EI41: 0 | EJ41: 0 | EK41: 0 | EL41: 0 | EM41: 0 | EN41: 0 | EO41: 0 | EP41: 0 | EQ41: 0 | ER41: 0 | ES41: 0 | ET41: 0 | EU41: 0 | EV41: 0 | EW41: 0 | EX41: 0 | EY41: 0 | EZ41: 0 | FA41: 0 | FB41: 0 | FC41: 0 | FD41: 0 | FE41: 0 | FF41: 0 | FG41: 0 | FH41: 0 | FI41: 0 | FJ41: 0 | FK41: 0 | FL41: 0 | FM41: 0 | FN41: 0 | FO41: 0 | FP41: 0 | FQ41: 0 | FR41: 0 | FS41: 0 | FT41: 0 | FU41: 0 | FV41: 0 | FW41: 0 | FX41: 0 | FY41: 0 | FZ41: 0 | GA41: 0 | GB41: 0 | GC41: 0 | GD41: 0 | GE41: 0 | GF41: 0 | GG41: 0 | GH41: 0 | GI41: 0 | GJ41: 0 | GK41: 0 | GL41: 0 | GM41: 0 | GN41: 0 | GO41: 0 | GP41: 0 | GQ41: 0 | GR41: 0 | GS41: 0 | GT41: 0 | GU41: 0 | GV41: 0 | GW41: 0 | GX41: 0 | GY41: 0 | GZ41: 0 | HA41: 0 | HB41: 0 | HC41: 0 | HD41: 0 | HE41: 0 | HF41: 0 | HG41: 0 | HH41: 0 | HI41: 0 | HJ41: 0 | HK41: 0 | HL41: 0 | HM41: 0 | HN41: 0 | HO41: 0 | HP41: 0 | HQ41: 0 | HR41: 0 | HS41: 0 | HT41: 0 | HU41: 0 | HV41: 0 | HW41: 0 | HX41: 0 | HY41: 0 | HZ41: 0 | IA41: 0 | IB41: 0 | IC41: 0 | ID41: 0 | IE41: 0 | IF41: 0 | IG41: 0 | IH41: 0 | II41: 0 | IJ41: 0 | IK41: 0 | IL41: 0 | IM41: 0 | IN41: 0 | IO41: 0 | IP41: 0 | IQ41: 0 | IR41: 0 | IS41: 0 | IT41: 0 | IU41: 0 | IV41: 0 | IW41: 0 | IX41: 0 | IY41: 0 | IZ41: 0 | JA41: 0 | JB41: 0 | JC41: 0 | JD41: 0 | JE41: 0 | JF41: 0 | JG41: 0 | JH41: 0 | JI41: 0 | JJ41: 0 | JK41: 0 | JL41: 0 | JM41: 0 | JN41: 0 | JO41: 0 | JP41: 0 | JQ41: 0 | JR41: 0 | JS41: 0 | JT41: 0 | JU41: 0 | JV41: 0 | JW41: 0 | JX41: 0 | JY41: 0 | JZ41: 0 | KA41: 0 | KB41: 0 | KC41: 0 | KD41: 0 | KE41: 0 | KF41: 0 | KG41: 0 | KH41: 0 | KI41: 0 | KJ41: 0 | KK41: 0 | KL41: 0 | KM41: 0 | KN41: 0 | KO41: 0 | KP41: 0 | KQ41: 0 | KR41: 0 | KS41: 0 | KT41: 0 | KU41: 0 | KV41: 0 | KW41: 0 | KX41: 0 | KY41: 0 | KZ41: 0 | LA41: 0 | LB41: 0 | LC41: 0 | LD41: 0 | LE41: 0 | LF41: 0 | LG41: 0 | LH41: 0 | LI41: 0 | LJ41: 0 | LK41: 0 | LL41: 0 | LM41: 0 | LN41: 0 | LO41: 0 | LP41: 0 | LQ41: 0 | LR41: 0 | LS41: 0 | LT41: 0 | LU41: 0 | LV41: 0 | LW41: 0 | LX41: 0 | LY41: 0 | LZ41: 0 | MA41: 0 | MB41: 0 | MC41: 0 | MD41: 0 | ME41: 0 | MF41: 0 | MG41: 0 | MH41: 0 | MI41: 0 | MJ41: 0 | MK41: 0 | ML41: 0 | MM41: 0 | MN41: 0 | MO41: 0 | MP41: 0 | MQ41: 0 | MR41: 0 | MS41: 0 | MT41: 0 | MU41: 0 | MV41: 0 | MW41: 0
E42: 37 | F42: (Deel)complex 37 | G42: 0 | H42: 0 | I42: 0 | J42: 0 | K42: 0 | L42: 0 | M42: 0 | N42: 0 | O42: 0 | P42: 0 | Q42: 0 | R42: 0 | S42: 0 | T42: 0 | U42: 0 | V42: 0 | W42: 0 | X42: 0 | Y42: 0 | Z42: 0 | AA42: 0 | AB42: 0 | AC42: 0 | AD42: 0 | AE42: 0 | AF42: 0 | AG42: 0 | AH42: 0 | AI42: 0 | AJ42: 0 | AK42: 0 | AL42: 0 | AM42: 0 | AN42: 0 | AO42: 0 | AP42: 0 | AQ42: 0 | AR42: 0 | AS42: 0 | AT42: 0 | AU42: 0 | AV42: 0 | AW42: 0 | AX42: 0 | AY42: 0 | AZ42: 0 | BA42: 0 | BB42: 0 | BC42: 0 | BD42: 0 | BE42: 0 | BF42: 0 | BG42: 0 | BH42: 0 | BI42: 0 | BJ42: 0 | BK42: 0 | BL42: 0 | BM42: 0 | BN42: 0 | BO42: 0 | BP42: 0 | BQ42: 0 | BR42: 0 | BS42: 0 | BT42: 0 | BU42: 0 | BV42: 0 | BW42: 0 | BX42: 0 | BY42: 0 | BZ42: 0 | CA42: 0 | CB42: 0 | CC42: 0 | CD42: 0 | CE42: 0 | CF42: 0 | CG42: 0 | CH42: 0 | CI42: 0 | CJ42: 0 | CK42: 0 | CL42: 0 | CM42: 0 | CN42: 0 | CO42: 0 | CP42: 0 | CQ42: 0 | CR42: 0 | CS42: 0 | CT42: 0 | CU42: 0 | CV42: 0 | CW42: 0 | CX42: 0 | CY42: 0 | CZ42: 0 | DA42: 0 | DB42: 0 | DC42: 0 | DD42: 0 | DE42: 0 | DF42: 0 | DG42: 0 | DH42: 0 | DI42: 0 | DJ42: 0 | DK42: 0 | DL42: 0 | DM42: 0 | DN42: 0 | DO42: 0 | DP42: 0 | DQ42: 0 | DR42: 0 | DS42: 0 | DT42: 0 | DU42: 0 | DV42: 0 | DW42: 0 | DX42: 0 | DY42: 0 | DZ42: 0 | EA42: 0 | EB42: 0 | EC42: 0 | ED42: 0 | EE42: 0 | EF42: 0 | EG42: 0 | EH42: 0 | EI42: 0 | EJ42: 0 | EK42: 0 | EL42: 0 | EM42: 0 | EN42: 0 | EO42: 0 | EP42: 0 | EQ42: 0 | ER42: 0 | ES42: 0 | ET42: 0 | EU42: 0 | EV42: 0 | EW42: 0 | EX42: 0 | EY42: 0 | EZ42: 0 | FA42: 0 | FB42: 0 | FC42: 0 | FD42: 0 | FE42: 0 | FF42: 0 | FG42: 0 | FH42: 0 | FI42: 0 | FJ42: 0 | FK42: 0 | FL42: 0 | FM42: 0 | FN42: 0 | FO42: 0 | FP42: 0 | FQ42: 0 | FR42: 0 | FS42: 0 | FT42: 0 | FU42: 0 | FV42: 0 | FW42: 0 | FX42: 0 | FY42: 0 | FZ42: 0 | GA42: 0 | GB42: 0 | GC42: 0 | GD42: 0 | GE42: 0 | GF42: 0 | GG42: 0 | GH42: 0 | GI42: 0 | GJ42: 0 | GK42: 0 | GL42: 0 | GM42: 0 | GN42: 0 | GO42: 0 | GP42: 0 | GQ42: 0 | GR42: 0 | GS42: 0 | GT42: 0 | GU42: 0 | GV42: 0 | GW42: 0 | GX42: 0 | GY42: 0 | GZ42: 0 | HA42: 0 | HB42: 0 | HC42: 0 | HD42: 0 | HE42: 0 | HF42: 0 | HG42: 0 | HH42: 0 | HI42: 0 | HJ42: 0 | HK42: 0 | HL42: 0 | HM42: 0 | HN42: 0 | HO42: 0 | HP42: 0 | HQ42: 0 | HR42: 0 | HS42: 0 | HT42: 0 | HU42: 0 | HV42: 0 | HW42: 0 | HX42: 0 | HY42: 0 | HZ42: 0 | IA42: 0 | IB42: 0 | IC42: 0 | ID42: 0 | IE42: 0 | IF42: 0 | IG42: 0 | IH42: 0 | II42: 0 | IJ42: 0 | IK42: 0 | IL42: 0 | IM42: 0 | IN42: 0 | IO42: 0 | IP42: 0 | IQ42: 0 | IR42: 0 | IS42: 0 | IT42: 0 | IU42: 0 | IV42: 0 | IW42: 0 | IX42: 0 | IY42: 0 | IZ42: 0 | JA42: 0 | JB42: 0 | JC42: 0 | JD42: 0 | JE42: 0 | JF42: 0 | JG42: 0 | JH42: 0 | JI42: 0 | JJ42: 0 | JK42: 0 | JL42: 0 | JM42: 0 | JN42: 0 | JO42: 0 | JP42: 0 | JQ42: 0 | JR42: 0 | JS42: 0 | JT42: 0 | JU42: 0 | JV42: 0 | JW42: 0 | JX42: 0 | JY42: 0 | JZ42: 0 | KA42: 0 | KB42: 0 | KC42: 0 | KD42: 0 | KE42: 0 | KF42: 0 | KG42: 0 | KH42: 0 | KI42: 0 | KJ42: 0 | KK42: 0 | KL42: 0 | KM42: 0 | KN42: 0 | KO42: 0 | KP42: 0 | KQ42: 0 | KR42: 0 | KS42: 0 | KT42: 0 | KU42: 0 | KV42: 0 | KW42: 0 | KX42: 0 | KY42: 0 | KZ42: 0 | LA42: 0 | LB42: 0 | LC42: 0 | LD42: 0 | LE42: 0 | LF42: 0 | LG42: 0 | LH42: 0 | LI42: 0 | LJ42: 0 | LK42: 0 | LL42: 0 | LM42: 0 | LN42: 0 | LO42: 0 | LP42: 0 | LQ42: 0 | LR42: 0 | LS42: 0 | LT42: 0 | LU42: 0 | LV42: 0 | LW42: 0 | LX42: 0 | LY42: 0 | LZ42: 0 | MA42: 0 | MB42: 0 | MC42: 0 | MD42: 0 | ME42: 0 | MF42: 0 | MG42: 0 | MH42: 0 | MI42: 0 | MJ42: 0 | MK42: 0 | ML42: 0 | MM42: 0 | MN42: 0 | MO42: 0 | MP42: 0 | MQ42: 0 | MR42: 0 | MS42: 0 | MT42: 0 | MU42: 0 | MV42: 0 | MW42: 0
E43: 38 | F43: (Deel)complex 38 | G43: 0 | H43: 0 | I43: 0 | J43: 0 | K43: 0 | L43: 0 | M43: 0 | N43: 0 | O43: 0 | P43: 0 | Q43: 0 | R43: 0 | S43: 0 | T43: 0 | U43: 0 | V43: 0 | W43: 0 | X43: 0 | Y43: 0 | Z43: 0 | AA43: 0 | AB43: 0 | AC43: 0 | AD43: 0 | AE43: 0 | AF43: 0 | AG43: 0 | AH43: 0 | AI43: 0 | AJ43: 0 | AK43: 0 | AL43: 0 | AM43: 0 | AN43: 0 | AO43: 0 | AP43: 0 | AQ43: 0 | AR43: 0 | AS43: 0 | AT43: 0 | AU43: 0 | AV43: 0 | AW43: 0 | AX43: 0 | AY43: 0 | AZ43: 0 | BA43: 0 | BB43: 0 | BC43: 0 | BD43: 0 | BE43: 0 | BF43: 0 | BG43: 0 | BH43: 0 | BI43: 0 | BJ43: 0 | BK43: 0 | BL43: 0 | BM43: 0 | BN43: 0 | BO43: 0 | BP43: 0 | BQ43: 0 | BR43: 0 | BS43: 0 | BT43: 0 | BU43: 0 | BV43: 0 | BW43: 0 | BX43: 0 | BY43: 0 | BZ43: 0 | CA43: 0 | CB43: 0 | CC43: 0 | CD43: 0 | CE43: 0 | CF43: 0 | CG43: 0 | CH43: 0 | CI43: 0 | CJ43: 0 | CK43: 0 | CL43: 0 | CM43: 0 | CN43: 0 | CO43: 0 | CP43: 0 | CQ43: 0 | CR43: 0 | CS43: 0 | CT43: 0 | CU43: 0 | CV43: 0 | CW43: 0 | CX43: 0 | CY43: 0 | CZ43: 0 | DA43: 0 | DB43: 0 | DC43: 0 | DD43: 0 | DE43: 0 | DF43: 0 | DG43: 0 | DH43: 0 | DI43: 0 | DJ43: 0 | DK43: 0 | DL43: 0 | DM43: 0 | DN43: 0 | DO43: 0 | DP43: 0 | DQ43: 0 | DR43: 0 | DS43: 0 | DT43: 0 | DU43: 0 | DV43: 0 | DW43: 0 | DX43: 0 | DY43: 0 | DZ43: 0 | EA43: 0 | EB43: 0 | EC43: 0 | ED43: 0 | EE43: 0 | EF43: 0 | EG43: 0 | EH43: 0 | EI43: 0 | EJ43: 0 | EK43: 0 | EL43: 0 | EM43: 0 | EN43: 0 | EO43: 0 | EP43: 0 | EQ43: 0 | ER43: 0 | ES43: 0 | ET43: 0 | EU43: 0 | EV43: 0 | EW43: 0 | EX43: 0 | EY43: 0 | EZ43: 0 | FA43: 0 | FB43: 0 | FC43: 0 | FD43: 0 | FE43: 0 | FF43: 0 | FG43: 0 | FH43: 0 | FI43: 0 | FJ43: 0 | FK43: 0 | FL43: 0 | FM43: 0 | FN43: 0 | FO43: 0 | FP43: 0 | FQ43: 0 | FR43: 0 | FS43: 0 | FT43: 0 | FU43: 0 | FV43: 0 | FW43: 0 | FX43: 0 | FY43: 0 | FZ43: 0 | GA43: 0 | GB43: 0 | GC43: 0 | GD43: 0 | GE43: 0 | GF43: 0 | GG43: 0 | GH43: 0 | GI43: 0 | GJ43: 0 | GK43: 0 | GL43: 0 | GM43: 0 | GN43: 0 | GO43: 0 | GP43: 0 | GQ43: 0 | GR43: 0 | GS43: 0 | GT43: 0 | GU43: 0 | GV43: 0 | GW43: 0 | GX43: 0 | GY43: 0 | GZ43: 0 | HA43: 0 | HB43: 0 | HC43: 0 | HD43: 0 | HE43: 0 | HF43: 0 | HG43: 0 | HH43: 0 | HI43: 0 | HJ43: 0 | HK43: 0 | HL43: 0 | HM43: 0 | HN43: 0 | HO43: 0 | HP43: 0 | HQ43: 0 | HR43: 0 | HS43: 0 | HT43: 0 | HU43: 0 | HV43: 0 | HW43: 0 | HX43: 0 | HY43: 0 | HZ43: 0 | IA43: 0 | IB43: 0 | IC43: 0 | ID43: 0 | IE43: 0 | IF43: 0 | IG43: 0 | IH43: 0 | II43: 0 | IJ43: 0 | IK43: 0 | IL43: 0 | IM43: 0 | IN43: 0 | IO43: 0 | IP43: 0 | IQ43: 0 | IR43: 0 | IS43: 0 | IT43: 0 | IU43: 0 | IV43: 0 | IW43: 0 | IX43: 0 | IY43: 0 | IZ43: 0 | JA43: 0 | JB43: 0 | JC43: 0 | JD43: 0 | JE43: 0 | JF43: 0 | JG43: 0 | JH43: 0 | JI43: 0 | JJ43: 0 | JK43: 0 | JL43: 0 | JM43: 0 | JN43: 0 | JO43: 0 | JP43: 0 | JQ43: 0 | JR43: 0 | JS43: 0 | JT43: 0 | JU43: 0 | JV43: 0 | JW43: 0 | JX43: 0 | JY43: 0 | JZ43: 0 | KA43: 0 | KB43: 0 | KC43: 0 | KD43: 0 | KE43: 0 | KF43: 0 | KG43: 0 | KH43: 0 | KI43: 0 | KJ43: 0 | KK43: 0 | KL43: 0 | KM43: 0 | KN43: 0 | KO43: 0 | KP43: 0 | KQ43: 0 | KR43: 0 | KS43: 0 | KT43: 0 | KU43: 0 | KV43: 0 | KW43: 0 | KX43: 0 | KY43: 0 | KZ43: 0 | LA43: 0 | LB43: 0 | LC43: 0 | LD43: 0 | LE43: 0 | LF43: 0 | LG43: 0 | LH43: 0 | LI43: 0 | LJ43: 0 | LK43: 0 | LL43: 0 | LM43: 0 | LN43: 0 | LO43: 0 | LP43: 0 | LQ43: 0 | LR43: 0 | LS43: 0 | LT43: 0 | LU43: 0 | LV43: 0 | LW43: 0 | LX43: 0 | LY43: 0 | LZ43: 0 | MA43: 0 | MB43: 0 | MC43: 0 | MD43: 0 | ME43: 0 | MF43: 0 | MG43: 0 | MH43: 0 | MI43: 0 | MJ43: 0 | MK43: 0 | ML43: 0 | MM43: 0 | MN43: 0 | MO43: 0 | MP43: 0 | MQ43: 0 | MR43: 0 | MS43: 0 | MT43: 0 | MU43: 0 | MV43: 0 | MW43: 0
E44: 39 | F44: (Deel)complex 39 | G44: 0 | H44: 0 | I44: 0 | J44: 0 | K44: 0 | L44: 0 | M44: 0 | N44: 0 | O44: 0 | P44: 0 | Q44: 0 | R44: 0 | S44: 0 | T44: 0 | U44: 0 | V44: 0 | W44: 0 | X44: 0 | Y44: 0 | Z44: 0 | AA44: 0 | AB44: 0 | AC44: 0 | AD44: 0 | AE44: 0 | AF44: 0 | AG44: 0 | AH44: 0 | AI44: 0 | AJ44: 0 | AK44: 0 | AL44: 0 | AM44: 0 | AN44: 0 | AO44: 0 | AP44: 0 | AQ44: 0 | AR44: 0 | AS44: 0 | AT44: 0 | AU44: 0 | AV44: 0 | AW44: 0 | AX44: 0 | AY44: 0 | AZ44: 0 | BA44: 0 | BB44: 0 | BC44: 0 | BD44: 0 | BE44: 0 | BF44: 0 | BG44: 0 | BH44: 0 | BI44: 0 | BJ44: 0 | BK44: 0 | BL44: 0 | BM44: 0 | BN44: 0 | BO44: 0 | BP44: 0 | BQ44: 0 | BR44: 0 | BS44: 0 | BT44: 0 | BU44: 0 | BV44: 0 | BW44: 0 | BX44: 0 | BY44: 0 | BZ44: 0 | CA44: 0 | CB44: 0 | CC44: 0 | CD44: 0 | CE44: 0 | CF44: 0 | CG44: 0 | CH44: 0 | CI44: 0 | CJ44: 0 | CK44: 0 | CL44: 0 | CM44: 0 | CN44: 0 | CO44: 0 | CP44: 0 | CQ44: 0 | CR44: 0 | CS44: 0 | CT44: 0 | CU44: 0 | CV44: 0 | CW44: 0 | CX44: 0 | CY44: 0 | CZ44: 0 | DA44: 0 | DB44: 0 | DC44: 0 | DD44: 0 | DE44: 0 | DF44: 0 | DG44: 0 | DH44: 0 | DI44: 0 | DJ44: 0 | DK44: 0 | DL44: 0 | DM44: 0 | DN44: 0 | DO44: 0 | DP44: 0 | DQ44: 0 | DR44: 0 | DS44: 0 | DT44: 0 | DU44: 0 | DV44: 0 | DW44: 0 | DX44: 0 | DY44: 0 | DZ44: 0 | EA44: 0 | EB44: 0 | EC44: 0 | ED44: 0 | EE44: 0 | EF44: 0 | EG44: 0 | EH44: 0 | EI44: 0 | EJ44: 0 | EK44: 0 | EL44: 0 | EM44: 0 | EN44: 0 | EO44: 0 | EP44: 0 | EQ44: 0 | ER44: 0 | ES44: 0 | ET44: 0 | EU44: 0 | EV44: 0 | EW44: 0 | EX44: 0 | EY44: 0 | EZ44: 0 | FA44: 0 | FB44: 0 | FC44: 0 | FD44: 0 | FE44: 0 | FF44: 0 | FG44: 0 | FH44: 0 | FI44: 0 | FJ44: 0 | FK44: 0 | FL44: 0 | FM44: 0 | FN44: 0 | FO44: 0 | FP44: 0 | FQ44: 0 | FR44: 0 | FS44: 0 | FT44: 0 | FU44: 0 | FV44: 0 | FW44: 0 | FX44: 0 | FY44: 0 | FZ44: 0 | GA44: 0 | GB44: 0 | GC44: 0 | GD44: 0 | GE44: 0 | GF44: 0 | GG44: 0 | GH44: 0 | GI44: 0 | GJ44: 0 | GK44: 0 | GL44: 0 | GM44: 0 | GN44: 0 | GO44: 0 | GP44: 0 | GQ44: 0 | GR44: 0 | GS44: 0 | GT44: 0 | GU44: 0 | GV44: 0 | GW44: 0 | GX44: 0 | GY44: 0 | GZ44: 0 | HA44: 0 | HB44: 0 | HC44: 0 | HD44: 0 | HE44: 0 | HF44: 0 | HG44: 0 | HH44: 0 | HI44: 0 | HJ44: 0 | HK44: 0 | HL44: 0 | HM44: 0 | HN44: 0 | HO44: 0 | HP44: 0 | HQ44: 0 | HR44: 0 | HS44: 0 | HT44: 0 | HU44: 0 | HV44: 0 | HW44: 0 | HX44: 0 | HY44: 0 | HZ44: 0 | IA44: 0 | IB44: 0 | IC44: 0 | ID44: 0 | IE44: 0 | IF44: 0 | IG44: 0 | IH44: 0 | II44: 0 | IJ44: 0 | IK44: 0 | IL44: 0 | IM44: 0 | IN44: 0 | IO44: 0 | IP44: 0 | IQ44: 0 | IR44: 0 | IS44: 0 | IT44: 0 | IU44: 0 | IV44: 0 | IW44: 0 | IX44: 0 | IY44: 0 | IZ44: 0 | JA44: 0 | JB44: 0 | JC44: 0 | JD44: 0 | JE44: 0 | JF44: 0 | JG44: 0 | JH44: 0 | JI44: 0 | JJ44: 0 | JK44: 0 | JL44: 0 | JM44: 0 | JN44: 0 | JO44: 0 | JP44: 0 | JQ44: 0 | JR44: 0 | JS44: 0 | JT44: 0 | JU44: 0 | JV44: 0 | JW44: 0 | JX44: 0 | JY44: 0 | JZ44: 0 | KA44: 0 | KB44: 0 | KC44: 0 | KD44: 0 | KE44: 0 | KF44: 0 | KG44: 0 | KH44: 0 | KI44: 0 | KJ44: 0 | KK44: 0 | KL44: 0 | KM44: 0 | KN44: 0 | KO44: 0 | KP44: 0 | KQ44: 0 | KR44: 0 | KS44: 0 | KT44: 0 | KU44: 0 | KV44: 0 | KW44: 0 | KX44: 0 | KY44: 0 | KZ44: 0 | LA44: 0 | LB44: 0 | LC44: 0 | LD44: 0 | LE44: 0 | LF44: 0 | LG44: 0 | LH44: 0 | LI44: 0 | LJ44: 0 | LK44: 0 | LL44: 0 | LM44: 0 | LN44: 0 | LO44: 0 | LP44: 0 | LQ44: 0 | LR44: 0 | LS44: 0 | LT44: 0 | LU44: 0 | LV44: 0 | LW44: 0 | LX44: 0 | LY44: 0 | LZ44: 0 | MA44: 0 | MB44: 0 | MC44: 0 | MD44: 0 | ME44: 0 | MF44: 0 | MG44: 0 | MH44: 0 | MI44: 0 | MJ44: 0 | MK44: 0 | ML44: 0 | MM44: 0 | MN44: 0 | MO44: 0 | MP44: 0 | MQ44: 0 | MR44: 0 | MS44: 0 | MT44: 0 | MU44: 0 | MV44: 0 | MW44: 0
